Workbook

Sheet Instructions
B3: Overview of Model
B4: The purpose of the model is to test whether the prices faced by customers will exceed the Stand Alone Cost (SAC) of servicing those customers. The model has been developed so as to allow this calculation to be done for a selection of customers within each of AusNet's nominated tariff classes. For all except High Voltage customers, the model compares the NPV of a customer's retail bill against the NPV of their estimated cost of disconnecting from the electricity network altogether. For High Voltage customers, the comparison is between the cost of by-passing AusNet's distribution network, and the NPV of the cost of installing and operating the infrastructure required to by-pass AusNet's network.
B12: Input Sheet
B13: All key inputs are to be inputted into this sheet, except for forecast distribution tariffs. The inputs in this sheet include, but are not limited to: (a) the WACC and length of evaluation period that will be used for to assess the economic costs faced by each tariff class; (b) consumpiton information for each customer being tested within each tariff class; (c) information on starting retail tariffs faced by each tariff class (with the option of using either a flat rate and peak/off peak structure) and the proportion of the retail bill that is attributable to each component of the electricity value chain for each tariff class; (d) the capex and opex requirements to disconnect from or by-pass the grid, with this inputs required for each customer being tested in the model.
B21: Results Sheet
B22: The results for each customer tested are reported in this sheet. Macros are required to be run each time inputs are updated and new results are to sought to be reported.
B30: "Stand alone cost" sheets
B31: Each "Stand alone cost" sheet calculates the NPV of either leaving the grid, or by-passing AusNet's distribution network, for every customer that is being tested in the model. In simple terms, it calculates the return on and of capital requirements of each customer for each year, based on the stand alone cost capex inputs in the Input Sheet. The opex requirements are added on to form the total cost to that customer (in NPV terms, over the evaluation period selected in the input sheet) of adopting a stand alone cost solution.
B39: "Bill Assumptions" sheets
B40: Calculates the NPV of the customer's retail electricity bill, assuming they stay connected to AusNet's distribution network. The forecast retail bill is calculated based on a range of inputs obtained from other sheets.
B48: "Bill Inputs" sheets
B49: This is where the user must input a forecast of the distribution tariffs that will apply to each customer who is being tested in the model. The sheet also picks up information from other sheets to determine how other components of the electricity value chain (e.g., wholesale, transmission, retail) will change in the future. This then drives how final retail tariffs will change in the "Bill Assumptions" sheets.
B57: Wholesale and TX price index
B58: This sheet is where information is input to determine what the forecast of the wholesale and transmission costs of electricity will be in the future (which in turn flows through to higher retail charges in the future).

Sheet Input Sheet
B2: General Inputs Required | G2: Key | H2: Input required | I2: Linked Cell | J2: Table column name | K2: Table Heading
B4: Common Parameters | C4: Answer | D4: Guidance from Administrator
B5: Starting Year | C5: 2020 | D5: Insert starting year of evaluation
B6: Dollars of the day | C6: 2019 | D6: The dollars in which input capex and opex inputs have been developed
B7: NPV evaluation period - Large Customers | C7: 10 | D7: Number of years over which NPV's completed | L7: 2018-01-01 | M7: 2018-02-01 | N7: 2018-03-01 | O7: 2018-04-01 | P7: 2018-05-01 | Q7: 2018-06-01 | R7: 2018-07-01 | S7: 2018-08-01 | T7: 2018-09-01 | U7: 2018-10-01 | V7: 2018-11-01 | W7: 2018-12-01
B8: NPV evaluation period - Commercial Customers | C8: 10 | D8: Number of years over which NPV's completed | K8: Demand | L8: 15.29 | M8: 17.81 | N8: 16.17 | O8: 16.62 | P8: 14.94 | Q8: 15.45 | R8: 15.87 | S8: 15.01 | T8: 13.47 | U8: 12.54 | V8: 13.76 | W8: 15.28
B9: NPV evaluation period - Residential Customers | C9: 10 | D9: Number of years over which NPV's completed
B10: NPV evaluation period - Spare1 Customers | C10: 10 | D10: Number of years over which NPV's completed | M10: 6305860538 | N10: NSP78
B11: NPV evaluation period - Spare2 Customers | C11: 10 | D11: Number of years over which NPV's completed
B12: WACC - Large Customers | C12: 0.0438 | D12: The discount rate that is to be used in all NPV calculations in the model | N12: Usage
B13: WACC - Commercial Customers | C13: 0.0438 | D13: The discount rate that is to be used in all NPV calculations in the model | M13: Month Year | N13: Peak (kWh) | O13: Off Peak (kWh) | P13: Shoulder (kWh) | Q13: Demand Capacity | R13: Critical Peak
B14: WACC - Residentiual Customers | C14: 0.0438 | D14: The discount rate that is to be used in all NPV calculations in the model | M14: 2018-01-01 | N14: 21199.2 | O14: 25643.7 | P14: 21399.3 | Q14: 850 | R14: 239.1
B15: WACC - Spare1 | C15: 0.0438 | D15: The discount rate that is to be used in all NPV calculations in the model | M15: 2018-02-01 | N15: 182285.9 | O15: 22069.5 | P15: 18045 | Q15: 850 | R15: 239.1
B16: WACC - Spare2 | C16: 0.0438 | D16: The discount rate that is to be used in all NPV calculations in the model | M16: 2018-03-01 | N16: 16965.6 | O16: 22274.7 | P16: 15903.3 | Q16: 850 | R16: 239.1
B17: Large customer billiable volumes (based on Dx tariff structure) | M17: 2018-04-01 | N17: 152298.2 | O17: 17573.1 | P17: 13351.2 | Q17: 850 | R17: 244.54
B18: Large Customer Description | C18: Peak (kWh) | D18: Shoulder (kWh) | E18: Off Peak (kWH) | F18: Chargeable kVA | G18: Fixed | H18: Other | I18: Other2 | M18: 2018-05-01 | N18: 17760.3 | O18: 17384.4 | P18: 15235.2 | Q18: 850 | R18: 244.54
B19: Large customer 1 | C19: 184256.27 | E19: 199221.42 | F19: 15160 | G19: 1 | I19: 45.42 | K19: NSP95 | M19: 2018-06-01 | N19: 17873.1 | O19: 20374.5 | P19: 15602.4 | Q19: 850 | R19: 244.54
B20: Large customer 2 | C20: 23234138.6 | E20: 22641517.13 | F20: 11610 | G20: 1 | I20: 7049.54 | K20: NSP91 | M20: 2018-07-01 | N20: 18337.8 | O20: 19237.5 | P20: 17294.4 | Q20: 850 | R20: 244.54
B21: Large customer 3 | M21: 2018-08-01 | N21: 19002 | O21: 17892.3 | P21: 18035.1 | Q21: 850 | R21: 244.54
B22: Large customer 4 | M22: 2018-09-01 | N22: 15422.1 | O22: 20163.9 | P22: 13239.3 | Q22: 850 | R22: 244.54
B23: Large customer 5 | M23: 2018-10-01 | N23: 17078.4 | O23: 17471.1 | P23: 14872.5 | Q23: 850 | R23: 244.54
B24: Large customer 6 | M24: 2018-11-01 | N24: 17295.6 | O24: 17785.2 | P24: 15512.1 | Q24: 850 | R24: 244.54
B25: Large customer 7 | M25: 2018-12-01 | N25: 17368.8 | O25: 22946.7 | P25: 17765.1 | Q25: 850 | R25: 244.54
B26: Large customer 8 | L26: Retail Tariff Inputs | Q26: Breakdown of Retail Bill Inputs
B27: Large customer 9
B28: Large customer 10
B29: Large LV customer billiable volumes (based on retail price structure) information | L29: Large LV Tariff Information | Q29: Breakdown of Average Large LV Customer Retail Bill
B30: Large LV Customer Description | C30: Peak (kWh) | D30: Shoulder (kWh) | E30: Off Peak (kWH) | F30: Chargeable kVA | G30: Fixed | H30: Other | I30: Other2 | J30: Network Tariff that this Customer is on | L30: Tariff Component | M30: Unit of Charging | N30: Starting Retail Tariff - Flat Rate | O30: Starting Retail Tariff - Peak/Off Peak rates | Q30: Component of Retail bill | R30: Average Breakdown
B31: Large LV Customer - Low Usage | C31: 176753.95 | D31: 121824.42 | E31: 219939.85 | F31: 300 | G31: 1 | I31: 141.9 | J31: Peak/Off Peak | K31: NSP75 | L31: =TRANSPOSE(C30:I30) -> Peak (kWh) | M31: $/kWh | O31: ='LgeLV Dist Bill Inputs'!E20+0.020495+0.07 -> 0.116749 | Q31: Wholesale | R31: =8.3/15.7 -> 0.5286624204
B32: Large LV Customer - High Usage | C32: =SUM(N14:N25) -> 512887 | D32: =SUM(P14:P25) -> 196254.9 | E32: =SUM(O14:O25) -> 240816.6 | F32: 850 | G32: 1 | I32: =R25 -> 244.54 | J32: Peak/Off Peak | K32: NSP78 | L32: Shoulder (kWh) | M32: $/kWh | O32: ='LgeLV Dist Bill Inputs'!E21+0.07+0.020495 -> 0.107823 | Q32: Transmission | R32: =(5.5/15.7)*0.1 -> 0.03503184713
B33: Large LV Customer - Medium Usage | C33: 484809.77 | D33: 313820.34 | E33: 751891.85 | F33: 470 | G33: 1 | I33: 360.01 | J33: Peak/Off Peak | K33: NSP76 | L33: Off Peak (kWH) | M33: $/kWh | O33: ='LgeLV Dist Bill Inputs'!E22+0.005716+0.07 -> 0.084778 | Q33: Retail | R33: =0.5/15.7 -> 0.03184713376
J34: Peak/Off Peak | L34: Chargeable kVA | M34: $/kVA | O34: 59 | Q34: Distribution | R34: =(5.5/15.7)*0.9 -> 0.3152866242
J35: Peak/Off Peak | L35: Fixed | M35: $/year | O35: 6000 | Q35: Env | R35: =1.4/15.7 -> 0.08917197452
J36: Peak/Off Peak | L36: Other | M36: $/kvA | O36: 98 | Q36: TOTAL | R36: =IF(SUM(R31:R35)<=1,SUM(R31:R35),"ERROR - INVALID DATA") -> 1
J37: Peak/Off Peak | L37: Other2 | M37: $/kvA | O37: 98
J38: Peak/Off Peak
J39: Peak/Off Peak
J40: Peak/Off Peak
B41: LV Comm customer billiable volumes (based on retail price structure) information | L41: LV Comm Retail Tariff Information | Q41: Breakdown of Average LV Comm Customer Retail Bill
B42: LV Comm Customer Description | C42: Peak (kWh) | D42: Monthly Peak KW | E42: Off Peak (kWH) | F42: Monthly Off Peak KW | G42: Fixed | H42: Block 1 | I42: Block Balance | J42: Network Tariff that this Customer is on | L42: Tariff Component | M42: Unit of Charging | N42: Starting Retail Tariff - Flat Rate | O42: Starting Retail Tariff - Peak/Off Peak rates | Q42: Component of Retail bill | R42: Average Breakdown
B43: LV Commercial Customer - Low Usage | G43: 1 | H43: 4091.18 | I43: 10911.65 | J43: Peak/Off Peak | K43: NEE12 | L43: =TRANSPOSE(C42:I42) -> Peak (kWh) | M43: $/kWh | O43: 0.25 | Q43: Wholesale | R43: 0.33
B44: LV Commercial Customer - High Usage | C44: 208847.85 | E44: 186910.63 | G44: 1 | J44: Peak/Off Peak | K44: NEE51 | L44: Monthly Peak KW | M44: $/kWh | Q44: Transmission | R44: 0.09
B45: LV Commercial Customer - Medium Usage | C45: 27174.45 | D45: =SUM(L8:N8,W8) -> 64.55 | E45: 12701.21 | F45: =SUM(O8:V8) -> 117.66 | G45: 1 | J45: Peak/Off Peak | K45: NASN21 | L45: Off Peak (kWH) | M45: $/kWh | O45: 0.2 | Q45: Retail | R45: 0.21
J46: Peak/Off Peak | L46: Monthly Off Peak KW | M46: kVA | Q46: Distribution | R46: 0.31
J47: Peak/Off Peak | L47: Fixed | M47: $/year | O47: =1.1368*365 -> 414.932 | Q47: Environmental | R47: 0.06
J48: Peak/Off Peak | L48: Block 1 | M48: $/kWh | O48: 0.3154 | Q48: TOTAL | R48: =IF(SUM(R43:R47)<=1,SUM(R43:R47),"ERROR - INVALID DATA") -> 1
J49: Peak/Off Peak | L49: Block Balance | M49: $/kWh | O49: 0.3605
J50: Peak/Off Peak
J51: Peak/Off Peak
J52: Peak/Off Peak
B53: LV Res customer billiable volumes (based on retail price structure) information | L53: Residential Retail Tariff Information | Q53: Breakdown of Average Residential Customer Retail Bill
B54: LV Res Customer Description | C54: Peak (kWh) | D54: Shoulder (kWh) | E54: Off Peak (kWH) | F54: Chargeable kVA | G54: Fixed | H54: Block 1 | I54: Block Balance | J54: Network Tariff that this Customer is on | L54: Tariff Component | M54: Unit of Charging | N54: Starting Retail Tariff - Flat Rate | O54: Starting Retail Tariff - Peak/Off Peak rates | Q54: Component of Retail bill | R54: Average Breakdown
B55: LV Residential Customer - Low Usage | G55: 1 | H55: 2946.98 | I55: 60.09 | J55: Peak/Off Peak | K55: NEE11 | L55: =TRANSPOSE(C54:I54) -> Peak (kWh) | M55: $/kWh | O55: =0.23/1.1 -> 0.2090909091 | Q55: Wholesale | R55: 0.33
B56: LV Residential Customer - High Usage | G56: 1 | H56: 4091.18 | I56: 1997.58 | J56: Peak/Off Peak | K56: NEE11 | L56: Shoulder (kWh) | M56: $/kWh | Q56: Transmission | R56: 0.09
B57: LV Residential Customer - Medium Usage | C57: 1926.09 | E57: 2111.5 | G57: 1 | J57: Peak/Off Peak | K57: NEE20 | L57: Off Peak (kWH) | M57: $/kWh | O57: =0.132/1.1 -> 0.12 | Q57: Retail | R57: 0.21
B58: Spare Customer 4 | J58: Peak/Off Peak | L58: Chargeable kVA | M58: kVA | Q58: Distribution | R58: 0.31
B59: Spare Customer 5 | J59: Peak/Off Peak | L59: Fixed | M59: $/year | O59: =(1.045*365)/1.1 -> 346.75 | Q59: Environmental | R59: 0.06
B60: Spare Customer 6 | J60: Peak/Off Peak | L60: Block 1 | M60: $/kWh | O60: =0.2112/1.1 -> 0.192 | Q60: TOTAL | R60: =IF(SUM(R55:R59)<=1,SUM(R55:R59),"ERROR - INVALID DATA") -> 1
B61: Spare Customer 7 | J61: Peak/Off Peak | L61: Block Balance | M61: $/kWh | O61: =0.286/1.1 -> 0.26
B62: Spare Customer 8 | J62: Peak/Off Peak
B63: Spare Customer 9 | J63: Peak/Off Peak
B64: Spare Customer 10 | J64: Peak/Off Peak
B65: HV Customers | L65: HV Customers | Q65: Spare
B66: Spare2 | C66: =C54 -> Peak (kWh) | D66: =D54 -> Shoulder (kWh) | E66: Off Peak (kWH) | F66: Chargeable kVA | G66: Fixed | H66: Other 1 | I66: Other 2 | J66: Retail Tariff Type Customer is on | L66: Tariff Component | M66: Unit of Charging | N66: Starting Retail Tariff - Flat Rate | O66: Starting Retail Tariff - Peak/Off Peak rates | Q66: Component of Retail bill | R66: Average Breakdown
B67: HV Customer 1 | C67: 2575343.51 | E67: 1638805.06 | F67: 2060 | G67: 1 | I67: 827.75 | J67: Flat rate | K67: NSP81 | L67: =TRANSPOSE(C66:I66) -> Peak (kWh) | M67: $/kWh | N67: ='HV Retail Bill Inputs'!E6+0.07+0.020495 -> 0.096215 | O67: ='HV Retail Bill Inputs'!E34+0.07+0.020495 -> 0.187009 | Q67: Wholesale | R67: 0.33
B68: HV Customer 2 | C68: 3862170 | E68: 3943440 | F68: 1650 | G68: 1 | I68: 1246.37 | J68: Flat rate | K68: NSP81 | L68: Shoulder (kWh) | M68: $/kWh | O68: ='HV Retail Bill Inputs'!E35+0.07+0.020495 -> 0.124267 | Q68: Transmission | R68: 0.09
B69: HV Customer 3 | C69: 151887.61 | D69: 200955.64 | E69: 113575.8 | F69: 420 | G69: 1 | I69: 128.46 | J69: Peak/Off Peak | K69: NSP83 | L69: Off Peak (kWH) | M69: $/kWh | N69: ='HV Retail Bill Inputs'!E8+0.07+(0.05716/100) -> 0.0728856 | O69: ='HV Retail Bill Inputs'!E36+0.07+(0.05716/100) -> 0.0810886 | Q69: Retail | R69: 0.21
B70: Spare Customer 4 | J70: Peak/Off Peak | L70: Chargeable kVA | M70: $/kVA | N70: ='HV Retail Bill Inputs'!E9 -> 38.77 | O70: ='HV Retail Bill Inputs'!E37 -> 4.14 | Q70: Distribution | R70: 0.31
B71: Spare Customer 5 | J71: Peak/Off Peak | L71: Fixed | M71: $/year | N71: ='HV Retail Bill Inputs'!E10 -> 5701 | O71: ='HV Retail Bill Inputs'!E38 -> 5701 | Q71: Environmental | R71: 0.06
B72: Spare Customer 6 | J72: Peak/Off Peak | L72: Other 1 | M72: $/kvA | N72: ='HV Retail Bill Inputs'!E11 -> 0 | O72: ='HV Retail Bill Inputs'!E39 -> 0 | Q72: TOTAL | R72: =IF(SUM(R67:R71)<=1,SUM(R67:R71),"ERROR - INVALID DATA") -> 1
B73: Spare Customer 7 | J73: Peak/Off Peak | L73: Other 2 | M73: $/kvA | N73: ='HV Retail Bill Inputs'!E12 -> 63.54 | O73: ='HV Retail Bill Inputs'!E40 -> 6.84
B74: Spare Customer 8 | J74: Peak/Off Peak
B75: Spare Customer 9 | J75: Peak/Off Peak
B76: Spare Customer 10 | J76: Peak/Off Peak
B79: By-Pass Costs - Large Customer No.> | C79: 1 | H79: =B79 -> By-Pass Costs - Large Customer No.> | I79: 2 | N79: =H79 -> By-Pass Costs - Large Customer No.> | O79: 3 | T79: =N79 -> By-Pass Costs - Large Customer No.> | U79: 4 | Z79: =T79 -> By-Pass Costs - Large Customer No.> | AA79: 5 | AF79: =Z79 -> By-Pass Costs - Large Customer No.> | AG79: 6 | AL79: =AF79 -> By-Pass Costs - Large Customer No.> | AM79: 7 | AR79: =AL79 -> By-Pass Costs - Large Customer No.> | AS79: 8 | AX79: =AR79 -> By-Pass Costs - Large Customer No.> | AY79: 9 | BD79: =AX79 -> By-Pass Costs - Large Customer No.> | BE79: 10
B81: Customer Name | C81: Capex Input | D81: No of Units | E81: $/Unit | F81: Asset Life | H81: =B81 -> Customer Name | I81: =C81 -> Capex Input | J81: No of Units | K81: $/Unit | L81: Asset Life | N81: =H81 -> Customer Name | O81: =I81 -> Capex Input | P81: =J81 -> No of Units | Q81: =K81 -> $/Unit | R81: =L81 -> Asset Life | T81: =N81 -> Customer Name | U81: =O81 -> Capex Input | V81: =P81 -> No of Units | W81: =Q81 -> $/Unit | X81: =R81 -> Asset Life | Z81: Customer Name | AA81: Capex Input | AB81: Unit | AC81: $/Unit | AD81: Asset Life | AF81: Customer Name | AG81: Capex Input | AH81: Unit | AI81: $/Unit | AJ81: Asset Life | AL81: Customer Name | AM81: Capex Input | AN81: Unit | AO81: $/Unit | AP81: Asset Life | AR81: Customer Name | AS81: Capex Input | AT81: Unit | AU81: $/Unit | AV81: Asset Life | AX81: Customer Name | AY81: Capex Input | AZ81: Unit | BA81: $/Unit | BB81: Asset Life | BD81: Customer Name | BE81: Capex Input | BF81: Unit | BG81: $/Unit | BH81: Asset Life
B82: =INDEX($B$19:$B$28,C79,) -> Large customer 1 | C82: Lines | D82: 1 | E82: 7500000 | F82: 70 | H82: =INDEX($B$19:$B$28,I79,) -> Large customer 2 | I82: Lines | J82: 1 | K82: 11100000 | L82: 70 | N82: =INDEX($B$19:$B$28,O79,) -> Large customer 3 | T82: =INDEX($B$19:$B$28,U79,) -> Large customer 4 | Z82: =INDEX($B$19:$B$28,AA79,) -> Large customer 5 | AF82: =INDEX($B$19:$B$28,AG79,) -> Large customer 6 | AL82: =INDEX($B$19:$B$28,AM79,) -> Large customer 7 | AR82: =INDEX($B$19:$B$28,AS79,) -> Large customer 8 | AX82: =INDEX($B$19:$B$28,AY79,) -> Large customer 9 | BD82: =INDEX($B$19:$B$28,BE79,) -> Large customer 10
B83: =B82 -> Large customer 1 | C83: Statons Pirmary | D83: 1 | E83: 7500000 | F83: 50 | H83: =H82 -> Large customer 2 | I83: Statons Pirmary | J83: 1 | K83: 400000 | L83: 50 | N83: =N82 -> Large customer 3 | T83: =T82 -> Large customer 4 | Z83: =Z82 -> Large customer 5 | AF83: =AF82 -> Large customer 6 | AL83: =AL82 -> Large customer 7 | AR83: =AR82 -> Large customer 8 | AX83: =AX82 -> Large customer 9 | BD83: =BD82 -> Large customer 10
B84: =B83 -> Large customer 1 | C84: Civil | D84: 1 | E84: 1900000 | F84: 40 | H84: =H83 -> Large customer 2 | I84: Civil | J84: 1 | K84: 90000 | L84: 40 | N84: =N83 -> Large customer 3 | T84: =T83 -> Large customer 4 | Z84: =Z83 -> Large customer 5 | AF84: =AF83 -> Large customer 6 | AL84: =AL83 -> Large customer 7 | AR84: =AR83 -> Large customer 8 | AX84: =AX83 -> Large customer 9 | BD84: =BD83 -> Large customer 10
B85: Large customer 1 | C85: Protection and Control | D85: 1 | E85: 1000000 | F85: 20 | H85: Large customer 2 | I85: Protection and Control | J85: 1 | K85: 160000 | L85: 20 | N85: Large customer 3 | T85: Large customer 4 | Z85: Large customer 5 | AF85: Large customer 6 | AL85: Large customer 7 | AR85: Large customer 8 | AX85: Large customer 9 | BD85: Large customer 10
B86: Large customer 1 | C86: Other | D86: 1 | E86: 5000000 | F86: 50 | H86: Large customer 2 | I86: Other | J86: 1 | K86: 5300000 | L86: 50 | N86: Large customer 3 | T86: Large customer 4 | Z86: Large customer 5 | AF86: Large customer 6 | AL86: Large customer 7 | AR86: Large customer 8 | AX86: Large customer 9 | BD86: Large customer 10
B87: Large customer 1 | H87: Large customer 2 | N87: Large customer 3 | T87: Large customer 4 | Z87: Large customer 5 | AF87: Large customer 6 | AL87: Large customer 7 | AR87: Large customer 8 | AX87: Large customer 9 | BD87: Large customer 10
B88: Large customer 1 | H88: Large customer 2 | N88: Large customer 3 | T88: Large customer 4 | Z88: Large customer 5 | AF88: Large customer 6 | AL88: Large customer 7 | AR88: Large customer 8 | AX88: Large customer 9 | BD88: Large customer 10
B89: Large customer 1 | H89: Large customer 2 | N89: Large customer 3 | T89: Large customer 4 | Z89: Large customer 5 | AF89: Large customer 6 | AL89: Large customer 7 | AR89: Large customer 8 | AX89: Large customer 9 | BD89: Large customer 10
B92: Customer Name | C92: OPEX Category | D92: Opex $ p.a | H92: =B92 -> Customer Name | I92: =C92 -> OPEX Category | J92: Opex $ p.a | N92: =H92 -> Customer Name | O92: =I92 -> OPEX Category | P92: =J92 -> Opex $ p.a | T92: =N92 -> Customer Name | U92: =O92 -> OPEX Category | V92: =P92 -> Opex $ p.a | Z92: =T92 -> Customer Name | AA92: =U92 -> OPEX Category | AB92: =V92 -> Opex $ p.a | AF92: =Z92 -> Customer Name | AG92: =AA92 -> OPEX Category | AH92: =AB92 -> Opex $ p.a | AL92: =AF92 -> Customer Name | AM92: =AG92 -> OPEX Category | AN92: =AH92 -> Opex $ p.a | AR92: =AL92 -> Customer Name | AS92: =AM92 -> OPEX Category | AT92: =AN92 -> Opex $ p.a | AX92: =AR92 -> Customer Name | AY92: =AS92 -> OPEX Category | AZ92: =AT92 -> Opex $ p.a | BD92: =AX92 -> Customer Name | BE92: =AY92 -> OPEX Category | BF92: =AZ92 -> Opex $ p.a
B93: =B82 -> Large customer 1 | C93: See source email | D93: 780000 | H93: =H82 -> Large customer 2 | I93: See source email | J93: 947000 | N93: =N82 -> Large customer 3 | T93: =T82 -> Large customer 4 | Z93: =Z82 -> Large customer 5 | AF93: =AF82 -> Large customer 6 | AL93: =AL82 -> Large customer 7 | AR93: =AR82 -> Large customer 8 | AX93: =AX82 -> Large customer 9 | BD93: =BD82 -> Large customer 10
B94: =B93 -> Large customer 1 | H94: =H93 -> Large customer 2 | N94: =N93 -> Large customer 3 | T94: =T93 -> Large customer 4 | Z94: =Z93 -> Large customer 5 | AF94: =AF93 -> Large customer 6 | AL94: =AL93 -> Large customer 7 | AR94: =AR93 -> Large customer 8 | AX94: =AX93 -> Large customer 9 | BD94: =BD93 -> Large customer 10
B95: =B94 -> Large customer 1 | H95: =H94 -> Large customer 2 | N95: =N94 -> Large customer 3 | T95: =T94 -> Large customer 4 | Z95: =Z94 -> Large customer 5 | AF95: =AF94 -> Large customer 6 | AL95: =AL94 -> Large customer 7 | AR95: =AR94 -> Large customer 8 | AX95: =AX94 -> Large customer 9 | BD95: =BD94 -> Large customer 10
B96: Large customer 1 | H96: Large customer 2 | N96: Large customer 3 | T96: Large customer 4 | Z96: Large customer 5 | AF96: Large customer 6 | AL96: Large customer 7 | AR96: Large customer 8 | AX96: Large customer 9 | BD96: Large customer 10
B97: Large customer 1 | H97: Large customer 2 | N97: Large customer 3 | T97: Large customer 4 | Z97: Large customer 5 | AF97: Large customer 6 | AL97: Large customer 7 | AR97: Large customer 8 | AX97: Large customer 9 | BD97: Large customer 10
B98: TOTAL | D98: =SUM(D93:D97) -> 780000 | H98: TOTAL | J98: =SUM(J93:J97) -> 947000 | N98: TOTAL | P98: =SUM(P93:P97) -> 0 | T98: TOTAL | V98: =SUM(V93:V97) -> 0 | Z98: TOTAL | AB98: =SUM(AB93:AB97) -> 0 | AF98: TOTAL | AH98: =SUM(AH93:AH97) -> 0 | AL98: TOTAL | AN98: =SUM(AN93:AN97) -> 0 | AR98: TOTAL | AT98: =SUM(AT93:AT97) -> 0 | AX98: TOTAL | AZ98: =SUM(AZ93:AZ97) -> 0 | BD98: TOTAL | BF98: =SUM(BF93:BF97) -> 0
B103: SAC Costs - Large LV No.> | C103: 1 | H103: =B103 -> SAC Costs - Large LV No.> | I103: 2 | N103: =H103 -> SAC Costs - Large LV No.> | O103: 3 | T103: =N103 -> SAC Costs - Large LV No.> | U103: 4 | Z103: =T103 -> SAC Costs - Large LV No.> | AA103: 5 | AF103: =Z103 -> SAC Costs - Large LV No.> | AG103: 6 | AL103: =AF103 -> SAC Costs - Large LV No.> | AM103: 7 | AR103: =AL103 -> SAC Costs - Large LV No.> | AS103: 8 | AX103: =AR103 -> SAC Costs - Large LV No.> | AY103: 9 | BD103: =AX103 -> SAC Costs - Large LV No.> | BE103: 10
B105: Customer Name | C105: Capex Input | D105: No of Units | E105: $/Unit | F105: Asset Life | H105: =B105 -> Customer Name | I105: =C105 -> Capex Input | J105: =D105 -> No of Units | K105: =E105 -> $/Unit | L105: =F105 -> Asset Life | N105: =H105 -> Customer Name | O105: =I105 -> Capex Input | P105: =J105 -> No of Units | Q105: =K105 -> $/Unit | R105: =L105 -> Asset Life | T105: =N105 -> Customer Name | U105: =O105 -> Capex Input | V105: =P105 -> No of Units | W105: =Q105 -> $/Unit | X105: =R105 -> Asset Life | Z105: Customer Name | AA105: Capex Input | AB105: Unit | AC105: $/Unit | AD105: Asset Life | AF105: Customer Name | AG105: Capex Input | AH105: Unit | AI105: $/Unit | AJ105: Asset Life | AL105: Customer Name | AM105: Capex Input | AN105: Unit | AO105: $/Unit | AP105: Asset Life | AR105: Customer Name | AS105: Capex Input | AT105: Unit | AU105: $/Unit | AV105: Asset Life | AX105: Customer Name | AY105: Capex Input | AZ105: Unit | BA105: $/Unit | BB105: Asset Life | BD105: Customer Name | BE105: Capex Input | BF105: Unit | BG105: $/Unit | BH105: Asset Life
B106: =INDEX($B$31:$B$40,C103,) -> Large LV Customer - Low Usage | C106: PV | D106: 300 | E106: 1500 | F106: 15 | H106: =INDEX($B$31:$B$40,I103,) -> Large LV Customer - High Usage | I106: PV | J106: 1150 | K106: 1300 | L106: 15 | N106: =INDEX($B$31:$B$40,O103,) -> Large LV Customer - Medium Usage | O106: PV | P106: 470 | Q106: 1500 | R106: 15 | T106: =INDEX($B$31:$B$40,U103,) -> 0 | Z106: =INDEX($B$31:$B$40,AA103,) -> 0 | AF106: =INDEX($B$31:$B$40,AG103,) -> 0 | AL106: =INDEX($B$31:$B$40,AM103,) -> 0 | AR106: =INDEX($B$31:$B$40,AS103,) -> 0 | AX106: =INDEX($B$31:$B$40,AY103,) -> 0 | BD106: =INDEX($B$31:$B$40,BE103,) -> 0
B107: =B106 -> Large LV Customer - Low Usage | C107: Battery | D107: 1000 | E107: 850 | F107: 10 | H107: =H106 -> Large LV Customer - High Usage | I107: Battery | J107: 5000 | K107: 600 | L107: 10 | N107: =N106 -> Large LV Customer - Medium Usage | O107: Battery | P107: 2000 | Q107: 500 | R107: 10 | T107: =T106 -> 0 | Z107: =Z106 -> 0 | AF107: =AF106 -> 0 | AL107: =AL106 -> 0 | AR107: =AR106 -> 0 | AX107: =AX106 -> 0 | BD107: =BD106 -> 0
B108: =B107 -> Large LV Customer - Low Usage | C108: Genset | D108: 300 | E108: 500 | F108: 10 | H108: =H107 -> Large LV Customer - High Usage | I108: Genset | J108: 1500 | K108: 320 | L108: 10 | N108: =N107 -> Large LV Customer - Medium Usage | O108: Genset | P108: 500 | Q108: 400 | R108: 10 | T108: =T107 -> 0 | Z108: =Z107 -> 0 | AF108: =AF107 -> 0 | AL108: =AL107 -> 0 | AR108: =AR107 -> 0 | AX108: =AX107 -> 0 | BD108: =BD107 -> 0
B109: Large LV Customer - Low Usage | H109: Large LV Customer - High Usage | N109: Large LV Customer - Medium Usage | T109: 0 | Z109: 0 | AF109: 0 | AL109: 0 | AR109: 0 | AX109: 0 | BD109: 0
B110: Large LV Customer - Low Usage | H110: Large LV Customer - High Usage | N110: Large LV Customer - Medium Usage | T110: 0 | Z110: 0 | AF110: 0 | AL110: 0 | AR110: 0 | AX110: 0 | BD110: 0
B111: Large LV Customer - Low Usage | H111: Large LV Customer - High Usage | N111: Large LV Customer - Medium Usage | T111: 0 | Z111: 0 | AF111: 0 | AL111: 0 | AR111: 0 | AX111: 0 | BD111: 0
B112: Large LV Customer - Low Usage | H112: Large LV Customer - High Usage | N112: Large LV Customer - Medium Usage | T112: 0 | Z112: 0 | AF112: 0 | AL112: 0 | AR112: 0 | AX112: 0 | BD112: 0
B113: Large LV Customer - Low Usage | H113: Large LV Customer - High Usage | N113: Large LV Customer - Medium Usage | T113: 0 | Z113: 0 | AF113: 0 | AL113: 0 | AR113: 0 | AX113: 0 | BD113: 0
B116: Customer Name | C116: OPEX Category | D116: Opex $ p.a | H116: =B116 -> Customer Name | I116: =C116 -> OPEX Category | J116: =D116 -> Opex $ p.a | N116: =H116 -> Customer Name | O116: =I116 -> OPEX Category | P116: =J116 -> Opex $ p.a | T116: =N116 -> Customer Name | U116: =O116 -> OPEX Category | V116: =P116 -> Opex $ p.a | Z116: =T116 -> Customer Name | AA116: =U116 -> OPEX Category | AB116: =V116 -> Opex $ p.a | AF116: =Z116 -> Customer Name | AG116: =AA116 -> OPEX Category | AH116: =AB116 -> Opex $ p.a | AL116: =AF116 -> Customer Name | AM116: =AG116 -> OPEX Category | AN116: =AH116 -> Opex $ p.a | AR116: =AL116 -> Customer Name | AS116: =AM116 -> OPEX Category | AT116: =AN116 -> Opex $ p.a | AX116: =AR116 -> Customer Name | AY116: =AS116 -> OPEX Category | AZ116: =AT116 -> Opex $ p.a | BD116: =AX116 -> Customer Name | BE116: =AY116 -> OPEX Category | BF116: =AZ116 -> Opex $ p.a
B117: =B106 -> Large LV Customer - Low Usage | C117: PV | D117: 3000 | H117: =H106 -> Large LV Customer - High Usage | I117: PV | J117: 11500 | N117: =N106 -> Large LV Customer - Medium Usage | O117: PV | P117: 4700 | T117: =T106 -> 0 | Z117: =Z106 -> 0 | AF117: =AF106 -> 0 | AL117: =AL106 -> 0 | AR117: =AR106 -> 0 | AX117: =AX106 -> 0 | BD117: =BD106 -> 0
B118: =B117 -> Large LV Customer - Low Usage | C118: Battery | D118: 20000 | H118: =H117 -> Large LV Customer - High Usage | I118: Battery | J118: 100000 | N118: =N117 -> Large LV Customer - Medium Usage | O118: Battery | P118: 40000 | T118: =T117 -> 0 | Z118: =Z117 -> 0 | AF118: =AF117 -> 0 | AL118: =AL117 -> 0 | AR118: =AR117 -> 0 | AX118: =AX117 -> 0 | BD118: =BD117 -> 0
B119: =B118 -> Large LV Customer - Low Usage | C119: Genset | D119: 1500 | H119: =H118 -> Large LV Customer - High Usage | I119: Genset | J119: 6250 | N119: =N118 -> Large LV Customer - Medium Usage | O119: Genset | P119: 2500 | T119: =T118 -> 0 | Z119: =Z118 -> 0 | AF119: =AF118 -> 0 | AL119: =AL118 -> 0 | AR119: =AR118 -> 0 | AX119: =AX118 -> 0 | BD119: =BD118 -> 0
B120: Large LV Customer - Low Usage | H120: Large LV Customer - High Usage | N120: Large LV Customer - Medium Usage | T120: 0 | Z120: 0 | AF120: 0 | AL120: 0 | AR120: 0 | AX120: 0 | BD120: 0
B121: Large LV Customer - Low Usage | H121: Large LV Customer - High Usage | N121: Large LV Customer - Medium Usage | T121: 0 | Z121: 0 | AF121: 0 | AL121: 0 | AR121: 0 | AX121: 0 | BD121: 0
B122: TOTAL | D122: =SUM(D117:D121) -> 24500 | H122: TOTAL | J122: =SUM(J117:J121) -> 117750 | N122: TOTAL | P122: =SUM(P117:P121) -> 47200 | T122: TOTAL | V122: =SUM(V117:V121) -> 0 | Z122: TOTAL | AB122: =SUM(AB117:AB121) -> 0 | AF122: TOTAL | AH122: =SUM(AH117:AH121) -> 0 | AL122: TOTAL | AN122: =SUM(AN117:AN121) -> 0 | AR122: TOTAL | AT122: =SUM(AT117:AT121) -> 0 | AX122: TOTAL | AZ122: =SUM(AZ117:AZ121) -> 0 | BD122: TOTAL | BF122: =SUM(BF117:BF121) -> 0
B127: SAC Costs - LV Comm No.> | C127: 1 | H127: =B127 -> SAC Costs - LV Comm No.> | I127: 2 | N127: =H127 -> SAC Costs - LV Comm No.> | O127: 3 | T127: =N127 -> SAC Costs - LV Comm No.> | U127: 4 | Z127: =T127 -> SAC Costs - LV Comm No.> | AA127: 5 | AF127: =Z127 -> SAC Costs - LV Comm No.> | AG127: 6 | AL127: =AF127 -> SAC Costs - LV Comm No.> | AM127: 7 | AR127: =AL127 -> SAC Costs - LV Comm No.> | AS127: 8 | AX127: =AR127 -> SAC Costs - LV Comm No.> | AY127: 9 | BD127: =AX127 -> SAC Costs - LV Comm No.> | BE127: 10
B129: Customer Name | C129: Capex Input | D129: No of Units | E129: $/Unit | F129: Asset Life | H129: =B129 -> Customer Name | I129: =C129 -> Capex Input | J129: =D129 -> No of Units | K129: =E129 -> $/Unit | L129: =F129 -> Asset Life | N129: =H129 -> Customer Name | O129: =I129 -> Capex Input | P129: =J129 -> No of Units | Q129: =K129 -> $/Unit | R129: =L129 -> Asset Life | T129: =N129 -> Customer Name | U129: =O129 -> Capex Input | V129: =P129 -> No of Units | W129: =Q129 -> $/Unit | X129: =R129 -> Asset Life | Z129: Customer Name | AA129: Capex Input | AB129: Unit | AC129: $/Unit | AD129: Asset Life | AF129: Customer Name | AG129: Capex Input | AH129: Unit | AI129: $/Unit | AJ129: Asset Life | AL129: Customer Name | AM129: Capex Input | AN129: Unit | AO129: $/Unit | AP129: Asset Life | AR129: Customer Name | AS129: Capex Input | AT129: Unit | AU129: $/Unit | AV129: Asset Life | AX129: Customer Name | AY129: Capex Input | AZ129: Unit | BA129: $/Unit | BB129: Asset Life | BD129: Customer Name | BE129: Capex Input | BF129: Unit | BG129: $/Unit | BH129: Asset Life
B130: =INDEX($B$43:$B$52,C127,) -> LV Commercial Customer - Low Usage | C130: PV | D130: 99 | E130: =1700 -> 1700 | F130: 15 | H130: =INDEX($B$43:$B$52,I127,) -> LV Commercial Customer - High Usage | I130: PV | J130: 99 | K130: 1700 | L130: 15 | N130: =INDEX($B$43:$B$52,O127,) -> LV Commercial Customer - Medium Usage | O130: PV | P130: 99 | Q130: =1700 -> 1700 | R130: 15 | T130: =INDEX($B$43:$B$52,U127,) -> 0 | Z130: =INDEX($B$43:$B$52,AA127,) -> 0 | AF130: =INDEX($B$43:$B$52,AG127,) -> 0 | AL130: =INDEX($B$43:$B$52,AM127,) -> 0 | AR130: =INDEX($B$43:$B$52,AS127,) -> 0 | AX130: =INDEX($B$43:$B$52,AY127,) -> 0 | BD130: =INDEX($B$43:$B$52,BE127,) -> 0
B131: =B130 -> LV Commercial Customer - Low Usage | C131: Battery | D131: 50 | E131: 1200 | F131: 10 | H131: =H130 -> LV Commercial Customer - High Usage | I131: Battery | J131: 500 | K131: =1000 -> 1000 | L131: 10 | N131: =N130 -> LV Commercial Customer - Medium Usage | O131: Battery | P131: 100 | Q131: 1200 | R131: 10 | T131: =T130 -> 0 | Z131: =Z130 -> 0 | AF131: =AF130 -> 0 | AL131: =AL130 -> 0 | AR131: =AR130 -> 0 | AX131: =AX130 -> 0 | BD131: =BD130 -> 0
B132: =B131 -> LV Commercial Customer - Low Usage | C132: Genset | D132: 100 | E132: =35000/D132 -> 350 | F132: 10 | H132: =H131 -> LV Commercial Customer - High Usage | I132: Genset | J132: 300 | K132: =90000/J132 -> 300 | L132: 10 | N132: =N131 -> LV Commercial Customer - Medium Usage | O132: Genset | P132: 100 | Q132: =35000/P132 -> 350 | R132: 10 | T132: =T131 -> 0 | Z132: =Z131 -> 0 | AF132: =AF131 -> 0 | AL132: =AL131 -> 0 | AR132: =AR131 -> 0 | AX132: =AX131 -> 0 | BD132: =BD131 -> 0
B133: LV Commercial Customer - Low Usage | H133: LV Commercial Customer - High Usage | N133: LV Commercial Customer - Medium Usage | T133: 0 | Z133: 0 | AF133: 0 | AL133: 0 | AR133: 0 | AX133: 0 | BD133: 0
B134: LV Commercial Customer - Low Usage | H134: LV Commercial Customer - High Usage | N134: LV Commercial Customer - Medium Usage | T134: 0 | Z134: 0 | AF134: 0 | AL134: 0 | AR134: 0 | AX134: 0 | BD134: 0
B135: LV Commercial Customer - Low Usage | H135: LV Commercial Customer - High Usage | N135: LV Commercial Customer - Medium Usage | T135: 0 | Z135: 0 | AF135: 0 | AL135: 0 | AR135: 0 | AX135: 0 | BD135: 0
B136: LV Commercial Customer - Low Usage | H136: LV Commercial Customer - High Usage | N136: LV Commercial Customer - Medium Usage | T136: 0 | Z136: 0 | AF136: 0 | AL136: 0 | AR136: 0 | AX136: 0 | BD136: 0
B137: LV Commercial Customer - Low Usage | H137: LV Commercial Customer - High Usage | N137: LV Commercial Customer - Medium Usage | T137: 0 | Z137: 0 | AF137: 0 | AL137: 0 | AR137: 0 | AX137: 0 | BD137: 0
B140: Customer Name | C140: OPEX Category | D140: Opex $ p.a | H140: =B140 -> Customer Name | I140: =C140 -> OPEX Category | J140: =D140 -> Opex $ p.a | N140: =H140 -> Customer Name | O140: =I140 -> OPEX Category | P140: =J140 -> Opex $ p.a | T140: =N140 -> Customer Name | U140: =O140 -> OPEX Category | V140: =P140 -> Opex $ p.a | Z140: =T140 -> Customer Name | AA140: =U140 -> OPEX Category | AB140: =V140 -> Opex $ p.a | AF140: =Z140 -> Customer Name | AG140: =AA140 -> OPEX Category | AH140: =AB140 -> Opex $ p.a | AL140: =AF140 -> Customer Name | AM140: =AG140 -> OPEX Category | AN140: =AH140 -> Opex $ p.a | AR140: =AL140 -> Customer Name | AS140: =AM140 -> OPEX Category | AT140: =AN140 -> Opex $ p.a | AX140: =AR140 -> Customer Name | AY140: =AS140 -> OPEX Category | AZ140: =AT140 -> Opex $ p.a | BD140: =AX140 -> Customer Name | BE140: =AY140 -> OPEX Category | BF140: =AZ140 -> Opex $ p.a
B141: =B130 -> LV Commercial Customer - Low Usage | C141: PV | D141: =10*D130 -> 990 | H141: =H130 -> LV Commercial Customer - High Usage | I141: PV | J141: =10*J130 -> 990 | N141: =N130 -> LV Commercial Customer - Medium Usage | O141: PV | P141: =10*P130 -> 990 | T141: =T130 -> 0 | Z141: =Z130 -> 0 | AF141: =AF130 -> 0 | AL141: =AL130 -> 0 | AR141: =AR130 -> 0 | AX141: =AX130 -> 0 | BD141: =BD130 -> 0
B142: =B141 -> LV Commercial Customer - Low Usage | C142: Battery | D142: =20*D131 -> 1000 | H142: =H141 -> LV Commercial Customer - High Usage | I142: Battery | J142: =20*J131 -> 10000 | N142: =N141 -> LV Commercial Customer - Medium Usage | O142: Battery | P142: =20*P131 -> 2000 | T142: =T141 -> 0 | Z142: =Z141 -> 0 | AF142: =AF141 -> 0 | AL142: =AL141 -> 0 | AR142: =AR141 -> 0 | AX142: =AX141 -> 0 | BD142: =BD141 -> 0
B143: =B142 -> LV Commercial Customer - Low Usage | C143: Genset | D143: =5*D132 -> 500 | H143: =H142 -> LV Commercial Customer - High Usage | I143: Genset | J143: =5*J132 -> 1500 | N143: =N142 -> LV Commercial Customer - Medium Usage | O143: Genset | P143: =5*P132 -> 500 | T143: =T142 -> 0 | Z143: =Z142 -> 0 | AF143: =AF142 -> 0 | AL143: =AL142 -> 0 | AR143: =AR142 -> 0 | AX143: =AX142 -> 0 | BD143: =BD142 -> 0
B144: LV Commercial Customer - Low Usage | H144: LV Commercial Customer - High Usage | N144: LV Commercial Customer - Medium Usage | T144: 0 | Z144: 0 | AF144: 0 | AL144: 0 | AR144: 0 | AX144: 0 | BD144: 0
B145: LV Commercial Customer - Low Usage | H145: LV Commercial Customer - High Usage | N145: LV Commercial Customer - Medium Usage | T145: 0 | Z145: 0 | AF145: 0 | AL145: 0 | AR145: 0 | AX145: 0 | BD145: 0
B146: TOTAL | D146: =SUM(D141:D145) -> 2490 | H146: TOTAL | J146: =SUM(J141:J145) -> 12490 | N146: TOTAL | P146: =SUM(P141:P145) -> 3490 | T146: TOTAL | V146: =SUM(V141:V145) -> 0 | Z146: TOTAL | AB146: =SUM(AB141:AB145) -> 0 | AF146: TOTAL | AH146: =SUM(AH141:AH145) -> 0 | AL146: TOTAL | AN146: =SUM(AN141:AN145) -> 0 | AR146: TOTAL | AT146: =SUM(AT141:AT145) -> 0 | AX146: TOTAL | AZ146: =SUM(AZ141:AZ145) -> 0 | BD146: TOTAL | BF146: =SUM(BF141:BF145) -> 0
B151: SAC Costs - LV Res No.> | C151: 1 | H151: =B151 -> SAC Costs - LV Res No.> | I151: 2 | N151: =H151 -> SAC Costs - LV Res No.> | O151: 3 | T151: =N151 -> SAC Costs - LV Res No.> | U151: 4 | Z151: =T151 -> SAC Costs - LV Res No.> | AA151: 5 | AF151: =Z151 -> SAC Costs - LV Res No.> | AG151: 6 | AL151: =AF151 -> SAC Costs - LV Res No.> | AM151: 7 | AR151: =AL151 -> SAC Costs - LV Res No.> | AS151: 8 | AX151: =AR151 -> SAC Costs - LV Res No.> | AY151: 9 | BD151: =AX151 -> SAC Costs - LV Res No.> | BE151: 10
B153: Customer Name | C153: Capex Input | D153: No of Units | E153: $/Unit | F153: Asset Life | H153: =B153 -> Customer Name | I153: =C153 -> Capex Input | J153: =D153 -> No of Units | K153: =E153 -> $/Unit | L153: =F153 -> Asset Life | N153: =H153 -> Customer Name | O153: =I153 -> Capex Input | P153: =J153 -> No of Units | Q153: =K153 -> $/Unit | R153: =L153 -> Asset Life | T153: =N153 -> Customer Name | U153: =O153 -> Capex Input | V153: =P153 -> No of Units | W153: =Q153 -> $/Unit | X153: =R153 -> Asset Life | Z153: Customer Name | AA153: Capex Input | AB153: Unit | AC153: $/Unit | AD153: Asset Life | AF153: Customer Name | AG153: Capex Input | AH153: Unit | AI153: $/Unit | AJ153: Asset Life | AL153: Customer Name | AM153: Capex Input | AN153: Unit | AO153: $/Unit | AP153: Asset Life | AR153: Customer Name | AS153: Capex Input | AT153: Unit | AU153: $/Unit | AV153: Asset Life | AX153: Customer Name | AY153: Capex Input | AZ153: Unit | BA153: $/Unit | BB153: Asset Life | BD153: Customer Name | BE153: Capex Input | BF153: Unit | BG153: $/Unit | BH153: Asset Life
B154: =INDEX($B$55:$B$64,C151,) -> LV Residential Customer - Low Usage | C154: PV | D154: 7 | E154: 1400 | F154: 15 | H154: =INDEX($B$55:$B$64,I151,) -> LV Residential Customer - High Usage | I154: PV | J154: 15 | K154: 1400 | L154: 15 | N154: =INDEX($B$55:$B$64,O151,) -> LV Residential Customer - Medium Usage | O154: PV | P154: 20 | Q154: 1400 | R154: 15 | T154: =INDEX($B$55:$B$64,U151,) -> Spare Customer 4 | Z154: =INDEX($B$55:$B$64,AA151,) -> Spare Customer 5 | AF154: =INDEX($B$55:$B$64,AG151,) -> Spare Customer 6 | AL154: =INDEX($B$55:$B$64,AM151,) -> Spare Customer 7 | AR154: =INDEX($B$55:$B$64,AS151,) -> Spare Customer 8 | AX154: =INDEX($B$55:$B$64,AY151,) -> Spare Customer 9 | BD154: =INDEX($B$55:$B$64,BE151,) -> Spare Customer 10
B155: =B154 -> LV Residential Customer - Low Usage | C155: Battery | D155: 10 | E155: 1000 | F155: 10 | H155: =H154 -> LV Residential Customer - High Usage | I155: Battery | J155: 15 | K155: 1000 | L155: 10 | N155: =N154 -> LV Residential Customer - Medium Usage | O155: Battery | P155: 15 | Q155: 1000 | R155: 10 | T155: =T154 -> Spare Customer 4 | Z155: =Z154 -> Spare Customer 5 | AF155: =AF154 -> Spare Customer 6 | AL155: =AL154 -> Spare Customer 7 | AR155: =AR154 -> Spare Customer 8 | AX155: =AX154 -> Spare Customer 9 | BD155: =BD154 -> Spare Customer 10
B156: =B155 -> LV Residential Customer - Low Usage | H156: =H155 -> LV Residential Customer - High Usage | I156: Genset | J156: 10 | K156: =15000/J156 -> 1500 | L156: 10 | N156: =N155 -> LV Residential Customer - Medium Usage | T156: =T155 -> Spare Customer 4 | Z156: =Z155 -> Spare Customer 5 | AF156: =AF155 -> Spare Customer 6 | AL156: =AL155 -> Spare Customer 7 | AR156: =AR155 -> Spare Customer 8 | AX156: =AX155 -> Spare Customer 9 | BD156: =BD155 -> Spare Customer 10
B157: LV Residential Customer - Low Usage | H157: LV Residential Customer - High Usage | N157: LV Residential Customer - Medium Usage | T157: Spare Customer 4 | Z157: Spare Customer 5 | AF157: Spare Customer 6 | AL157: Spare Customer 7 | AR157: Spare Customer 8 | AX157: Spare Customer 9 | BD157: Spare Customer 10
B158: LV Residential Customer - Low Usage | H158: LV Residential Customer - High Usage | N158: LV Residential Customer - Medium Usage | T158: Spare Customer 4 | Z158: Spare Customer 5 | AF158: Spare Customer 6 | AL158: Spare Customer 7 | AR158: Spare Customer 8 | AX158: Spare Customer 9 | BD158: Spare Customer 10
B159: LV Residential Customer - Low Usage | H159: LV Residential Customer - High Usage | N159: LV Residential Customer - Medium Usage | T159: Spare Customer 4 | Z159: Spare Customer 5 | AF159: Spare Customer 6 | AL159: Spare Customer 7 | AR159: Spare Customer 8 | AX159: Spare Customer 9 | BD159: Spare Customer 10
B160: LV Residential Customer - Low Usage | H160: LV Residential Customer - High Usage | N160: LV Residential Customer - Medium Usage | T160: Spare Customer 4 | Z160: Spare Customer 5 | AF160: Spare Customer 6 | AL160: Spare Customer 7 | AR160: Spare Customer 8 | AX160: Spare Customer 9 | BD160: Spare Customer 10
B161: LV Residential Customer - Low Usage | H161: LV Residential Customer - High Usage | N161: LV Residential Customer - Medium Usage | T161: Spare Customer 4 | Z161: Spare Customer 5 | AF161: Spare Customer 6 | AL161: Spare Customer 7 | AR161: Spare Customer 8 | AX161: Spare Customer 9 | BD161: Spare Customer 10
B164: Customer Name | C164: OPEX Category | D164: Opex $ p.a | H164: =B164 -> Customer Name | I164: =C164 -> OPEX Category | J164: =D164 -> Opex $ p.a | N164: =H164 -> Customer Name | O164: =I164 -> OPEX Category | P164: =J164 -> Opex $ p.a | T164: =N164 -> Customer Name | U164: =O164 -> OPEX Category | V164: =P164 -> Opex $ p.a | Z164: =T164 -> Customer Name | AA164: =U164 -> OPEX Category | AB164: =V164 -> Opex $ p.a | AF164: =Z164 -> Customer Name | AG164: =AA164 -> OPEX Category | AH164: =AB164 -> Opex $ p.a | AL164: =AF164 -> Customer Name | AM164: =AG164 -> OPEX Category | AN164: =AH164 -> Opex $ p.a | AR164: =AL164 -> Customer Name | AS164: =AM164 -> OPEX Category | AT164: =AN164 -> Opex $ p.a | AX164: =AR164 -> Customer Name | AY164: =AS164 -> OPEX Category | AZ164: =AT164 -> Opex $ p.a | BD164: =AX164 -> Customer Name | BE164: =AY164 -> OPEX Category | BF164: =AZ164 -> Opex $ p.a
B165: =B154 -> LV Residential Customer - Low Usage | C165: PV | D165: =10*D154 -> 70 | H165: =H154 -> LV Residential Customer - High Usage | I165: PV | J165: =10*J154 -> 150 | N165: =N154 -> LV Residential Customer - Medium Usage | O165: PV | P165: =10*P154 -> 200 | T165: =T154 -> Spare Customer 4 | Z165: =Z154 -> Spare Customer 5 | AF165: =AF154 -> Spare Customer 6 | AL165: =AL154 -> Spare Customer 7 | AR165: =AR154 -> Spare Customer 8 | AX165: =AX154 -> Spare Customer 9 | BD165: =BD154 -> Spare Customer 10
B166: =B165 -> LV Residential Customer - Low Usage | C166: Battery | D166: =20*D155 -> 200 | H166: =H165 -> LV Residential Customer - High Usage | I166: Battery | J166: =20*J155 -> 300 | N166: =N165 -> LV Residential Customer - Medium Usage | O166: Battery | P166: =20*P155 -> 300 | T166: =T165 -> Spare Customer 4 | Z166: =Z165 -> Spare Customer 5 | AF166: =AF165 -> Spare Customer 6 | AL166: =AL165 -> Spare Customer 7 | AR166: =AR165 -> Spare Customer 8 | AX166: =AX165 -> Spare Customer 9 | BD166: =BD165 -> Spare Customer 10
B167: =B166 -> LV Residential Customer - Low Usage | H167: =H166 -> LV Residential Customer - High Usage | I167: Genset | J167: =20*J156 -> 200 | N167: =N166 -> LV Residential Customer - Medium Usage | T167: =T166 -> Spare Customer 4 | Z167: =Z166 -> Spare Customer 5 | AF167: =AF166 -> Spare Customer 6 | AL167: =AL166 -> Spare Customer 7 | AR167: =AR166 -> Spare Customer 8 | AX167: =AX166 -> Spare Customer 9 | BD167: =BD166 -> Spare Customer 10
B168: LV Residential Customer - Low Usage | H168: LV Residential Customer - High Usage | N168: LV Residential Customer - Medium Usage | T168: Spare Customer 4 | Z168: Spare Customer 5 | AF168: Spare Customer 6 | AL168: Spare Customer 7 | AR168: Spare Customer 8 | AX168: Spare Customer 9 | BD168: Spare Customer 10
B169: LV Residential Customer - Low Usage | H169: LV Residential Customer - High Usage | N169: LV Residential Customer - Medium Usage | T169: Spare Customer 4 | Z169: Spare Customer 5 | AF169: Spare Customer 6 | AL169: Spare Customer 7 | AR169: Spare Customer 8 | AX169: Spare Customer 9 | BD169: Spare Customer 10
B170: TOTAL | D170: =SUM(D165:D169) -> 270 | H170: TOTAL | J170: =SUM(J165:J169) -> 650 | N170: TOTAL | P170: =SUM(P165:P169) -> 500 | T170: TOTAL | V170: =SUM(V165:V169) -> 0 | Z170: TOTAL | AB170: =SUM(AB165:AB169) -> 0 | AF170: TOTAL | AH170: =SUM(AH165:AH169) -> 0 | AL170: TOTAL | AN170: =SUM(AN165:AN169) -> 0 | AR170: TOTAL | AT170: =SUM(AT165:AT169) -> 0 | AX170: TOTAL | AZ170: =SUM(AZ165:AZ169) -> 0 | BD170: TOTAL | BF170: =SUM(BF165:BF169) -> 0
B175: SAC Costs - HV Customer No.> | C175: 1 | H175: =B175 -> SAC Costs - HV Customer No.> | I175: 2 | N175: =H175 -> SAC Costs - HV Customer No.> | O175: 3 | T175: =N175 -> SAC Costs - HV Customer No.> | U175: 4 | Z175: =T175 -> SAC Costs - HV Customer No.> | AA175: 5 | AF175: =Z175 -> SAC Costs - HV Customer No.> | AG175: 6 | AL175: =AF175 -> SAC Costs - HV Customer No.> | AM175: 7 | AR175: =AL175 -> SAC Costs - HV Customer No.> | AS175: 8 | AX175: =AR175 -> SAC Costs - HV Customer No.> | AY175: 9 | BD175: =AX175 -> SAC Costs - HV Customer No.> | BE175: 10
B177: Customer Name | C177: Capex Input | D177: No of Units | E177: $/Unit | F177: Asset Life | H177: =B177 -> Customer Name | I177: =C177 -> Capex Input | J177: =D177 -> No of Units | K177: =E177 -> $/Unit | L177: =F177 -> Asset Life | N177: =H177 -> Customer Name | O177: =I177 -> Capex Input | P177: =J177 -> No of Units | Q177: =K177 -> $/Unit | R177: =L177 -> Asset Life | T177: =N177 -> Customer Name | U177: =O177 -> Capex Input | V177: =P177 -> No of Units | W177: =Q177 -> $/Unit | X177: =R177 -> Asset Life | Z177: Customer Name | AA177: Capex Input | AB177: Unit | AC177: $/Unit | AD177: Asset Life | AF177: Customer Name | AG177: Capex Input | AH177: Unit | AI177: $/Unit | AJ177: Asset Life | AL177: Customer Name | AM177: Capex Input | AN177: Unit | AO177: $/Unit | AP177: Asset Life | AR177: Customer Name | AS177: Capex Input | AT177: Unit | AU177: $/Unit | AV177: Asset Life | AX177: Customer Name | AY177: Capex Input | AZ177: Unit | BA177: $/Unit | BB177: Asset Life | BD177: Customer Name | BE177: Capex Input | BF177: Unit | BG177: $/Unit | BH177: Asset Life
B178: =INDEX($B$67:$B$76,C175,) -> HV Customer 1 | C178: PV | D178: 3000 | E178: 1300 | F178: 15 | H178: =INDEX($B$67:$B$76,I175,) -> HV Customer 2 | I178: PV | J178: 3000 | K178: 1300 | L178: 15 | N178: =INDEX($B$67:$B$76,O175,) -> HV Customer 3 | O178: PV | P178: 3000 | Q178: 1300 | R178: 15 | T178: =INDEX($B$67:$B$76,U175,) -> Spare Customer 4 | Z178: =INDEX($B$67:$B$76,AA175,) -> Spare Customer 5 | AF178: =INDEX($B$67:$B$76,AG175,) -> Spare Customer 6 | AL178: =INDEX($B$67:$B$76,AM175,) -> Spare Customer 7 | AR178: =INDEX($B$67:$B$76,AS175,) -> Spare Customer 8 | AX178: =INDEX($B$67:$B$76,AY175,) -> Spare Customer 9 | BD178: =INDEX($B$67:$B$76,BE175,) -> Spare Customer 10
B179: =B178 -> HV Customer 1 | C179: Battery | D179: 5000 | E179: 600 | F179: 10 | H179: =H178 -> HV Customer 2 | I179: Battery | J179: 5000 | K179: 600 | L179: 10 | N179: =N178 -> HV Customer 3 | O179: Battery | P179: 5000 | Q179: 600 | R179: 10 | T179: =T178 -> Spare Customer 4 | Z179: =Z178 -> Spare Customer 5 | AF179: =AF178 -> Spare Customer 6 | AL179: =AL178 -> Spare Customer 7 | AR179: =AR178 -> Spare Customer 8 | AX179: =AX178 -> Spare Customer 9 | BD179: =BD178 -> Spare Customer 10
B180: =B179 -> HV Customer 1 | C180: Genset | D180: 3000 | E180: 320 | F180: 10 | H180: =H179 -> HV Customer 2 | I180: Genset | J180: 3000 | K180: 320 | L180: 10 | N180: =N179 -> HV Customer 3 | O180: Genset | P180: 3000 | Q180: 320 | R180: 10 | T180: =T179 -> Spare Customer 4 | Z180: =Z179 -> Spare Customer 5 | AF180: =AF179 -> Spare Customer 6 | AL180: =AL179 -> Spare Customer 7 | AR180: =AR179 -> Spare Customer 8 | AX180: =AX179 -> Spare Customer 9 | BD180: =BD179 -> Spare Customer 10
B181: HV Customer 1 | H181: HV Customer 2 | N181: HV Customer 3 | T181: Spare Customer 4 | Z181: Spare Customer 5 | AF181: Spare Customer 6 | AL181: Spare Customer 7 | AR181: Spare Customer 8 | AX181: Spare Customer 9 | BD181: Spare Customer 10
B182: HV Customer 1 | H182: HV Customer 2 | N182: HV Customer 3 | T182: Spare Customer 4 | Z182: Spare Customer 5 | AF182: Spare Customer 6 | AL182: Spare Customer 7 | AR182: Spare Customer 8 | AX182: Spare Customer 9 | BD182: Spare Customer 10
B183: HV Customer 1 | H183: HV Customer 2 | N183: HV Customer 3 | T183: Spare Customer 4 | Z183: Spare Customer 5 | AF183: Spare Customer 6 | AL183: Spare Customer 7 | AR183: Spare Customer 8 | AX183: Spare Customer 9 | BD183: Spare Customer 10
B184: HV Customer 1 | H184: HV Customer 2 | N184: HV Customer 3 | T184: Spare Customer 4 | Z184: Spare Customer 5 | AF184: Spare Customer 6 | AL184: Spare Customer 7 | AR184: Spare Customer 8 | AX184: Spare Customer 9 | BD184: Spare Customer 10
B185: HV Customer 1 | H185: HV Customer 2 | N185: HV Customer 3 | T185: Spare Customer 4 | Z185: Spare Customer 5 | AF185: Spare Customer 6 | AL185: Spare Customer 7 | AR185: Spare Customer 8 | AX185: Spare Customer 9 | BD185: Spare Customer 10
B188: Customer Name | C188: OPEX Category | D188: Opex $ p.a | H188: =B188 -> Customer Name | I188: =C188 -> OPEX Category | J188: =D188 -> Opex $ p.a | N188: =H188 -> Customer Name | O188: =I188 -> OPEX Category | P188: =J188 -> Opex $ p.a | T188: =N188 -> Customer Name | U188: =O188 -> OPEX Category | V188: =P188 -> Opex $ p.a | Z188: =T188 -> Customer Name | AA188: =U188 -> OPEX Category | AB188: =V188 -> Opex $ p.a | AF188: =Z188 -> Customer Name | AG188: =AA188 -> OPEX Category | AH188: =AB188 -> Opex $ p.a | AL188: =AF188 -> Customer Name | AM188: =AG188 -> OPEX Category | AN188: =AH188 -> Opex $ p.a | AR188: =AL188 -> Customer Name | AS188: =AM188 -> OPEX Category | AT188: =AN188 -> Opex $ p.a | AX188: =AR188 -> Customer Name | AY188: =AS188 -> OPEX Category | AZ188: =AT188 -> Opex $ p.a | BD188: =AX188 -> Customer Name | BE188: =AY188 -> OPEX Category | BF188: =AZ188 -> Opex $ p.a
B189: =B178 -> HV Customer 1 | C189: PV | D189: 3000 | H189: =H178 -> HV Customer 2 | I189: PV | J189: 3000 | N189: =N178 -> HV Customer 3 | O189: PV | P189: 3000 | T189: =T178 -> Spare Customer 4 | Z189: =Z178 -> Spare Customer 5 | AF189: =AF178 -> Spare Customer 6 | AL189: =AL178 -> Spare Customer 7 | AR189: =AR178 -> Spare Customer 8 | AX189: =AX178 -> Spare Customer 9 | BD189: =BD178 -> Spare Customer 10
B190: =B189 -> HV Customer 1 | C190: Battery | D190: 20000 | H190: =H189 -> HV Customer 2 | I190: Battery | J190: 20000 | N190: =N189 -> HV Customer 3 | O190: Battery | P190: 20000 | T190: =T189 -> Spare Customer 4 | Z190: =Z189 -> Spare Customer 5 | AF190: =AF189 -> Spare Customer 6 | AL190: =AL189 -> Spare Customer 7 | AR190: =AR189 -> Spare Customer 8 | AX190: =AX189 -> Spare Customer 9 | BD190: =BD189 -> Spare Customer 10
B191: =B190 -> HV Customer 1 | C191: Genset | D191: 1500 | H191: =H190 -> HV Customer 2 | I191: Genset | J191: 1500 | N191: =N190 -> HV Customer 3 | O191: Genset | P191: 1500 | T191: =T190 -> Spare Customer 4 | Z191: =Z190 -> Spare Customer 5 | AF191: =AF190 -> Spare Customer 6 | AL191: =AL190 -> Spare Customer 7 | AR191: =AR190 -> Spare Customer 8 | AX191: =AX190 -> Spare Customer 9 | BD191: =BD190 -> Spare Customer 10
B192: HV Customer 1 | H192: HV Customer 2 | N192: HV Customer 3 | T192: Spare Customer 4 | Z192: Spare Customer 5 | AF192: Spare Customer 6 | AL192: Spare Customer 7 | AR192: Spare Customer 8 | AX192: Spare Customer 9 | BD192: Spare Customer 10
B193: HV Customer 1 | H193: HV Customer 2 | N193: HV Customer 3 | T193: Spare Customer 4 | Z193: Spare Customer 5 | AF193: Spare Customer 6 | AL193: Spare Customer 7 | AR193: Spare Customer 8 | AX193: Spare Customer 9 | BD193: Spare Customer 10
B194: TOTAL | D194: =SUM(D189:D193) -> 24500 | H194: TOTAL | J194: =SUM(J189:J193) -> 24500 | N194: TOTAL | P194: =SUM(P189:P193) -> 24500 | T194: TOTAL | V194: =SUM(V189:V193) -> 0 | Z194: TOTAL | AB194: =SUM(AB189:AB193) -> 0 | AF194: TOTAL | AH194: =SUM(AH189:AH193) -> 0 | AL194: TOTAL | AN194: =SUM(AN189:AN193) -> 0 | AR194: TOTAL | AT194: =SUM(AT189:AT193) -> 0 | AX194: TOTAL | AZ194: =SUM(AZ189:AZ193) -> 0 | BD194: TOTAL | BF194: =SUM(BF189:BF193) -> 0

Sheet Results
A2: Results of SAC Modelling | C2: ST Customer Stand Alone Cost Test Results
C3: ='Input Sheet'!B18 -> Large Customer Description | D3: NPV of Dx Bill | E3: NPV of Stand Alone Cost | F3: Pass SAC Test (Y/N) | I3: NPV of Dx Bill ($/kWh) | J3: NPV of Stand Alone Cost ($/kWh) | L3: NPV Volumes | M3: 1 | N3: 2 | O3: 3 | P3: 4 | Q3: 5 | R3: 6 | S3: 7 | T3: 8 | U3: 9 | V3: 10
A4: NOTE: Must run each macro for results to be updated | C4: ='Input Sheet'!B19 -> Large customer 1 | D4: =IFERROR(INDEX('ST Dx Bill Assumptions'!$C$2:$E$140,MATCH(Results!$C4,'ST Dx Bill Assumptions'!$C$2:$C$140,0)+ROWS('ST Dx Bill Assumptions'!$C$3:$C$14),3),"") -> 657349.0958 | E4: 16106372.01 | F4: =IFERROR(IF(E4<D4,"No","Yes"),"") -> Yes | I4: =D4/$L4 -> 0.2153595107 | J4: =E4/$L4 -> 5.276740193 | L4: =NPV('Input Sheet'!$C$12,Results!M4:V4) -> 3052333.718 | M4: =SUM('Input Sheet'!C19:E19) -> 383477.69 | N4: =M4 -> 383477.69 | O4: =N4 -> 383477.69 | P4: 383477.69 | Q4: 383477.69 | R4: 383477.69 | S4: 383477.69 | T4: 383477.69 | U4: 383477.69 | V4: 383477.69
C5: ='Input Sheet'!B20 -> Large customer 2 | D5: =IFERROR(INDEX('ST Dx Bill Assumptions'!$C$2:$E$140,MATCH(Results!$C5,'ST Dx Bill Assumptions'!$C$2:$C$140,0)+ROWS('ST Dx Bill Assumptions'!$C$3:$C$14),3),"") -> 1688430.165 | E5: 14573650.81 | F5: =IFERROR(IF(E5<D5,"No","Yes"),"") -> Yes | I5: =D5/$L5 -> 0.004623905035 | J5: =E5/$L5 -> 0.03991114276 | L5: =NPV('Input Sheet'!$C$12,Results!M5:V5) -> 365152431.2 | M5: =SUM('Input Sheet'!C20:E20) -> 45875655.73 | N5: =M5 -> 45875655.73 | O5: 45875655.73 | P5: 45875655.73 | Q5: 45875655.73 | R5: 45875655.73 | S5: 45875655.73 | T5: 45875655.73 | U5: 45875655.73 | V5: 45875655.73
C6: ='Input Sheet'!B21 -> Large customer 3 | D6: =IFERROR(INDEX('ST Dx Bill Assumptions'!$C$2:$E$140,MATCH(Results!$C6,'ST Dx Bill Assumptions'!$C$2:$C$140,0)+ROWS('ST Dx Bill Assumptions'!$C$3:$C$14),3),"") -> 0 | E6: 0 | F6: Yes
C7: ='Input Sheet'!B22 -> Large customer 4 | D7: =IFERROR(INDEX('ST Dx Bill Assumptions'!$C$2:$E$140,MATCH(Results!$C7,'ST Dx Bill Assumptions'!$C$2:$C$140,0)+ROWS('ST Dx Bill Assumptions'!$C$3:$C$14),3),"") -> 0 | E7: 0 | F7: Yes
C8: ='Input Sheet'!B23 -> Large customer 5 | D8: =IFERROR(INDEX('ST Dx Bill Assumptions'!$C$2:$E$140,MATCH(Results!$C8,'ST Dx Bill Assumptions'!$C$2:$C$140,0)+ROWS('ST Dx Bill Assumptions'!$C$3:$C$14),3),"") -> 0 | E8: 0 | F8: Yes
C9: ='Input Sheet'!B24 -> Large customer 6 | D9: =IFERROR(INDEX('ST Dx Bill Assumptions'!$C$2:$E$140,MATCH(Results!$C9,'ST Dx Bill Assumptions'!$C$2:$C$140,0)+ROWS('ST Dx Bill Assumptions'!$C$3:$C$14),3),"") -> 0 | E9: 0 | F9: Yes
C10: ='Input Sheet'!B25 -> Large customer 7 | D10: =IFERROR(INDEX('ST Dx Bill Assumptions'!$C$2:$E$140,MATCH(Results!$C10,'ST Dx Bill Assumptions'!$C$2:$C$140,0)+ROWS('ST Dx Bill Assumptions'!$C$3:$C$14),3),"") -> 0 | E10: 0 | F10: Yes
C11: ='Input Sheet'!B26 -> Large customer 8 | D11: =IFERROR(INDEX('ST Dx Bill Assumptions'!$C$2:$E$140,MATCH(Results!$C11,'ST Dx Bill Assumptions'!$C$2:$C$140,0)+ROWS('ST Dx Bill Assumptions'!$C$3:$C$14),3),"") -> 0 | E11: 0 | F11: Yes
C12: ='Input Sheet'!B27 -> Large customer 9 | D12: =IFERROR(INDEX('ST Dx Bill Assumptions'!$C$2:$E$140,MATCH(Results!$C12,'ST Dx Bill Assumptions'!$C$2:$C$140,0)+ROWS('ST Dx Bill Assumptions'!$C$3:$C$14),3),"") -> 0 | E12: 0 | F12: Yes
C13: ='Input Sheet'!B28 -> Large customer 10 | D13: =IFERROR(INDEX('ST Dx Bill Assumptions'!$C$2:$E$140,MATCH(Results!$C13,'ST Dx Bill Assumptions'!$C$2:$C$140,0)+ROWS('ST Dx Bill Assumptions'!$C$3:$C$14),3),"") -> 0 | E13: 0 | F13: Yes
C14: Large LV Customer Stand Alone Cost Test Results
C15: ='Input Sheet'!B30 -> Large LV Customer Description | D15: NPV of Retail Bill | E15: NPV of Stand Alone Cost | F15: Pass SAC Test (Y/N) | I15: NPV of Retail Bill ($/kWh) | J15: NPV of Stand Alone Cost ($/kWH) | L15: NPV Volumes | M15: 1 | N15: 2 | O15: 3 | P15: 4 | Q15: 5 | R15: 6 | S15: 7 | T15: 8 | U15: 9 | V15: 10
C16: ='Input Sheet'!B31 -> Large LV Customer - Low Usage | D16: =IFERROR(INDEX('LgeLV Bill Assumptions'!$C$2:$E$140,MATCH(Results!$C16,'LgeLV Bill Assumptions'!$C$2:$C$140,0)+ROWS('LgeLV Bill Assumptions'!$C$3:$C$14),3),"") -> 716552.8054 | E16: 1427927.275 | F16: =IFERROR(IF(E16<D16,"No","Yes"),"") -> Yes | I16: =D16/$L16 -> 0.173617008 | J16: =E16/$L16 -> 0.3459793322 | L16: =NPV('Input Sheet'!$C$12,Results!M16:V16) -> 4127203.974 | M16: =SUM('Input Sheet'!C31:E31) -> 518518.22 | N16: =M16 -> 518518.22 | O16: 518518.22 | P16: 518518.22 | Q16: 518518.22 | R16: 518518.22 | S16: 518518.22 | T16: 518518.22 | U16: 518518.22 | V16: 518518.22
C17: ='Input Sheet'!B32 -> Large LV Customer - High Usage | D17: =IFERROR(INDEX('LgeLV Bill Assumptions'!$C$2:$E$140,MATCH(Results!$C17,'LgeLV Bill Assumptions'!$C$2:$C$140,0)+ROWS('LgeLV Bill Assumptions'!$C$3:$C$14),3),"") -> 1445232.416 | E17: 5177199.998 | F17: =IFERROR(IF(E17<D17,"No","Yes"),"") -> Yes | I17: =D17/$L17 -> 0.1911354087 | J17: =E17/$L17 -> 0.684696957 | L17: =NPV('Input Sheet'!$C$12,Results!M17:V17) -> 7561301.311 | M17: =SUM('Input Sheet'!C32:E32) -> 949958.5 | N17: =M17 -> 949958.5 | O17: 949958.5 | P17: 949958.5 | Q17: 949958.5 | R17: 949958.5 | S17: 949958.5 | T17: 949958.5 | U17: 949958.5 | V17: 949958.5
C18: ='Input Sheet'!B33 -> Large LV Customer - Medium Usage | D18: =IFERROR(INDEX('LgeLV Bill Assumptions'!$C$2:$E$140,MATCH(Results!$C18,'LgeLV Bill Assumptions'!$C$2:$C$140,0)+ROWS('LgeLV Bill Assumptions'!$C$3:$C$14),3),"") -> 1776529.526 | E18: 1972773.106 | F18: Yes | I18: =D18/$L18 -> 0.1439469929 | J18: 0.1598480364 | L18: =NPV('Input Sheet'!$C$12,Results!M18:V18) -> 12341553.58 | M18: =SUM('Input Sheet'!C33:E33) -> 1550521.96 | N18: =M18 -> 1550521.96 | O18: 1550521.96 | P18: 1550521.96 | Q18: 1550521.96 | R18: 1550521.96 | S18: 1550521.96 | T18: 1550521.96 | U18: 1550521.96 | V18: 1550521.96
C19: ='Input Sheet'!B34 -> 0 | D19: =IFERROR(INDEX('LgeLV Bill Assumptions'!$C$2:$E$140,MATCH(Results!$C19,'LgeLV Bill Assumptions'!$C$2:$C$140,0)+ROWS('LgeLV Bill Assumptions'!$C$3:$C$14),3),"") -> 59
C20: ='Input Sheet'!B35 -> 0 | D20: =IFERROR(INDEX('LgeLV Bill Assumptions'!$C$2:$E$140,MATCH(Results!$C20,'LgeLV Bill Assumptions'!$C$2:$C$140,0)+ROWS('LgeLV Bill Assumptions'!$C$3:$C$14),3),"") -> 59
C21: ='Input Sheet'!B36 -> 0 | D21: =IFERROR(INDEX('LgeLV Bill Assumptions'!$C$2:$E$140,MATCH(Results!$C21,'LgeLV Bill Assumptions'!$C$2:$C$140,0)+ROWS('LgeLV Bill Assumptions'!$C$3:$C$14),3),"") -> 59
C22: ='Input Sheet'!B37 -> 0 | D22: =IFERROR(INDEX('LgeLV Bill Assumptions'!$C$2:$E$140,MATCH(Results!$C22,'LgeLV Bill Assumptions'!$C$2:$C$140,0)+ROWS('LgeLV Bill Assumptions'!$C$3:$C$14),3),"") -> 59
C23: ='Input Sheet'!B38 -> 0 | D23: =IFERROR(INDEX('LgeLV Bill Assumptions'!$C$2:$E$140,MATCH(Results!$C23,'LgeLV Bill Assumptions'!$C$2:$C$140,0)+ROWS('LgeLV Bill Assumptions'!$C$3:$C$14),3),"") -> 59
C24: ='Input Sheet'!B39 -> 0 | D24: =IFERROR(INDEX('LgeLV Bill Assumptions'!$C$2:$E$140,MATCH(Results!$C24,'LgeLV Bill Assumptions'!$C$2:$C$140,0)+ROWS('LgeLV Bill Assumptions'!$C$3:$C$14),3),"") -> 59
C25: ='Input Sheet'!B40 -> 0 | D25: =IFERROR(INDEX('LgeLV Bill Assumptions'!$C$2:$E$140,MATCH(Results!$C25,'LgeLV Bill Assumptions'!$C$2:$C$140,0)+ROWS('LgeLV Bill Assumptions'!$C$3:$C$14),3),"") -> 59
C26: LV Comm Customer Stand Alone Cost Test Results
C27: ='Input Sheet'!B42 -> LV Comm Customer Description | D27: NPV of Retail Bill | E27: NPV of Stand Alone Cost | F27: Pass SAC Test (Y/N) | I27: NPV of Retail Bill ($/kWh) | J27: NPV of Stand Alone Cost ($/kWH) | L27: NPV Volumes | M27: 1 | N27: 2 | O27: 3 | P27: 4 | Q27: 5 | R27: 6 | S27: 7 | T27: 8 | U27: 9 | V27: 10
C28: ='Input Sheet'!B43 -> LV Commercial Customer - Low Usage | D28: =IFERROR(INDEX('LVCom Assumptions'!$C$2:$E$140,MATCH(Results!$C28,'LVCom Assumptions'!$C$2:$C$140,0)+ROWS('LVCom Assumptions'!$C$3:$C$14),3),"") -> 44883.77586 | E28: 226413.67 | F28: =IFERROR(IF(E28<D28,"No","Yes"),"") -> Yes | I28: =D28/$L28 -> 0.3758584212 | J28: =E28/$L28 -> 1.895996558 | L28: =NPV('Input Sheet'!$C$12,Results!M28:V28) -> 119416.7094 | M28: =SUM('Input Sheet'!H43:I43) -> 15002.83 | N28: =M28 -> 15002.83 | O28: 15002.83 | P28: 15002.83 | Q28: 15002.83 | R28: 15002.83 | S28: 15002.83 | T28: 15002.83 | U28: 15002.83 | V28: 15002.83
C29: ='Input Sheet'!B44 -> LV Commercial Customer - High Usage | D29: =IFERROR(INDEX('LVCom Assumptions'!$C$2:$E$140,MATCH(Results!$C29,'LVCom Assumptions'!$C$2:$C$140,0)+ROWS('LVCom Assumptions'!$C$3:$C$14),3),"") -> 716436.9019 | E29: 757571.57 | F29: =IFERROR(IF(E29<D29,"No","Yes"),"") -> Yes | I29: =D29/$L29 -> 0.2274342182 | J29: =E29/$L29 -> 0.2404924946 | L29: =NPV('Input Sheet'!$C$12,Results!M29:V29) -> 3150084.044 | M29: =SUM('Input Sheet'!C44:E44) -> 395758.48 | N29: =M29 -> 395758.48 | O29: 395758.48 | P29: 395758.48 | Q29: 395758.48 | R29: 395758.48 | S29: 395758.48 | T29: 395758.48 | U29: 395758.48 | V29: 395758.48
C30: ='Input Sheet'!B45 -> LV Commercial Customer - Medium Usage | D30: =IFERROR(INDEX('LVCom Assumptions'!$C$2:$E$140,MATCH(Results!$C30,'LVCom Assumptions'!$C$2:$C$140,0)+ROWS('LVCom Assumptions'!$C$3:$C$14),3),"") -> 77596.56042 | E30: 289108.0431 | F30: Yes | I30: 0.2444796274 | J30: 0.9108783467 | L30: =NPV('Input Sheet'!$C$12,Results!M30:V30) -> 317394.7917 | M30: =SUM('Input Sheet'!C45,'Input Sheet'!E45) -> 39875.66 | N30: =M30 -> 39875.66 | O30: 39875.66 | P30: 39875.66 | Q30: 39875.66 | R30: 39875.66 | S30: 39875.66 | T30: 39875.66 | U30: 39875.66 | V30: 39875.66
C31: ='Input Sheet'!B46 -> 0 | D31: =IFERROR(INDEX('LVCom Assumptions'!$C$2:$E$140,MATCH(Results!$C31,'LVCom Assumptions'!$C$2:$C$140,0)+ROWS('LVCom Assumptions'!$C$3:$C$14),3),"") -> 0
C32: ='Input Sheet'!B47 -> 0 | D32: =IFERROR(INDEX('LVCom Assumptions'!$C$2:$E$140,MATCH(Results!$C32,'LVCom Assumptions'!$C$2:$C$140,0)+ROWS('LVCom Assumptions'!$C$3:$C$14),3),"") -> 0
C33: ='Input Sheet'!B48 -> 0 | D33: =IFERROR(INDEX('LVCom Assumptions'!$C$2:$E$140,MATCH(Results!$C33,'LVCom Assumptions'!$C$2:$C$140,0)+ROWS('LVCom Assumptions'!$C$3:$C$14),3),"") -> 0
C34: ='Input Sheet'!B49 -> 0 | D34: =IFERROR(INDEX('LVCom Assumptions'!$C$2:$E$140,MATCH(Results!$C34,'LVCom Assumptions'!$C$2:$C$140,0)+ROWS('LVCom Assumptions'!$C$3:$C$14),3),"") -> 0
C35: ='Input Sheet'!B50 -> 0 | D35: =IFERROR(INDEX('LVCom Assumptions'!$C$2:$E$140,MATCH(Results!$C35,'LVCom Assumptions'!$C$2:$C$140,0)+ROWS('LVCom Assumptions'!$C$3:$C$14),3),"") -> 0
C36: ='Input Sheet'!B51 -> 0 | D36: =IFERROR(INDEX('LVCom Assumptions'!$C$2:$E$140,MATCH(Results!$C36,'LVCom Assumptions'!$C$2:$C$140,0)+ROWS('LVCom Assumptions'!$C$3:$C$14),3),"") -> 0
C37: ='Input Sheet'!B52 -> 0 | D37: =IFERROR(INDEX('LVCom Assumptions'!$C$2:$E$140,MATCH(Results!$C37,'LVCom Assumptions'!$C$2:$C$140,0)+ROWS('LVCom Assumptions'!$C$3:$C$14),3),"") -> 0
C38: LV Res Stand Alone Cost Test Results
C39: ='Input Sheet'!B54 -> LV Res Customer Description | D39: NPV of Retail Bill | E39: NPV of Stand Alone Cost | F39: Pass SAC Test (Y/N) | I39: NPV of Retail Bill ($/kWh) | J39: NPV of Stand Alone Cost ($/kWH) | L39: NPV Volumes | M39: 1 | N39: 2 | O39: 3 | P39: 4 | Q39: 5 | R39: 6 | S39: 7 | T39: 8 | U39: 9 | V39: 10
C40: ='Input Sheet'!B55 -> LV Residential Customer - Low Usage | D40: =IFERROR(INDEX('Res Bill Assumptions'!$C$2:$E$140,MATCH(Results!$C40,'Res Bill Assumptions'!$C$2:$C$140,0)+ROWS('Res Bill Assumptions'!$C$3:$C$14),3),"") -> 7388.060828 | E40: 18255.052 | F40: =IFERROR(IF(E40<D40,"No","Yes"),"") -> Yes | I40: =D40/$L40 -> 0.30867042 | J40: =E40/$L40 -> 0.7626892495 | L40: =NPV('Input Sheet'!$C$12,Results!M40:V40) -> 23935.1112 | M40: =SUM('Input Sheet'!H55:I55) -> 3007.07 | N40: =M40 -> 3007.07 | O40: 3007.07 | P40: 3007.07 | Q40: 3007.07 | R40: 3007.07 | S40: 3007.07 | T40: 3007.07 | U40: 3007.07 | V40: 3007.07
C41: ='Input Sheet'!B56 -> LV Residential Customer - High Usage | D41: =IFERROR(INDEX('Res Bill Assumptions'!$C$2:$E$140,MATCH(Results!$C41,'Res Bill Assumptions'!$C$2:$C$140,0)+ROWS('Res Bill Assumptions'!$C$3:$C$14),3),"") -> 13146.31336 | E41: 47505.76386 | F41: =IFERROR(IF(E41<D41,"No","Yes"),"") -> Yes | I41: =D41/$L41 -> 0.2712584106 | J41: 0.9802244662 | L41: =NPV('Input Sheet'!$C$12,Results!M41:V41) -> 48464.16866 | M41: =SUM('Input Sheet'!H56:I56) -> 6088.76 | N41: =M41 -> 6088.76 | O41: 6088.76 | P41: 6088.76 | Q41: 6088.76 | R41: 6088.76 | S41: 6088.76 | T41: 6088.76 | U41: 6088.76 | V41: 6088.76
C42: ='Input Sheet'!B57 -> LV Residential Customer - Medium Usage | D42: =IFERROR(INDEX('Res Bill Assumptions'!$C$2:$E$140,MATCH(Results!$C42,'Res Bill Assumptions'!$C$2:$C$140,0)+ROWS('Res Bill Assumptions'!$C$3:$C$14),3),"") -> 7982.360095 | E42: 37616.3436 | F42: Yes | I42: 0.2483803232 | J42: 1.170475833 | L42: =NPV('Input Sheet'!$C$12,Results!M42:V42) -> 32137.65081 | M42: =SUM('Input Sheet'!C57:E57) -> 4037.59 | N42: =M42 -> 4037.59 | O42: 4037.59 | P42: 4037.59 | Q42: 4037.59 | R42: 4037.59 | S42: 4037.59 | T42: 4037.59 | U42: 4037.59 | V42: 4037.59
C43: ='Input Sheet'!B58 -> Spare Customer 4 | D43: =IFERROR(INDEX('Res Bill Assumptions'!$C$2:$E$140,MATCH(Results!$C43,'Res Bill Assumptions'!$C$2:$C$140,0)+ROWS('Res Bill Assumptions'!$C$3:$C$14),3),"") ->  | E43: 0 | F43: No
C44: ='Input Sheet'!B59 -> Spare Customer 5 | D44: =IFERROR(INDEX('Res Bill Assumptions'!$C$2:$E$140,MATCH(Results!$C44,'Res Bill Assumptions'!$C$2:$C$140,0)+ROWS('Res Bill Assumptions'!$C$3:$C$14),3),"") ->  | E44: 0 | F44: No
C45: ='Input Sheet'!B60 -> Spare Customer 6 | D45: =IFERROR(INDEX('Res Bill Assumptions'!$C$2:$E$140,MATCH(Results!$C45,'Res Bill Assumptions'!$C$2:$C$140,0)+ROWS('Res Bill Assumptions'!$C$3:$C$14),3),"") ->  | E45: 0 | F45: No
C46: ='Input Sheet'!B61 -> Spare Customer 7 | D46: =IFERROR(INDEX('Res Bill Assumptions'!$C$2:$E$140,MATCH(Results!$C46,'Res Bill Assumptions'!$C$2:$C$140,0)+ROWS('Res Bill Assumptions'!$C$3:$C$14),3),"") ->  | E46: 0 | F46: No
C47: ='Input Sheet'!B62 -> Spare Customer 8 | D47: =IFERROR(INDEX('Res Bill Assumptions'!$C$2:$E$140,MATCH(Results!$C47,'Res Bill Assumptions'!$C$2:$C$140,0)+ROWS('Res Bill Assumptions'!$C$3:$C$14),3),"") ->  | E47: 0 | F47: No
C48: ='Input Sheet'!B63 -> Spare Customer 9 | D48: =IFERROR(INDEX('Res Bill Assumptions'!$C$2:$E$140,MATCH(Results!$C48,'Res Bill Assumptions'!$C$2:$C$140,0)+ROWS('Res Bill Assumptions'!$C$3:$C$14),3),"") ->  | E48: 0 | F48: No
C49: ='Input Sheet'!B64 -> Spare Customer 10 | D49: =IFERROR(INDEX('Res Bill Assumptions'!$C$2:$E$140,MATCH(Results!$C49,'Res Bill Assumptions'!$C$2:$C$140,0)+ROWS('Res Bill Assumptions'!$C$3:$C$14),3),"") ->  | E49: 0 | F49: No
C50: HV Customer Stand Alone Cost Test Results
C51: HV Customers | D51: NPV of Retail Bill | E51: NPV of Stand Alone Cost | F51: Pass SAC Test (Y/N) | I51: NPV of Retail Bill ($/kWh) | J51: NPV of Stand Alone Cost ($/kWH) | L51: NPV Volumes | M51: 1 | N51: 2 | O51: 3 | P51: 4 | Q51: 5 | R51: 6 | S51: 7 | T51: 8 | U51: 9 | V51: 10
C52: ='Input Sheet'!B67 -> HV Customer 1 | D52: =IFERROR(INDEX('HV Bill Assumptions'!$C$2:$E$140,MATCH(Results!$C52,'HV Bill Assumptions'!$C$2:$C$140,0)+ROWS('HV Bill Assumptions'!$C$3:$C$14),3),"") -> 4022743.463 | E52: 6586651.302 | F52: =IFERROR(IF(E52<D52,"No","Yes"),"") -> Yes | I52: =D52/$L52 -> 0.1199279979 | J52: =E52/$L52 -> 0.1963644739 | L52: =NPV('Input Sheet'!$C$12,Results!M52:V52) -> 33542988.57 | M52: =SUM('Input Sheet'!C67:E67) -> 4214148.57 | N52: =M52 -> 4214148.57 | O52: 4214148.57 | P52: 4214148.57 | Q52: 4214148.57 | R52: 4214148.57 | S52: 4214148.57 | T52: 4214148.57 | U52: 4214148.57 | V52: 4214148.57
C53: ='Input Sheet'!B68 -> HV Customer 2 | D53: =IFERROR(INDEX('HV Bill Assumptions'!$C$2:$E$140,MATCH(Results!$C53,'HV Bill Assumptions'!$C$2:$C$140,0)+ROWS('HV Bill Assumptions'!$C$3:$C$14),3),"") -> 6430447.574 | E53: 6586651.302 | F53: =IFERROR(IF(E53<D53,"No","Yes"),"") -> Yes | I53: =D53/$L53 -> 0.1035004986 | J53: 0.106014657 | L53: =NPV('Input Sheet'!$C$12,Results!M53:V53) -> 62129628.95 | M53: =SUM('Input Sheet'!C68:E68) -> 7805610 | N53: =M53 -> 7805610 | O53: 7805610 | P53: 7805610 | Q53: 7805610 | R53: 7805610 | S53: 7805610 | T53: 7805610 | U53: 7805610 | V53: 7805610
C54: ='Input Sheet'!B69 -> HV Customer 3 | D54: =IFERROR(INDEX('HV Bill Assumptions'!$C$2:$E$140,MATCH(Results!$C54,'HV Bill Assumptions'!$C$2:$C$140,0)+ROWS('HV Bill Assumptions'!$C$3:$C$14),3),"") -> 564373.7083 | E54: 6586651.302 | F54: Yes | I54: 0.1520192488 | J54: 1.774175104 | L54: =NPV('Input Sheet'!$C$12,Results!M54:V54) -> 3712514.783 | M54: =SUM('Input Sheet'!C69:E69) -> 466419.05 | N54: =M54 -> 466419.05 | O54: 466419.05 | P54: 466419.05 | Q54: 466419.05 | R54: 466419.05 | S54: 466419.05 | T54: 466419.05 | U54: 466419.05 | V54: 466419.05
C55: ='Input Sheet'!B70 -> Spare Customer 4 | D55: =IFERROR(INDEX('HV Bill Assumptions'!$C$2:$E$140,MATCH(Results!$C55,'HV Bill Assumptions'!$C$2:$C$140,0)+ROWS('HV Bill Assumptions'!$C$3:$C$14),3),"") ->  | E55: 0 | F55: No | L55: =NPV('Input Sheet'!$C$12,Results!M55:V55) -> 0 | M55: =SUM('Input Sheet'!C70:E70) -> 0 | N55: =M55 -> 0 | O55: 0 | P55: 0 | Q55: 0 | R55: 0 | S55: 0 | T55: 0 | U55: 0 | V55: 0
C56: ='Input Sheet'!B71 -> Spare Customer 5 | D56: =IFERROR(INDEX('HV Bill Assumptions'!$C$2:$E$140,MATCH(Results!$C56,'HV Bill Assumptions'!$C$2:$C$140,0)+ROWS('HV Bill Assumptions'!$C$3:$C$14),3),"") ->  | E56: 0 | F56: No
C57: ='Input Sheet'!B72 -> Spare Customer 6 | D57: =IFERROR(INDEX('HV Bill Assumptions'!$C$2:$E$140,MATCH(Results!$C57,'HV Bill Assumptions'!$C$2:$C$140,0)+ROWS('HV Bill Assumptions'!$C$3:$C$14),3),"") ->  | E57: 0 | F57: No
C58: ='Input Sheet'!B73 -> Spare Customer 7 | D58: =IFERROR(INDEX('HV Bill Assumptions'!$C$2:$E$140,MATCH(Results!$C58,'HV Bill Assumptions'!$C$2:$C$140,0)+ROWS('HV Bill Assumptions'!$C$3:$C$14),3),"") ->  | E58: 0 | F58: No
C59: ='Input Sheet'!B74 -> Spare Customer 8 | D59: =IFERROR(INDEX('HV Bill Assumptions'!$C$2:$E$140,MATCH(Results!$C59,'HV Bill Assumptions'!$C$2:$C$140,0)+ROWS('HV Bill Assumptions'!$C$3:$C$14),3),"") ->  | E59: 0 | F59: No
C60: ='Input Sheet'!B75 -> Spare Customer 9 | D60: =IFERROR(INDEX('HV Bill Assumptions'!$C$2:$E$140,MATCH(Results!$C60,'HV Bill Assumptions'!$C$2:$C$140,0)+ROWS('HV Bill Assumptions'!$C$3:$C$14),3),"") ->  | E60: 0 | F60: No
C61: ='Input Sheet'!B76 -> Spare Customer 10 | D61: =IFERROR(INDEX('HV Bill Assumptions'!$C$2:$E$140,MATCH(Results!$C61,'HV Bill Assumptions'!$C$2:$C$140,0)+ROWS('HV Bill Assumptions'!$C$3:$C$14),3),"") ->  | E61: 0 | F61: No

Sheet HV Bill Assumptions
A2: 1 | B2: Customer Name | C2: =INDEX('Input Sheet'!$B$67:$B$76,'HV Bill Assumptions'!A2) -> HV Customer 1 | E2: =INDEX('Input Sheet'!$J$67:$J$76,'LgeLV Bill Assumptions'!A2) -> Flat rate
B4: Retail Bill - Spare
B5: Component of Retail Electricity Price | C5: Quantities | D5: Units of Charging | E5: ='Input Sheet'!C5 -> 2020 | F5: =E5+1 -> 2021 | G5: 2022 | H5: 2023 | I5: 2024 | J5: 2025 | K5: 2026 | L5: 2027 | M5: 2028 | N5: 2029 | O5: 2030 | P5: 2031 | Q5: 2032 | R5: 2033 | S5: 2034 | T5: 2035 | U5: 2036 | V5: 2037 | W5: 2038 | X5: 2039
B6: =TRANSPOSE('Input Sheet'!C66:I66) -> Peak (kWh) | C6: =IFERROR(INDEX('Input Sheet'!$C$67:$I$76,MATCH($C$2,'Input Sheet'!$B$67:$B$76,0),MATCH($B6,'Input Sheet'!$C$66:$I$66,0)),0) -> 2575343.51 | D6: ='Input Sheet'!$M$67 -> $/kWh | E6: =IF($E$2=Lists!$C$4,(('HV Retail Bill Inputs'!$C156*'HV Retail Bill Inputs'!E$149)+('HV Retail Bill Inputs'!F$14*'HV Retail Bill Inputs'!$C$150*'HV Retail Bill Inputs'!$C156))+'HV Retail Bill Inputs'!$C156,((('HV Retail Bill Inputs'!$C166*'HV Retail Bill Inputs'!E$149)+('HV Retail Bill Inputs'!F$14*'HV Retail Bill Inputs'!$C$150*'HV Retail Bill Inputs'!$C166))+'HV Retail Bill Inputs'!$C166)) -> 0.096215 | F6: =IF($E$2=Lists!$C$4,(('HV Retail Bill Inputs'!$C156*'HV Retail Bill Inputs'!F$149)+('HV Retail Bill Inputs'!G$14*'HV Retail Bill Inputs'!$C$150*'HV Retail Bill Inputs'!$C156))+'HV Retail Bill Inputs'!$C156,((('HV Retail Bill Inputs'!$C166*'HV Retail Bill Inputs'!F$149)+('HV Retail Bill Inputs'!G$14*'HV Retail Bill Inputs'!$C$150*'HV Retail Bill Inputs'!$C166))+'HV Retail Bill Inputs'!$C166)) -> 0.096215 | G6: =IF($E$2=Lists!$C$4,(('HV Retail Bill Inputs'!$C156*'HV Retail Bill Inputs'!G$149)+('HV Retail Bill Inputs'!H$14*'HV Retail Bill Inputs'!$C$150*'HV Retail Bill Inputs'!$C156))+'HV Retail Bill Inputs'!$C156,((('HV Retail Bill Inputs'!$C166*'HV Retail Bill Inputs'!G$149)+('HV Retail Bill Inputs'!H$14*'HV Retail Bill Inputs'!$C$150*'HV Retail Bill Inputs'!$C166))+'HV Retail Bill Inputs'!$C166)) -> 0.096215 | H6: =IF($E$2=Lists!$C$4,(('HV Retail Bill Inputs'!$C156*'HV Retail Bill Inputs'!H$149)+('HV Retail Bill Inputs'!I$14*'HV Retail Bill Inputs'!$C$150*'HV Retail Bill Inputs'!$C156))+'HV Retail Bill Inputs'!$C156,((('HV Retail Bill Inputs'!$C166*'HV Retail Bill Inputs'!H$149)+('HV Retail Bill Inputs'!I$14*'HV Retail Bill Inputs'!$C$150*'HV Retail Bill Inputs'!$C166))+'HV Retail Bill Inputs'!$C166)) -> 0.096215 | I6: =IF($E$2=Lists!$C$4,(('HV Retail Bill Inputs'!$C156*'HV Retail Bill Inputs'!I$149)+('HV Retail Bill Inputs'!J$14*'HV Retail Bill Inputs'!$C$150*'HV Retail Bill Inputs'!$C156))+'HV Retail Bill Inputs'!$C156,((('HV Retail Bill Inputs'!$C166*'HV Retail Bill Inputs'!I$149)+('HV Retail Bill Inputs'!J$14*'HV Retail Bill Inputs'!$C$150*'HV Retail Bill Inputs'!$C166))+'HV Retail Bill Inputs'!$C166)) -> 0.096215 | J6: =IF($E$2=Lists!$C$4,(('HV Retail Bill Inputs'!$C156*'HV Retail Bill Inputs'!J$149)+('HV Retail Bill Inputs'!K$14*'HV Retail Bill Inputs'!$C$150*'HV Retail Bill Inputs'!$C156))+'HV Retail Bill Inputs'!$C156,((('HV Retail Bill Inputs'!$C166*'HV Retail Bill Inputs'!J$149)+('HV Retail Bill Inputs'!K$14*'HV Retail Bill Inputs'!$C$150*'HV Retail Bill Inputs'!$C166))+'HV Retail Bill Inputs'!$C166)) -> 0.096215 | K6: =IF($E$2=Lists!$C$4,(('HV Retail Bill Inputs'!$C156*'HV Retail Bill Inputs'!K$149)+('HV Retail Bill Inputs'!L$14*'HV Retail Bill Inputs'!$C$150*'HV Retail Bill Inputs'!$C156))+'HV Retail Bill Inputs'!$C156,((('HV Retail Bill Inputs'!$C166*'HV Retail Bill Inputs'!K$149)+('HV Retail Bill Inputs'!L$14*'HV Retail Bill Inputs'!$C$150*'HV Retail Bill Inputs'!$C166))+'HV Retail Bill Inputs'!$C166)) -> 0.096215 | L6: =IF($E$2=Lists!$C$4,(('HV Retail Bill Inputs'!$C156*'HV Retail Bill Inputs'!L$149)+('HV Retail Bill Inputs'!M$14*'HV Retail Bill Inputs'!$C$150*'HV Retail Bill Inputs'!$C156))+'HV Retail Bill Inputs'!$C156,((('HV Retail Bill Inputs'!$C166*'HV Retail Bill Inputs'!L$149)+('HV Retail Bill Inputs'!M$14*'HV Retail Bill Inputs'!$C$150*'HV Retail Bill Inputs'!$C166))+'HV Retail Bill Inputs'!$C166)) -> 0.096215 | M6: =IF($E$2=Lists!$C$4,(('HV Retail Bill Inputs'!$C156*'HV Retail Bill Inputs'!M$149)+('HV Retail Bill Inputs'!N$14*'HV Retail Bill Inputs'!$C$150*'HV Retail Bill Inputs'!$C156))+'HV Retail Bill Inputs'!$C156,((('HV Retail Bill Inputs'!$C166*'HV Retail Bill Inputs'!M$149)+('HV Retail Bill Inputs'!N$14*'HV Retail Bill Inputs'!$C$150*'HV Retail Bill Inputs'!$C166))+'HV Retail Bill Inputs'!$C166)) -> 0.096215 | N6: =IF($E$2=Lists!$C$4,(('HV Retail Bill Inputs'!$C156*'HV Retail Bill Inputs'!N$149)+('HV Retail Bill Inputs'!O$14*'HV Retail Bill Inputs'!$C$150*'HV Retail Bill Inputs'!$C156))+'HV Retail Bill Inputs'!$C156,((('HV Retail Bill Inputs'!$C166*'HV Retail Bill Inputs'!N$149)+('HV Retail Bill Inputs'!O$14*'HV Retail Bill Inputs'!$C$150*'HV Retail Bill Inputs'!$C166))+'HV Retail Bill Inputs'!$C166)) -> 0.096215 | O6: =IF($E$2=Lists!$C$4,(('HV Retail Bill Inputs'!$C156*'HV Retail Bill Inputs'!O$149)+('HV Retail Bill Inputs'!P$14*'HV Retail Bill Inputs'!$C$150*'HV Retail Bill Inputs'!$C156))+'HV Retail Bill Inputs'!$C156,((('HV Retail Bill Inputs'!$C166*'HV Retail Bill Inputs'!O$149)+('HV Retail Bill Inputs'!P$14*'HV Retail Bill Inputs'!$C$150*'HV Retail Bill Inputs'!$C166))+'HV Retail Bill Inputs'!$C166)) -> 0.096215 | P6: =IF($E$2=Lists!$C$4,(('HV Retail Bill Inputs'!$C156*'HV Retail Bill Inputs'!P$149)+('HV Retail Bill Inputs'!Q$14*'HV Retail Bill Inputs'!$C$150*'HV Retail Bill Inputs'!$C156))+'HV Retail Bill Inputs'!$C156,((('HV Retail Bill Inputs'!$C166*'HV Retail Bill Inputs'!P$149)+('HV Retail Bill Inputs'!Q$14*'HV Retail Bill Inputs'!$C$150*'HV Retail Bill Inputs'!$C166))+'HV Retail Bill Inputs'!$C166)) -> 0.096215 | Q6: =IF($E$2=Lists!$C$4,(('HV Retail Bill Inputs'!$C156*'HV Retail Bill Inputs'!Q$149)+('HV Retail Bill Inputs'!R$14*'HV Retail Bill Inputs'!$C$150*'HV Retail Bill Inputs'!$C156))+'HV Retail Bill Inputs'!$C156,((('HV Retail Bill Inputs'!$C166*'HV Retail Bill Inputs'!Q$149)+('HV Retail Bill Inputs'!R$14*'HV Retail Bill Inputs'!$C$150*'HV Retail Bill Inputs'!$C166))+'HV Retail Bill Inputs'!$C166)) -> 0.096215 | R6: =IF($E$2=Lists!$C$4,(('HV Retail Bill Inputs'!$C156*'HV Retail Bill Inputs'!R$149)+('HV Retail Bill Inputs'!S$14*'HV Retail Bill Inputs'!$C$150*'HV Retail Bill Inputs'!$C156))+'HV Retail Bill Inputs'!$C156,((('HV Retail Bill Inputs'!$C166*'HV Retail Bill Inputs'!R$149)+('HV Retail Bill Inputs'!S$14*'HV Retail Bill Inputs'!$C$150*'HV Retail Bill Inputs'!$C166))+'HV Retail Bill Inputs'!$C166)) -> 0.096215 | S6: =IF($E$2=Lists!$C$4,(('HV Retail Bill Inputs'!$C156*'HV Retail Bill Inputs'!S$149)+('HV Retail Bill Inputs'!T$14*'HV Retail Bill Inputs'!$C$150*'HV Retail Bill Inputs'!$C156))+'HV Retail Bill Inputs'!$C156,((('HV Retail Bill Inputs'!$C166*'HV Retail Bill Inputs'!S$149)+('HV Retail Bill Inputs'!T$14*'HV Retail Bill Inputs'!$C$150*'HV Retail Bill Inputs'!$C166))+'HV Retail Bill Inputs'!$C166)) -> 0.096215 | T6: =IF($E$2=Lists!$C$4,(('HV Retail Bill Inputs'!$C156*'HV Retail Bill Inputs'!T$149)+('HV Retail Bill Inputs'!U$14*'HV Retail Bill Inputs'!$C$150*'HV Retail Bill Inputs'!$C156))+'HV Retail Bill Inputs'!$C156,((('HV Retail Bill Inputs'!$C166*'HV Retail Bill Inputs'!T$149)+('HV Retail Bill Inputs'!U$14*'HV Retail Bill Inputs'!$C$150*'HV Retail Bill Inputs'!$C166))+'HV Retail Bill Inputs'!$C166)) -> 0.096215 | U6: =IF($E$2=Lists!$C$4,(('HV Retail Bill Inputs'!$C156*'HV Retail Bill Inputs'!U$149)+('HV Retail Bill Inputs'!V$14*'HV Retail Bill Inputs'!$C$150*'HV Retail Bill Inputs'!$C156))+'HV Retail Bill Inputs'!$C156,((('HV Retail Bill Inputs'!$C166*'HV Retail Bill Inputs'!U$149)+('HV Retail Bill Inputs'!V$14*'HV Retail Bill Inputs'!$C$150*'HV Retail Bill Inputs'!$C166))+'HV Retail Bill Inputs'!$C166)) -> 0.096215 | V6: =IF($E$2=Lists!$C$4,(('HV Retail Bill Inputs'!$C156*'HV Retail Bill Inputs'!V$149)+('HV Retail Bill Inputs'!W$14*'HV Retail Bill Inputs'!$C$150*'HV Retail Bill Inputs'!$C156))+'HV Retail Bill Inputs'!$C156,((('HV Retail Bill Inputs'!$C166*'HV Retail Bill Inputs'!V$149)+('HV Retail Bill Inputs'!W$14*'HV Retail Bill Inputs'!$C$150*'HV Retail Bill Inputs'!$C166))+'HV Retail Bill Inputs'!$C166)) -> 0.096215 | W6: =IF($E$2=Lists!$C$4,(('HV Retail Bill Inputs'!$C156*'HV Retail Bill Inputs'!W$149)+('HV Retail Bill Inputs'!X$14*'HV Retail Bill Inputs'!$C$150*'HV Retail Bill Inputs'!$C156))+'HV Retail Bill Inputs'!$C156,((('HV Retail Bill Inputs'!$C166*'HV Retail Bill Inputs'!W$149)+('HV Retail Bill Inputs'!X$14*'HV Retail Bill Inputs'!$C$150*'HV Retail Bill Inputs'!$C166))+'HV Retail Bill Inputs'!$C166)) -> 0.096215 | X6: =IF($E$2=Lists!$C$4,(('HV Retail Bill Inputs'!$C156*'HV Retail Bill Inputs'!X$149)+('HV Retail Bill Inputs'!Y$14*'HV Retail Bill Inputs'!$C$150*'HV Retail Bill Inputs'!$C156))+'HV Retail Bill Inputs'!$C156,((('HV Retail Bill Inputs'!$C166*'HV Retail Bill Inputs'!X$149)+('HV Retail Bill Inputs'!Y$14*'HV Retail Bill Inputs'!$C$150*'HV Retail Bill Inputs'!$C166))+'HV Retail Bill Inputs'!$C166)) -> 0.096215
B7: Shoulder (kWh) | C7: =IFERROR(INDEX('Input Sheet'!$C$67:$I$76,MATCH($C$2,'Input Sheet'!$B$67:$B$76,0),MATCH($B7,'Input Sheet'!$C$66:$I$66,0)),0) -> 0 | D7: ='Input Sheet'!$M$68 -> $/kWh | E7: =IF($E$2=Lists!$C$4,(('HV Retail Bill Inputs'!$C157*'HV Retail Bill Inputs'!E$149)+('HV Retail Bill Inputs'!F$14*'HV Retail Bill Inputs'!$C$150*'HV Retail Bill Inputs'!$C157))+'HV Retail Bill Inputs'!$C157,((('HV Retail Bill Inputs'!$C167*'HV Retail Bill Inputs'!E$149)+('HV Retail Bill Inputs'!F$14*'HV Retail Bill Inputs'!$C$150*'HV Retail Bill Inputs'!$C167))+'HV Retail Bill Inputs'!$C167)) -> 0 | F7: =IF($E$2=Lists!$C$4,(('HV Retail Bill Inputs'!$C157*'HV Retail Bill Inputs'!F$149)+('HV Retail Bill Inputs'!G$14*'HV Retail Bill Inputs'!$C$150*'HV Retail Bill Inputs'!$C157))+'HV Retail Bill Inputs'!$C157,((('HV Retail Bill Inputs'!$C167*'HV Retail Bill Inputs'!F$149)+('HV Retail Bill Inputs'!G$14*'HV Retail Bill Inputs'!$C$150*'HV Retail Bill Inputs'!$C167))+'HV Retail Bill Inputs'!$C167)) -> 0 | G7: =IF($E$2=Lists!$C$4,(('HV Retail Bill Inputs'!$C157*'HV Retail Bill Inputs'!G$149)+('HV Retail Bill Inputs'!H$14*'HV Retail Bill Inputs'!$C$150*'HV Retail Bill Inputs'!$C157))+'HV Retail Bill Inputs'!$C157,((('HV Retail Bill Inputs'!$C167*'HV Retail Bill Inputs'!G$149)+('HV Retail Bill Inputs'!H$14*'HV Retail Bill Inputs'!$C$150*'HV Retail Bill Inputs'!$C167))+'HV Retail Bill Inputs'!$C167)) -> 0 | H7: =IF($E$2=Lists!$C$4,(('HV Retail Bill Inputs'!$C157*'HV Retail Bill Inputs'!H$149)+('HV Retail Bill Inputs'!I$14*'HV Retail Bill Inputs'!$C$150*'HV Retail Bill Inputs'!$C157))+'HV Retail Bill Inputs'!$C157,((('HV Retail Bill Inputs'!$C167*'HV Retail Bill Inputs'!H$149)+('HV Retail Bill Inputs'!I$14*'HV Retail Bill Inputs'!$C$150*'HV Retail Bill Inputs'!$C167))+'HV Retail Bill Inputs'!$C167)) -> 0 | I7: =IF($E$2=Lists!$C$4,(('HV Retail Bill Inputs'!$C157*'HV Retail Bill Inputs'!I$149)+('HV Retail Bill Inputs'!J$14*'HV Retail Bill Inputs'!$C$150*'HV Retail Bill Inputs'!$C157))+'HV Retail Bill Inputs'!$C157,((('HV Retail Bill Inputs'!$C167*'HV Retail Bill Inputs'!I$149)+('HV Retail Bill Inputs'!J$14*'HV Retail Bill Inputs'!$C$150*'HV Retail Bill Inputs'!$C167))+'HV Retail Bill Inputs'!$C167)) -> 0 | J7: =IF($E$2=Lists!$C$4,(('HV Retail Bill Inputs'!$C157*'HV Retail Bill Inputs'!J$149)+('HV Retail Bill Inputs'!K$14*'HV Retail Bill Inputs'!$C$150*'HV Retail Bill Inputs'!$C157))+'HV Retail Bill Inputs'!$C157,((('HV Retail Bill Inputs'!$C167*'HV Retail Bill Inputs'!J$149)+('HV Retail Bill Inputs'!K$14*'HV Retail Bill Inputs'!$C$150*'HV Retail Bill Inputs'!$C167))+'HV Retail Bill Inputs'!$C167)) -> 0 | K7: =IF($E$2=Lists!$C$4,(('HV Retail Bill Inputs'!$C157*'HV Retail Bill Inputs'!K$149)+('HV Retail Bill Inputs'!L$14*'HV Retail Bill Inputs'!$C$150*'HV Retail Bill Inputs'!$C157))+'HV Retail Bill Inputs'!$C157,((('HV Retail Bill Inputs'!$C167*'HV Retail Bill Inputs'!K$149)+('HV Retail Bill Inputs'!L$14*'HV Retail Bill Inputs'!$C$150*'HV Retail Bill Inputs'!$C167))+'HV Retail Bill Inputs'!$C167)) -> 0 | L7: =IF($E$2=Lists!$C$4,(('HV Retail Bill Inputs'!$C157*'HV Retail Bill Inputs'!L$149)+('HV Retail Bill Inputs'!M$14*'HV Retail Bill Inputs'!$C$150*'HV Retail Bill Inputs'!$C157))+'HV Retail Bill Inputs'!$C157,((('HV Retail Bill Inputs'!$C167*'HV Retail Bill Inputs'!L$149)+('HV Retail Bill Inputs'!M$14*'HV Retail Bill Inputs'!$C$150*'HV Retail Bill Inputs'!$C167))+'HV Retail Bill Inputs'!$C167)) -> 0 | M7: =IF($E$2=Lists!$C$4,(('HV Retail Bill Inputs'!$C157*'HV Retail Bill Inputs'!M$149)+('HV Retail Bill Inputs'!N$14*'HV Retail Bill Inputs'!$C$150*'HV Retail Bill Inputs'!$C157))+'HV Retail Bill Inputs'!$C157,((('HV Retail Bill Inputs'!$C167*'HV Retail Bill Inputs'!M$149)+('HV Retail Bill Inputs'!N$14*'HV Retail Bill Inputs'!$C$150*'HV Retail Bill Inputs'!$C167))+'HV Retail Bill Inputs'!$C167)) -> 0 | N7: =IF($E$2=Lists!$C$4,(('HV Retail Bill Inputs'!$C157*'HV Retail Bill Inputs'!N$149)+('HV Retail Bill Inputs'!O$14*'HV Retail Bill Inputs'!$C$150*'HV Retail Bill Inputs'!$C157))+'HV Retail Bill Inputs'!$C157,((('HV Retail Bill Inputs'!$C167*'HV Retail Bill Inputs'!N$149)+('HV Retail Bill Inputs'!O$14*'HV Retail Bill Inputs'!$C$150*'HV Retail Bill Inputs'!$C167))+'HV Retail Bill Inputs'!$C167)) -> 0 | O7: =IF($E$2=Lists!$C$4,(('HV Retail Bill Inputs'!$C157*'HV Retail Bill Inputs'!O$149)+('HV Retail Bill Inputs'!P$14*'HV Retail Bill Inputs'!$C$150*'HV Retail Bill Inputs'!$C157))+'HV Retail Bill Inputs'!$C157,((('HV Retail Bill Inputs'!$C167*'HV Retail Bill Inputs'!O$149)+('HV Retail Bill Inputs'!P$14*'HV Retail Bill Inputs'!$C$150*'HV Retail Bill Inputs'!$C167))+'HV Retail Bill Inputs'!$C167)) -> 0 | P7: =IF($E$2=Lists!$C$4,(('HV Retail Bill Inputs'!$C157*'HV Retail Bill Inputs'!P$149)+('HV Retail Bill Inputs'!Q$14*'HV Retail Bill Inputs'!$C$150*'HV Retail Bill Inputs'!$C157))+'HV Retail Bill Inputs'!$C157,((('HV Retail Bill Inputs'!$C167*'HV Retail Bill Inputs'!P$149)+('HV Retail Bill Inputs'!Q$14*'HV Retail Bill Inputs'!$C$150*'HV Retail Bill Inputs'!$C167))+'HV Retail Bill Inputs'!$C167)) -> 0 | Q7: =IF($E$2=Lists!$C$4,(('HV Retail Bill Inputs'!$C157*'HV Retail Bill Inputs'!Q$149)+('HV Retail Bill Inputs'!R$14*'HV Retail Bill Inputs'!$C$150*'HV Retail Bill Inputs'!$C157))+'HV Retail Bill Inputs'!$C157,((('HV Retail Bill Inputs'!$C167*'HV Retail Bill Inputs'!Q$149)+('HV Retail Bill Inputs'!R$14*'HV Retail Bill Inputs'!$C$150*'HV Retail Bill Inputs'!$C167))+'HV Retail Bill Inputs'!$C167)) -> 0 | R7: =IF($E$2=Lists!$C$4,(('HV Retail Bill Inputs'!$C157*'HV Retail Bill Inputs'!R$149)+('HV Retail Bill Inputs'!S$14*'HV Retail Bill Inputs'!$C$150*'HV Retail Bill Inputs'!$C157))+'HV Retail Bill Inputs'!$C157,((('HV Retail Bill Inputs'!$C167*'HV Retail Bill Inputs'!R$149)+('HV Retail Bill Inputs'!S$14*'HV Retail Bill Inputs'!$C$150*'HV Retail Bill Inputs'!$C167))+'HV Retail Bill Inputs'!$C167)) -> 0 | S7: =IF($E$2=Lists!$C$4,(('HV Retail Bill Inputs'!$C157*'HV Retail Bill Inputs'!S$149)+('HV Retail Bill Inputs'!T$14*'HV Retail Bill Inputs'!$C$150*'HV Retail Bill Inputs'!$C157))+'HV Retail Bill Inputs'!$C157,((('HV Retail Bill Inputs'!$C167*'HV Retail Bill Inputs'!S$149)+('HV Retail Bill Inputs'!T$14*'HV Retail Bill Inputs'!$C$150*'HV Retail Bill Inputs'!$C167))+'HV Retail Bill Inputs'!$C167)) -> 0 | T7: =IF($E$2=Lists!$C$4,(('HV Retail Bill Inputs'!$C157*'HV Retail Bill Inputs'!T$149)+('HV Retail Bill Inputs'!U$14*'HV Retail Bill Inputs'!$C$150*'HV Retail Bill Inputs'!$C157))+'HV Retail Bill Inputs'!$C157,((('HV Retail Bill Inputs'!$C167*'HV Retail Bill Inputs'!T$149)+('HV Retail Bill Inputs'!U$14*'HV Retail Bill Inputs'!$C$150*'HV Retail Bill Inputs'!$C167))+'HV Retail Bill Inputs'!$C167)) -> 0 | U7: =IF($E$2=Lists!$C$4,(('HV Retail Bill Inputs'!$C157*'HV Retail Bill Inputs'!U$149)+('HV Retail Bill Inputs'!V$14*'HV Retail Bill Inputs'!$C$150*'HV Retail Bill Inputs'!$C157))+'HV Retail Bill Inputs'!$C157,((('HV Retail Bill Inputs'!$C167*'HV Retail Bill Inputs'!U$149)+('HV Retail Bill Inputs'!V$14*'HV Retail Bill Inputs'!$C$150*'HV Retail Bill Inputs'!$C167))+'HV Retail Bill Inputs'!$C167)) -> 0 | V7: =IF($E$2=Lists!$C$4,(('HV Retail Bill Inputs'!$C157*'HV Retail Bill Inputs'!V$149)+('HV Retail Bill Inputs'!W$14*'HV Retail Bill Inputs'!$C$150*'HV Retail Bill Inputs'!$C157))+'HV Retail Bill Inputs'!$C157,((('HV Retail Bill Inputs'!$C167*'HV Retail Bill Inputs'!V$149)+('HV Retail Bill Inputs'!W$14*'HV Retail Bill Inputs'!$C$150*'HV Retail Bill Inputs'!$C167))+'HV Retail Bill Inputs'!$C167)) -> 0 | W7: =IF($E$2=Lists!$C$4,(('HV Retail Bill Inputs'!$C157*'HV Retail Bill Inputs'!W$149)+('HV Retail Bill Inputs'!X$14*'HV Retail Bill Inputs'!$C$150*'HV Retail Bill Inputs'!$C157))+'HV Retail Bill Inputs'!$C157,((('HV Retail Bill Inputs'!$C167*'HV Retail Bill Inputs'!W$149)+('HV Retail Bill Inputs'!X$14*'HV Retail Bill Inputs'!$C$150*'HV Retail Bill Inputs'!$C167))+'HV Retail Bill Inputs'!$C167)) -> 0 | X7: =IF($E$2=Lists!$C$4,(('HV Retail Bill Inputs'!$C157*'HV Retail Bill Inputs'!X$149)+('HV Retail Bill Inputs'!Y$14*'HV Retail Bill Inputs'!$C$150*'HV Retail Bill Inputs'!$C157))+'HV Retail Bill Inputs'!$C157,((('HV Retail Bill Inputs'!$C167*'HV Retail Bill Inputs'!X$149)+('HV Retail Bill Inputs'!Y$14*'HV Retail Bill Inputs'!$C$150*'HV Retail Bill Inputs'!$C167))+'HV Retail Bill Inputs'!$C167)) -> 0
B8: Off Peak (kWH) | C8: =IFERROR(INDEX('Input Sheet'!$C$67:$I$76,MATCH($C$2,'Input Sheet'!$B$67:$B$76,0),MATCH($B8,'Input Sheet'!$C$66:$I$66,0)),0) -> 1638805.06 | D8: ='Input Sheet'!$M$69 -> $/kWh | E8: =IF($E$2=Lists!$C$4,(('HV Retail Bill Inputs'!$C158*'HV Retail Bill Inputs'!E$149)+('HV Retail Bill Inputs'!F$14*'HV Retail Bill Inputs'!$C$150*'HV Retail Bill Inputs'!$C158))+'HV Retail Bill Inputs'!$C158,((('HV Retail Bill Inputs'!$C168*'HV Retail Bill Inputs'!E$149)+('HV Retail Bill Inputs'!F$14*'HV Retail Bill Inputs'!$C$150*'HV Retail Bill Inputs'!$C168))+'HV Retail Bill Inputs'!$C168)) -> 0.0728856 | F8: =IF($E$2=Lists!$C$4,(('HV Retail Bill Inputs'!$C158*'HV Retail Bill Inputs'!F$149)+('HV Retail Bill Inputs'!G$14*'HV Retail Bill Inputs'!$C$150*'HV Retail Bill Inputs'!$C158))+'HV Retail Bill Inputs'!$C158,((('HV Retail Bill Inputs'!$C168*'HV Retail Bill Inputs'!F$149)+('HV Retail Bill Inputs'!G$14*'HV Retail Bill Inputs'!$C$150*'HV Retail Bill Inputs'!$C168))+'HV Retail Bill Inputs'!$C168)) -> 0.0728856 | G8: =IF($E$2=Lists!$C$4,(('HV Retail Bill Inputs'!$C158*'HV Retail Bill Inputs'!G$149)+('HV Retail Bill Inputs'!H$14*'HV Retail Bill Inputs'!$C$150*'HV Retail Bill Inputs'!$C158))+'HV Retail Bill Inputs'!$C158,((('HV Retail Bill Inputs'!$C168*'HV Retail Bill Inputs'!G$149)+('HV Retail Bill Inputs'!H$14*'HV Retail Bill Inputs'!$C$150*'HV Retail Bill Inputs'!$C168))+'HV Retail Bill Inputs'!$C168)) -> 0.0728856 | H8: =IF($E$2=Lists!$C$4,(('HV Retail Bill Inputs'!$C158*'HV Retail Bill Inputs'!H$149)+('HV Retail Bill Inputs'!I$14*'HV Retail Bill Inputs'!$C$150*'HV Retail Bill Inputs'!$C158))+'HV Retail Bill Inputs'!$C158,((('HV Retail Bill Inputs'!$C168*'HV Retail Bill Inputs'!H$149)+('HV Retail Bill Inputs'!I$14*'HV Retail Bill Inputs'!$C$150*'HV Retail Bill Inputs'!$C168))+'HV Retail Bill Inputs'!$C168)) -> 0.0728856 | I8: =IF($E$2=Lists!$C$4,(('HV Retail Bill Inputs'!$C158*'HV Retail Bill Inputs'!I$149)+('HV Retail Bill Inputs'!J$14*'HV Retail Bill Inputs'!$C$150*'HV Retail Bill Inputs'!$C158))+'HV Retail Bill Inputs'!$C158,((('HV Retail Bill Inputs'!$C168*'HV Retail Bill Inputs'!I$149)+('HV Retail Bill Inputs'!J$14*'HV Retail Bill Inputs'!$C$150*'HV Retail Bill Inputs'!$C168))+'HV Retail Bill Inputs'!$C168)) -> 0.0728856 | J8: =IF($E$2=Lists!$C$4,(('HV Retail Bill Inputs'!$C158*'HV Retail Bill Inputs'!J$149)+('HV Retail Bill Inputs'!K$14*'HV Retail Bill Inputs'!$C$150*'HV Retail Bill Inputs'!$C158))+'HV Retail Bill Inputs'!$C158,((('HV Retail Bill Inputs'!$C168*'HV Retail Bill Inputs'!J$149)+('HV Retail Bill Inputs'!K$14*'HV Retail Bill Inputs'!$C$150*'HV Retail Bill Inputs'!$C168))+'HV Retail Bill Inputs'!$C168)) -> 0.0728856 | K8: =IF($E$2=Lists!$C$4,(('HV Retail Bill Inputs'!$C158*'HV Retail Bill Inputs'!K$149)+('HV Retail Bill Inputs'!L$14*'HV Retail Bill Inputs'!$C$150*'HV Retail Bill Inputs'!$C158))+'HV Retail Bill Inputs'!$C158,((('HV Retail Bill Inputs'!$C168*'HV Retail Bill Inputs'!K$149)+('HV Retail Bill Inputs'!L$14*'HV Retail Bill Inputs'!$C$150*'HV Retail Bill Inputs'!$C168))+'HV Retail Bill Inputs'!$C168)) -> 0.0728856 | L8: =IF($E$2=Lists!$C$4,(('HV Retail Bill Inputs'!$C158*'HV Retail Bill Inputs'!L$149)+('HV Retail Bill Inputs'!M$14*'HV Retail Bill Inputs'!$C$150*'HV Retail Bill Inputs'!$C158))+'HV Retail Bill Inputs'!$C158,((('HV Retail Bill Inputs'!$C168*'HV Retail Bill Inputs'!L$149)+('HV Retail Bill Inputs'!M$14*'HV Retail Bill Inputs'!$C$150*'HV Retail Bill Inputs'!$C168))+'HV Retail Bill Inputs'!$C168)) -> 0.0728856 | M8: =IF($E$2=Lists!$C$4,(('HV Retail Bill Inputs'!$C158*'HV Retail Bill Inputs'!M$149)+('HV Retail Bill Inputs'!N$14*'HV Retail Bill Inputs'!$C$150*'HV Retail Bill Inputs'!$C158))+'HV Retail Bill Inputs'!$C158,((('HV Retail Bill Inputs'!$C168*'HV Retail Bill Inputs'!M$149)+('HV Retail Bill Inputs'!N$14*'HV Retail Bill Inputs'!$C$150*'HV Retail Bill Inputs'!$C168))+'HV Retail Bill Inputs'!$C168)) -> 0.0728856 | N8: =IF($E$2=Lists!$C$4,(('HV Retail Bill Inputs'!$C158*'HV Retail Bill Inputs'!N$149)+('HV Retail Bill Inputs'!O$14*'HV Retail Bill Inputs'!$C$150*'HV Retail Bill Inputs'!$C158))+'HV Retail Bill Inputs'!$C158,((('HV Retail Bill Inputs'!$C168*'HV Retail Bill Inputs'!N$149)+('HV Retail Bill Inputs'!O$14*'HV Retail Bill Inputs'!$C$150*'HV Retail Bill Inputs'!$C168))+'HV Retail Bill Inputs'!$C168)) -> 0.0728856 | O8: =IF($E$2=Lists!$C$4,(('HV Retail Bill Inputs'!$C158*'HV Retail Bill Inputs'!O$149)+('HV Retail Bill Inputs'!P$14*'HV Retail Bill Inputs'!$C$150*'HV Retail Bill Inputs'!$C158))+'HV Retail Bill Inputs'!$C158,((('HV Retail Bill Inputs'!$C168*'HV Retail Bill Inputs'!O$149)+('HV Retail Bill Inputs'!P$14*'HV Retail Bill Inputs'!$C$150*'HV Retail Bill Inputs'!$C168))+'HV Retail Bill Inputs'!$C168)) -> 0.0728856 | P8: =IF($E$2=Lists!$C$4,(('HV Retail Bill Inputs'!$C158*'HV Retail Bill Inputs'!P$149)+('HV Retail Bill Inputs'!Q$14*'HV Retail Bill Inputs'!$C$150*'HV Retail Bill Inputs'!$C158))+'HV Retail Bill Inputs'!$C158,((('HV Retail Bill Inputs'!$C168*'HV Retail Bill Inputs'!P$149)+('HV Retail Bill Inputs'!Q$14*'HV Retail Bill Inputs'!$C$150*'HV Retail Bill Inputs'!$C168))+'HV Retail Bill Inputs'!$C168)) -> 0.0728856 | Q8: =IF($E$2=Lists!$C$4,(('HV Retail Bill Inputs'!$C158*'HV Retail Bill Inputs'!Q$149)+('HV Retail Bill Inputs'!R$14*'HV Retail Bill Inputs'!$C$150*'HV Retail Bill Inputs'!$C158))+'HV Retail Bill Inputs'!$C158,((('HV Retail Bill Inputs'!$C168*'HV Retail Bill Inputs'!Q$149)+('HV Retail Bill Inputs'!R$14*'HV Retail Bill Inputs'!$C$150*'HV Retail Bill Inputs'!$C168))+'HV Retail Bill Inputs'!$C168)) -> 0.0728856 | R8: =IF($E$2=Lists!$C$4,(('HV Retail Bill Inputs'!$C158*'HV Retail Bill Inputs'!R$149)+('HV Retail Bill Inputs'!S$14*'HV Retail Bill Inputs'!$C$150*'HV Retail Bill Inputs'!$C158))+'HV Retail Bill Inputs'!$C158,((('HV Retail Bill Inputs'!$C168*'HV Retail Bill Inputs'!R$149)+('HV Retail Bill Inputs'!S$14*'HV Retail Bill Inputs'!$C$150*'HV Retail Bill Inputs'!$C168))+'HV Retail Bill Inputs'!$C168)) -> 0.0728856 | S8: =IF($E$2=Lists!$C$4,(('HV Retail Bill Inputs'!$C158*'HV Retail Bill Inputs'!S$149)+('HV Retail Bill Inputs'!T$14*'HV Retail Bill Inputs'!$C$150*'HV Retail Bill Inputs'!$C158))+'HV Retail Bill Inputs'!$C158,((('HV Retail Bill Inputs'!$C168*'HV Retail Bill Inputs'!S$149)+('HV Retail Bill Inputs'!T$14*'HV Retail Bill Inputs'!$C$150*'HV Retail Bill Inputs'!$C168))+'HV Retail Bill Inputs'!$C168)) -> 0.0728856 | T8: =IF($E$2=Lists!$C$4,(('HV Retail Bill Inputs'!$C158*'HV Retail Bill Inputs'!T$149)+('HV Retail Bill Inputs'!U$14*'HV Retail Bill Inputs'!$C$150*'HV Retail Bill Inputs'!$C158))+'HV Retail Bill Inputs'!$C158,((('HV Retail Bill Inputs'!$C168*'HV Retail Bill Inputs'!T$149)+('HV Retail Bill Inputs'!U$14*'HV Retail Bill Inputs'!$C$150*'HV Retail Bill Inputs'!$C168))+'HV Retail Bill Inputs'!$C168)) -> 0.0728856 | U8: =IF($E$2=Lists!$C$4,(('HV Retail Bill Inputs'!$C158*'HV Retail Bill Inputs'!U$149)+('HV Retail Bill Inputs'!V$14*'HV Retail Bill Inputs'!$C$150*'HV Retail Bill Inputs'!$C158))+'HV Retail Bill Inputs'!$C158,((('HV Retail Bill Inputs'!$C168*'HV Retail Bill Inputs'!U$149)+('HV Retail Bill Inputs'!V$14*'HV Retail Bill Inputs'!$C$150*'HV Retail Bill Inputs'!$C168))+'HV Retail Bill Inputs'!$C168)) -> 0.0728856 | V8: =IF($E$2=Lists!$C$4,(('HV Retail Bill Inputs'!$C158*'HV Retail Bill Inputs'!V$149)+('HV Retail Bill Inputs'!W$14*'HV Retail Bill Inputs'!$C$150*'HV Retail Bill Inputs'!$C158))+'HV Retail Bill Inputs'!$C158,((('HV Retail Bill Inputs'!$C168*'HV Retail Bill Inputs'!V$149)+('HV Retail Bill Inputs'!W$14*'HV Retail Bill Inputs'!$C$150*'HV Retail Bill Inputs'!$C168))+'HV Retail Bill Inputs'!$C168)) -> 0.0728856 | W8: =IF($E$2=Lists!$C$4,(('HV Retail Bill Inputs'!$C158*'HV Retail Bill Inputs'!W$149)+('HV Retail Bill Inputs'!X$14*'HV Retail Bill Inputs'!$C$150*'HV Retail Bill Inputs'!$C158))+'HV Retail Bill Inputs'!$C158,((('HV Retail Bill Inputs'!$C168*'HV Retail Bill Inputs'!W$149)+('HV Retail Bill Inputs'!X$14*'HV Retail Bill Inputs'!$C$150*'HV Retail Bill Inputs'!$C168))+'HV Retail Bill Inputs'!$C168)) -> 0.0728856 | X8: =IF($E$2=Lists!$C$4,(('HV Retail Bill Inputs'!$C158*'HV Retail Bill Inputs'!X$149)+('HV Retail Bill Inputs'!Y$14*'HV Retail Bill Inputs'!$C$150*'HV Retail Bill Inputs'!$C158))+'HV Retail Bill Inputs'!$C158,((('HV Retail Bill Inputs'!$C168*'HV Retail Bill Inputs'!X$149)+('HV Retail Bill Inputs'!Y$14*'HV Retail Bill Inputs'!$C$150*'HV Retail Bill Inputs'!$C168))+'HV Retail Bill Inputs'!$C168)) -> 0.0728856
B9: Chargeable kVA | C9: =IFERROR(INDEX('Input Sheet'!$C$67:$I$76,MATCH($C$2,'Input Sheet'!$B$67:$B$76,0),MATCH($B9,'Input Sheet'!$C$66:$I$66,0)),0) -> 2060 | D9: ='Input Sheet'!$M$70 -> $/kVA | E9: =IF($E$2=Lists!$C$4,(('HV Retail Bill Inputs'!$C159*'HV Retail Bill Inputs'!E$149)+('HV Retail Bill Inputs'!F$14*'HV Retail Bill Inputs'!$C$150*'HV Retail Bill Inputs'!$C159))+'HV Retail Bill Inputs'!$C159,((('HV Retail Bill Inputs'!$C169*'HV Retail Bill Inputs'!E$149)+('HV Retail Bill Inputs'!F$14*'HV Retail Bill Inputs'!$C$150*'HV Retail Bill Inputs'!$C169))+'HV Retail Bill Inputs'!$C169)) -> 38.77 | F9: =IF($E$2=Lists!$C$4,(('HV Retail Bill Inputs'!$C159*'HV Retail Bill Inputs'!F$149)+('HV Retail Bill Inputs'!G$14*'HV Retail Bill Inputs'!$C$150*'HV Retail Bill Inputs'!$C159))+'HV Retail Bill Inputs'!$C159,((('HV Retail Bill Inputs'!$C169*'HV Retail Bill Inputs'!F$149)+('HV Retail Bill Inputs'!G$14*'HV Retail Bill Inputs'!$C$150*'HV Retail Bill Inputs'!$C169))+'HV Retail Bill Inputs'!$C169)) -> 38.77 | G9: =IF($E$2=Lists!$C$4,(('HV Retail Bill Inputs'!$C159*'HV Retail Bill Inputs'!G$149)+('HV Retail Bill Inputs'!H$14*'HV Retail Bill Inputs'!$C$150*'HV Retail Bill Inputs'!$C159))+'HV Retail Bill Inputs'!$C159,((('HV Retail Bill Inputs'!$C169*'HV Retail Bill Inputs'!G$149)+('HV Retail Bill Inputs'!H$14*'HV Retail Bill Inputs'!$C$150*'HV Retail Bill Inputs'!$C169))+'HV Retail Bill Inputs'!$C169)) -> 38.77 | H9: =IF($E$2=Lists!$C$4,(('HV Retail Bill Inputs'!$C159*'HV Retail Bill Inputs'!H$149)+('HV Retail Bill Inputs'!I$14*'HV Retail Bill Inputs'!$C$150*'HV Retail Bill Inputs'!$C159))+'HV Retail Bill Inputs'!$C159,((('HV Retail Bill Inputs'!$C169*'HV Retail Bill Inputs'!H$149)+('HV Retail Bill Inputs'!I$14*'HV Retail Bill Inputs'!$C$150*'HV Retail Bill Inputs'!$C169))+'HV Retail Bill Inputs'!$C169)) -> 38.77 | I9: =IF($E$2=Lists!$C$4,(('HV Retail Bill Inputs'!$C159*'HV Retail Bill Inputs'!I$149)+('HV Retail Bill Inputs'!J$14*'HV Retail Bill Inputs'!$C$150*'HV Retail Bill Inputs'!$C159))+'HV Retail Bill Inputs'!$C159,((('HV Retail Bill Inputs'!$C169*'HV Retail Bill Inputs'!I$149)+('HV Retail Bill Inputs'!J$14*'HV Retail Bill Inputs'!$C$150*'HV Retail Bill Inputs'!$C169))+'HV Retail Bill Inputs'!$C169)) -> 38.77 | J9: =IF($E$2=Lists!$C$4,(('HV Retail Bill Inputs'!$C159*'HV Retail Bill Inputs'!J$149)+('HV Retail Bill Inputs'!K$14*'HV Retail Bill Inputs'!$C$150*'HV Retail Bill Inputs'!$C159))+'HV Retail Bill Inputs'!$C159,((('HV Retail Bill Inputs'!$C169*'HV Retail Bill Inputs'!J$149)+('HV Retail Bill Inputs'!K$14*'HV Retail Bill Inputs'!$C$150*'HV Retail Bill Inputs'!$C169))+'HV Retail Bill Inputs'!$C169)) -> 38.77 | K9: =IF($E$2=Lists!$C$4,(('HV Retail Bill Inputs'!$C159*'HV Retail Bill Inputs'!K$149)+('HV Retail Bill Inputs'!L$14*'HV Retail Bill Inputs'!$C$150*'HV Retail Bill Inputs'!$C159))+'HV Retail Bill Inputs'!$C159,((('HV Retail Bill Inputs'!$C169*'HV Retail Bill Inputs'!K$149)+('HV Retail Bill Inputs'!L$14*'HV Retail Bill Inputs'!$C$150*'HV Retail Bill Inputs'!$C169))+'HV Retail Bill Inputs'!$C169)) -> 38.77 | L9: =IF($E$2=Lists!$C$4,(('HV Retail Bill Inputs'!$C159*'HV Retail Bill Inputs'!L$149)+('HV Retail Bill Inputs'!M$14*'HV Retail Bill Inputs'!$C$150*'HV Retail Bill Inputs'!$C159))+'HV Retail Bill Inputs'!$C159,((('HV Retail Bill Inputs'!$C169*'HV Retail Bill Inputs'!L$149)+('HV Retail Bill Inputs'!M$14*'HV Retail Bill Inputs'!$C$150*'HV Retail Bill Inputs'!$C169))+'HV Retail Bill Inputs'!$C169)) -> 38.77 | M9: =IF($E$2=Lists!$C$4,(('HV Retail Bill Inputs'!$C159*'HV Retail Bill Inputs'!M$149)+('HV Retail Bill Inputs'!N$14*'HV Retail Bill Inputs'!$C$150*'HV Retail Bill Inputs'!$C159))+'HV Retail Bill Inputs'!$C159,((('HV Retail Bill Inputs'!$C169*'HV Retail Bill Inputs'!M$149)+('HV Retail Bill Inputs'!N$14*'HV Retail Bill Inputs'!$C$150*'HV Retail Bill Inputs'!$C169))+'HV Retail Bill Inputs'!$C169)) -> 38.77 | N9: =IF($E$2=Lists!$C$4,(('HV Retail Bill Inputs'!$C159*'HV Retail Bill Inputs'!N$149)+('HV Retail Bill Inputs'!O$14*'HV Retail Bill Inputs'!$C$150*'HV Retail Bill Inputs'!$C159))+'HV Retail Bill Inputs'!$C159,((('HV Retail Bill Inputs'!$C169*'HV Retail Bill Inputs'!N$149)+('HV Retail Bill Inputs'!O$14*'HV Retail Bill Inputs'!$C$150*'HV Retail Bill Inputs'!$C169))+'HV Retail Bill Inputs'!$C169)) -> 38.77 | O9: =IF($E$2=Lists!$C$4,(('HV Retail Bill Inputs'!$C159*'HV Retail Bill Inputs'!O$149)+('HV Retail Bill Inputs'!P$14*'HV Retail Bill Inputs'!$C$150*'HV Retail Bill Inputs'!$C159))+'HV Retail Bill Inputs'!$C159,((('HV Retail Bill Inputs'!$C169*'HV Retail Bill Inputs'!O$149)+('HV Retail Bill Inputs'!P$14*'HV Retail Bill Inputs'!$C$150*'HV Retail Bill Inputs'!$C169))+'HV Retail Bill Inputs'!$C169)) -> 38.77 | P9: =IF($E$2=Lists!$C$4,(('HV Retail Bill Inputs'!$C159*'HV Retail Bill Inputs'!P$149)+('HV Retail Bill Inputs'!Q$14*'HV Retail Bill Inputs'!$C$150*'HV Retail Bill Inputs'!$C159))+'HV Retail Bill Inputs'!$C159,((('HV Retail Bill Inputs'!$C169*'HV Retail Bill Inputs'!P$149)+('HV Retail Bill Inputs'!Q$14*'HV Retail Bill Inputs'!$C$150*'HV Retail Bill Inputs'!$C169))+'HV Retail Bill Inputs'!$C169)) -> 38.77 | Q9: =IF($E$2=Lists!$C$4,(('HV Retail Bill Inputs'!$C159*'HV Retail Bill Inputs'!Q$149)+('HV Retail Bill Inputs'!R$14*'HV Retail Bill Inputs'!$C$150*'HV Retail Bill Inputs'!$C159))+'HV Retail Bill Inputs'!$C159,((('HV Retail Bill Inputs'!$C169*'HV Retail Bill Inputs'!Q$149)+('HV Retail Bill Inputs'!R$14*'HV Retail Bill Inputs'!$C$150*'HV Retail Bill Inputs'!$C169))+'HV Retail Bill Inputs'!$C169)) -> 38.77 | R9: =IF($E$2=Lists!$C$4,(('HV Retail Bill Inputs'!$C159*'HV Retail Bill Inputs'!R$149)+('HV Retail Bill Inputs'!S$14*'HV Retail Bill Inputs'!$C$150*'HV Retail Bill Inputs'!$C159))+'HV Retail Bill Inputs'!$C159,((('HV Retail Bill Inputs'!$C169*'HV Retail Bill Inputs'!R$149)+('HV Retail Bill Inputs'!S$14*'HV Retail Bill Inputs'!$C$150*'HV Retail Bill Inputs'!$C169))+'HV Retail Bill Inputs'!$C169)) -> 38.77 | S9: =IF($E$2=Lists!$C$4,(('HV Retail Bill Inputs'!$C159*'HV Retail Bill Inputs'!S$149)+('HV Retail Bill Inputs'!T$14*'HV Retail Bill Inputs'!$C$150*'HV Retail Bill Inputs'!$C159))+'HV Retail Bill Inputs'!$C159,((('HV Retail Bill Inputs'!$C169*'HV Retail Bill Inputs'!S$149)+('HV Retail Bill Inputs'!T$14*'HV Retail Bill Inputs'!$C$150*'HV Retail Bill Inputs'!$C169))+'HV Retail Bill Inputs'!$C169)) -> 38.77 | T9: =IF($E$2=Lists!$C$4,(('HV Retail Bill Inputs'!$C159*'HV Retail Bill Inputs'!T$149)+('HV Retail Bill Inputs'!U$14*'HV Retail Bill Inputs'!$C$150*'HV Retail Bill Inputs'!$C159))+'HV Retail Bill Inputs'!$C159,((('HV Retail Bill Inputs'!$C169*'HV Retail Bill Inputs'!T$149)+('HV Retail Bill Inputs'!U$14*'HV Retail Bill Inputs'!$C$150*'HV Retail Bill Inputs'!$C169))+'HV Retail Bill Inputs'!$C169)) -> 38.77 | U9: =IF($E$2=Lists!$C$4,(('HV Retail Bill Inputs'!$C159*'HV Retail Bill Inputs'!U$149)+('HV Retail Bill Inputs'!V$14*'HV Retail Bill Inputs'!$C$150*'HV Retail Bill Inputs'!$C159))+'HV Retail Bill Inputs'!$C159,((('HV Retail Bill Inputs'!$C169*'HV Retail Bill Inputs'!U$149)+('HV Retail Bill Inputs'!V$14*'HV Retail Bill Inputs'!$C$150*'HV Retail Bill Inputs'!$C169))+'HV Retail Bill Inputs'!$C169)) -> 38.77 | V9: =IF($E$2=Lists!$C$4,(('HV Retail Bill Inputs'!$C159*'HV Retail Bill Inputs'!V$149)+('HV Retail Bill Inputs'!W$14*'HV Retail Bill Inputs'!$C$150*'HV Retail Bill Inputs'!$C159))+'HV Retail Bill Inputs'!$C159,((('HV Retail Bill Inputs'!$C169*'HV Retail Bill Inputs'!V$149)+('HV Retail Bill Inputs'!W$14*'HV Retail Bill Inputs'!$C$150*'HV Retail Bill Inputs'!$C169))+'HV Retail Bill Inputs'!$C169)) -> 38.77 | W9: =IF($E$2=Lists!$C$4,(('HV Retail Bill Inputs'!$C159*'HV Retail Bill Inputs'!W$149)+('HV Retail Bill Inputs'!X$14*'HV Retail Bill Inputs'!$C$150*'HV Retail Bill Inputs'!$C159))+'HV Retail Bill Inputs'!$C159,((('HV Retail Bill Inputs'!$C169*'HV Retail Bill Inputs'!W$149)+('HV Retail Bill Inputs'!X$14*'HV Retail Bill Inputs'!$C$150*'HV Retail Bill Inputs'!$C169))+'HV Retail Bill Inputs'!$C169)) -> 38.77 | X9: =IF($E$2=Lists!$C$4,(('HV Retail Bill Inputs'!$C159*'HV Retail Bill Inputs'!X$149)+('HV Retail Bill Inputs'!Y$14*'HV Retail Bill Inputs'!$C$150*'HV Retail Bill Inputs'!$C159))+'HV Retail Bill Inputs'!$C159,((('HV Retail Bill Inputs'!$C169*'HV Retail Bill Inputs'!X$149)+('HV Retail Bill Inputs'!Y$14*'HV Retail Bill Inputs'!$C$150*'HV Retail Bill Inputs'!$C169))+'HV Retail Bill Inputs'!$C169)) -> 38.77
B10: Fixed | C10: =IFERROR(INDEX('Input Sheet'!$C$67:$I$76,MATCH($C$2,'Input Sheet'!$B$67:$B$76,0),MATCH($B10,'Input Sheet'!$C$66:$I$66,0)),0) -> 1 | D10: ='Input Sheet'!$M$71 -> $/year | E10: =IF($E$2=Lists!$C$4,(('HV Retail Bill Inputs'!$C160*'HV Retail Bill Inputs'!E$149)+('HV Retail Bill Inputs'!F$14*'HV Retail Bill Inputs'!$C$150*'HV Retail Bill Inputs'!$C160))+'HV Retail Bill Inputs'!$C160,((('HV Retail Bill Inputs'!$C170*'HV Retail Bill Inputs'!E$149)+('HV Retail Bill Inputs'!F$14*'HV Retail Bill Inputs'!$C$150*'HV Retail Bill Inputs'!$C170))+'HV Retail Bill Inputs'!$C170)) -> 5701 | F10: =IF($E$2=Lists!$C$4,(('HV Retail Bill Inputs'!$C160*'HV Retail Bill Inputs'!F$149)+('HV Retail Bill Inputs'!G$14*'HV Retail Bill Inputs'!$C$150*'HV Retail Bill Inputs'!$C160))+'HV Retail Bill Inputs'!$C160,((('HV Retail Bill Inputs'!$C170*'HV Retail Bill Inputs'!F$149)+('HV Retail Bill Inputs'!G$14*'HV Retail Bill Inputs'!$C$150*'HV Retail Bill Inputs'!$C170))+'HV Retail Bill Inputs'!$C170)) -> 5701 | G10: =IF($E$2=Lists!$C$4,(('HV Retail Bill Inputs'!$C160*'HV Retail Bill Inputs'!G$149)+('HV Retail Bill Inputs'!H$14*'HV Retail Bill Inputs'!$C$150*'HV Retail Bill Inputs'!$C160))+'HV Retail Bill Inputs'!$C160,((('HV Retail Bill Inputs'!$C170*'HV Retail Bill Inputs'!G$149)+('HV Retail Bill Inputs'!H$14*'HV Retail Bill Inputs'!$C$150*'HV Retail Bill Inputs'!$C170))+'HV Retail Bill Inputs'!$C170)) -> 5701 | H10: =IF($E$2=Lists!$C$4,(('HV Retail Bill Inputs'!$C160*'HV Retail Bill Inputs'!H$149)+('HV Retail Bill Inputs'!I$14*'HV Retail Bill Inputs'!$C$150*'HV Retail Bill Inputs'!$C160))+'HV Retail Bill Inputs'!$C160,((('HV Retail Bill Inputs'!$C170*'HV Retail Bill Inputs'!H$149)+('HV Retail Bill Inputs'!I$14*'HV Retail Bill Inputs'!$C$150*'HV Retail Bill Inputs'!$C170))+'HV Retail Bill Inputs'!$C170)) -> 5701 | I10: =IF($E$2=Lists!$C$4,(('HV Retail Bill Inputs'!$C160*'HV Retail Bill Inputs'!I$149)+('HV Retail Bill Inputs'!J$14*'HV Retail Bill Inputs'!$C$150*'HV Retail Bill Inputs'!$C160))+'HV Retail Bill Inputs'!$C160,((('HV Retail Bill Inputs'!$C170*'HV Retail Bill Inputs'!I$149)+('HV Retail Bill Inputs'!J$14*'HV Retail Bill Inputs'!$C$150*'HV Retail Bill Inputs'!$C170))+'HV Retail Bill Inputs'!$C170)) -> 5701 | J10: =IF($E$2=Lists!$C$4,(('HV Retail Bill Inputs'!$C160*'HV Retail Bill Inputs'!J$149)+('HV Retail Bill Inputs'!K$14*'HV Retail Bill Inputs'!$C$150*'HV Retail Bill Inputs'!$C160))+'HV Retail Bill Inputs'!$C160,((('HV Retail Bill Inputs'!$C170*'HV Retail Bill Inputs'!J$149)+('HV Retail Bill Inputs'!K$14*'HV Retail Bill Inputs'!$C$150*'HV Retail Bill Inputs'!$C170))+'HV Retail Bill Inputs'!$C170)) -> 5701 | K10: =IF($E$2=Lists!$C$4,(('HV Retail Bill Inputs'!$C160*'HV Retail Bill Inputs'!K$149)+('HV Retail Bill Inputs'!L$14*'HV Retail Bill Inputs'!$C$150*'HV Retail Bill Inputs'!$C160))+'HV Retail Bill Inputs'!$C160,((('HV Retail Bill Inputs'!$C170*'HV Retail Bill Inputs'!K$149)+('HV Retail Bill Inputs'!L$14*'HV Retail Bill Inputs'!$C$150*'HV Retail Bill Inputs'!$C170))+'HV Retail Bill Inputs'!$C170)) -> 5701 | L10: =IF($E$2=Lists!$C$4,(('HV Retail Bill Inputs'!$C160*'HV Retail Bill Inputs'!L$149)+('HV Retail Bill Inputs'!M$14*'HV Retail Bill Inputs'!$C$150*'HV Retail Bill Inputs'!$C160))+'HV Retail Bill Inputs'!$C160,((('HV Retail Bill Inputs'!$C170*'HV Retail Bill Inputs'!L$149)+('HV Retail Bill Inputs'!M$14*'HV Retail Bill Inputs'!$C$150*'HV Retail Bill Inputs'!$C170))+'HV Retail Bill Inputs'!$C170)) -> 5701 | M10: =IF($E$2=Lists!$C$4,(('HV Retail Bill Inputs'!$C160*'HV Retail Bill Inputs'!M$149)+('HV Retail Bill Inputs'!N$14*'HV Retail Bill Inputs'!$C$150*'HV Retail Bill Inputs'!$C160))+'HV Retail Bill Inputs'!$C160,((('HV Retail Bill Inputs'!$C170*'HV Retail Bill Inputs'!M$149)+('HV Retail Bill Inputs'!N$14*'HV Retail Bill Inputs'!$C$150*'HV Retail Bill Inputs'!$C170))+'HV Retail Bill Inputs'!$C170)) -> 5701 | N10: =IF($E$2=Lists!$C$4,(('HV Retail Bill Inputs'!$C160*'HV Retail Bill Inputs'!N$149)+('HV Retail Bill Inputs'!O$14*'HV Retail Bill Inputs'!$C$150*'HV Retail Bill Inputs'!$C160))+'HV Retail Bill Inputs'!$C160,((('HV Retail Bill Inputs'!$C170*'HV Retail Bill Inputs'!N$149)+('HV Retail Bill Inputs'!O$14*'HV Retail Bill Inputs'!$C$150*'HV Retail Bill Inputs'!$C170))+'HV Retail Bill Inputs'!$C170)) -> 5701 | O10: =IF($E$2=Lists!$C$4,(('HV Retail Bill Inputs'!$C160*'HV Retail Bill Inputs'!O$149)+('HV Retail Bill Inputs'!P$14*'HV Retail Bill Inputs'!$C$150*'HV Retail Bill Inputs'!$C160))+'HV Retail Bill Inputs'!$C160,((('HV Retail Bill Inputs'!$C170*'HV Retail Bill Inputs'!O$149)+('HV Retail Bill Inputs'!P$14*'HV Retail Bill Inputs'!$C$150*'HV Retail Bill Inputs'!$C170))+'HV Retail Bill Inputs'!$C170)) -> 5701 | P10: =IF($E$2=Lists!$C$4,(('HV Retail Bill Inputs'!$C160*'HV Retail Bill Inputs'!P$149)+('HV Retail Bill Inputs'!Q$14*'HV Retail Bill Inputs'!$C$150*'HV Retail Bill Inputs'!$C160))+'HV Retail Bill Inputs'!$C160,((('HV Retail Bill Inputs'!$C170*'HV Retail Bill Inputs'!P$149)+('HV Retail Bill Inputs'!Q$14*'HV Retail Bill Inputs'!$C$150*'HV Retail Bill Inputs'!$C170))+'HV Retail Bill Inputs'!$C170)) -> 5701 | Q10: =IF($E$2=Lists!$C$4,(('HV Retail Bill Inputs'!$C160*'HV Retail Bill Inputs'!Q$149)+('HV Retail Bill Inputs'!R$14*'HV Retail Bill Inputs'!$C$150*'HV Retail Bill Inputs'!$C160))+'HV Retail Bill Inputs'!$C160,((('HV Retail Bill Inputs'!$C170*'HV Retail Bill Inputs'!Q$149)+('HV Retail Bill Inputs'!R$14*'HV Retail Bill Inputs'!$C$150*'HV Retail Bill Inputs'!$C170))+'HV Retail Bill Inputs'!$C170)) -> 5701 | R10: =IF($E$2=Lists!$C$4,(('HV Retail Bill Inputs'!$C160*'HV Retail Bill Inputs'!R$149)+('HV Retail Bill Inputs'!S$14*'HV Retail Bill Inputs'!$C$150*'HV Retail Bill Inputs'!$C160))+'HV Retail Bill Inputs'!$C160,((('HV Retail Bill Inputs'!$C170*'HV Retail Bill Inputs'!R$149)+('HV Retail Bill Inputs'!S$14*'HV Retail Bill Inputs'!$C$150*'HV Retail Bill Inputs'!$C170))+'HV Retail Bill Inputs'!$C170)) -> 5701 | S10: =IF($E$2=Lists!$C$4,(('HV Retail Bill Inputs'!$C160*'HV Retail Bill Inputs'!S$149)+('HV Retail Bill Inputs'!T$14*'HV Retail Bill Inputs'!$C$150*'HV Retail Bill Inputs'!$C160))+'HV Retail Bill Inputs'!$C160,((('HV Retail Bill Inputs'!$C170*'HV Retail Bill Inputs'!S$149)+('HV Retail Bill Inputs'!T$14*'HV Retail Bill Inputs'!$C$150*'HV Retail Bill Inputs'!$C170))+'HV Retail Bill Inputs'!$C170)) -> 5701 | T10: =IF($E$2=Lists!$C$4,(('HV Retail Bill Inputs'!$C160*'HV Retail Bill Inputs'!T$149)+('HV Retail Bill Inputs'!U$14*'HV Retail Bill Inputs'!$C$150*'HV Retail Bill Inputs'!$C160))+'HV Retail Bill Inputs'!$C160,((('HV Retail Bill Inputs'!$C170*'HV Retail Bill Inputs'!T$149)+('HV Retail Bill Inputs'!U$14*'HV Retail Bill Inputs'!$C$150*'HV Retail Bill Inputs'!$C170))+'HV Retail Bill Inputs'!$C170)) -> 5701 | U10: =IF($E$2=Lists!$C$4,(('HV Retail Bill Inputs'!$C160*'HV Retail Bill Inputs'!U$149)+('HV Retail Bill Inputs'!V$14*'HV Retail Bill Inputs'!$C$150*'HV Retail Bill Inputs'!$C160))+'HV Retail Bill Inputs'!$C160,((('HV Retail Bill Inputs'!$C170*'HV Retail Bill Inputs'!U$149)+('HV Retail Bill Inputs'!V$14*'HV Retail Bill Inputs'!$C$150*'HV Retail Bill Inputs'!$C170))+'HV Retail Bill Inputs'!$C170)) -> 5701 | V10: =IF($E$2=Lists!$C$4,(('HV Retail Bill Inputs'!$C160*'HV Retail Bill Inputs'!V$149)+('HV Retail Bill Inputs'!W$14*'HV Retail Bill Inputs'!$C$150*'HV Retail Bill Inputs'!$C160))+'HV Retail Bill Inputs'!$C160,((('HV Retail Bill Inputs'!$C170*'HV Retail Bill Inputs'!V$149)+('HV Retail Bill Inputs'!W$14*'HV Retail Bill Inputs'!$C$150*'HV Retail Bill Inputs'!$C170))+'HV Retail Bill Inputs'!$C170)) -> 5701 | W10: =IF($E$2=Lists!$C$4,(('HV Retail Bill Inputs'!$C160*'HV Retail Bill Inputs'!W$149)+('HV Retail Bill Inputs'!X$14*'HV Retail Bill Inputs'!$C$150*'HV Retail Bill Inputs'!$C160))+'HV Retail Bill Inputs'!$C160,((('HV Retail Bill Inputs'!$C170*'HV Retail Bill Inputs'!W$149)+('HV Retail Bill Inputs'!X$14*'HV Retail Bill Inputs'!$C$150*'HV Retail Bill Inputs'!$C170))+'HV Retail Bill Inputs'!$C170)) -> 5701 | X10: =IF($E$2=Lists!$C$4,(('HV Retail Bill Inputs'!$C160*'HV Retail Bill Inputs'!X$149)+('HV Retail Bill Inputs'!Y$14*'HV Retail Bill Inputs'!$C$150*'HV Retail Bill Inputs'!$C160))+'HV Retail Bill Inputs'!$C160,((('HV Retail Bill Inputs'!$C170*'HV Retail Bill Inputs'!X$149)+('HV Retail Bill Inputs'!Y$14*'HV Retail Bill Inputs'!$C$150*'HV Retail Bill Inputs'!$C170))+'HV Retail Bill Inputs'!$C170)) -> 5701
B11: Other 1 | C11: =IFERROR(INDEX('Input Sheet'!$C$67:$I$76,MATCH($C$2,'Input Sheet'!$B$67:$B$76,0),MATCH($B11,'Input Sheet'!$C$66:$I$66,0)),0) -> 0 | D11: ='Input Sheet'!$M$72 -> $/kvA | E11: =IF($E$2=Lists!$C$4,(('HV Retail Bill Inputs'!$C161*'HV Retail Bill Inputs'!E$149)+('HV Retail Bill Inputs'!F$14*'HV Retail Bill Inputs'!$C$150*'HV Retail Bill Inputs'!$C161))+'HV Retail Bill Inputs'!$C161,((('HV Retail Bill Inputs'!$C171*'HV Retail Bill Inputs'!E$149)+('HV Retail Bill Inputs'!F$14*'HV Retail Bill Inputs'!$C$150*'HV Retail Bill Inputs'!$C171))+'HV Retail Bill Inputs'!$C171)) -> 0 | F11: =IF($E$2=Lists!$C$4,(('HV Retail Bill Inputs'!$C161*'HV Retail Bill Inputs'!F$149)+('HV Retail Bill Inputs'!G$14*'HV Retail Bill Inputs'!$C$150*'HV Retail Bill Inputs'!$C161))+'HV Retail Bill Inputs'!$C161,((('HV Retail Bill Inputs'!$C171*'HV Retail Bill Inputs'!F$149)+('HV Retail Bill Inputs'!G$14*'HV Retail Bill Inputs'!$C$150*'HV Retail Bill Inputs'!$C171))+'HV Retail Bill Inputs'!$C171)) -> 0 | G11: =IF($E$2=Lists!$C$4,(('HV Retail Bill Inputs'!$C161*'HV Retail Bill Inputs'!G$149)+('HV Retail Bill Inputs'!H$14*'HV Retail Bill Inputs'!$C$150*'HV Retail Bill Inputs'!$C161))+'HV Retail Bill Inputs'!$C161,((('HV Retail Bill Inputs'!$C171*'HV Retail Bill Inputs'!G$149)+('HV Retail Bill Inputs'!H$14*'HV Retail Bill Inputs'!$C$150*'HV Retail Bill Inputs'!$C171))+'HV Retail Bill Inputs'!$C171)) -> 0 | H11: =IF($E$2=Lists!$C$4,(('HV Retail Bill Inputs'!$C161*'HV Retail Bill Inputs'!H$149)+('HV Retail Bill Inputs'!I$14*'HV Retail Bill Inputs'!$C$150*'HV Retail Bill Inputs'!$C161))+'HV Retail Bill Inputs'!$C161,((('HV Retail Bill Inputs'!$C171*'HV Retail Bill Inputs'!H$149)+('HV Retail Bill Inputs'!I$14*'HV Retail Bill Inputs'!$C$150*'HV Retail Bill Inputs'!$C171))+'HV Retail Bill Inputs'!$C171)) -> 0 | I11: =IF($E$2=Lists!$C$4,(('HV Retail Bill Inputs'!$C161*'HV Retail Bill Inputs'!I$149)+('HV Retail Bill Inputs'!J$14*'HV Retail Bill Inputs'!$C$150*'HV Retail Bill Inputs'!$C161))+'HV Retail Bill Inputs'!$C161,((('HV Retail Bill Inputs'!$C171*'HV Retail Bill Inputs'!I$149)+('HV Retail Bill Inputs'!J$14*'HV Retail Bill Inputs'!$C$150*'HV Retail Bill Inputs'!$C171))+'HV Retail Bill Inputs'!$C171)) -> 0 | J11: =IF($E$2=Lists!$C$4,(('HV Retail Bill Inputs'!$C161*'HV Retail Bill Inputs'!J$149)+('HV Retail Bill Inputs'!K$14*'HV Retail Bill Inputs'!$C$150*'HV Retail Bill Inputs'!$C161))+'HV Retail Bill Inputs'!$C161,((('HV Retail Bill Inputs'!$C171*'HV Retail Bill Inputs'!J$149)+('HV Retail Bill Inputs'!K$14*'HV Retail Bill Inputs'!$C$150*'HV Retail Bill Inputs'!$C171))+'HV Retail Bill Inputs'!$C171)) -> 0 | K11: =IF($E$2=Lists!$C$4,(('HV Retail Bill Inputs'!$C161*'HV Retail Bill Inputs'!K$149)+('HV Retail Bill Inputs'!L$14*'HV Retail Bill Inputs'!$C$150*'HV Retail Bill Inputs'!$C161))+'HV Retail Bill Inputs'!$C161,((('HV Retail Bill Inputs'!$C171*'HV Retail Bill Inputs'!K$149)+('HV Retail Bill Inputs'!L$14*'HV Retail Bill Inputs'!$C$150*'HV Retail Bill Inputs'!$C171))+'HV Retail Bill Inputs'!$C171)) -> 0 | L11: =IF($E$2=Lists!$C$4,(('HV Retail Bill Inputs'!$C161*'HV Retail Bill Inputs'!L$149)+('HV Retail Bill Inputs'!M$14*'HV Retail Bill Inputs'!$C$150*'HV Retail Bill Inputs'!$C161))+'HV Retail Bill Inputs'!$C161,((('HV Retail Bill Inputs'!$C171*'HV Retail Bill Inputs'!L$149)+('HV Retail Bill Inputs'!M$14*'HV Retail Bill Inputs'!$C$150*'HV Retail Bill Inputs'!$C171))+'HV Retail Bill Inputs'!$C171)) -> 0 | M11: =IF($E$2=Lists!$C$4,(('HV Retail Bill Inputs'!$C161*'HV Retail Bill Inputs'!M$149)+('HV Retail Bill Inputs'!N$14*'HV Retail Bill Inputs'!$C$150*'HV Retail Bill Inputs'!$C161))+'HV Retail Bill Inputs'!$C161,((('HV Retail Bill Inputs'!$C171*'HV Retail Bill Inputs'!M$149)+('HV Retail Bill Inputs'!N$14*'HV Retail Bill Inputs'!$C$150*'HV Retail Bill Inputs'!$C171))+'HV Retail Bill Inputs'!$C171)) -> 0 | N11: =IF($E$2=Lists!$C$4,(('HV Retail Bill Inputs'!$C161*'HV Retail Bill Inputs'!N$149)+('HV Retail Bill Inputs'!O$14*'HV Retail Bill Inputs'!$C$150*'HV Retail Bill Inputs'!$C161))+'HV Retail Bill Inputs'!$C161,((('HV Retail Bill Inputs'!$C171*'HV Retail Bill Inputs'!N$149)+('HV Retail Bill Inputs'!O$14*'HV Retail Bill Inputs'!$C$150*'HV Retail Bill Inputs'!$C171))+'HV Retail Bill Inputs'!$C171)) -> 0 | O11: =IF($E$2=Lists!$C$4,(('HV Retail Bill Inputs'!$C161*'HV Retail Bill Inputs'!O$149)+('HV Retail Bill Inputs'!P$14*'HV Retail Bill Inputs'!$C$150*'HV Retail Bill Inputs'!$C161))+'HV Retail Bill Inputs'!$C161,((('HV Retail Bill Inputs'!$C171*'HV Retail Bill Inputs'!O$149)+('HV Retail Bill Inputs'!P$14*'HV Retail Bill Inputs'!$C$150*'HV Retail Bill Inputs'!$C171))+'HV Retail Bill Inputs'!$C171)) -> 0 | P11: =IF($E$2=Lists!$C$4,(('HV Retail Bill Inputs'!$C161*'HV Retail Bill Inputs'!P$149)+('HV Retail Bill Inputs'!Q$14*'HV Retail Bill Inputs'!$C$150*'HV Retail Bill Inputs'!$C161))+'HV Retail Bill Inputs'!$C161,((('HV Retail Bill Inputs'!$C171*'HV Retail Bill Inputs'!P$149)+('HV Retail Bill Inputs'!Q$14*'HV Retail Bill Inputs'!$C$150*'HV Retail Bill Inputs'!$C171))+'HV Retail Bill Inputs'!$C171)) -> 0 | Q11: =IF($E$2=Lists!$C$4,(('HV Retail Bill Inputs'!$C161*'HV Retail Bill Inputs'!Q$149)+('HV Retail Bill Inputs'!R$14*'HV Retail Bill Inputs'!$C$150*'HV Retail Bill Inputs'!$C161))+'HV Retail Bill Inputs'!$C161,((('HV Retail Bill Inputs'!$C171*'HV Retail Bill Inputs'!Q$149)+('HV Retail Bill Inputs'!R$14*'HV Retail Bill Inputs'!$C$150*'HV Retail Bill Inputs'!$C171))+'HV Retail Bill Inputs'!$C171)) -> 0 | R11: =IF($E$2=Lists!$C$4,(('HV Retail Bill Inputs'!$C161*'HV Retail Bill Inputs'!R$149)+('HV Retail Bill Inputs'!S$14*'HV Retail Bill Inputs'!$C$150*'HV Retail Bill Inputs'!$C161))+'HV Retail Bill Inputs'!$C161,((('HV Retail Bill Inputs'!$C171*'HV Retail Bill Inputs'!R$149)+('HV Retail Bill Inputs'!S$14*'HV Retail Bill Inputs'!$C$150*'HV Retail Bill Inputs'!$C171))+'HV Retail Bill Inputs'!$C171)) -> 0 | S11: =IF($E$2=Lists!$C$4,(('HV Retail Bill Inputs'!$C161*'HV Retail Bill Inputs'!S$149)+('HV Retail Bill Inputs'!T$14*'HV Retail Bill Inputs'!$C$150*'HV Retail Bill Inputs'!$C161))+'HV Retail Bill Inputs'!$C161,((('HV Retail Bill Inputs'!$C171*'HV Retail Bill Inputs'!S$149)+('HV Retail Bill Inputs'!T$14*'HV Retail Bill Inputs'!$C$150*'HV Retail Bill Inputs'!$C171))+'HV Retail Bill Inputs'!$C171)) -> 0 | T11: =IF($E$2=Lists!$C$4,(('HV Retail Bill Inputs'!$C161*'HV Retail Bill Inputs'!T$149)+('HV Retail Bill Inputs'!U$14*'HV Retail Bill Inputs'!$C$150*'HV Retail Bill Inputs'!$C161))+'HV Retail Bill Inputs'!$C161,((('HV Retail Bill Inputs'!$C171*'HV Retail Bill Inputs'!T$149)+('HV Retail Bill Inputs'!U$14*'HV Retail Bill Inputs'!$C$150*'HV Retail Bill Inputs'!$C171))+'HV Retail Bill Inputs'!$C171)) -> 0 | U11: =IF($E$2=Lists!$C$4,(('HV Retail Bill Inputs'!$C161*'HV Retail Bill Inputs'!U$149)+('HV Retail Bill Inputs'!V$14*'HV Retail Bill Inputs'!$C$150*'HV Retail Bill Inputs'!$C161))+'HV Retail Bill Inputs'!$C161,((('HV Retail Bill Inputs'!$C171*'HV Retail Bill Inputs'!U$149)+('HV Retail Bill Inputs'!V$14*'HV Retail Bill Inputs'!$C$150*'HV Retail Bill Inputs'!$C171))+'HV Retail Bill Inputs'!$C171)) -> 0 | V11: =IF($E$2=Lists!$C$4,(('HV Retail Bill Inputs'!$C161*'HV Retail Bill Inputs'!V$149)+('HV Retail Bill Inputs'!W$14*'HV Retail Bill Inputs'!$C$150*'HV Retail Bill Inputs'!$C161))+'HV Retail Bill Inputs'!$C161,((('HV Retail Bill Inputs'!$C171*'HV Retail Bill Inputs'!V$149)+('HV Retail Bill Inputs'!W$14*'HV Retail Bill Inputs'!$C$150*'HV Retail Bill Inputs'!$C171))+'HV Retail Bill Inputs'!$C171)) -> 0 | W11: =IF($E$2=Lists!$C$4,(('HV Retail Bill Inputs'!$C161*'HV Retail Bill Inputs'!W$149)+('HV Retail Bill Inputs'!X$14*'HV Retail Bill Inputs'!$C$150*'HV Retail Bill Inputs'!$C161))+'HV Retail Bill Inputs'!$C161,((('HV Retail Bill Inputs'!$C171*'HV Retail Bill Inputs'!W$149)+('HV Retail Bill Inputs'!X$14*'HV Retail Bill Inputs'!$C$150*'HV Retail Bill Inputs'!$C171))+'HV Retail Bill Inputs'!$C171)) -> 0 | X11: =IF($E$2=Lists!$C$4,(('HV Retail Bill Inputs'!$C161*'HV Retail Bill Inputs'!X$149)+('HV Retail Bill Inputs'!Y$14*'HV Retail Bill Inputs'!$C$150*'HV Retail Bill Inputs'!$C161))+'HV Retail Bill Inputs'!$C161,((('HV Retail Bill Inputs'!$C171*'HV Retail Bill Inputs'!X$149)+('HV Retail Bill Inputs'!Y$14*'HV Retail Bill Inputs'!$C$150*'HV Retail Bill Inputs'!$C171))+'HV Retail Bill Inputs'!$C171)) -> 0
B12: Other 2 | C12: =IFERROR(INDEX('Input Sheet'!$C$67:$I$76,MATCH($C$2,'Input Sheet'!$B$67:$B$76,0),MATCH($B12,'Input Sheet'!$C$66:$I$66,0)),0) -> 827.75 | D12: ='Input Sheet'!$M$73 -> $/kvA | E12: =IF($E$2=Lists!$C$4,(('HV Retail Bill Inputs'!$C162*'HV Retail Bill Inputs'!E$149)+('HV Retail Bill Inputs'!F$14*'HV Retail Bill Inputs'!$C$150*'HV Retail Bill Inputs'!$C162))+'HV Retail Bill Inputs'!$C162,((('HV Retail Bill Inputs'!$C172*'HV Retail Bill Inputs'!E$149)+('HV Retail Bill Inputs'!F$14*'HV Retail Bill Inputs'!$C$150*'HV Retail Bill Inputs'!$C172))+'HV Retail Bill Inputs'!$C172)) -> 63.54 | F12: =IF($E$2=Lists!$C$4,(('HV Retail Bill Inputs'!$C162*'HV Retail Bill Inputs'!F$149)+('HV Retail Bill Inputs'!G$14*'HV Retail Bill Inputs'!$C$150*'HV Retail Bill Inputs'!$C162))+'HV Retail Bill Inputs'!$C162,((('HV Retail Bill Inputs'!$C172*'HV Retail Bill Inputs'!F$149)+('HV Retail Bill Inputs'!G$14*'HV Retail Bill Inputs'!$C$150*'HV Retail Bill Inputs'!$C172))+'HV Retail Bill Inputs'!$C172)) -> 63.54 | G12: =IF($E$2=Lists!$C$4,(('HV Retail Bill Inputs'!$C162*'HV Retail Bill Inputs'!G$149)+('HV Retail Bill Inputs'!H$14*'HV Retail Bill Inputs'!$C$150*'HV Retail Bill Inputs'!$C162))+'HV Retail Bill Inputs'!$C162,((('HV Retail Bill Inputs'!$C172*'HV Retail Bill Inputs'!G$149)+('HV Retail Bill Inputs'!H$14*'HV Retail Bill Inputs'!$C$150*'HV Retail Bill Inputs'!$C172))+'HV Retail Bill Inputs'!$C172)) -> 63.54 | H12: =IF($E$2=Lists!$C$4,(('HV Retail Bill Inputs'!$C162*'HV Retail Bill Inputs'!H$149)+('HV Retail Bill Inputs'!I$14*'HV Retail Bill Inputs'!$C$150*'HV Retail Bill Inputs'!$C162))+'HV Retail Bill Inputs'!$C162,((('HV Retail Bill Inputs'!$C172*'HV Retail Bill Inputs'!H$149)+('HV Retail Bill Inputs'!I$14*'HV Retail Bill Inputs'!$C$150*'HV Retail Bill Inputs'!$C172))+'HV Retail Bill Inputs'!$C172)) -> 63.54 | I12: =IF($E$2=Lists!$C$4,(('HV Retail Bill Inputs'!$C162*'HV Retail Bill Inputs'!I$149)+('HV Retail Bill Inputs'!J$14*'HV Retail Bill Inputs'!$C$150*'HV Retail Bill Inputs'!$C162))+'HV Retail Bill Inputs'!$C162,((('HV Retail Bill Inputs'!$C172*'HV Retail Bill Inputs'!I$149)+('HV Retail Bill Inputs'!J$14*'HV Retail Bill Inputs'!$C$150*'HV Retail Bill Inputs'!$C172))+'HV Retail Bill Inputs'!$C172)) -> 63.54 | J12: =IF($E$2=Lists!$C$4,(('HV Retail Bill Inputs'!$C162*'HV Retail Bill Inputs'!J$149)+('HV Retail Bill Inputs'!K$14*'HV Retail Bill Inputs'!$C$150*'HV Retail Bill Inputs'!$C162))+'HV Retail Bill Inputs'!$C162,((('HV Retail Bill Inputs'!$C172*'HV Retail Bill Inputs'!J$149)+('HV Retail Bill Inputs'!K$14*'HV Retail Bill Inputs'!$C$150*'HV Retail Bill Inputs'!$C172))+'HV Retail Bill Inputs'!$C172)) -> 63.54 | K12: =IF($E$2=Lists!$C$4,(('HV Retail Bill Inputs'!$C162*'HV Retail Bill Inputs'!K$149)+('HV Retail Bill Inputs'!L$14*'HV Retail Bill Inputs'!$C$150*'HV Retail Bill Inputs'!$C162))+'HV Retail Bill Inputs'!$C162,((('HV Retail Bill Inputs'!$C172*'HV Retail Bill Inputs'!K$149)+('HV Retail Bill Inputs'!L$14*'HV Retail Bill Inputs'!$C$150*'HV Retail Bill Inputs'!$C172))+'HV Retail Bill Inputs'!$C172)) -> 63.54 | L12: =IF($E$2=Lists!$C$4,(('HV Retail Bill Inputs'!$C162*'HV Retail Bill Inputs'!L$149)+('HV Retail Bill Inputs'!M$14*'HV Retail Bill Inputs'!$C$150*'HV Retail Bill Inputs'!$C162))+'HV Retail Bill Inputs'!$C162,((('HV Retail Bill Inputs'!$C172*'HV Retail Bill Inputs'!L$149)+('HV Retail Bill Inputs'!M$14*'HV Retail Bill Inputs'!$C$150*'HV Retail Bill Inputs'!$C172))+'HV Retail Bill Inputs'!$C172)) -> 63.54 | M12: =IF($E$2=Lists!$C$4,(('HV Retail Bill Inputs'!$C162*'HV Retail Bill Inputs'!M$149)+('HV Retail Bill Inputs'!N$14*'HV Retail Bill Inputs'!$C$150*'HV Retail Bill Inputs'!$C162))+'HV Retail Bill Inputs'!$C162,((('HV Retail Bill Inputs'!$C172*'HV Retail Bill Inputs'!M$149)+('HV Retail Bill Inputs'!N$14*'HV Retail Bill Inputs'!$C$150*'HV Retail Bill Inputs'!$C172))+'HV Retail Bill Inputs'!$C172)) -> 63.54 | N12: =IF($E$2=Lists!$C$4,(('HV Retail Bill Inputs'!$C162*'HV Retail Bill Inputs'!N$149)+('HV Retail Bill Inputs'!O$14*'HV Retail Bill Inputs'!$C$150*'HV Retail Bill Inputs'!$C162))+'HV Retail Bill Inputs'!$C162,((('HV Retail Bill Inputs'!$C172*'HV Retail Bill Inputs'!N$149)+('HV Retail Bill Inputs'!O$14*'HV Retail Bill Inputs'!$C$150*'HV Retail Bill Inputs'!$C172))+'HV Retail Bill Inputs'!$C172)) -> 63.54 | O12: =IF($E$2=Lists!$C$4,(('HV Retail Bill Inputs'!$C162*'HV Retail Bill Inputs'!O$149)+('HV Retail Bill Inputs'!P$14*'HV Retail Bill Inputs'!$C$150*'HV Retail Bill Inputs'!$C162))+'HV Retail Bill Inputs'!$C162,((('HV Retail Bill Inputs'!$C172*'HV Retail Bill Inputs'!O$149)+('HV Retail Bill Inputs'!P$14*'HV Retail Bill Inputs'!$C$150*'HV Retail Bill Inputs'!$C172))+'HV Retail Bill Inputs'!$C172)) -> 63.54 | P12: =IF($E$2=Lists!$C$4,(('HV Retail Bill Inputs'!$C162*'HV Retail Bill Inputs'!P$149)+('HV Retail Bill Inputs'!Q$14*'HV Retail Bill Inputs'!$C$150*'HV Retail Bill Inputs'!$C162))+'HV Retail Bill Inputs'!$C162,((('HV Retail Bill Inputs'!$C172*'HV Retail Bill Inputs'!P$149)+('HV Retail Bill Inputs'!Q$14*'HV Retail Bill Inputs'!$C$150*'HV Retail Bill Inputs'!$C172))+'HV Retail Bill Inputs'!$C172)) -> 63.54 | Q12: =IF($E$2=Lists!$C$4,(('HV Retail Bill Inputs'!$C162*'HV Retail Bill Inputs'!Q$149)+('HV Retail Bill Inputs'!R$14*'HV Retail Bill Inputs'!$C$150*'HV Retail Bill Inputs'!$C162))+'HV Retail Bill Inputs'!$C162,((('HV Retail Bill Inputs'!$C172*'HV Retail Bill Inputs'!Q$149)+('HV Retail Bill Inputs'!R$14*'HV Retail Bill Inputs'!$C$150*'HV Retail Bill Inputs'!$C172))+'HV Retail Bill Inputs'!$C172)) -> 63.54 | R12: =IF($E$2=Lists!$C$4,(('HV Retail Bill Inputs'!$C162*'HV Retail Bill Inputs'!R$149)+('HV Retail Bill Inputs'!S$14*'HV Retail Bill Inputs'!$C$150*'HV Retail Bill Inputs'!$C162))+'HV Retail Bill Inputs'!$C162,((('HV Retail Bill Inputs'!$C172*'HV Retail Bill Inputs'!R$149)+('HV Retail Bill Inputs'!S$14*'HV Retail Bill Inputs'!$C$150*'HV Retail Bill Inputs'!$C172))+'HV Retail Bill Inputs'!$C172)) -> 63.54 | S12: =IF($E$2=Lists!$C$4,(('HV Retail Bill Inputs'!$C162*'HV Retail Bill Inputs'!S$149)+('HV Retail Bill Inputs'!T$14*'HV Retail Bill Inputs'!$C$150*'HV Retail Bill Inputs'!$C162))+'HV Retail Bill Inputs'!$C162,((('HV Retail Bill Inputs'!$C172*'HV Retail Bill Inputs'!S$149)+('HV Retail Bill Inputs'!T$14*'HV Retail Bill Inputs'!$C$150*'HV Retail Bill Inputs'!$C172))+'HV Retail Bill Inputs'!$C172)) -> 63.54 | T12: =IF($E$2=Lists!$C$4,(('HV Retail Bill Inputs'!$C162*'HV Retail Bill Inputs'!T$149)+('HV Retail Bill Inputs'!U$14*'HV Retail Bill Inputs'!$C$150*'HV Retail Bill Inputs'!$C162))+'HV Retail Bill Inputs'!$C162,((('HV Retail Bill Inputs'!$C172*'HV Retail Bill Inputs'!T$149)+('HV Retail Bill Inputs'!U$14*'HV Retail Bill Inputs'!$C$150*'HV Retail Bill Inputs'!$C172))+'HV Retail Bill Inputs'!$C172)) -> 63.54 | U12: =IF($E$2=Lists!$C$4,(('HV Retail Bill Inputs'!$C162*'HV Retail Bill Inputs'!U$149)+('HV Retail Bill Inputs'!V$14*'HV Retail Bill Inputs'!$C$150*'HV Retail Bill Inputs'!$C162))+'HV Retail Bill Inputs'!$C162,((('HV Retail Bill Inputs'!$C172*'HV Retail Bill Inputs'!U$149)+('HV Retail Bill Inputs'!V$14*'HV Retail Bill Inputs'!$C$150*'HV Retail Bill Inputs'!$C172))+'HV Retail Bill Inputs'!$C172)) -> 63.54 | V12: =IF($E$2=Lists!$C$4,(('HV Retail Bill Inputs'!$C162*'HV Retail Bill Inputs'!V$149)+('HV Retail Bill Inputs'!W$14*'HV Retail Bill Inputs'!$C$150*'HV Retail Bill Inputs'!$C162))+'HV Retail Bill Inputs'!$C162,((('HV Retail Bill Inputs'!$C172*'HV Retail Bill Inputs'!V$149)+('HV Retail Bill Inputs'!W$14*'HV Retail Bill Inputs'!$C$150*'HV Retail Bill Inputs'!$C172))+'HV Retail Bill Inputs'!$C172)) -> 63.54 | W12: =IF($E$2=Lists!$C$4,(('HV Retail Bill Inputs'!$C162*'HV Retail Bill Inputs'!W$149)+('HV Retail Bill Inputs'!X$14*'HV Retail Bill Inputs'!$C$150*'HV Retail Bill Inputs'!$C162))+'HV Retail Bill Inputs'!$C162,((('HV Retail Bill Inputs'!$C172*'HV Retail Bill Inputs'!W$149)+('HV Retail Bill Inputs'!X$14*'HV Retail Bill Inputs'!$C$150*'HV Retail Bill Inputs'!$C172))+'HV Retail Bill Inputs'!$C172)) -> 63.54 | X12: =IF($E$2=Lists!$C$4,(('HV Retail Bill Inputs'!$C162*'HV Retail Bill Inputs'!X$149)+('HV Retail Bill Inputs'!Y$14*'HV Retail Bill Inputs'!$C$150*'HV Retail Bill Inputs'!$C162))+'HV Retail Bill Inputs'!$C162,((('HV Retail Bill Inputs'!$C172*'HV Retail Bill Inputs'!X$149)+('HV Retail Bill Inputs'!Y$14*'HV Retail Bill Inputs'!$C$150*'HV Retail Bill Inputs'!$C172))+'HV Retail Bill Inputs'!$C172)) -> 63.54
D13: Distribution Bill | E13: =SUMPRODUCT(E6:E12,C6:C12) -> 505394.4009 | F13: =SUMPRODUCT(F6:F12,$C$6:$C$12) -> 505394.4009 | G13: =SUMPRODUCT(G6:G12,$C$6:$C$12) -> 505394.4009 | H13: =SUMPRODUCT(H6:H12,$C$6:$C$12) -> 505394.4009 | I13: 505394.4009 | J13: 505394.4009 | K13: 505394.4009 | L13: 505394.4009 | M13: 505394.4009 | N13: 505394.4009 | O13: 505394.4009 | P13: 505394.4009 | Q13: 505394.4009 | R13: 505394.4009 | S13: 505394.4009 | T13: 505394.4009 | U13: 505394.4009 | V13: 505394.4009 | W13: 505394.4009 | X13: 505394.4009
D14: NPV | E14: =NPV('Input Sheet'!$C$12,'HV Bill Assumptions'!E13:OFFSET('HV Bill Assumptions'!D13,,'Input Sheet'!$C$7,,)) -> 4022743.463
A16: 2 | B16: Customer Name | C16: =INDEX('Input Sheet'!$B$67:$B$76,'HV Bill Assumptions'!A16) -> HV Customer 2 | E16: =INDEX('Input Sheet'!$J$67:$J$76,'LgeLV Bill Assumptions'!A16) -> Flat rate
B18: =B4 -> Retail Bill - Spare
B19: =B5 -> Component of Retail Electricity Price | C19: Quantities | D19: Units of Charging | E19: =E5 -> 2020 | F19: =E19+1 -> 2021 | G19: 2022 | H19: 2023 | I19: 2024 | J19: 2025 | K19: 2026 | L19: 2027 | M19: 2028 | N19: 2029 | O19: 2030 | P19: 2031 | Q19: 2032 | R19: 2033 | S19: 2034 | T19: 2035 | U19: 2036 | V19: 2037 | W19: 2038 | X19: 2039
B20: =B6 -> Peak (kWh) | C20: =IFERROR(INDEX('Input Sheet'!$C$67:$I$76,MATCH($C$16,'Input Sheet'!$B$67:$B$76,0),MATCH($B20,'Input Sheet'!$C$66:$I$66,0)),0) -> 3862170 | D20: ='Input Sheet'!$M$67 -> $/kWh | E20: =IF($E$16=Lists!$C$4,(('HV Retail Bill Inputs'!$C156*'HV Retail Bill Inputs'!E$149)+('HV Retail Bill Inputs'!F$28*'HV Retail Bill Inputs'!$C$150*'HV Retail Bill Inputs'!$C156))+'HV Retail Bill Inputs'!$C156,((('HV Retail Bill Inputs'!$C166*'HV Retail Bill Inputs'!E$149)+('HV Retail Bill Inputs'!F$28*'HV Retail Bill Inputs'!$C$150*'HV Retail Bill Inputs'!$C166))+'HV Retail Bill Inputs'!$C166)) -> 0.096215 | F20: =IF($E$16=Lists!$C$4,(('HV Retail Bill Inputs'!$C156*'HV Retail Bill Inputs'!F$149)+('HV Retail Bill Inputs'!G$28*'HV Retail Bill Inputs'!$C$150*'HV Retail Bill Inputs'!$C156))+'HV Retail Bill Inputs'!$C156,((('HV Retail Bill Inputs'!$C166*'HV Retail Bill Inputs'!F$149)+('HV Retail Bill Inputs'!G$28*'HV Retail Bill Inputs'!$C$150*'HV Retail Bill Inputs'!$C166))+'HV Retail Bill Inputs'!$C166)) -> 0.096215 | G20: =IF($E$16=Lists!$C$4,(('HV Retail Bill Inputs'!$C156*'HV Retail Bill Inputs'!G$149)+('HV Retail Bill Inputs'!H$28*'HV Retail Bill Inputs'!$C$150*'HV Retail Bill Inputs'!$C156))+'HV Retail Bill Inputs'!$C156,((('HV Retail Bill Inputs'!$C166*'HV Retail Bill Inputs'!G$149)+('HV Retail Bill Inputs'!H$28*'HV Retail Bill Inputs'!$C$150*'HV Retail Bill Inputs'!$C166))+'HV Retail Bill Inputs'!$C166)) -> 0.096215 | H20: =IF($E$16=Lists!$C$4,(('HV Retail Bill Inputs'!$C156*'HV Retail Bill Inputs'!H$149)+('HV Retail Bill Inputs'!I$28*'HV Retail Bill Inputs'!$C$150*'HV Retail Bill Inputs'!$C156))+'HV Retail Bill Inputs'!$C156,((('HV Retail Bill Inputs'!$C166*'HV Retail Bill Inputs'!H$149)+('HV Retail Bill Inputs'!I$28*'HV Retail Bill Inputs'!$C$150*'HV Retail Bill Inputs'!$C166))+'HV Retail Bill Inputs'!$C166)) -> 0.096215 | I20: =IF($E$16=Lists!$C$4,(('HV Retail Bill Inputs'!$C156*'HV Retail Bill Inputs'!I$149)+('HV Retail Bill Inputs'!J$28*'HV Retail Bill Inputs'!$C$150*'HV Retail Bill Inputs'!$C156))+'HV Retail Bill Inputs'!$C156,((('HV Retail Bill Inputs'!$C166*'HV Retail Bill Inputs'!I$149)+('HV Retail Bill Inputs'!J$28*'HV Retail Bill Inputs'!$C$150*'HV Retail Bill Inputs'!$C166))+'HV Retail Bill Inputs'!$C166)) -> 0.096215 | J20: =IF($E$16=Lists!$C$4,(('HV Retail Bill Inputs'!$C156*'HV Retail Bill Inputs'!J$149)+('HV Retail Bill Inputs'!K$28*'HV Retail Bill Inputs'!$C$150*'HV Retail Bill Inputs'!$C156))+'HV Retail Bill Inputs'!$C156,((('HV Retail Bill Inputs'!$C166*'HV Retail Bill Inputs'!J$149)+('HV Retail Bill Inputs'!K$28*'HV Retail Bill Inputs'!$C$150*'HV Retail Bill Inputs'!$C166))+'HV Retail Bill Inputs'!$C166)) -> 0.096215 | K20: =IF($E$16=Lists!$C$4,(('HV Retail Bill Inputs'!$C156*'HV Retail Bill Inputs'!K$149)+('HV Retail Bill Inputs'!L$28*'HV Retail Bill Inputs'!$C$150*'HV Retail Bill Inputs'!$C156))+'HV Retail Bill Inputs'!$C156,((('HV Retail Bill Inputs'!$C166*'HV Retail Bill Inputs'!K$149)+('HV Retail Bill Inputs'!L$28*'HV Retail Bill Inputs'!$C$150*'HV Retail Bill Inputs'!$C166))+'HV Retail Bill Inputs'!$C166)) -> 0.096215 | L20: =IF($E$16=Lists!$C$4,(('HV Retail Bill Inputs'!$C156*'HV Retail Bill Inputs'!L$149)+('HV Retail Bill Inputs'!M$28*'HV Retail Bill Inputs'!$C$150*'HV Retail Bill Inputs'!$C156))+'HV Retail Bill Inputs'!$C156,((('HV Retail Bill Inputs'!$C166*'HV Retail Bill Inputs'!L$149)+('HV Retail Bill Inputs'!M$28*'HV Retail Bill Inputs'!$C$150*'HV Retail Bill Inputs'!$C166))+'HV Retail Bill Inputs'!$C166)) -> 0.096215 | M20: =IF($E$16=Lists!$C$4,(('HV Retail Bill Inputs'!$C156*'HV Retail Bill Inputs'!M$149)+('HV Retail Bill Inputs'!N$28*'HV Retail Bill Inputs'!$C$150*'HV Retail Bill Inputs'!$C156))+'HV Retail Bill Inputs'!$C156,((('HV Retail Bill Inputs'!$C166*'HV Retail Bill Inputs'!M$149)+('HV Retail Bill Inputs'!N$28*'HV Retail Bill Inputs'!$C$150*'HV Retail Bill Inputs'!$C166))+'HV Retail Bill Inputs'!$C166)) -> 0.096215 | N20: =IF($E$16=Lists!$C$4,(('HV Retail Bill Inputs'!$C156*'HV Retail Bill Inputs'!N$149)+('HV Retail Bill Inputs'!O$28*'HV Retail Bill Inputs'!$C$150*'HV Retail Bill Inputs'!$C156))+'HV Retail Bill Inputs'!$C156,((('HV Retail Bill Inputs'!$C166*'HV Retail Bill Inputs'!N$149)+('HV Retail Bill Inputs'!O$28*'HV Retail Bill Inputs'!$C$150*'HV Retail Bill Inputs'!$C166))+'HV Retail Bill Inputs'!$C166)) -> 0.096215 | O20: =IF($E$16=Lists!$C$4,(('HV Retail Bill Inputs'!$C156*'HV Retail Bill Inputs'!O$149)+('HV Retail Bill Inputs'!P$28*'HV Retail Bill Inputs'!$C$150*'HV Retail Bill Inputs'!$C156))+'HV Retail Bill Inputs'!$C156,((('HV Retail Bill Inputs'!$C166*'HV Retail Bill Inputs'!O$149)+('HV Retail Bill Inputs'!P$28*'HV Retail Bill Inputs'!$C$150*'HV Retail Bill Inputs'!$C166))+'HV Retail Bill Inputs'!$C166)) -> 0.096215 | P20: =IF($E$16=Lists!$C$4,(('HV Retail Bill Inputs'!$C156*'HV Retail Bill Inputs'!P$149)+('HV Retail Bill Inputs'!Q$28*'HV Retail Bill Inputs'!$C$150*'HV Retail Bill Inputs'!$C156))+'HV Retail Bill Inputs'!$C156,((('HV Retail Bill Inputs'!$C166*'HV Retail Bill Inputs'!P$149)+('HV Retail Bill Inputs'!Q$28*'HV Retail Bill Inputs'!$C$150*'HV Retail Bill Inputs'!$C166))+'HV Retail Bill Inputs'!$C166)) -> 0.096215 | Q20: =IF($E$16=Lists!$C$4,(('HV Retail Bill Inputs'!$C156*'HV Retail Bill Inputs'!Q$149)+('HV Retail Bill Inputs'!R$28*'HV Retail Bill Inputs'!$C$150*'HV Retail Bill Inputs'!$C156))+'HV Retail Bill Inputs'!$C156,((('HV Retail Bill Inputs'!$C166*'HV Retail Bill Inputs'!Q$149)+('HV Retail Bill Inputs'!R$28*'HV Retail Bill Inputs'!$C$150*'HV Retail Bill Inputs'!$C166))+'HV Retail Bill Inputs'!$C166)) -> 0.096215 | R20: =IF($E$16=Lists!$C$4,(('HV Retail Bill Inputs'!$C156*'HV Retail Bill Inputs'!R$149)+('HV Retail Bill Inputs'!S$28*'HV Retail Bill Inputs'!$C$150*'HV Retail Bill Inputs'!$C156))+'HV Retail Bill Inputs'!$C156,((('HV Retail Bill Inputs'!$C166*'HV Retail Bill Inputs'!R$149)+('HV Retail Bill Inputs'!S$28*'HV Retail Bill Inputs'!$C$150*'HV Retail Bill Inputs'!$C166))+'HV Retail Bill Inputs'!$C166)) -> 0.096215 | S20: =IF($E$16=Lists!$C$4,(('HV Retail Bill Inputs'!$C156*'HV Retail Bill Inputs'!S$149)+('HV Retail Bill Inputs'!T$28*'HV Retail Bill Inputs'!$C$150*'HV Retail Bill Inputs'!$C156))+'HV Retail Bill Inputs'!$C156,((('HV Retail Bill Inputs'!$C166*'HV Retail Bill Inputs'!S$149)+('HV Retail Bill Inputs'!T$28*'HV Retail Bill Inputs'!$C$150*'HV Retail Bill Inputs'!$C166))+'HV Retail Bill Inputs'!$C166)) -> 0.096215 | T20: =IF($E$16=Lists!$C$4,(('HV Retail Bill Inputs'!$C156*'HV Retail Bill Inputs'!T$149)+('HV Retail Bill Inputs'!U$28*'HV Retail Bill Inputs'!$C$150*'HV Retail Bill Inputs'!$C156))+'HV Retail Bill Inputs'!$C156,((('HV Retail Bill Inputs'!$C166*'HV Retail Bill Inputs'!T$149)+('HV Retail Bill Inputs'!U$28*'HV Retail Bill Inputs'!$C$150*'HV Retail Bill Inputs'!$C166))+'HV Retail Bill Inputs'!$C166)) -> 0.096215 | U20: =IF($E$16=Lists!$C$4,(('HV Retail Bill Inputs'!$C156*'HV Retail Bill Inputs'!U$149)+('HV Retail Bill Inputs'!V$28*'HV Retail Bill Inputs'!$C$150*'HV Retail Bill Inputs'!$C156))+'HV Retail Bill Inputs'!$C156,((('HV Retail Bill Inputs'!$C166*'HV Retail Bill Inputs'!U$149)+('HV Retail Bill Inputs'!V$28*'HV Retail Bill Inputs'!$C$150*'HV Retail Bill Inputs'!$C166))+'HV Retail Bill Inputs'!$C166)) -> 0.096215 | V20: =IF($E$16=Lists!$C$4,(('HV Retail Bill Inputs'!$C156*'HV Retail Bill Inputs'!V$149)+('HV Retail Bill Inputs'!W$28*'HV Retail Bill Inputs'!$C$150*'HV Retail Bill Inputs'!$C156))+'HV Retail Bill Inputs'!$C156,((('HV Retail Bill Inputs'!$C166*'HV Retail Bill Inputs'!V$149)+('HV Retail Bill Inputs'!W$28*'HV Retail Bill Inputs'!$C$150*'HV Retail Bill Inputs'!$C166))+'HV Retail Bill Inputs'!$C166)) -> 0.096215 | W20: =IF($E$16=Lists!$C$4,(('HV Retail Bill Inputs'!$C156*'HV Retail Bill Inputs'!W$149)+('HV Retail Bill Inputs'!X$28*'HV Retail Bill Inputs'!$C$150*'HV Retail Bill Inputs'!$C156))+'HV Retail Bill Inputs'!$C156,((('HV Retail Bill Inputs'!$C166*'HV Retail Bill Inputs'!W$149)+('HV Retail Bill Inputs'!X$28*'HV Retail Bill Inputs'!$C$150*'HV Retail Bill Inputs'!$C166))+'HV Retail Bill Inputs'!$C166)) -> 0.096215 | X20: =IF($E$16=Lists!$C$4,(('HV Retail Bill Inputs'!$C156*'HV Retail Bill Inputs'!X$149)+('HV Retail Bill Inputs'!Y$28*'HV Retail Bill Inputs'!$C$150*'HV Retail Bill Inputs'!$C156))+'HV Retail Bill Inputs'!$C156,((('HV Retail Bill Inputs'!$C166*'HV Retail Bill Inputs'!X$149)+('HV Retail Bill Inputs'!Y$28*'HV Retail Bill Inputs'!$C$150*'HV Retail Bill Inputs'!$C166))+'HV Retail Bill Inputs'!$C166)) -> 0.096215
B21: =B7 -> Shoulder (kWh) | C21: =IFERROR(INDEX('Input Sheet'!$C$67:$I$76,MATCH($C$16,'Input Sheet'!$B$67:$B$76,0),MATCH($B21,'Input Sheet'!$C$66:$I$66,0)),0) -> 0 | D21: ='Input Sheet'!$M$68 -> $/kWh | E21: =IF($E$16=Lists!$C$4,(('HV Retail Bill Inputs'!$C157*'HV Retail Bill Inputs'!E$149)+('HV Retail Bill Inputs'!F$28*'HV Retail Bill Inputs'!$C$150*'HV Retail Bill Inputs'!$C157))+'HV Retail Bill Inputs'!$C157,((('HV Retail Bill Inputs'!$C167*'HV Retail Bill Inputs'!E$149)+('HV Retail Bill Inputs'!F$28*'HV Retail Bill Inputs'!$C$150*'HV Retail Bill Inputs'!$C167))+'HV Retail Bill Inputs'!$C167)) -> 0 | F21: =IF($E$16=Lists!$C$4,(('HV Retail Bill Inputs'!$C157*'HV Retail Bill Inputs'!F$149)+('HV Retail Bill Inputs'!G$28*'HV Retail Bill Inputs'!$C$150*'HV Retail Bill Inputs'!$C157))+'HV Retail Bill Inputs'!$C157,((('HV Retail Bill Inputs'!$C167*'HV Retail Bill Inputs'!F$149)+('HV Retail Bill Inputs'!G$28*'HV Retail Bill Inputs'!$C$150*'HV Retail Bill Inputs'!$C167))+'HV Retail Bill Inputs'!$C167)) -> 0 | G21: =IF($E$16=Lists!$C$4,(('HV Retail Bill Inputs'!$C157*'HV Retail Bill Inputs'!G$149)+('HV Retail Bill Inputs'!H$28*'HV Retail Bill Inputs'!$C$150*'HV Retail Bill Inputs'!$C157))+'HV Retail Bill Inputs'!$C157,((('HV Retail Bill Inputs'!$C167*'HV Retail Bill Inputs'!G$149)+('HV Retail Bill Inputs'!H$28*'HV Retail Bill Inputs'!$C$150*'HV Retail Bill Inputs'!$C167))+'HV Retail Bill Inputs'!$C167)) -> 0 | H21: =IF($E$16=Lists!$C$4,(('HV Retail Bill Inputs'!$C157*'HV Retail Bill Inputs'!H$149)+('HV Retail Bill Inputs'!I$28*'HV Retail Bill Inputs'!$C$150*'HV Retail Bill Inputs'!$C157))+'HV Retail Bill Inputs'!$C157,((('HV Retail Bill Inputs'!$C167*'HV Retail Bill Inputs'!H$149)+('HV Retail Bill Inputs'!I$28*'HV Retail Bill Inputs'!$C$150*'HV Retail Bill Inputs'!$C167))+'HV Retail Bill Inputs'!$C167)) -> 0 | I21: =IF($E$16=Lists!$C$4,(('HV Retail Bill Inputs'!$C157*'HV Retail Bill Inputs'!I$149)+('HV Retail Bill Inputs'!J$28*'HV Retail Bill Inputs'!$C$150*'HV Retail Bill Inputs'!$C157))+'HV Retail Bill Inputs'!$C157,((('HV Retail Bill Inputs'!$C167*'HV Retail Bill Inputs'!I$149)+('HV Retail Bill Inputs'!J$28*'HV Retail Bill Inputs'!$C$150*'HV Retail Bill Inputs'!$C167))+'HV Retail Bill Inputs'!$C167)) -> 0 | J21: =IF($E$16=Lists!$C$4,(('HV Retail Bill Inputs'!$C157*'HV Retail Bill Inputs'!J$149)+('HV Retail Bill Inputs'!K$28*'HV Retail Bill Inputs'!$C$150*'HV Retail Bill Inputs'!$C157))+'HV Retail Bill Inputs'!$C157,((('HV Retail Bill Inputs'!$C167*'HV Retail Bill Inputs'!J$149)+('HV Retail Bill Inputs'!K$28*'HV Retail Bill Inputs'!$C$150*'HV Retail Bill Inputs'!$C167))+'HV Retail Bill Inputs'!$C167)) -> 0 | K21: =IF($E$16=Lists!$C$4,(('HV Retail Bill Inputs'!$C157*'HV Retail Bill Inputs'!K$149)+('HV Retail Bill Inputs'!L$28*'HV Retail Bill Inputs'!$C$150*'HV Retail Bill Inputs'!$C157))+'HV Retail Bill Inputs'!$C157,((('HV Retail Bill Inputs'!$C167*'HV Retail Bill Inputs'!K$149)+('HV Retail Bill Inputs'!L$28*'HV Retail Bill Inputs'!$C$150*'HV Retail Bill Inputs'!$C167))+'HV Retail Bill Inputs'!$C167)) -> 0 | L21: =IF($E$16=Lists!$C$4,(('HV Retail Bill Inputs'!$C157*'HV Retail Bill Inputs'!L$149)+('HV Retail Bill Inputs'!M$28*'HV Retail Bill Inputs'!$C$150*'HV Retail Bill Inputs'!$C157))+'HV Retail Bill Inputs'!$C157,((('HV Retail Bill Inputs'!$C167*'HV Retail Bill Inputs'!L$149)+('HV Retail Bill Inputs'!M$28*'HV Retail Bill Inputs'!$C$150*'HV Retail Bill Inputs'!$C167))+'HV Retail Bill Inputs'!$C167)) -> 0 | M21: =IF($E$16=Lists!$C$4,(('HV Retail Bill Inputs'!$C157*'HV Retail Bill Inputs'!M$149)+('HV Retail Bill Inputs'!N$28*'HV Retail Bill Inputs'!$C$150*'HV Retail Bill Inputs'!$C157))+'HV Retail Bill Inputs'!$C157,((('HV Retail Bill Inputs'!$C167*'HV Retail Bill Inputs'!M$149)+('HV Retail Bill Inputs'!N$28*'HV Retail Bill Inputs'!$C$150*'HV Retail Bill Inputs'!$C167))+'HV Retail Bill Inputs'!$C167)) -> 0 | N21: =IF($E$16=Lists!$C$4,(('HV Retail Bill Inputs'!$C157*'HV Retail Bill Inputs'!N$149)+('HV Retail Bill Inputs'!O$28*'HV Retail Bill Inputs'!$C$150*'HV Retail Bill Inputs'!$C157))+'HV Retail Bill Inputs'!$C157,((('HV Retail Bill Inputs'!$C167*'HV Retail Bill Inputs'!N$149)+('HV Retail Bill Inputs'!O$28*'HV Retail Bill Inputs'!$C$150*'HV Retail Bill Inputs'!$C167))+'HV Retail Bill Inputs'!$C167)) -> 0 | O21: =IF($E$16=Lists!$C$4,(('HV Retail Bill Inputs'!$C157*'HV Retail Bill Inputs'!O$149)+('HV Retail Bill Inputs'!P$28*'HV Retail Bill Inputs'!$C$150*'HV Retail Bill Inputs'!$C157))+'HV Retail Bill Inputs'!$C157,((('HV Retail Bill Inputs'!$C167*'HV Retail Bill Inputs'!O$149)+('HV Retail Bill Inputs'!P$28*'HV Retail Bill Inputs'!$C$150*'HV Retail Bill Inputs'!$C167))+'HV Retail Bill Inputs'!$C167)) -> 0 | P21: =IF($E$16=Lists!$C$4,(('HV Retail Bill Inputs'!$C157*'HV Retail Bill Inputs'!P$149)+('HV Retail Bill Inputs'!Q$28*'HV Retail Bill Inputs'!$C$150*'HV Retail Bill Inputs'!$C157))+'HV Retail Bill Inputs'!$C157,((('HV Retail Bill Inputs'!$C167*'HV Retail Bill Inputs'!P$149)+('HV Retail Bill Inputs'!Q$28*'HV Retail Bill Inputs'!$C$150*'HV Retail Bill Inputs'!$C167))+'HV Retail Bill Inputs'!$C167)) -> 0 | Q21: =IF($E$16=Lists!$C$4,(('HV Retail Bill Inputs'!$C157*'HV Retail Bill Inputs'!Q$149)+('HV Retail Bill Inputs'!R$28*'HV Retail Bill Inputs'!$C$150*'HV Retail Bill Inputs'!$C157))+'HV Retail Bill Inputs'!$C157,((('HV Retail Bill Inputs'!$C167*'HV Retail Bill Inputs'!Q$149)+('HV Retail Bill Inputs'!R$28*'HV Retail Bill Inputs'!$C$150*'HV Retail Bill Inputs'!$C167))+'HV Retail Bill Inputs'!$C167)) -> 0 | R21: =IF($E$16=Lists!$C$4,(('HV Retail Bill Inputs'!$C157*'HV Retail Bill Inputs'!R$149)+('HV Retail Bill Inputs'!S$28*'HV Retail Bill Inputs'!$C$150*'HV Retail Bill Inputs'!$C157))+'HV Retail Bill Inputs'!$C157,((('HV Retail Bill Inputs'!$C167*'HV Retail Bill Inputs'!R$149)+('HV Retail Bill Inputs'!S$28*'HV Retail Bill Inputs'!$C$150*'HV Retail Bill Inputs'!$C167))+'HV Retail Bill Inputs'!$C167)) -> 0 | S21: =IF($E$16=Lists!$C$4,(('HV Retail Bill Inputs'!$C157*'HV Retail Bill Inputs'!S$149)+('HV Retail Bill Inputs'!T$28*'HV Retail Bill Inputs'!$C$150*'HV Retail Bill Inputs'!$C157))+'HV Retail Bill Inputs'!$C157,((('HV Retail Bill Inputs'!$C167*'HV Retail Bill Inputs'!S$149)+('HV Retail Bill Inputs'!T$28*'HV Retail Bill Inputs'!$C$150*'HV Retail Bill Inputs'!$C167))+'HV Retail Bill Inputs'!$C167)) -> 0 | T21: =IF($E$16=Lists!$C$4,(('HV Retail Bill Inputs'!$C157*'HV Retail Bill Inputs'!T$149)+('HV Retail Bill Inputs'!U$28*'HV Retail Bill Inputs'!$C$150*'HV Retail Bill Inputs'!$C157))+'HV Retail Bill Inputs'!$C157,((('HV Retail Bill Inputs'!$C167*'HV Retail Bill Inputs'!T$149)+('HV Retail Bill Inputs'!U$28*'HV Retail Bill Inputs'!$C$150*'HV Retail Bill Inputs'!$C167))+'HV Retail Bill Inputs'!$C167)) -> 0 | U21: =IF($E$16=Lists!$C$4,(('HV Retail Bill Inputs'!$C157*'HV Retail Bill Inputs'!U$149)+('HV Retail Bill Inputs'!V$28*'HV Retail Bill Inputs'!$C$150*'HV Retail Bill Inputs'!$C157))+'HV Retail Bill Inputs'!$C157,((('HV Retail Bill Inputs'!$C167*'HV Retail Bill Inputs'!U$149)+('HV Retail Bill Inputs'!V$28*'HV Retail Bill Inputs'!$C$150*'HV Retail Bill Inputs'!$C167))+'HV Retail Bill Inputs'!$C167)) -> 0 | V21: =IF($E$16=Lists!$C$4,(('HV Retail Bill Inputs'!$C157*'HV Retail Bill Inputs'!V$149)+('HV Retail Bill Inputs'!W$28*'HV Retail Bill Inputs'!$C$150*'HV Retail Bill Inputs'!$C157))+'HV Retail Bill Inputs'!$C157,((('HV Retail Bill Inputs'!$C167*'HV Retail Bill Inputs'!V$149)+('HV Retail Bill Inputs'!W$28*'HV Retail Bill Inputs'!$C$150*'HV Retail Bill Inputs'!$C167))+'HV Retail Bill Inputs'!$C167)) -> 0 | W21: =IF($E$16=Lists!$C$4,(('HV Retail Bill Inputs'!$C157*'HV Retail Bill Inputs'!W$149)+('HV Retail Bill Inputs'!X$28*'HV Retail Bill Inputs'!$C$150*'HV Retail Bill Inputs'!$C157))+'HV Retail Bill Inputs'!$C157,((('HV Retail Bill Inputs'!$C167*'HV Retail Bill Inputs'!W$149)+('HV Retail Bill Inputs'!X$28*'HV Retail Bill Inputs'!$C$150*'HV Retail Bill Inputs'!$C167))+'HV Retail Bill Inputs'!$C167)) -> 0 | X21: =IF($E$16=Lists!$C$4,(('HV Retail Bill Inputs'!$C157*'HV Retail Bill Inputs'!X$149)+('HV Retail Bill Inputs'!Y$28*'HV Retail Bill Inputs'!$C$150*'HV Retail Bill Inputs'!$C157))+'HV Retail Bill Inputs'!$C157,((('HV Retail Bill Inputs'!$C167*'HV Retail Bill Inputs'!X$149)+('HV Retail Bill Inputs'!Y$28*'HV Retail Bill Inputs'!$C$150*'HV Retail Bill Inputs'!$C167))+'HV Retail Bill Inputs'!$C167)) -> 0
B22: Off Peak (kWH) | C22: =IFERROR(INDEX('Input Sheet'!$C$67:$I$76,MATCH($C$16,'Input Sheet'!$B$67:$B$76,0),MATCH($B22,'Input Sheet'!$C$66:$I$66,0)),0) -> 3943440 | D22: ='Input Sheet'!$M$69 -> $/kWh | E22: =IF($E$16=Lists!$C$4,(('HV Retail Bill Inputs'!$C158*'HV Retail Bill Inputs'!E$149)+('HV Retail Bill Inputs'!F$28*'HV Retail Bill Inputs'!$C$150*'HV Retail Bill Inputs'!$C158))+'HV Retail Bill Inputs'!$C158,((('HV Retail Bill Inputs'!$C168*'HV Retail Bill Inputs'!E$149)+('HV Retail Bill Inputs'!F$28*'HV Retail Bill Inputs'!$C$150*'HV Retail Bill Inputs'!$C168))+'HV Retail Bill Inputs'!$C168)) -> 0.0728856 | F22: =IF($E$16=Lists!$C$4,(('HV Retail Bill Inputs'!$C158*'HV Retail Bill Inputs'!F$149)+('HV Retail Bill Inputs'!G$28*'HV Retail Bill Inputs'!$C$150*'HV Retail Bill Inputs'!$C158))+'HV Retail Bill Inputs'!$C158,((('HV Retail Bill Inputs'!$C168*'HV Retail Bill Inputs'!F$149)+('HV Retail Bill Inputs'!G$28*'HV Retail Bill Inputs'!$C$150*'HV Retail Bill Inputs'!$C168))+'HV Retail Bill Inputs'!$C168)) -> 0.0728856 | G22: =IF($E$16=Lists!$C$4,(('HV Retail Bill Inputs'!$C158*'HV Retail Bill Inputs'!G$149)+('HV Retail Bill Inputs'!H$28*'HV Retail Bill Inputs'!$C$150*'HV Retail Bill Inputs'!$C158))+'HV Retail Bill Inputs'!$C158,((('HV Retail Bill Inputs'!$C168*'HV Retail Bill Inputs'!G$149)+('HV Retail Bill Inputs'!H$28*'HV Retail Bill Inputs'!$C$150*'HV Retail Bill Inputs'!$C168))+'HV Retail Bill Inputs'!$C168)) -> 0.0728856 | H22: =IF($E$16=Lists!$C$4,(('HV Retail Bill Inputs'!$C158*'HV Retail Bill Inputs'!H$149)+('HV Retail Bill Inputs'!I$28*'HV Retail Bill Inputs'!$C$150*'HV Retail Bill Inputs'!$C158))+'HV Retail Bill Inputs'!$C158,((('HV Retail Bill Inputs'!$C168*'HV Retail Bill Inputs'!H$149)+('HV Retail Bill Inputs'!I$28*'HV Retail Bill Inputs'!$C$150*'HV Retail Bill Inputs'!$C168))+'HV Retail Bill Inputs'!$C168)) -> 0.0728856 | I22: =IF($E$16=Lists!$C$4,(('HV Retail Bill Inputs'!$C158*'HV Retail Bill Inputs'!I$149)+('HV Retail Bill Inputs'!J$28*'HV Retail Bill Inputs'!$C$150*'HV Retail Bill Inputs'!$C158))+'HV Retail Bill Inputs'!$C158,((('HV Retail Bill Inputs'!$C168*'HV Retail Bill Inputs'!I$149)+('HV Retail Bill Inputs'!J$28*'HV Retail Bill Inputs'!$C$150*'HV Retail Bill Inputs'!$C168))+'HV Retail Bill Inputs'!$C168)) -> 0.0728856 | J22: =IF($E$16=Lists!$C$4,(('HV Retail Bill Inputs'!$C158*'HV Retail Bill Inputs'!J$149)+('HV Retail Bill Inputs'!K$28*'HV Retail Bill Inputs'!$C$150*'HV Retail Bill Inputs'!$C158))+'HV Retail Bill Inputs'!$C158,((('HV Retail Bill Inputs'!$C168*'HV Retail Bill Inputs'!J$149)+('HV Retail Bill Inputs'!K$28*'HV Retail Bill Inputs'!$C$150*'HV Retail Bill Inputs'!$C168))+'HV Retail Bill Inputs'!$C168)) -> 0.0728856 | K22: =IF($E$16=Lists!$C$4,(('HV Retail Bill Inputs'!$C158*'HV Retail Bill Inputs'!K$149)+('HV Retail Bill Inputs'!L$28*'HV Retail Bill Inputs'!$C$150*'HV Retail Bill Inputs'!$C158))+'HV Retail Bill Inputs'!$C158,((('HV Retail Bill Inputs'!$C168*'HV Retail Bill Inputs'!K$149)+('HV Retail Bill Inputs'!L$28*'HV Retail Bill Inputs'!$C$150*'HV Retail Bill Inputs'!$C168))+'HV Retail Bill Inputs'!$C168)) -> 0.0728856 | L22: =IF($E$16=Lists!$C$4,(('HV Retail Bill Inputs'!$C158*'HV Retail Bill Inputs'!L$149)+('HV Retail Bill Inputs'!M$28*'HV Retail Bill Inputs'!$C$150*'HV Retail Bill Inputs'!$C158))+'HV Retail Bill Inputs'!$C158,((('HV Retail Bill Inputs'!$C168*'HV Retail Bill Inputs'!L$149)+('HV Retail Bill Inputs'!M$28*'HV Retail Bill Inputs'!$C$150*'HV Retail Bill Inputs'!$C168))+'HV Retail Bill Inputs'!$C168)) -> 0.0728856 | M22: =IF($E$16=Lists!$C$4,(('HV Retail Bill Inputs'!$C158*'HV Retail Bill Inputs'!M$149)+('HV Retail Bill Inputs'!N$28*'HV Retail Bill Inputs'!$C$150*'HV Retail Bill Inputs'!$C158))+'HV Retail Bill Inputs'!$C158,((('HV Retail Bill Inputs'!$C168*'HV Retail Bill Inputs'!M$149)+('HV Retail Bill Inputs'!N$28*'HV Retail Bill Inputs'!$C$150*'HV Retail Bill Inputs'!$C168))+'HV Retail Bill Inputs'!$C168)) -> 0.0728856 | N22: =IF($E$16=Lists!$C$4,(('HV Retail Bill Inputs'!$C158*'HV Retail Bill Inputs'!N$149)+('HV Retail Bill Inputs'!O$28*'HV Retail Bill Inputs'!$C$150*'HV Retail Bill Inputs'!$C158))+'HV Retail Bill Inputs'!$C158,((('HV Retail Bill Inputs'!$C168*'HV Retail Bill Inputs'!N$149)+('HV Retail Bill Inputs'!O$28*'HV Retail Bill Inputs'!$C$150*'HV Retail Bill Inputs'!$C168))+'HV Retail Bill Inputs'!$C168)) -> 0.0728856 | O22: =IF($E$16=Lists!$C$4,(('HV Retail Bill Inputs'!$C158*'HV Retail Bill Inputs'!O$149)+('HV Retail Bill Inputs'!P$28*'HV Retail Bill Inputs'!$C$150*'HV Retail Bill Inputs'!$C158))+'HV Retail Bill Inputs'!$C158,((('HV Retail Bill Inputs'!$C168*'HV Retail Bill Inputs'!O$149)+('HV Retail Bill Inputs'!P$28*'HV Retail Bill Inputs'!$C$150*'HV Retail Bill Inputs'!$C168))+'HV Retail Bill Inputs'!$C168)) -> 0.0728856 | P22: =IF($E$16=Lists!$C$4,(('HV Retail Bill Inputs'!$C158*'HV Retail Bill Inputs'!P$149)+('HV Retail Bill Inputs'!Q$28*'HV Retail Bill Inputs'!$C$150*'HV Retail Bill Inputs'!$C158))+'HV Retail Bill Inputs'!$C158,((('HV Retail Bill Inputs'!$C168*'HV Retail Bill Inputs'!P$149)+('HV Retail Bill Inputs'!Q$28*'HV Retail Bill Inputs'!$C$150*'HV Retail Bill Inputs'!$C168))+'HV Retail Bill Inputs'!$C168)) -> 0.0728856 | Q22: =IF($E$16=Lists!$C$4,(('HV Retail Bill Inputs'!$C158*'HV Retail Bill Inputs'!Q$149)+('HV Retail Bill Inputs'!R$28*'HV Retail Bill Inputs'!$C$150*'HV Retail Bill Inputs'!$C158))+'HV Retail Bill Inputs'!$C158,((('HV Retail Bill Inputs'!$C168*'HV Retail Bill Inputs'!Q$149)+('HV Retail Bill Inputs'!R$28*'HV Retail Bill Inputs'!$C$150*'HV Retail Bill Inputs'!$C168))+'HV Retail Bill Inputs'!$C168)) -> 0.0728856 | R22: =IF($E$16=Lists!$C$4,(('HV Retail Bill Inputs'!$C158*'HV Retail Bill Inputs'!R$149)+('HV Retail Bill Inputs'!S$28*'HV Retail Bill Inputs'!$C$150*'HV Retail Bill Inputs'!$C158))+'HV Retail Bill Inputs'!$C158,((('HV Retail Bill Inputs'!$C168*'HV Retail Bill Inputs'!R$149)+('HV Retail Bill Inputs'!S$28*'HV Retail Bill Inputs'!$C$150*'HV Retail Bill Inputs'!$C168))+'HV Retail Bill Inputs'!$C168)) -> 0.0728856 | S22: =IF($E$16=Lists!$C$4,(('HV Retail Bill Inputs'!$C158*'HV Retail Bill Inputs'!S$149)+('HV Retail Bill Inputs'!T$28*'HV Retail Bill Inputs'!$C$150*'HV Retail Bill Inputs'!$C158))+'HV Retail Bill Inputs'!$C158,((('HV Retail Bill Inputs'!$C168*'HV Retail Bill Inputs'!S$149)+('HV Retail Bill Inputs'!T$28*'HV Retail Bill Inputs'!$C$150*'HV Retail Bill Inputs'!$C168))+'HV Retail Bill Inputs'!$C168)) -> 0.0728856 | T22: =IF($E$16=Lists!$C$4,(('HV Retail Bill Inputs'!$C158*'HV Retail Bill Inputs'!T$149)+('HV Retail Bill Inputs'!U$28*'HV Retail Bill Inputs'!$C$150*'HV Retail Bill Inputs'!$C158))+'HV Retail Bill Inputs'!$C158,((('HV Retail Bill Inputs'!$C168*'HV Retail Bill Inputs'!T$149)+('HV Retail Bill Inputs'!U$28*'HV Retail Bill Inputs'!$C$150*'HV Retail Bill Inputs'!$C168))+'HV Retail Bill Inputs'!$C168)) -> 0.0728856 | U22: =IF($E$16=Lists!$C$4,(('HV Retail Bill Inputs'!$C158*'HV Retail Bill Inputs'!U$149)+('HV Retail Bill Inputs'!V$28*'HV Retail Bill Inputs'!$C$150*'HV Retail Bill Inputs'!$C158))+'HV Retail Bill Inputs'!$C158,((('HV Retail Bill Inputs'!$C168*'HV Retail Bill Inputs'!U$149)+('HV Retail Bill Inputs'!V$28*'HV Retail Bill Inputs'!$C$150*'HV Retail Bill Inputs'!$C168))+'HV Retail Bill Inputs'!$C168)) -> 0.0728856 | V22: =IF($E$16=Lists!$C$4,(('HV Retail Bill Inputs'!$C158*'HV Retail Bill Inputs'!V$149)+('HV Retail Bill Inputs'!W$28*'HV Retail Bill Inputs'!$C$150*'HV Retail Bill Inputs'!$C158))+'HV Retail Bill Inputs'!$C158,((('HV Retail Bill Inputs'!$C168*'HV Retail Bill Inputs'!V$149)+('HV Retail Bill Inputs'!W$28*'HV Retail Bill Inputs'!$C$150*'HV Retail Bill Inputs'!$C168))+'HV Retail Bill Inputs'!$C168)) -> 0.0728856 | W22: =IF($E$16=Lists!$C$4,(('HV Retail Bill Inputs'!$C158*'HV Retail Bill Inputs'!W$149)+('HV Retail Bill Inputs'!X$28*'HV Retail Bill Inputs'!$C$150*'HV Retail Bill Inputs'!$C158))+'HV Retail Bill Inputs'!$C158,((('HV Retail Bill Inputs'!$C168*'HV Retail Bill Inputs'!W$149)+('HV Retail Bill Inputs'!X$28*'HV Retail Bill Inputs'!$C$150*'HV Retail Bill Inputs'!$C168))+'HV Retail Bill Inputs'!$C168)) -> 0.0728856 | X22: =IF($E$16=Lists!$C$4,(('HV Retail Bill Inputs'!$C158*'HV Retail Bill Inputs'!X$149)+('HV Retail Bill Inputs'!Y$28*'HV Retail Bill Inputs'!$C$150*'HV Retail Bill Inputs'!$C158))+'HV Retail Bill Inputs'!$C158,((('HV Retail Bill Inputs'!$C168*'HV Retail Bill Inputs'!X$149)+('HV Retail Bill Inputs'!Y$28*'HV Retail Bill Inputs'!$C$150*'HV Retail Bill Inputs'!$C168))+'HV Retail Bill Inputs'!$C168)) -> 0.0728856
B23: Chargeable kVA | C23: =IFERROR(INDEX('Input Sheet'!$C$67:$I$76,MATCH($C$16,'Input Sheet'!$B$67:$B$76,0),MATCH($B23,'Input Sheet'!$C$66:$I$66,0)),0) -> 1650 | D23: ='Input Sheet'!$M$70 -> $/kVA | E23: =IF($E$16=Lists!$C$4,(('HV Retail Bill Inputs'!$C159*'HV Retail Bill Inputs'!E$149)+('HV Retail Bill Inputs'!F$28*'HV Retail Bill Inputs'!$C$150*'HV Retail Bill Inputs'!$C159))+'HV Retail Bill Inputs'!$C159,((('HV Retail Bill Inputs'!$C169*'HV Retail Bill Inputs'!E$149)+('HV Retail Bill Inputs'!F$28*'HV Retail Bill Inputs'!$C$150*'HV Retail Bill Inputs'!$C169))+'HV Retail Bill Inputs'!$C169)) -> 38.77 | F23: =IF($E$16=Lists!$C$4,(('HV Retail Bill Inputs'!$C159*'HV Retail Bill Inputs'!F$149)+('HV Retail Bill Inputs'!G$28*'HV Retail Bill Inputs'!$C$150*'HV Retail Bill Inputs'!$C159))+'HV Retail Bill Inputs'!$C159,((('HV Retail Bill Inputs'!$C169*'HV Retail Bill Inputs'!F$149)+('HV Retail Bill Inputs'!G$28*'HV Retail Bill Inputs'!$C$150*'HV Retail Bill Inputs'!$C169))+'HV Retail Bill Inputs'!$C169)) -> 38.77 | G23: =IF($E$16=Lists!$C$4,(('HV Retail Bill Inputs'!$C159*'HV Retail Bill Inputs'!G$149)+('HV Retail Bill Inputs'!H$28*'HV Retail Bill Inputs'!$C$150*'HV Retail Bill Inputs'!$C159))+'HV Retail Bill Inputs'!$C159,((('HV Retail Bill Inputs'!$C169*'HV Retail Bill Inputs'!G$149)+('HV Retail Bill Inputs'!H$28*'HV Retail Bill Inputs'!$C$150*'HV Retail Bill Inputs'!$C169))+'HV Retail Bill Inputs'!$C169)) -> 38.77 | H23: =IF($E$16=Lists!$C$4,(('HV Retail Bill Inputs'!$C159*'HV Retail Bill Inputs'!H$149)+('HV Retail Bill Inputs'!I$28*'HV Retail Bill Inputs'!$C$150*'HV Retail Bill Inputs'!$C159))+'HV Retail Bill Inputs'!$C159,((('HV Retail Bill Inputs'!$C169*'HV Retail Bill Inputs'!H$149)+('HV Retail Bill Inputs'!I$28*'HV Retail Bill Inputs'!$C$150*'HV Retail Bill Inputs'!$C169))+'HV Retail Bill Inputs'!$C169)) -> 38.77 | I23: =IF($E$16=Lists!$C$4,(('HV Retail Bill Inputs'!$C159*'HV Retail Bill Inputs'!I$149)+('HV Retail Bill Inputs'!J$28*'HV Retail Bill Inputs'!$C$150*'HV Retail Bill Inputs'!$C159))+'HV Retail Bill Inputs'!$C159,((('HV Retail Bill Inputs'!$C169*'HV Retail Bill Inputs'!I$149)+('HV Retail Bill Inputs'!J$28*'HV Retail Bill Inputs'!$C$150*'HV Retail Bill Inputs'!$C169))+'HV Retail Bill Inputs'!$C169)) -> 38.77 | J23: =IF($E$16=Lists!$C$4,(('HV Retail Bill Inputs'!$C159*'HV Retail Bill Inputs'!J$149)+('HV Retail Bill Inputs'!K$28*'HV Retail Bill Inputs'!$C$150*'HV Retail Bill Inputs'!$C159))+'HV Retail Bill Inputs'!$C159,((('HV Retail Bill Inputs'!$C169*'HV Retail Bill Inputs'!J$149)+('HV Retail Bill Inputs'!K$28*'HV Retail Bill Inputs'!$C$150*'HV Retail Bill Inputs'!$C169))+'HV Retail Bill Inputs'!$C169)) -> 38.77 | K23: =IF($E$16=Lists!$C$4,(('HV Retail Bill Inputs'!$C159*'HV Retail Bill Inputs'!K$149)+('HV Retail Bill Inputs'!L$28*'HV Retail Bill Inputs'!$C$150*'HV Retail Bill Inputs'!$C159))+'HV Retail Bill Inputs'!$C159,((('HV Retail Bill Inputs'!$C169*'HV Retail Bill Inputs'!K$149)+('HV Retail Bill Inputs'!L$28*'HV Retail Bill Inputs'!$C$150*'HV Retail Bill Inputs'!$C169))+'HV Retail Bill Inputs'!$C169)) -> 38.77 | L23: =IF($E$16=Lists!$C$4,(('HV Retail Bill Inputs'!$C159*'HV Retail Bill Inputs'!L$149)+('HV Retail Bill Inputs'!M$28*'HV Retail Bill Inputs'!$C$150*'HV Retail Bill Inputs'!$C159))+'HV Retail Bill Inputs'!$C159,((('HV Retail Bill Inputs'!$C169*'HV Retail Bill Inputs'!L$149)+('HV Retail Bill Inputs'!M$28*'HV Retail Bill Inputs'!$C$150*'HV Retail Bill Inputs'!$C169))+'HV Retail Bill Inputs'!$C169)) -> 38.77 | M23: =IF($E$16=Lists!$C$4,(('HV Retail Bill Inputs'!$C159*'HV Retail Bill Inputs'!M$149)+('HV Retail Bill Inputs'!N$28*'HV Retail Bill Inputs'!$C$150*'HV Retail Bill Inputs'!$C159))+'HV Retail Bill Inputs'!$C159,((('HV Retail Bill Inputs'!$C169*'HV Retail Bill Inputs'!M$149)+('HV Retail Bill Inputs'!N$28*'HV Retail Bill Inputs'!$C$150*'HV Retail Bill Inputs'!$C169))+'HV Retail Bill Inputs'!$C169)) -> 38.77 | N23: =IF($E$16=Lists!$C$4,(('HV Retail Bill Inputs'!$C159*'HV Retail Bill Inputs'!N$149)+('HV Retail Bill Inputs'!O$28*'HV Retail Bill Inputs'!$C$150*'HV Retail Bill Inputs'!$C159))+'HV Retail Bill Inputs'!$C159,((('HV Retail Bill Inputs'!$C169*'HV Retail Bill Inputs'!N$149)+('HV Retail Bill Inputs'!O$28*'HV Retail Bill Inputs'!$C$150*'HV Retail Bill Inputs'!$C169))+'HV Retail Bill Inputs'!$C169)) -> 38.77 | O23: =IF($E$16=Lists!$C$4,(('HV Retail Bill Inputs'!$C159*'HV Retail Bill Inputs'!O$149)+('HV Retail Bill Inputs'!P$28*'HV Retail Bill Inputs'!$C$150*'HV Retail Bill Inputs'!$C159))+'HV Retail Bill Inputs'!$C159,((('HV Retail Bill Inputs'!$C169*'HV Retail Bill Inputs'!O$149)+('HV Retail Bill Inputs'!P$28*'HV Retail Bill Inputs'!$C$150*'HV Retail Bill Inputs'!$C169))+'HV Retail Bill Inputs'!$C169)) -> 38.77 | P23: =IF($E$16=Lists!$C$4,(('HV Retail Bill Inputs'!$C159*'HV Retail Bill Inputs'!P$149)+('HV Retail Bill Inputs'!Q$28*'HV Retail Bill Inputs'!$C$150*'HV Retail Bill Inputs'!$C159))+'HV Retail Bill Inputs'!$C159,((('HV Retail Bill Inputs'!$C169*'HV Retail Bill Inputs'!P$149)+('HV Retail Bill Inputs'!Q$28*'HV Retail Bill Inputs'!$C$150*'HV Retail Bill Inputs'!$C169))+'HV Retail Bill Inputs'!$C169)) -> 38.77 | Q23: =IF($E$16=Lists!$C$4,(('HV Retail Bill Inputs'!$C159*'HV Retail Bill Inputs'!Q$149)+('HV Retail Bill Inputs'!R$28*'HV Retail Bill Inputs'!$C$150*'HV Retail Bill Inputs'!$C159))+'HV Retail Bill Inputs'!$C159,((('HV Retail Bill Inputs'!$C169*'HV Retail Bill Inputs'!Q$149)+('HV Retail Bill Inputs'!R$28*'HV Retail Bill Inputs'!$C$150*'HV Retail Bill Inputs'!$C169))+'HV Retail Bill Inputs'!$C169)) -> 38.77 | R23: =IF($E$16=Lists!$C$4,(('HV Retail Bill Inputs'!$C159*'HV Retail Bill Inputs'!R$149)+('HV Retail Bill Inputs'!S$28*'HV Retail Bill Inputs'!$C$150*'HV Retail Bill Inputs'!$C159))+'HV Retail Bill Inputs'!$C159,((('HV Retail Bill Inputs'!$C169*'HV Retail Bill Inputs'!R$149)+('HV Retail Bill Inputs'!S$28*'HV Retail Bill Inputs'!$C$150*'HV Retail Bill Inputs'!$C169))+'HV Retail Bill Inputs'!$C169)) -> 38.77 | S23: =IF($E$16=Lists!$C$4,(('HV Retail Bill Inputs'!$C159*'HV Retail Bill Inputs'!S$149)+('HV Retail Bill Inputs'!T$28*'HV Retail Bill Inputs'!$C$150*'HV Retail Bill Inputs'!$C159))+'HV Retail Bill Inputs'!$C159,((('HV Retail Bill Inputs'!$C169*'HV Retail Bill Inputs'!S$149)+('HV Retail Bill Inputs'!T$28*'HV Retail Bill Inputs'!$C$150*'HV Retail Bill Inputs'!$C169))+'HV Retail Bill Inputs'!$C169)) -> 38.77 | T23: =IF($E$16=Lists!$C$4,(('HV Retail Bill Inputs'!$C159*'HV Retail Bill Inputs'!T$149)+('HV Retail Bill Inputs'!U$28*'HV Retail Bill Inputs'!$C$150*'HV Retail Bill Inputs'!$C159))+'HV Retail Bill Inputs'!$C159,((('HV Retail Bill Inputs'!$C169*'HV Retail Bill Inputs'!T$149)+('HV Retail Bill Inputs'!U$28*'HV Retail Bill Inputs'!$C$150*'HV Retail Bill Inputs'!$C169))+'HV Retail Bill Inputs'!$C169)) -> 38.77 | U23: =IF($E$16=Lists!$C$4,(('HV Retail Bill Inputs'!$C159*'HV Retail Bill Inputs'!U$149)+('HV Retail Bill Inputs'!V$28*'HV Retail Bill Inputs'!$C$150*'HV Retail Bill Inputs'!$C159))+'HV Retail Bill Inputs'!$C159,((('HV Retail Bill Inputs'!$C169*'HV Retail Bill Inputs'!U$149)+('HV Retail Bill Inputs'!V$28*'HV Retail Bill Inputs'!$C$150*'HV Retail Bill Inputs'!$C169))+'HV Retail Bill Inputs'!$C169)) -> 38.77 | V23: =IF($E$16=Lists!$C$4,(('HV Retail Bill Inputs'!$C159*'HV Retail Bill Inputs'!V$149)+('HV Retail Bill Inputs'!W$28*'HV Retail Bill Inputs'!$C$150*'HV Retail Bill Inputs'!$C159))+'HV Retail Bill Inputs'!$C159,((('HV Retail Bill Inputs'!$C169*'HV Retail Bill Inputs'!V$149)+('HV Retail Bill Inputs'!W$28*'HV Retail Bill Inputs'!$C$150*'HV Retail Bill Inputs'!$C169))+'HV Retail Bill Inputs'!$C169)) -> 38.77 | W23: =IF($E$16=Lists!$C$4,(('HV Retail Bill Inputs'!$C159*'HV Retail Bill Inputs'!W$149)+('HV Retail Bill Inputs'!X$28*'HV Retail Bill Inputs'!$C$150*'HV Retail Bill Inputs'!$C159))+'HV Retail Bill Inputs'!$C159,((('HV Retail Bill Inputs'!$C169*'HV Retail Bill Inputs'!W$149)+('HV Retail Bill Inputs'!X$28*'HV Retail Bill Inputs'!$C$150*'HV Retail Bill Inputs'!$C169))+'HV Retail Bill Inputs'!$C169)) -> 38.77 | X23: =IF($E$16=Lists!$C$4,(('HV Retail Bill Inputs'!$C159*'HV Retail Bill Inputs'!X$149)+('HV Retail Bill Inputs'!Y$28*'HV Retail Bill Inputs'!$C$150*'HV Retail Bill Inputs'!$C159))+'HV Retail Bill Inputs'!$C159,((('HV Retail Bill Inputs'!$C169*'HV Retail Bill Inputs'!X$149)+('HV Retail Bill Inputs'!Y$28*'HV Retail Bill Inputs'!$C$150*'HV Retail Bill Inputs'!$C169))+'HV Retail Bill Inputs'!$C169)) -> 38.77
B24: Fixed | C24: =IFERROR(INDEX('Input Sheet'!$C$67:$I$76,MATCH($C$16,'Input Sheet'!$B$67:$B$76,0),MATCH($B24,'Input Sheet'!$C$66:$I$66,0)),0) -> 1 | D24: ='Input Sheet'!$M$71 -> $/year | E24: =IF($E$16=Lists!$C$4,(('HV Retail Bill Inputs'!$C160*'HV Retail Bill Inputs'!E$149)+('HV Retail Bill Inputs'!F$28*'HV Retail Bill Inputs'!$C$150*'HV Retail Bill Inputs'!$C160))+'HV Retail Bill Inputs'!$C160,((('HV Retail Bill Inputs'!$C170*'HV Retail Bill Inputs'!E$149)+('HV Retail Bill Inputs'!F$28*'HV Retail Bill Inputs'!$C$150*'HV Retail Bill Inputs'!$C170))+'HV Retail Bill Inputs'!$C170)) -> 5701 | F24: =IF($E$16=Lists!$C$4,(('HV Retail Bill Inputs'!$C160*'HV Retail Bill Inputs'!F$149)+('HV Retail Bill Inputs'!G$28*'HV Retail Bill Inputs'!$C$150*'HV Retail Bill Inputs'!$C160))+'HV Retail Bill Inputs'!$C160,((('HV Retail Bill Inputs'!$C170*'HV Retail Bill Inputs'!F$149)+('HV Retail Bill Inputs'!G$28*'HV Retail Bill Inputs'!$C$150*'HV Retail Bill Inputs'!$C170))+'HV Retail Bill Inputs'!$C170)) -> 5701 | G24: =IF($E$16=Lists!$C$4,(('HV Retail Bill Inputs'!$C160*'HV Retail Bill Inputs'!G$149)+('HV Retail Bill Inputs'!H$28*'HV Retail Bill Inputs'!$C$150*'HV Retail Bill Inputs'!$C160))+'HV Retail Bill Inputs'!$C160,((('HV Retail Bill Inputs'!$C170*'HV Retail Bill Inputs'!G$149)+('HV Retail Bill Inputs'!H$28*'HV Retail Bill Inputs'!$C$150*'HV Retail Bill Inputs'!$C170))+'HV Retail Bill Inputs'!$C170)) -> 5701 | H24: =IF($E$16=Lists!$C$4,(('HV Retail Bill Inputs'!$C160*'HV Retail Bill Inputs'!H$149)+('HV Retail Bill Inputs'!I$28*'HV Retail Bill Inputs'!$C$150*'HV Retail Bill Inputs'!$C160))+'HV Retail Bill Inputs'!$C160,((('HV Retail Bill Inputs'!$C170*'HV Retail Bill Inputs'!H$149)+('HV Retail Bill Inputs'!I$28*'HV Retail Bill Inputs'!$C$150*'HV Retail Bill Inputs'!$C170))+'HV Retail Bill Inputs'!$C170)) -> 5701 | I24: =IF($E$16=Lists!$C$4,(('HV Retail Bill Inputs'!$C160*'HV Retail Bill Inputs'!I$149)+('HV Retail Bill Inputs'!J$28*'HV Retail Bill Inputs'!$C$150*'HV Retail Bill Inputs'!$C160))+'HV Retail Bill Inputs'!$C160,((('HV Retail Bill Inputs'!$C170*'HV Retail Bill Inputs'!I$149)+('HV Retail Bill Inputs'!J$28*'HV Retail Bill Inputs'!$C$150*'HV Retail Bill Inputs'!$C170))+'HV Retail Bill Inputs'!$C170)) -> 5701 | J24: =IF($E$16=Lists!$C$4,(('HV Retail Bill Inputs'!$C160*'HV Retail Bill Inputs'!J$149)+('HV Retail Bill Inputs'!K$28*'HV Retail Bill Inputs'!$C$150*'HV Retail Bill Inputs'!$C160))+'HV Retail Bill Inputs'!$C160,((('HV Retail Bill Inputs'!$C170*'HV Retail Bill Inputs'!J$149)+('HV Retail Bill Inputs'!K$28*'HV Retail Bill Inputs'!$C$150*'HV Retail Bill Inputs'!$C170))+'HV Retail Bill Inputs'!$C170)) -> 5701 | K24: =IF($E$16=Lists!$C$4,(('HV Retail Bill Inputs'!$C160*'HV Retail Bill Inputs'!K$149)+('HV Retail Bill Inputs'!L$28*'HV Retail Bill Inputs'!$C$150*'HV Retail Bill Inputs'!$C160))+'HV Retail Bill Inputs'!$C160,((('HV Retail Bill Inputs'!$C170*'HV Retail Bill Inputs'!K$149)+('HV Retail Bill Inputs'!L$28*'HV Retail Bill Inputs'!$C$150*'HV Retail Bill Inputs'!$C170))+'HV Retail Bill Inputs'!$C170)) -> 5701 | L24: =IF($E$16=Lists!$C$4,(('HV Retail Bill Inputs'!$C160*'HV Retail Bill Inputs'!L$149)+('HV Retail Bill Inputs'!M$28*'HV Retail Bill Inputs'!$C$150*'HV Retail Bill Inputs'!$C160))+'HV Retail Bill Inputs'!$C160,((('HV Retail Bill Inputs'!$C170*'HV Retail Bill Inputs'!L$149)+('HV Retail Bill Inputs'!M$28*'HV Retail Bill Inputs'!$C$150*'HV Retail Bill Inputs'!$C170))+'HV Retail Bill Inputs'!$C170)) -> 5701 | M24: =IF($E$16=Lists!$C$4,(('HV Retail Bill Inputs'!$C160*'HV Retail Bill Inputs'!M$149)+('HV Retail Bill Inputs'!N$28*'HV Retail Bill Inputs'!$C$150*'HV Retail Bill Inputs'!$C160))+'HV Retail Bill Inputs'!$C160,((('HV Retail Bill Inputs'!$C170*'HV Retail Bill Inputs'!M$149)+('HV Retail Bill Inputs'!N$28*'HV Retail Bill Inputs'!$C$150*'HV Retail Bill Inputs'!$C170))+'HV Retail Bill Inputs'!$C170)) -> 5701 | N24: =IF($E$16=Lists!$C$4,(('HV Retail Bill Inputs'!$C160*'HV Retail Bill Inputs'!N$149)+('HV Retail Bill Inputs'!O$28*'HV Retail Bill Inputs'!$C$150*'HV Retail Bill Inputs'!$C160))+'HV Retail Bill Inputs'!$C160,((('HV Retail Bill Inputs'!$C170*'HV Retail Bill Inputs'!N$149)+('HV Retail Bill Inputs'!O$28*'HV Retail Bill Inputs'!$C$150*'HV Retail Bill Inputs'!$C170))+'HV Retail Bill Inputs'!$C170)) -> 5701 | O24: =IF($E$16=Lists!$C$4,(('HV Retail Bill Inputs'!$C160*'HV Retail Bill Inputs'!O$149)+('HV Retail Bill Inputs'!P$28*'HV Retail Bill Inputs'!$C$150*'HV Retail Bill Inputs'!$C160))+'HV Retail Bill Inputs'!$C160,((('HV Retail Bill Inputs'!$C170*'HV Retail Bill Inputs'!O$149)+('HV Retail Bill Inputs'!P$28*'HV Retail Bill Inputs'!$C$150*'HV Retail Bill Inputs'!$C170))+'HV Retail Bill Inputs'!$C170)) -> 5701 | P24: =IF($E$16=Lists!$C$4,(('HV Retail Bill Inputs'!$C160*'HV Retail Bill Inputs'!P$149)+('HV Retail Bill Inputs'!Q$28*'HV Retail Bill Inputs'!$C$150*'HV Retail Bill Inputs'!$C160))+'HV Retail Bill Inputs'!$C160,((('HV Retail Bill Inputs'!$C170*'HV Retail Bill Inputs'!P$149)+('HV Retail Bill Inputs'!Q$28*'HV Retail Bill Inputs'!$C$150*'HV Retail Bill Inputs'!$C170))+'HV Retail Bill Inputs'!$C170)) -> 5701 | Q24: =IF($E$16=Lists!$C$4,(('HV Retail Bill Inputs'!$C160*'HV Retail Bill Inputs'!Q$149)+('HV Retail Bill Inputs'!R$28*'HV Retail Bill Inputs'!$C$150*'HV Retail Bill Inputs'!$C160))+'HV Retail Bill Inputs'!$C160,((('HV Retail Bill Inputs'!$C170*'HV Retail Bill Inputs'!Q$149)+('HV Retail Bill Inputs'!R$28*'HV Retail Bill Inputs'!$C$150*'HV Retail Bill Inputs'!$C170))+'HV Retail Bill Inputs'!$C170)) -> 5701 | R24: =IF($E$16=Lists!$C$4,(('HV Retail Bill Inputs'!$C160*'HV Retail Bill Inputs'!R$149)+('HV Retail Bill Inputs'!S$28*'HV Retail Bill Inputs'!$C$150*'HV Retail Bill Inputs'!$C160))+'HV Retail Bill Inputs'!$C160,((('HV Retail Bill Inputs'!$C170*'HV Retail Bill Inputs'!R$149)+('HV Retail Bill Inputs'!S$28*'HV Retail Bill Inputs'!$C$150*'HV Retail Bill Inputs'!$C170))+'HV Retail Bill Inputs'!$C170)) -> 5701 | S24: =IF($E$16=Lists!$C$4,(('HV Retail Bill Inputs'!$C160*'HV Retail Bill Inputs'!S$149)+('HV Retail Bill Inputs'!T$28*'HV Retail Bill Inputs'!$C$150*'HV Retail Bill Inputs'!$C160))+'HV Retail Bill Inputs'!$C160,((('HV Retail Bill Inputs'!$C170*'HV Retail Bill Inputs'!S$149)+('HV Retail Bill Inputs'!T$28*'HV Retail Bill Inputs'!$C$150*'HV Retail Bill Inputs'!$C170))+'HV Retail Bill Inputs'!$C170)) -> 5701 | T24: =IF($E$16=Lists!$C$4,(('HV Retail Bill Inputs'!$C160*'HV Retail Bill Inputs'!T$149)+('HV Retail Bill Inputs'!U$28*'HV Retail Bill Inputs'!$C$150*'HV Retail Bill Inputs'!$C160))+'HV Retail Bill Inputs'!$C160,((('HV Retail Bill Inputs'!$C170*'HV Retail Bill Inputs'!T$149)+('HV Retail Bill Inputs'!U$28*'HV Retail Bill Inputs'!$C$150*'HV Retail Bill Inputs'!$C170))+'HV Retail Bill Inputs'!$C170)) -> 5701 | U24: =IF($E$16=Lists!$C$4,(('HV Retail Bill Inputs'!$C160*'HV Retail Bill Inputs'!U$149)+('HV Retail Bill Inputs'!V$28*'HV Retail Bill Inputs'!$C$150*'HV Retail Bill Inputs'!$C160))+'HV Retail Bill Inputs'!$C160,((('HV Retail Bill Inputs'!$C170*'HV Retail Bill Inputs'!U$149)+('HV Retail Bill Inputs'!V$28*'HV Retail Bill Inputs'!$C$150*'HV Retail Bill Inputs'!$C170))+'HV Retail Bill Inputs'!$C170)) -> 5701 | V24: =IF($E$16=Lists!$C$4,(('HV Retail Bill Inputs'!$C160*'HV Retail Bill Inputs'!V$149)+('HV Retail Bill Inputs'!W$28*'HV Retail Bill Inputs'!$C$150*'HV Retail Bill Inputs'!$C160))+'HV Retail Bill Inputs'!$C160,((('HV Retail Bill Inputs'!$C170*'HV Retail Bill Inputs'!V$149)+('HV Retail Bill Inputs'!W$28*'HV Retail Bill Inputs'!$C$150*'HV Retail Bill Inputs'!$C170))+'HV Retail Bill Inputs'!$C170)) -> 5701 | W24: =IF($E$16=Lists!$C$4,(('HV Retail Bill Inputs'!$C160*'HV Retail Bill Inputs'!W$149)+('HV Retail Bill Inputs'!X$28*'HV Retail Bill Inputs'!$C$150*'HV Retail Bill Inputs'!$C160))+'HV Retail Bill Inputs'!$C160,((('HV Retail Bill Inputs'!$C170*'HV Retail Bill Inputs'!W$149)+('HV Retail Bill Inputs'!X$28*'HV Retail Bill Inputs'!$C$150*'HV Retail Bill Inputs'!$C170))+'HV Retail Bill Inputs'!$C170)) -> 5701 | X24: =IF($E$16=Lists!$C$4,(('HV Retail Bill Inputs'!$C160*'HV Retail Bill Inputs'!X$149)+('HV Retail Bill Inputs'!Y$28*'HV Retail Bill Inputs'!$C$150*'HV Retail Bill Inputs'!$C160))+'HV Retail Bill Inputs'!$C160,((('HV Retail Bill Inputs'!$C170*'HV Retail Bill Inputs'!X$149)+('HV Retail Bill Inputs'!Y$28*'HV Retail Bill Inputs'!$C$150*'HV Retail Bill Inputs'!$C170))+'HV Retail Bill Inputs'!$C170)) -> 5701
B25: Other 1 | C25: =IFERROR(INDEX('Input Sheet'!$C$67:$I$76,MATCH($C$16,'Input Sheet'!$B$67:$B$76,0),MATCH($B25,'Input Sheet'!$C$66:$I$66,0)),0) -> 0 | D25: ='Input Sheet'!$M$72 -> $/kvA | E25: =IF($E$16=Lists!$C$4,(('HV Retail Bill Inputs'!$C161*'HV Retail Bill Inputs'!E$149)+('HV Retail Bill Inputs'!F$28*'HV Retail Bill Inputs'!$C$150*'HV Retail Bill Inputs'!$C161))+'HV Retail Bill Inputs'!$C161,((('HV Retail Bill Inputs'!$C171*'HV Retail Bill Inputs'!E$149)+('HV Retail Bill Inputs'!F$28*'HV Retail Bill Inputs'!$C$150*'HV Retail Bill Inputs'!$C171))+'HV Retail Bill Inputs'!$C171)) -> 0 | F25: =IF($E$16=Lists!$C$4,(('HV Retail Bill Inputs'!$C161*'HV Retail Bill Inputs'!F$149)+('HV Retail Bill Inputs'!G$28*'HV Retail Bill Inputs'!$C$150*'HV Retail Bill Inputs'!$C161))+'HV Retail Bill Inputs'!$C161,((('HV Retail Bill Inputs'!$C171*'HV Retail Bill Inputs'!F$149)+('HV Retail Bill Inputs'!G$28*'HV Retail Bill Inputs'!$C$150*'HV Retail Bill Inputs'!$C171))+'HV Retail Bill Inputs'!$C171)) -> 0 | G25: =IF($E$16=Lists!$C$4,(('HV Retail Bill Inputs'!$C161*'HV Retail Bill Inputs'!G$149)+('HV Retail Bill Inputs'!H$28*'HV Retail Bill Inputs'!$C$150*'HV Retail Bill Inputs'!$C161))+'HV Retail Bill Inputs'!$C161,((('HV Retail Bill Inputs'!$C171*'HV Retail Bill Inputs'!G$149)+('HV Retail Bill Inputs'!H$28*'HV Retail Bill Inputs'!$C$150*'HV Retail Bill Inputs'!$C171))+'HV Retail Bill Inputs'!$C171)) -> 0 | H25: =IF($E$16=Lists!$C$4,(('HV Retail Bill Inputs'!$C161*'HV Retail Bill Inputs'!H$149)+('HV Retail Bill Inputs'!I$28*'HV Retail Bill Inputs'!$C$150*'HV Retail Bill Inputs'!$C161))+'HV Retail Bill Inputs'!$C161,((('HV Retail Bill Inputs'!$C171*'HV Retail Bill Inputs'!H$149)+('HV Retail Bill Inputs'!I$28*'HV Retail Bill Inputs'!$C$150*'HV Retail Bill Inputs'!$C171))+'HV Retail Bill Inputs'!$C171)) -> 0 | I25: =IF($E$16=Lists!$C$4,(('HV Retail Bill Inputs'!$C161*'HV Retail Bill Inputs'!I$149)+('HV Retail Bill Inputs'!J$28*'HV Retail Bill Inputs'!$C$150*'HV Retail Bill Inputs'!$C161))+'HV Retail Bill Inputs'!$C161,((('HV Retail Bill Inputs'!$C171*'HV Retail Bill Inputs'!I$149)+('HV Retail Bill Inputs'!J$28*'HV Retail Bill Inputs'!$C$150*'HV Retail Bill Inputs'!$C171))+'HV Retail Bill Inputs'!$C171)) -> 0 | J25: =IF($E$16=Lists!$C$4,(('HV Retail Bill Inputs'!$C161*'HV Retail Bill Inputs'!J$149)+('HV Retail Bill Inputs'!K$28*'HV Retail Bill Inputs'!$C$150*'HV Retail Bill Inputs'!$C161))+'HV Retail Bill Inputs'!$C161,((('HV Retail Bill Inputs'!$C171*'HV Retail Bill Inputs'!J$149)+('HV Retail Bill Inputs'!K$28*'HV Retail Bill Inputs'!$C$150*'HV Retail Bill Inputs'!$C171))+'HV Retail Bill Inputs'!$C171)) -> 0 | K25: =IF($E$16=Lists!$C$4,(('HV Retail Bill Inputs'!$C161*'HV Retail Bill Inputs'!K$149)+('HV Retail Bill Inputs'!L$28*'HV Retail Bill Inputs'!$C$150*'HV Retail Bill Inputs'!$C161))+'HV Retail Bill Inputs'!$C161,((('HV Retail Bill Inputs'!$C171*'HV Retail Bill Inputs'!K$149)+('HV Retail Bill Inputs'!L$28*'HV Retail Bill Inputs'!$C$150*'HV Retail Bill Inputs'!$C171))+'HV Retail Bill Inputs'!$C171)) -> 0 | L25: =IF($E$16=Lists!$C$4,(('HV Retail Bill Inputs'!$C161*'HV Retail Bill Inputs'!L$149)+('HV Retail Bill Inputs'!M$28*'HV Retail Bill Inputs'!$C$150*'HV Retail Bill Inputs'!$C161))+'HV Retail Bill Inputs'!$C161,((('HV Retail Bill Inputs'!$C171*'HV Retail Bill Inputs'!L$149)+('HV Retail Bill Inputs'!M$28*'HV Retail Bill Inputs'!$C$150*'HV Retail Bill Inputs'!$C171))+'HV Retail Bill Inputs'!$C171)) -> 0 | M25: =IF($E$16=Lists!$C$4,(('HV Retail Bill Inputs'!$C161*'HV Retail Bill Inputs'!M$149)+('HV Retail Bill Inputs'!N$28*'HV Retail Bill Inputs'!$C$150*'HV Retail Bill Inputs'!$C161))+'HV Retail Bill Inputs'!$C161,((('HV Retail Bill Inputs'!$C171*'HV Retail Bill Inputs'!M$149)+('HV Retail Bill Inputs'!N$28*'HV Retail Bill Inputs'!$C$150*'HV Retail Bill Inputs'!$C171))+'HV Retail Bill Inputs'!$C171)) -> 0 | N25: =IF($E$16=Lists!$C$4,(('HV Retail Bill Inputs'!$C161*'HV Retail Bill Inputs'!N$149)+('HV Retail Bill Inputs'!O$28*'HV Retail Bill Inputs'!$C$150*'HV Retail Bill Inputs'!$C161))+'HV Retail Bill Inputs'!$C161,((('HV Retail Bill Inputs'!$C171*'HV Retail Bill Inputs'!N$149)+('HV Retail Bill Inputs'!O$28*'HV Retail Bill Inputs'!$C$150*'HV Retail Bill Inputs'!$C171))+'HV Retail Bill Inputs'!$C171)) -> 0 | O25: =IF($E$16=Lists!$C$4,(('HV Retail Bill Inputs'!$C161*'HV Retail Bill Inputs'!O$149)+('HV Retail Bill Inputs'!P$28*'HV Retail Bill Inputs'!$C$150*'HV Retail Bill Inputs'!$C161))+'HV Retail Bill Inputs'!$C161,((('HV Retail Bill Inputs'!$C171*'HV Retail Bill Inputs'!O$149)+('HV Retail Bill Inputs'!P$28*'HV Retail Bill Inputs'!$C$150*'HV Retail Bill Inputs'!$C171))+'HV Retail Bill Inputs'!$C171)) -> 0 | P25: =IF($E$16=Lists!$C$4,(('HV Retail Bill Inputs'!$C161*'HV Retail Bill Inputs'!P$149)+('HV Retail Bill Inputs'!Q$28*'HV Retail Bill Inputs'!$C$150*'HV Retail Bill Inputs'!$C161))+'HV Retail Bill Inputs'!$C161,((('HV Retail Bill Inputs'!$C171*'HV Retail Bill Inputs'!P$149)+('HV Retail Bill Inputs'!Q$28*'HV Retail Bill Inputs'!$C$150*'HV Retail Bill Inputs'!$C171))+'HV Retail Bill Inputs'!$C171)) -> 0 | Q25: =IF($E$16=Lists!$C$4,(('HV Retail Bill Inputs'!$C161*'HV Retail Bill Inputs'!Q$149)+('HV Retail Bill Inputs'!R$28*'HV Retail Bill Inputs'!$C$150*'HV Retail Bill Inputs'!$C161))+'HV Retail Bill Inputs'!$C161,((('HV Retail Bill Inputs'!$C171*'HV Retail Bill Inputs'!Q$149)+('HV Retail Bill Inputs'!R$28*'HV Retail Bill Inputs'!$C$150*'HV Retail Bill Inputs'!$C171))+'HV Retail Bill Inputs'!$C171)) -> 0 | R25: =IF($E$16=Lists!$C$4,(('HV Retail Bill Inputs'!$C161*'HV Retail Bill Inputs'!R$149)+('HV Retail Bill Inputs'!S$28*'HV Retail Bill Inputs'!$C$150*'HV Retail Bill Inputs'!$C161))+'HV Retail Bill Inputs'!$C161,((('HV Retail Bill Inputs'!$C171*'HV Retail Bill Inputs'!R$149)+('HV Retail Bill Inputs'!S$28*'HV Retail Bill Inputs'!$C$150*'HV Retail Bill Inputs'!$C171))+'HV Retail Bill Inputs'!$C171)) -> 0 | S25: =IF($E$16=Lists!$C$4,(('HV Retail Bill Inputs'!$C161*'HV Retail Bill Inputs'!S$149)+('HV Retail Bill Inputs'!T$28*'HV Retail Bill Inputs'!$C$150*'HV Retail Bill Inputs'!$C161))+'HV Retail Bill Inputs'!$C161,((('HV Retail Bill Inputs'!$C171*'HV Retail Bill Inputs'!S$149)+('HV Retail Bill Inputs'!T$28*'HV Retail Bill Inputs'!$C$150*'HV Retail Bill Inputs'!$C171))+'HV Retail Bill Inputs'!$C171)) -> 0 | T25: =IF($E$16=Lists!$C$4,(('HV Retail Bill Inputs'!$C161*'HV Retail Bill Inputs'!T$149)+('HV Retail Bill Inputs'!U$28*'HV Retail Bill Inputs'!$C$150*'HV Retail Bill Inputs'!$C161))+'HV Retail Bill Inputs'!$C161,((('HV Retail Bill Inputs'!$C171*'HV Retail Bill Inputs'!T$149)+('HV Retail Bill Inputs'!U$28*'HV Retail Bill Inputs'!$C$150*'HV Retail Bill Inputs'!$C171))+'HV Retail Bill Inputs'!$C171)) -> 0 | U25: =IF($E$16=Lists!$C$4,(('HV Retail Bill Inputs'!$C161*'HV Retail Bill Inputs'!U$149)+('HV Retail Bill Inputs'!V$28*'HV Retail Bill Inputs'!$C$150*'HV Retail Bill Inputs'!$C161))+'HV Retail Bill Inputs'!$C161,((('HV Retail Bill Inputs'!$C171*'HV Retail Bill Inputs'!U$149)+('HV Retail Bill Inputs'!V$28*'HV Retail Bill Inputs'!$C$150*'HV Retail Bill Inputs'!$C171))+'HV Retail Bill Inputs'!$C171)) -> 0 | V25: =IF($E$16=Lists!$C$4,(('HV Retail Bill Inputs'!$C161*'HV Retail Bill Inputs'!V$149)+('HV Retail Bill Inputs'!W$28*'HV Retail Bill Inputs'!$C$150*'HV Retail Bill Inputs'!$C161))+'HV Retail Bill Inputs'!$C161,((('HV Retail Bill Inputs'!$C171*'HV Retail Bill Inputs'!V$149)+('HV Retail Bill Inputs'!W$28*'HV Retail Bill Inputs'!$C$150*'HV Retail Bill Inputs'!$C171))+'HV Retail Bill Inputs'!$C171)) -> 0 | W25: =IF($E$16=Lists!$C$4,(('HV Retail Bill Inputs'!$C161*'HV Retail Bill Inputs'!W$149)+('HV Retail Bill Inputs'!X$28*'HV Retail Bill Inputs'!$C$150*'HV Retail Bill Inputs'!$C161))+'HV Retail Bill Inputs'!$C161,((('HV Retail Bill Inputs'!$C171*'HV Retail Bill Inputs'!W$149)+('HV Retail Bill Inputs'!X$28*'HV Retail Bill Inputs'!$C$150*'HV Retail Bill Inputs'!$C171))+'HV Retail Bill Inputs'!$C171)) -> 0 | X25: =IF($E$16=Lists!$C$4,(('HV Retail Bill Inputs'!$C161*'HV Retail Bill Inputs'!X$149)+('HV Retail Bill Inputs'!Y$28*'HV Retail Bill Inputs'!$C$150*'HV Retail Bill Inputs'!$C161))+'HV Retail Bill Inputs'!$C161,((('HV Retail Bill Inputs'!$C171*'HV Retail Bill Inputs'!X$149)+('HV Retail Bill Inputs'!Y$28*'HV Retail Bill Inputs'!$C$150*'HV Retail Bill Inputs'!$C171))+'HV Retail Bill Inputs'!$C171)) -> 0
B26: Other 2 | C26: =IFERROR(INDEX('Input Sheet'!$C$67:$I$76,MATCH($C$16,'Input Sheet'!$B$67:$B$76,0),MATCH($B26,'Input Sheet'!$C$66:$I$66,0)),0) -> 1246.37 | D26: ='Input Sheet'!$M$73 -> $/kvA | E26: =IF($E$16=Lists!$C$4,(('HV Retail Bill Inputs'!$C162*'HV Retail Bill Inputs'!E$149)+('HV Retail Bill Inputs'!F$28*'HV Retail Bill Inputs'!$C$150*'HV Retail Bill Inputs'!$C162))+'HV Retail Bill Inputs'!$C162,((('HV Retail Bill Inputs'!$C172*'HV Retail Bill Inputs'!E$149)+('HV Retail Bill Inputs'!F$28*'HV Retail Bill Inputs'!$C$150*'HV Retail Bill Inputs'!$C172))+'HV Retail Bill Inputs'!$C172)) -> 63.54 | F26: =IF($E$16=Lists!$C$4,(('HV Retail Bill Inputs'!$C162*'HV Retail Bill Inputs'!F$149)+('HV Retail Bill Inputs'!G$28*'HV Retail Bill Inputs'!$C$150*'HV Retail Bill Inputs'!$C162))+'HV Retail Bill Inputs'!$C162,((('HV Retail Bill Inputs'!$C172*'HV Retail Bill Inputs'!F$149)+('HV Retail Bill Inputs'!G$28*'HV Retail Bill Inputs'!$C$150*'HV Retail Bill Inputs'!$C172))+'HV Retail Bill Inputs'!$C172)) -> 63.54 | G26: =IF($E$16=Lists!$C$4,(('HV Retail Bill Inputs'!$C162*'HV Retail Bill Inputs'!G$149)+('HV Retail Bill Inputs'!H$28*'HV Retail Bill Inputs'!$C$150*'HV Retail Bill Inputs'!$C162))+'HV Retail Bill Inputs'!$C162,((('HV Retail Bill Inputs'!$C172*'HV Retail Bill Inputs'!G$149)+('HV Retail Bill Inputs'!H$28*'HV Retail Bill Inputs'!$C$150*'HV Retail Bill Inputs'!$C172))+'HV Retail Bill Inputs'!$C172)) -> 63.54 | H26: =IF($E$16=Lists!$C$4,(('HV Retail Bill Inputs'!$C162*'HV Retail Bill Inputs'!H$149)+('HV Retail Bill Inputs'!I$28*'HV Retail Bill Inputs'!$C$150*'HV Retail Bill Inputs'!$C162))+'HV Retail Bill Inputs'!$C162,((('HV Retail Bill Inputs'!$C172*'HV Retail Bill Inputs'!H$149)+('HV Retail Bill Inputs'!I$28*'HV Retail Bill Inputs'!$C$150*'HV Retail Bill Inputs'!$C172))+'HV Retail Bill Inputs'!$C172)) -> 63.54 | I26: =IF($E$16=Lists!$C$4,(('HV Retail Bill Inputs'!$C162*'HV Retail Bill Inputs'!I$149)+('HV Retail Bill Inputs'!J$28*'HV Retail Bill Inputs'!$C$150*'HV Retail Bill Inputs'!$C162))+'HV Retail Bill Inputs'!$C162,((('HV Retail Bill Inputs'!$C172*'HV Retail Bill Inputs'!I$149)+('HV Retail Bill Inputs'!J$28*'HV Retail Bill Inputs'!$C$150*'HV Retail Bill Inputs'!$C172))+'HV Retail Bill Inputs'!$C172)) -> 63.54 | J26: =IF($E$16=Lists!$C$4,(('HV Retail Bill Inputs'!$C162*'HV Retail Bill Inputs'!J$149)+('HV Retail Bill Inputs'!K$28*'HV Retail Bill Inputs'!$C$150*'HV Retail Bill Inputs'!$C162))+'HV Retail Bill Inputs'!$C162,((('HV Retail Bill Inputs'!$C172*'HV Retail Bill Inputs'!J$149)+('HV Retail Bill Inputs'!K$28*'HV Retail Bill Inputs'!$C$150*'HV Retail Bill Inputs'!$C172))+'HV Retail Bill Inputs'!$C172)) -> 63.54 | K26: =IF($E$16=Lists!$C$4,(('HV Retail Bill Inputs'!$C162*'HV Retail Bill Inputs'!K$149)+('HV Retail Bill Inputs'!L$28*'HV Retail Bill Inputs'!$C$150*'HV Retail Bill Inputs'!$C162))+'HV Retail Bill Inputs'!$C162,((('HV Retail Bill Inputs'!$C172*'HV Retail Bill Inputs'!K$149)+('HV Retail Bill Inputs'!L$28*'HV Retail Bill Inputs'!$C$150*'HV Retail Bill Inputs'!$C172))+'HV Retail Bill Inputs'!$C172)) -> 63.54 | L26: =IF($E$16=Lists!$C$4,(('HV Retail Bill Inputs'!$C162*'HV Retail Bill Inputs'!L$149)+('HV Retail Bill Inputs'!M$28*'HV Retail Bill Inputs'!$C$150*'HV Retail Bill Inputs'!$C162))+'HV Retail Bill Inputs'!$C162,((('HV Retail Bill Inputs'!$C172*'HV Retail Bill Inputs'!L$149)+('HV Retail Bill Inputs'!M$28*'HV Retail Bill Inputs'!$C$150*'HV Retail Bill Inputs'!$C172))+'HV Retail Bill Inputs'!$C172)) -> 63.54 | M26: =IF($E$16=Lists!$C$4,(('HV Retail Bill Inputs'!$C162*'HV Retail Bill Inputs'!M$149)+('HV Retail Bill Inputs'!N$28*'HV Retail Bill Inputs'!$C$150*'HV Retail Bill Inputs'!$C162))+'HV Retail Bill Inputs'!$C162,((('HV Retail Bill Inputs'!$C172*'HV Retail Bill Inputs'!M$149)+('HV Retail Bill Inputs'!N$28*'HV Retail Bill Inputs'!$C$150*'HV Retail Bill Inputs'!$C172))+'HV Retail Bill Inputs'!$C172)) -> 63.54 | N26: =IF($E$16=Lists!$C$4,(('HV Retail Bill Inputs'!$C162*'HV Retail Bill Inputs'!N$149)+('HV Retail Bill Inputs'!O$28*'HV Retail Bill Inputs'!$C$150*'HV Retail Bill Inputs'!$C162))+'HV Retail Bill Inputs'!$C162,((('HV Retail Bill Inputs'!$C172*'HV Retail Bill Inputs'!N$149)+('HV Retail Bill Inputs'!O$28*'HV Retail Bill Inputs'!$C$150*'HV Retail Bill Inputs'!$C172))+'HV Retail Bill Inputs'!$C172)) -> 63.54 | O26: =IF($E$16=Lists!$C$4,(('HV Retail Bill Inputs'!$C162*'HV Retail Bill Inputs'!O$149)+('HV Retail Bill Inputs'!P$28*'HV Retail Bill Inputs'!$C$150*'HV Retail Bill Inputs'!$C162))+'HV Retail Bill Inputs'!$C162,((('HV Retail Bill Inputs'!$C172*'HV Retail Bill Inputs'!O$149)+('HV Retail Bill Inputs'!P$28*'HV Retail Bill Inputs'!$C$150*'HV Retail Bill Inputs'!$C172))+'HV Retail Bill Inputs'!$C172)) -> 63.54 | P26: =IF($E$16=Lists!$C$4,(('HV Retail Bill Inputs'!$C162*'HV Retail Bill Inputs'!P$149)+('HV Retail Bill Inputs'!Q$28*'HV Retail Bill Inputs'!$C$150*'HV Retail Bill Inputs'!$C162))+'HV Retail Bill Inputs'!$C162,((('HV Retail Bill Inputs'!$C172*'HV Retail Bill Inputs'!P$149)+('HV Retail Bill Inputs'!Q$28*'HV Retail Bill Inputs'!$C$150*'HV Retail Bill Inputs'!$C172))+'HV Retail Bill Inputs'!$C172)) -> 63.54 | Q26: =IF($E$16=Lists!$C$4,(('HV Retail Bill Inputs'!$C162*'HV Retail Bill Inputs'!Q$149)+('HV Retail Bill Inputs'!R$28*'HV Retail Bill Inputs'!$C$150*'HV Retail Bill Inputs'!$C162))+'HV Retail Bill Inputs'!$C162,((('HV Retail Bill Inputs'!$C172*'HV Retail Bill Inputs'!Q$149)+('HV Retail Bill Inputs'!R$28*'HV Retail Bill Inputs'!$C$150*'HV Retail Bill Inputs'!$C172))+'HV Retail Bill Inputs'!$C172)) -> 63.54 | R26: =IF($E$16=Lists!$C$4,(('HV Retail Bill Inputs'!$C162*'HV Retail Bill Inputs'!R$149)+('HV Retail Bill Inputs'!S$28*'HV Retail Bill Inputs'!$C$150*'HV Retail Bill Inputs'!$C162))+'HV Retail Bill Inputs'!$C162,((('HV Retail Bill Inputs'!$C172*'HV Retail Bill Inputs'!R$149)+('HV Retail Bill Inputs'!S$28*'HV Retail Bill Inputs'!$C$150*'HV Retail Bill Inputs'!$C172))+'HV Retail Bill Inputs'!$C172)) -> 63.54 | S26: =IF($E$16=Lists!$C$4,(('HV Retail Bill Inputs'!$C162*'HV Retail Bill Inputs'!S$149)+('HV Retail Bill Inputs'!T$28*'HV Retail Bill Inputs'!$C$150*'HV Retail Bill Inputs'!$C162))+'HV Retail Bill Inputs'!$C162,((('HV Retail Bill Inputs'!$C172*'HV Retail Bill Inputs'!S$149)+('HV Retail Bill Inputs'!T$28*'HV Retail Bill Inputs'!$C$150*'HV Retail Bill Inputs'!$C172))+'HV Retail Bill Inputs'!$C172)) -> 63.54 | T26: =IF($E$16=Lists!$C$4,(('HV Retail Bill Inputs'!$C162*'HV Retail Bill Inputs'!T$149)+('HV Retail Bill Inputs'!U$28*'HV Retail Bill Inputs'!$C$150*'HV Retail Bill Inputs'!$C162))+'HV Retail Bill Inputs'!$C162,((('HV Retail Bill Inputs'!$C172*'HV Retail Bill Inputs'!T$149)+('HV Retail Bill Inputs'!U$28*'HV Retail Bill Inputs'!$C$150*'HV Retail Bill Inputs'!$C172))+'HV Retail Bill Inputs'!$C172)) -> 63.54 | U26: =IF($E$16=Lists!$C$4,(('HV Retail Bill Inputs'!$C162*'HV Retail Bill Inputs'!U$149)+('HV Retail Bill Inputs'!V$28*'HV Retail Bill Inputs'!$C$150*'HV Retail Bill Inputs'!$C162))+'HV Retail Bill Inputs'!$C162,((('HV Retail Bill Inputs'!$C172*'HV Retail Bill Inputs'!U$149)+('HV Retail Bill Inputs'!V$28*'HV Retail Bill Inputs'!$C$150*'HV Retail Bill Inputs'!$C172))+'HV Retail Bill Inputs'!$C172)) -> 63.54 | V26: =IF($E$16=Lists!$C$4,(('HV Retail Bill Inputs'!$C162*'HV Retail Bill Inputs'!V$149)+('HV Retail Bill Inputs'!W$28*'HV Retail Bill Inputs'!$C$150*'HV Retail Bill Inputs'!$C162))+'HV Retail Bill Inputs'!$C162,((('HV Retail Bill Inputs'!$C172*'HV Retail Bill Inputs'!V$149)+('HV Retail Bill Inputs'!W$28*'HV Retail Bill Inputs'!$C$150*'HV Retail Bill Inputs'!$C172))+'HV Retail Bill Inputs'!$C172)) -> 63.54 | W26: =IF($E$16=Lists!$C$4,(('HV Retail Bill Inputs'!$C162*'HV Retail Bill Inputs'!W$149)+('HV Retail Bill Inputs'!X$28*'HV Retail Bill Inputs'!$C$150*'HV Retail Bill Inputs'!$C162))+'HV Retail Bill Inputs'!$C162,((('HV Retail Bill Inputs'!$C172*'HV Retail Bill Inputs'!W$149)+('HV Retail Bill Inputs'!X$28*'HV Retail Bill Inputs'!$C$150*'HV Retail Bill Inputs'!$C172))+'HV Retail Bill Inputs'!$C172)) -> 63.54 | X26: =IF($E$16=Lists!$C$4,(('HV Retail Bill Inputs'!$C162*'HV Retail Bill Inputs'!X$149)+('HV Retail Bill Inputs'!Y$28*'HV Retail Bill Inputs'!$C$150*'HV Retail Bill Inputs'!$C162))+'HV Retail Bill Inputs'!$C162,((('HV Retail Bill Inputs'!$C172*'HV Retail Bill Inputs'!X$149)+('HV Retail Bill Inputs'!Y$28*'HV Retail Bill Inputs'!$C$150*'HV Retail Bill Inputs'!$C172))+'HV Retail Bill Inputs'!$C172)) -> 63.54
D27: Distribution Bill | E27: =SUMPRODUCT(E20:E26,$C20:$C26) -> 807884.5268 | F27: =SUMPRODUCT(F20:F26,$C20:$C26) -> 807884.5268 | G27: =SUMPRODUCT(G20:G26,$C20:$C26) -> 807884.5268 | H27: =SUMPRODUCT(H20:H26,$C20:$C26) -> 807884.5268 | I27: 807884.5268 | J27: 807884.5268 | K27: 807884.5268 | L27: 807884.5268 | M27: 807884.5268 | N27: 807884.5268 | O27: 807884.5268 | P27: 807884.5268 | Q27: 807884.5268 | R27: 807884.5268 | S27: 807884.5268 | T27: 807884.5268 | U27: 807884.5268 | V27: 807884.5268 | W27: 807884.5268 | X27: 807884.5268
D28: NPV | E28: =NPV('Input Sheet'!$C$12,'HV Bill Assumptions'!E27:OFFSET('HV Bill Assumptions'!D27,,'Input Sheet'!$C$7,,)) -> 6430447.574
A30: 3 | B30: Customer Name | C30: =INDEX('Input Sheet'!$B$67:$B$76,'HV Bill Assumptions'!A30) -> HV Customer 3 | E30: =INDEX('Input Sheet'!$J$67:$J$76,'LgeLV Bill Assumptions'!A30) -> Peak/Off Peak
B32: =B18 -> Retail Bill - Spare
B33: =B19 -> Component of Retail Electricity Price | C33: Quantities | D33: Units of Charging | E33: =E19 -> 2020 | F33: =E33+1 -> 2021 | G33: 2022 | H33: 2023 | I33: 2024 | J33: 2025 | K33: 2026 | L33: 2027 | M33: 2028 | N33: 2029 | O33: 2030 | P33: 2031 | Q33: 2032 | R33: 2033 | S33: 2034 | T33: 2035 | U33: 2036 | V33: 2037 | W33: 2038 | X33: 2039
B34: =B20 -> Peak (kWh) | C34: =IFERROR(INDEX('Input Sheet'!$C$67:$I$76,MATCH($C$30,'Input Sheet'!$B$67:$B$76,0),MATCH($B34,'Input Sheet'!$C$66:$I$66,0)),0) -> 151887.61 | D34: ='Input Sheet'!$M$67 -> $/kWh | E34: =IF($E$30=Lists!$C$4,(('HV Retail Bill Inputs'!$C156*'HV Retail Bill Inputs'!E$149)+('HV Retail Bill Inputs'!F$42*'HV Retail Bill Inputs'!$C$150*'HV Retail Bill Inputs'!$C156))+'HV Retail Bill Inputs'!$C156,((('HV Retail Bill Inputs'!$C166*'HV Retail Bill Inputs'!E$149)+('HV Retail Bill Inputs'!F$42*'HV Retail Bill Inputs'!$C$150*'HV Retail Bill Inputs'!$C166))+'HV Retail Bill Inputs'!$C166)) -> 0.187009 | F34: =IF($E$30=Lists!$C$4,(('HV Retail Bill Inputs'!$C156*'HV Retail Bill Inputs'!F$149)+('HV Retail Bill Inputs'!G$42*'HV Retail Bill Inputs'!$C$150*'HV Retail Bill Inputs'!$C156))+'HV Retail Bill Inputs'!$C156,((('HV Retail Bill Inputs'!$C166*'HV Retail Bill Inputs'!F$149)+('HV Retail Bill Inputs'!G$42*'HV Retail Bill Inputs'!$C$150*'HV Retail Bill Inputs'!$C166))+'HV Retail Bill Inputs'!$C166)) -> 0.187009 | G34: =IF($E$30=Lists!$C$4,(('HV Retail Bill Inputs'!$C156*'HV Retail Bill Inputs'!G$149)+('HV Retail Bill Inputs'!H$42*'HV Retail Bill Inputs'!$C$150*'HV Retail Bill Inputs'!$C156))+'HV Retail Bill Inputs'!$C156,((('HV Retail Bill Inputs'!$C166*'HV Retail Bill Inputs'!G$149)+('HV Retail Bill Inputs'!H$42*'HV Retail Bill Inputs'!$C$150*'HV Retail Bill Inputs'!$C166))+'HV Retail Bill Inputs'!$C166)) -> 0.187009 | H34: =IF($E$30=Lists!$C$4,(('HV Retail Bill Inputs'!$C156*'HV Retail Bill Inputs'!H$149)+('HV Retail Bill Inputs'!I$42*'HV Retail Bill Inputs'!$C$150*'HV Retail Bill Inputs'!$C156))+'HV Retail Bill Inputs'!$C156,((('HV Retail Bill Inputs'!$C166*'HV Retail Bill Inputs'!H$149)+('HV Retail Bill Inputs'!I$42*'HV Retail Bill Inputs'!$C$150*'HV Retail Bill Inputs'!$C166))+'HV Retail Bill Inputs'!$C166)) -> 0.187009 | I34: =IF($E$30=Lists!$C$4,(('HV Retail Bill Inputs'!$C156*'HV Retail Bill Inputs'!I$149)+('HV Retail Bill Inputs'!J$42*'HV Retail Bill Inputs'!$C$150*'HV Retail Bill Inputs'!$C156))+'HV Retail Bill Inputs'!$C156,((('HV Retail Bill Inputs'!$C166*'HV Retail Bill Inputs'!I$149)+('HV Retail Bill Inputs'!J$42*'HV Retail Bill Inputs'!$C$150*'HV Retail Bill Inputs'!$C166))+'HV Retail Bill Inputs'!$C166)) -> 0.187009 | J34: =IF($E$30=Lists!$C$4,(('HV Retail Bill Inputs'!$C156*'HV Retail Bill Inputs'!J$149)+('HV Retail Bill Inputs'!K$42*'HV Retail Bill Inputs'!$C$150*'HV Retail Bill Inputs'!$C156))+'HV Retail Bill Inputs'!$C156,((('HV Retail Bill Inputs'!$C166*'HV Retail Bill Inputs'!J$149)+('HV Retail Bill Inputs'!K$42*'HV Retail Bill Inputs'!$C$150*'HV Retail Bill Inputs'!$C166))+'HV Retail Bill Inputs'!$C166)) -> 0.187009 | K34: =IF($E$30=Lists!$C$4,(('HV Retail Bill Inputs'!$C156*'HV Retail Bill Inputs'!K$149)+('HV Retail Bill Inputs'!L$42*'HV Retail Bill Inputs'!$C$150*'HV Retail Bill Inputs'!$C156))+'HV Retail Bill Inputs'!$C156,((('HV Retail Bill Inputs'!$C166*'HV Retail Bill Inputs'!K$149)+('HV Retail Bill Inputs'!L$42*'HV Retail Bill Inputs'!$C$150*'HV Retail Bill Inputs'!$C166))+'HV Retail Bill Inputs'!$C166)) -> 0.187009 | L34: =IF($E$30=Lists!$C$4,(('HV Retail Bill Inputs'!$C156*'HV Retail Bill Inputs'!L$149)+('HV Retail Bill Inputs'!M$42*'HV Retail Bill Inputs'!$C$150*'HV Retail Bill Inputs'!$C156))+'HV Retail Bill Inputs'!$C156,((('HV Retail Bill Inputs'!$C166*'HV Retail Bill Inputs'!L$149)+('HV Retail Bill Inputs'!M$42*'HV Retail Bill Inputs'!$C$150*'HV Retail Bill Inputs'!$C166))+'HV Retail Bill Inputs'!$C166)) -> 0.187009 | M34: =IF($E$30=Lists!$C$4,(('HV Retail Bill Inputs'!$C156*'HV Retail Bill Inputs'!M$149)+('HV Retail Bill Inputs'!N$42*'HV Retail Bill Inputs'!$C$150*'HV Retail Bill Inputs'!$C156))+'HV Retail Bill Inputs'!$C156,((('HV Retail Bill Inputs'!$C166*'HV Retail Bill Inputs'!M$149)+('HV Retail Bill Inputs'!N$42*'HV Retail Bill Inputs'!$C$150*'HV Retail Bill Inputs'!$C166))+'HV Retail Bill Inputs'!$C166)) -> 0.187009 | N34: =IF($E$30=Lists!$C$4,(('HV Retail Bill Inputs'!$C156*'HV Retail Bill Inputs'!N$149)+('HV Retail Bill Inputs'!O$42*'HV Retail Bill Inputs'!$C$150*'HV Retail Bill Inputs'!$C156))+'HV Retail Bill Inputs'!$C156,((('HV Retail Bill Inputs'!$C166*'HV Retail Bill Inputs'!N$149)+('HV Retail Bill Inputs'!O$42*'HV Retail Bill Inputs'!$C$150*'HV Retail Bill Inputs'!$C166))+'HV Retail Bill Inputs'!$C166)) -> 0.187009 | O34: =IF($E$30=Lists!$C$4,(('HV Retail Bill Inputs'!$C156*'HV Retail Bill Inputs'!O$149)+('HV Retail Bill Inputs'!P$42*'HV Retail Bill Inputs'!$C$150*'HV Retail Bill Inputs'!$C156))+'HV Retail Bill Inputs'!$C156,((('HV Retail Bill Inputs'!$C166*'HV Retail Bill Inputs'!O$149)+('HV Retail Bill Inputs'!P$42*'HV Retail Bill Inputs'!$C$150*'HV Retail Bill Inputs'!$C166))+'HV Retail Bill Inputs'!$C166)) -> 0.187009 | P34: =IF($E$30=Lists!$C$4,(('HV Retail Bill Inputs'!$C156*'HV Retail Bill Inputs'!P$149)+('HV Retail Bill Inputs'!Q$42*'HV Retail Bill Inputs'!$C$150*'HV Retail Bill Inputs'!$C156))+'HV Retail Bill Inputs'!$C156,((('HV Retail Bill Inputs'!$C166*'HV Retail Bill Inputs'!P$149)+('HV Retail Bill Inputs'!Q$42*'HV Retail Bill Inputs'!$C$150*'HV Retail Bill Inputs'!$C166))+'HV Retail Bill Inputs'!$C166)) -> 0.187009 | Q34: =IF($E$30=Lists!$C$4,(('HV Retail Bill Inputs'!$C156*'HV Retail Bill Inputs'!Q$149)+('HV Retail Bill Inputs'!R$42*'HV Retail Bill Inputs'!$C$150*'HV Retail Bill Inputs'!$C156))+'HV Retail Bill Inputs'!$C156,((('HV Retail Bill Inputs'!$C166*'HV Retail Bill Inputs'!Q$149)+('HV Retail Bill Inputs'!R$42*'HV Retail Bill Inputs'!$C$150*'HV Retail Bill Inputs'!$C166))+'HV Retail Bill Inputs'!$C166)) -> 0.187009 | R34: =IF($E$30=Lists!$C$4,(('HV Retail Bill Inputs'!$C156*'HV Retail Bill Inputs'!R$149)+('HV Retail Bill Inputs'!S$42*'HV Retail Bill Inputs'!$C$150*'HV Retail Bill Inputs'!$C156))+'HV Retail Bill Inputs'!$C156,((('HV Retail Bill Inputs'!$C166*'HV Retail Bill Inputs'!R$149)+('HV Retail Bill Inputs'!S$42*'HV Retail Bill Inputs'!$C$150*'HV Retail Bill Inputs'!$C166))+'HV Retail Bill Inputs'!$C166)) -> 0.187009 | S34: =IF($E$30=Lists!$C$4,(('HV Retail Bill Inputs'!$C156*'HV Retail Bill Inputs'!S$149)+('HV Retail Bill Inputs'!T$42*'HV Retail Bill Inputs'!$C$150*'HV Retail Bill Inputs'!$C156))+'HV Retail Bill Inputs'!$C156,((('HV Retail Bill Inputs'!$C166*'HV Retail Bill Inputs'!S$149)+('HV Retail Bill Inputs'!T$42*'HV Retail Bill Inputs'!$C$150*'HV Retail Bill Inputs'!$C166))+'HV Retail Bill Inputs'!$C166)) -> 0.187009 | T34: =IF($E$30=Lists!$C$4,(('HV Retail Bill Inputs'!$C156*'HV Retail Bill Inputs'!T$149)+('HV Retail Bill Inputs'!U$42*'HV Retail Bill Inputs'!$C$150*'HV Retail Bill Inputs'!$C156))+'HV Retail Bill Inputs'!$C156,((('HV Retail Bill Inputs'!$C166*'HV Retail Bill Inputs'!T$149)+('HV Retail Bill Inputs'!U$42*'HV Retail Bill Inputs'!$C$150*'HV Retail Bill Inputs'!$C166))+'HV Retail Bill Inputs'!$C166)) -> 0.187009 | U34: =IF($E$30=Lists!$C$4,(('HV Retail Bill Inputs'!$C156*'HV Retail Bill Inputs'!U$149)+('HV Retail Bill Inputs'!V$42*'HV Retail Bill Inputs'!$C$150*'HV Retail Bill Inputs'!$C156))+'HV Retail Bill Inputs'!$C156,((('HV Retail Bill Inputs'!$C166*'HV Retail Bill Inputs'!U$149)+('HV Retail Bill Inputs'!V$42*'HV Retail Bill Inputs'!$C$150*'HV Retail Bill Inputs'!$C166))+'HV Retail Bill Inputs'!$C166)) -> 0.187009 | V34: =IF($E$30=Lists!$C$4,(('HV Retail Bill Inputs'!$C156*'HV Retail Bill Inputs'!V$149)+('HV Retail Bill Inputs'!W$42*'HV Retail Bill Inputs'!$C$150*'HV Retail Bill Inputs'!$C156))+'HV Retail Bill Inputs'!$C156,((('HV Retail Bill Inputs'!$C166*'HV Retail Bill Inputs'!V$149)+('HV Retail Bill Inputs'!W$42*'HV Retail Bill Inputs'!$C$150*'HV Retail Bill Inputs'!$C166))+'HV Retail Bill Inputs'!$C166)) -> 0.187009 | W34: =IF($E$30=Lists!$C$4,(('HV Retail Bill Inputs'!$C156*'HV Retail Bill Inputs'!W$149)+('HV Retail Bill Inputs'!X$42*'HV Retail Bill Inputs'!$C$150*'HV Retail Bill Inputs'!$C156))+'HV Retail Bill Inputs'!$C156,((('HV Retail Bill Inputs'!$C166*'HV Retail Bill Inputs'!W$149)+('HV Retail Bill Inputs'!X$42*'HV Retail Bill Inputs'!$C$150*'HV Retail Bill Inputs'!$C166))+'HV Retail Bill Inputs'!$C166)) -> 0.187009 | X34: =IF($E$30=Lists!$C$4,(('HV Retail Bill Inputs'!$C156*'HV Retail Bill Inputs'!X$149)+('HV Retail Bill Inputs'!Y$42*'HV Retail Bill Inputs'!$C$150*'HV Retail Bill Inputs'!$C156))+'HV Retail Bill Inputs'!$C156,((('HV Retail Bill Inputs'!$C166*'HV Retail Bill Inputs'!X$149)+('HV Retail Bill Inputs'!Y$42*'HV Retail Bill Inputs'!$C$150*'HV Retail Bill Inputs'!$C166))+'HV Retail Bill Inputs'!$C166)) -> 0.187009
B35: =B21 -> Shoulder (kWh) | C35: =IFERROR(INDEX('Input Sheet'!$C$67:$I$76,MATCH($C$30,'Input Sheet'!$B$67:$B$76,0),MATCH($B35,'Input Sheet'!$C$66:$I$66,0)),0) -> 200955.64 | D35: ='Input Sheet'!$M$68 -> $/kWh | E35: =IF($E$30=Lists!$C$4,(('HV Retail Bill Inputs'!$C157*'HV Retail Bill Inputs'!E$149)+('HV Retail Bill Inputs'!F$42*'HV Retail Bill Inputs'!$C$150*'HV Retail Bill Inputs'!$C157))+'HV Retail Bill Inputs'!$C157,((('HV Retail Bill Inputs'!$C167*'HV Retail Bill Inputs'!E$149)+('HV Retail Bill Inputs'!F$42*'HV Retail Bill Inputs'!$C$150*'HV Retail Bill Inputs'!$C167))+'HV Retail Bill Inputs'!$C167)) -> 0.124267 | F35: =IF($E$30=Lists!$C$4,(('HV Retail Bill Inputs'!$C157*'HV Retail Bill Inputs'!F$149)+('HV Retail Bill Inputs'!G$42*'HV Retail Bill Inputs'!$C$150*'HV Retail Bill Inputs'!$C157))+'HV Retail Bill Inputs'!$C157,((('HV Retail Bill Inputs'!$C167*'HV Retail Bill Inputs'!F$149)+('HV Retail Bill Inputs'!G$42*'HV Retail Bill Inputs'!$C$150*'HV Retail Bill Inputs'!$C167))+'HV Retail Bill Inputs'!$C167)) -> 0.124267 | G35: =IF($E$30=Lists!$C$4,(('HV Retail Bill Inputs'!$C157*'HV Retail Bill Inputs'!G$149)+('HV Retail Bill Inputs'!H$42*'HV Retail Bill Inputs'!$C$150*'HV Retail Bill Inputs'!$C157))+'HV Retail Bill Inputs'!$C157,((('HV Retail Bill Inputs'!$C167*'HV Retail Bill Inputs'!G$149)+('HV Retail Bill Inputs'!H$42*'HV Retail Bill Inputs'!$C$150*'HV Retail Bill Inputs'!$C167))+'HV Retail Bill Inputs'!$C167)) -> 0.124267 | H35: =IF($E$30=Lists!$C$4,(('HV Retail Bill Inputs'!$C157*'HV Retail Bill Inputs'!H$149)+('HV Retail Bill Inputs'!I$42*'HV Retail Bill Inputs'!$C$150*'HV Retail Bill Inputs'!$C157))+'HV Retail Bill Inputs'!$C157,((('HV Retail Bill Inputs'!$C167*'HV Retail Bill Inputs'!H$149)+('HV Retail Bill Inputs'!I$42*'HV Retail Bill Inputs'!$C$150*'HV Retail Bill Inputs'!$C167))+'HV Retail Bill Inputs'!$C167)) -> 0.124267 | I35: =IF($E$30=Lists!$C$4,(('HV Retail Bill Inputs'!$C157*'HV Retail Bill Inputs'!I$149)+('HV Retail Bill Inputs'!J$42*'HV Retail Bill Inputs'!$C$150*'HV Retail Bill Inputs'!$C157))+'HV Retail Bill Inputs'!$C157,((('HV Retail Bill Inputs'!$C167*'HV Retail Bill Inputs'!I$149)+('HV Retail Bill Inputs'!J$42*'HV Retail Bill Inputs'!$C$150*'HV Retail Bill Inputs'!$C167))+'HV Retail Bill Inputs'!$C167)) -> 0.124267 | J35: =IF($E$30=Lists!$C$4,(('HV Retail Bill Inputs'!$C157*'HV Retail Bill Inputs'!J$149)+('HV Retail Bill Inputs'!K$42*'HV Retail Bill Inputs'!$C$150*'HV Retail Bill Inputs'!$C157))+'HV Retail Bill Inputs'!$C157,((('HV Retail Bill Inputs'!$C167*'HV Retail Bill Inputs'!J$149)+('HV Retail Bill Inputs'!K$42*'HV Retail Bill Inputs'!$C$150*'HV Retail Bill Inputs'!$C167))+'HV Retail Bill Inputs'!$C167)) -> 0.124267 | K35: =IF($E$30=Lists!$C$4,(('HV Retail Bill Inputs'!$C157*'HV Retail Bill Inputs'!K$149)+('HV Retail Bill Inputs'!L$42*'HV Retail Bill Inputs'!$C$150*'HV Retail Bill Inputs'!$C157))+'HV Retail Bill Inputs'!$C157,((('HV Retail Bill Inputs'!$C167*'HV Retail Bill Inputs'!K$149)+('HV Retail Bill Inputs'!L$42*'HV Retail Bill Inputs'!$C$150*'HV Retail Bill Inputs'!$C167))+'HV Retail Bill Inputs'!$C167)) -> 0.124267 | L35: =IF($E$30=Lists!$C$4,(('HV Retail Bill Inputs'!$C157*'HV Retail Bill Inputs'!L$149)+('HV Retail Bill Inputs'!M$42*'HV Retail Bill Inputs'!$C$150*'HV Retail Bill Inputs'!$C157))+'HV Retail Bill Inputs'!$C157,((('HV Retail Bill Inputs'!$C167*'HV Retail Bill Inputs'!L$149)+('HV Retail Bill Inputs'!M$42*'HV Retail Bill Inputs'!$C$150*'HV Retail Bill Inputs'!$C167))+'HV Retail Bill Inputs'!$C167)) -> 0.124267 | M35: =IF($E$30=Lists!$C$4,(('HV Retail Bill Inputs'!$C157*'HV Retail Bill Inputs'!M$149)+('HV Retail Bill Inputs'!N$42*'HV Retail Bill Inputs'!$C$150*'HV Retail Bill Inputs'!$C157))+'HV Retail Bill Inputs'!$C157,((('HV Retail Bill Inputs'!$C167*'HV Retail Bill Inputs'!M$149)+('HV Retail Bill Inputs'!N$42*'HV Retail Bill Inputs'!$C$150*'HV Retail Bill Inputs'!$C167))+'HV Retail Bill Inputs'!$C167)) -> 0.124267 | N35: =IF($E$30=Lists!$C$4,(('HV Retail Bill Inputs'!$C157*'HV Retail Bill Inputs'!N$149)+('HV Retail Bill Inputs'!O$42*'HV Retail Bill Inputs'!$C$150*'HV Retail Bill Inputs'!$C157))+'HV Retail Bill Inputs'!$C157,((('HV Retail Bill Inputs'!$C167*'HV Retail Bill Inputs'!N$149)+('HV Retail Bill Inputs'!O$42*'HV Retail Bill Inputs'!$C$150*'HV Retail Bill Inputs'!$C167))+'HV Retail Bill Inputs'!$C167)) -> 0.124267 | O35: =IF($E$30=Lists!$C$4,(('HV Retail Bill Inputs'!$C157*'HV Retail Bill Inputs'!O$149)+('HV Retail Bill Inputs'!P$42*'HV Retail Bill Inputs'!$C$150*'HV Retail Bill Inputs'!$C157))+'HV Retail Bill Inputs'!$C157,((('HV Retail Bill Inputs'!$C167*'HV Retail Bill Inputs'!O$149)+('HV Retail Bill Inputs'!P$42*'HV Retail Bill Inputs'!$C$150*'HV Retail Bill Inputs'!$C167))+'HV Retail Bill Inputs'!$C167)) -> 0.124267 | P35: =IF($E$30=Lists!$C$4,(('HV Retail Bill Inputs'!$C157*'HV Retail Bill Inputs'!P$149)+('HV Retail Bill Inputs'!Q$42*'HV Retail Bill Inputs'!$C$150*'HV Retail Bill Inputs'!$C157))+'HV Retail Bill Inputs'!$C157,((('HV Retail Bill Inputs'!$C167*'HV Retail Bill Inputs'!P$149)+('HV Retail Bill Inputs'!Q$42*'HV Retail Bill Inputs'!$C$150*'HV Retail Bill Inputs'!$C167))+'HV Retail Bill Inputs'!$C167)) -> 0.124267 | Q35: =IF($E$30=Lists!$C$4,(('HV Retail Bill Inputs'!$C157*'HV Retail Bill Inputs'!Q$149)+('HV Retail Bill Inputs'!R$42*'HV Retail Bill Inputs'!$C$150*'HV Retail Bill Inputs'!$C157))+'HV Retail Bill Inputs'!$C157,((('HV Retail Bill Inputs'!$C167*'HV Retail Bill Inputs'!Q$149)+('HV Retail Bill Inputs'!R$42*'HV Retail Bill Inputs'!$C$150*'HV Retail Bill Inputs'!$C167))+'HV Retail Bill Inputs'!$C167)) -> 0.124267 | R35: =IF($E$30=Lists!$C$4,(('HV Retail Bill Inputs'!$C157*'HV Retail Bill Inputs'!R$149)+('HV Retail Bill Inputs'!S$42*'HV Retail Bill Inputs'!$C$150*'HV Retail Bill Inputs'!$C157))+'HV Retail Bill Inputs'!$C157,((('HV Retail Bill Inputs'!$C167*'HV Retail Bill Inputs'!R$149)+('HV Retail Bill Inputs'!S$42*'HV Retail Bill Inputs'!$C$150*'HV Retail Bill Inputs'!$C167))+'HV Retail Bill Inputs'!$C167)) -> 0.124267 | S35: =IF($E$30=Lists!$C$4,(('HV Retail Bill Inputs'!$C157*'HV Retail Bill Inputs'!S$149)+('HV Retail Bill Inputs'!T$42*'HV Retail Bill Inputs'!$C$150*'HV Retail Bill Inputs'!$C157))+'HV Retail Bill Inputs'!$C157,((('HV Retail Bill Inputs'!$C167*'HV Retail Bill Inputs'!S$149)+('HV Retail Bill Inputs'!T$42*'HV Retail Bill Inputs'!$C$150*'HV Retail Bill Inputs'!$C167))+'HV Retail Bill Inputs'!$C167)) -> 0.124267 | T35: =IF($E$30=Lists!$C$4,(('HV Retail Bill Inputs'!$C157*'HV Retail Bill Inputs'!T$149)+('HV Retail Bill Inputs'!U$42*'HV Retail Bill Inputs'!$C$150*'HV Retail Bill Inputs'!$C157))+'HV Retail Bill Inputs'!$C157,((('HV Retail Bill Inputs'!$C167*'HV Retail Bill Inputs'!T$149)+('HV Retail Bill Inputs'!U$42*'HV Retail Bill Inputs'!$C$150*'HV Retail Bill Inputs'!$C167))+'HV Retail Bill Inputs'!$C167)) -> 0.124267 | U35: =IF($E$30=Lists!$C$4,(('HV Retail Bill Inputs'!$C157*'HV Retail Bill Inputs'!U$149)+('HV Retail Bill Inputs'!V$42*'HV Retail Bill Inputs'!$C$150*'HV Retail Bill Inputs'!$C157))+'HV Retail Bill Inputs'!$C157,((('HV Retail Bill Inputs'!$C167*'HV Retail Bill Inputs'!U$149)+('HV Retail Bill Inputs'!V$42*'HV Retail Bill Inputs'!$C$150*'HV Retail Bill Inputs'!$C167))+'HV Retail Bill Inputs'!$C167)) -> 0.124267 | V35: =IF($E$30=Lists!$C$4,(('HV Retail Bill Inputs'!$C157*'HV Retail Bill Inputs'!V$149)+('HV Retail Bill Inputs'!W$42*'HV Retail Bill Inputs'!$C$150*'HV Retail Bill Inputs'!$C157))+'HV Retail Bill Inputs'!$C157,((('HV Retail Bill Inputs'!$C167*'HV Retail Bill Inputs'!V$149)+('HV Retail Bill Inputs'!W$42*'HV Retail Bill Inputs'!$C$150*'HV Retail Bill Inputs'!$C167))+'HV Retail Bill Inputs'!$C167)) -> 0.124267 | W35: =IF($E$30=Lists!$C$4,(('HV Retail Bill Inputs'!$C157*'HV Retail Bill Inputs'!W$149)+('HV Retail Bill Inputs'!X$42*'HV Retail Bill Inputs'!$C$150*'HV Retail Bill Inputs'!$C157))+'HV Retail Bill Inputs'!$C157,((('HV Retail Bill Inputs'!$C167*'HV Retail Bill Inputs'!W$149)+('HV Retail Bill Inputs'!X$42*'HV Retail Bill Inputs'!$C$150*'HV Retail Bill Inputs'!$C167))+'HV Retail Bill Inputs'!$C167)) -> 0.124267 | X35: =IF($E$30=Lists!$C$4,(('HV Retail Bill Inputs'!$C157*'HV Retail Bill Inputs'!X$149)+('HV Retail Bill Inputs'!Y$42*'HV Retail Bill Inputs'!$C$150*'HV Retail Bill Inputs'!$C157))+'HV Retail Bill Inputs'!$C157,((('HV Retail Bill Inputs'!$C167*'HV Retail Bill Inputs'!X$149)+('HV Retail Bill Inputs'!Y$42*'HV Retail Bill Inputs'!$C$150*'HV Retail Bill Inputs'!$C167))+'HV Retail Bill Inputs'!$C167)) -> 0.124267
B36: Off Peak (kWH) | C36: =IFERROR(INDEX('Input Sheet'!$C$67:$I$76,MATCH($C$30,'Input Sheet'!$B$67:$B$76,0),MATCH($B36,'Input Sheet'!$C$66:$I$66,0)),0) -> 113575.8 | D36: ='Input Sheet'!$M$69 -> $/kWh | E36: =IF($E$30=Lists!$C$4,(('HV Retail Bill Inputs'!$C158*'HV Retail Bill Inputs'!E$149)+('HV Retail Bill Inputs'!F$42*'HV Retail Bill Inputs'!$C$150*'HV Retail Bill Inputs'!$C158))+'HV Retail Bill Inputs'!$C158,((('HV Retail Bill Inputs'!$C168*'HV Retail Bill Inputs'!E$149)+('HV Retail Bill Inputs'!F$42*'HV Retail Bill Inputs'!$C$150*'HV Retail Bill Inputs'!$C168))+'HV Retail Bill Inputs'!$C168)) -> 0.0810886 | F36: =IF($E$30=Lists!$C$4,(('HV Retail Bill Inputs'!$C158*'HV Retail Bill Inputs'!F$149)+('HV Retail Bill Inputs'!G$42*'HV Retail Bill Inputs'!$C$150*'HV Retail Bill Inputs'!$C158))+'HV Retail Bill Inputs'!$C158,((('HV Retail Bill Inputs'!$C168*'HV Retail Bill Inputs'!F$149)+('HV Retail Bill Inputs'!G$42*'HV Retail Bill Inputs'!$C$150*'HV Retail Bill Inputs'!$C168))+'HV Retail Bill Inputs'!$C168)) -> 0.0810886 | G36: =IF($E$30=Lists!$C$4,(('HV Retail Bill Inputs'!$C158*'HV Retail Bill Inputs'!G$149)+('HV Retail Bill Inputs'!H$42*'HV Retail Bill Inputs'!$C$150*'HV Retail Bill Inputs'!$C158))+'HV Retail Bill Inputs'!$C158,((('HV Retail Bill Inputs'!$C168*'HV Retail Bill Inputs'!G$149)+('HV Retail Bill Inputs'!H$42*'HV Retail Bill Inputs'!$C$150*'HV Retail Bill Inputs'!$C168))+'HV Retail Bill Inputs'!$C168)) -> 0.0810886 | H36: =IF($E$30=Lists!$C$4,(('HV Retail Bill Inputs'!$C158*'HV Retail Bill Inputs'!H$149)+('HV Retail Bill Inputs'!I$42*'HV Retail Bill Inputs'!$C$150*'HV Retail Bill Inputs'!$C158))+'HV Retail Bill Inputs'!$C158,((('HV Retail Bill Inputs'!$C168*'HV Retail Bill Inputs'!H$149)+('HV Retail Bill Inputs'!I$42*'HV Retail Bill Inputs'!$C$150*'HV Retail Bill Inputs'!$C168))+'HV Retail Bill Inputs'!$C168)) -> 0.0810886 | I36: =IF($E$30=Lists!$C$4,(('HV Retail Bill Inputs'!$C158*'HV Retail Bill Inputs'!I$149)+('HV Retail Bill Inputs'!J$42*'HV Retail Bill Inputs'!$C$150*'HV Retail Bill Inputs'!$C158))+'HV Retail Bill Inputs'!$C158,((('HV Retail Bill Inputs'!$C168*'HV Retail Bill Inputs'!I$149)+('HV Retail Bill Inputs'!J$42*'HV Retail Bill Inputs'!$C$150*'HV Retail Bill Inputs'!$C168))+'HV Retail Bill Inputs'!$C168)) -> 0.0810886 | J36: =IF($E$30=Lists!$C$4,(('HV Retail Bill Inputs'!$C158*'HV Retail Bill Inputs'!J$149)+('HV Retail Bill Inputs'!K$42*'HV Retail Bill Inputs'!$C$150*'HV Retail Bill Inputs'!$C158))+'HV Retail Bill Inputs'!$C158,((('HV Retail Bill Inputs'!$C168*'HV Retail Bill Inputs'!J$149)+('HV Retail Bill Inputs'!K$42*'HV Retail Bill Inputs'!$C$150*'HV Retail Bill Inputs'!$C168))+'HV Retail Bill Inputs'!$C168)) -> 0.0810886 | K36: =IF($E$30=Lists!$C$4,(('HV Retail Bill Inputs'!$C158*'HV Retail Bill Inputs'!K$149)+('HV Retail Bill Inputs'!L$42*'HV Retail Bill Inputs'!$C$150*'HV Retail Bill Inputs'!$C158))+'HV Retail Bill Inputs'!$C158,((('HV Retail Bill Inputs'!$C168*'HV Retail Bill Inputs'!K$149)+('HV Retail Bill Inputs'!L$42*'HV Retail Bill Inputs'!$C$150*'HV Retail Bill Inputs'!$C168))+'HV Retail Bill Inputs'!$C168)) -> 0.0810886 | L36: =IF($E$30=Lists!$C$4,(('HV Retail Bill Inputs'!$C158*'HV Retail Bill Inputs'!L$149)+('HV Retail Bill Inputs'!M$42*'HV Retail Bill Inputs'!$C$150*'HV Retail Bill Inputs'!$C158))+'HV Retail Bill Inputs'!$C158,((('HV Retail Bill Inputs'!$C168*'HV Retail Bill Inputs'!L$149)+('HV Retail Bill Inputs'!M$42*'HV Retail Bill Inputs'!$C$150*'HV Retail Bill Inputs'!$C168))+'HV Retail Bill Inputs'!$C168)) -> 0.0810886 | M36: =IF($E$30=Lists!$C$4,(('HV Retail Bill Inputs'!$C158*'HV Retail Bill Inputs'!M$149)+('HV Retail Bill Inputs'!N$42*'HV Retail Bill Inputs'!$C$150*'HV Retail Bill Inputs'!$C158))+'HV Retail Bill Inputs'!$C158,((('HV Retail Bill Inputs'!$C168*'HV Retail Bill Inputs'!M$149)+('HV Retail Bill Inputs'!N$42*'HV Retail Bill Inputs'!$C$150*'HV Retail Bill Inputs'!$C168))+'HV Retail Bill Inputs'!$C168)) -> 0.0810886 | N36: =IF($E$30=Lists!$C$4,(('HV Retail Bill Inputs'!$C158*'HV Retail Bill Inputs'!N$149)+('HV Retail Bill Inputs'!O$42*'HV Retail Bill Inputs'!$C$150*'HV Retail Bill Inputs'!$C158))+'HV Retail Bill Inputs'!$C158,((('HV Retail Bill Inputs'!$C168*'HV Retail Bill Inputs'!N$149)+('HV Retail Bill Inputs'!O$42*'HV Retail Bill Inputs'!$C$150*'HV Retail Bill Inputs'!$C168))+'HV Retail Bill Inputs'!$C168)) -> 0.0810886 | O36: =IF($E$30=Lists!$C$4,(('HV Retail Bill Inputs'!$C158*'HV Retail Bill Inputs'!O$149)+('HV Retail Bill Inputs'!P$42*'HV Retail Bill Inputs'!$C$150*'HV Retail Bill Inputs'!$C158))+'HV Retail Bill Inputs'!$C158,((('HV Retail Bill Inputs'!$C168*'HV Retail Bill Inputs'!O$149)+('HV Retail Bill Inputs'!P$42*'HV Retail Bill Inputs'!$C$150*'HV Retail Bill Inputs'!$C168))+'HV Retail Bill Inputs'!$C168)) -> 0.0810886 | P36: =IF($E$30=Lists!$C$4,(('HV Retail Bill Inputs'!$C158*'HV Retail Bill Inputs'!P$149)+('HV Retail Bill Inputs'!Q$42*'HV Retail Bill Inputs'!$C$150*'HV Retail Bill Inputs'!$C158))+'HV Retail Bill Inputs'!$C158,((('HV Retail Bill Inputs'!$C168*'HV Retail Bill Inputs'!P$149)+('HV Retail Bill Inputs'!Q$42*'HV Retail Bill Inputs'!$C$150*'HV Retail Bill Inputs'!$C168))+'HV Retail Bill Inputs'!$C168)) -> 0.0810886 | Q36: =IF($E$30=Lists!$C$4,(('HV Retail Bill Inputs'!$C158*'HV Retail Bill Inputs'!Q$149)+('HV Retail Bill Inputs'!R$42*'HV Retail Bill Inputs'!$C$150*'HV Retail Bill Inputs'!$C158))+'HV Retail Bill Inputs'!$C158,((('HV Retail Bill Inputs'!$C168*'HV Retail Bill Inputs'!Q$149)+('HV Retail Bill Inputs'!R$42*'HV Retail Bill Inputs'!$C$150*'HV Retail Bill Inputs'!$C168))+'HV Retail Bill Inputs'!$C168)) -> 0.0810886 | R36: =IF($E$30=Lists!$C$4,(('HV Retail Bill Inputs'!$C158*'HV Retail Bill Inputs'!R$149)+('HV Retail Bill Inputs'!S$42*'HV Retail Bill Inputs'!$C$150*'HV Retail Bill Inputs'!$C158))+'HV Retail Bill Inputs'!$C158,((('HV Retail Bill Inputs'!$C168*'HV Retail Bill Inputs'!R$149)+('HV Retail Bill Inputs'!S$42*'HV Retail Bill Inputs'!$C$150*'HV Retail Bill Inputs'!$C168))+'HV Retail Bill Inputs'!$C168)) -> 0.0810886 | S36: =IF($E$30=Lists!$C$4,(('HV Retail Bill Inputs'!$C158*'HV Retail Bill Inputs'!S$149)+('HV Retail Bill Inputs'!T$42*'HV Retail Bill Inputs'!$C$150*'HV Retail Bill Inputs'!$C158))+'HV Retail Bill Inputs'!$C158,((('HV Retail Bill Inputs'!$C168*'HV Retail Bill Inputs'!S$149)+('HV Retail Bill Inputs'!T$42*'HV Retail Bill Inputs'!$C$150*'HV Retail Bill Inputs'!$C168))+'HV Retail Bill Inputs'!$C168)) -> 0.0810886 | T36: =IF($E$30=Lists!$C$4,(('HV Retail Bill Inputs'!$C158*'HV Retail Bill Inputs'!T$149)+('HV Retail Bill Inputs'!U$42*'HV Retail Bill Inputs'!$C$150*'HV Retail Bill Inputs'!$C158))+'HV Retail Bill Inputs'!$C158,((('HV Retail Bill Inputs'!$C168*'HV Retail Bill Inputs'!T$149)+('HV Retail Bill Inputs'!U$42*'HV Retail Bill Inputs'!$C$150*'HV Retail Bill Inputs'!$C168))+'HV Retail Bill Inputs'!$C168)) -> 0.0810886 | U36: =IF($E$30=Lists!$C$4,(('HV Retail Bill Inputs'!$C158*'HV Retail Bill Inputs'!U$149)+('HV Retail Bill Inputs'!V$42*'HV Retail Bill Inputs'!$C$150*'HV Retail Bill Inputs'!$C158))+'HV Retail Bill Inputs'!$C158,((('HV Retail Bill Inputs'!$C168*'HV Retail Bill Inputs'!U$149)+('HV Retail Bill Inputs'!V$42*'HV Retail Bill Inputs'!$C$150*'HV Retail Bill Inputs'!$C168))+'HV Retail Bill Inputs'!$C168)) -> 0.0810886 | V36: =IF($E$30=Lists!$C$4,(('HV Retail Bill Inputs'!$C158*'HV Retail Bill Inputs'!V$149)+('HV Retail Bill Inputs'!W$42*'HV Retail Bill Inputs'!$C$150*'HV Retail Bill Inputs'!$C158))+'HV Retail Bill Inputs'!$C158,((('HV Retail Bill Inputs'!$C168*'HV Retail Bill Inputs'!V$149)+('HV Retail Bill Inputs'!W$42*'HV Retail Bill Inputs'!$C$150*'HV Retail Bill Inputs'!$C168))+'HV Retail Bill Inputs'!$C168)) -> 0.0810886 | W36: =IF($E$30=Lists!$C$4,(('HV Retail Bill Inputs'!$C158*'HV Retail Bill Inputs'!W$149)+('HV Retail Bill Inputs'!X$42*'HV Retail Bill Inputs'!$C$150*'HV Retail Bill Inputs'!$C158))+'HV Retail Bill Inputs'!$C158,((('HV Retail Bill Inputs'!$C168*'HV Retail Bill Inputs'!W$149)+('HV Retail Bill Inputs'!X$42*'HV Retail Bill Inputs'!$C$150*'HV Retail Bill Inputs'!$C168))+'HV Retail Bill Inputs'!$C168)) -> 0.0810886 | X36: =IF($E$30=Lists!$C$4,(('HV Retail Bill Inputs'!$C158*'HV Retail Bill Inputs'!X$149)+('HV Retail Bill Inputs'!Y$42*'HV Retail Bill Inputs'!$C$150*'HV Retail Bill Inputs'!$C158))+'HV Retail Bill Inputs'!$C158,((('HV Retail Bill Inputs'!$C168*'HV Retail Bill Inputs'!X$149)+('HV Retail Bill Inputs'!Y$42*'HV Retail Bill Inputs'!$C$150*'HV Retail Bill Inputs'!$C168))+'HV Retail Bill Inputs'!$C168)) -> 0.0810886
B37: Chargeable kVA | C37: =IFERROR(INDEX('Input Sheet'!$C$67:$I$76,MATCH($C$30,'Input Sheet'!$B$67:$B$76,0),MATCH($B37,'Input Sheet'!$C$66:$I$66,0)),0) -> 420 | D37: ='Input Sheet'!$M$70 -> $/kVA | E37: =IF($E$30=Lists!$C$4,(('HV Retail Bill Inputs'!$C159*'HV Retail Bill Inputs'!E$149)+('HV Retail Bill Inputs'!F$42*'HV Retail Bill Inputs'!$C$150*'HV Retail Bill Inputs'!$C159))+'HV Retail Bill Inputs'!$C159,((('HV Retail Bill Inputs'!$C169*'HV Retail Bill Inputs'!E$149)+('HV Retail Bill Inputs'!F$42*'HV Retail Bill Inputs'!$C$150*'HV Retail Bill Inputs'!$C169))+'HV Retail Bill Inputs'!$C169)) -> 4.14 | F37: =IF($E$30=Lists!$C$4,(('HV Retail Bill Inputs'!$C159*'HV Retail Bill Inputs'!F$149)+('HV Retail Bill Inputs'!G$42*'HV Retail Bill Inputs'!$C$150*'HV Retail Bill Inputs'!$C159))+'HV Retail Bill Inputs'!$C159,((('HV Retail Bill Inputs'!$C169*'HV Retail Bill Inputs'!F$149)+('HV Retail Bill Inputs'!G$42*'HV Retail Bill Inputs'!$C$150*'HV Retail Bill Inputs'!$C169))+'HV Retail Bill Inputs'!$C169)) -> 4.14 | G37: =IF($E$30=Lists!$C$4,(('HV Retail Bill Inputs'!$C159*'HV Retail Bill Inputs'!G$149)+('HV Retail Bill Inputs'!H$42*'HV Retail Bill Inputs'!$C$150*'HV Retail Bill Inputs'!$C159))+'HV Retail Bill Inputs'!$C159,((('HV Retail Bill Inputs'!$C169*'HV Retail Bill Inputs'!G$149)+('HV Retail Bill Inputs'!H$42*'HV Retail Bill Inputs'!$C$150*'HV Retail Bill Inputs'!$C169))+'HV Retail Bill Inputs'!$C169)) -> 4.14 | H37: =IF($E$30=Lists!$C$4,(('HV Retail Bill Inputs'!$C159*'HV Retail Bill Inputs'!H$149)+('HV Retail Bill Inputs'!I$42*'HV Retail Bill Inputs'!$C$150*'HV Retail Bill Inputs'!$C159))+'HV Retail Bill Inputs'!$C159,((('HV Retail Bill Inputs'!$C169*'HV Retail Bill Inputs'!H$149)+('HV Retail Bill Inputs'!I$42*'HV Retail Bill Inputs'!$C$150*'HV Retail Bill Inputs'!$C169))+'HV Retail Bill Inputs'!$C169)) -> 4.14 | I37: =IF($E$30=Lists!$C$4,(('HV Retail Bill Inputs'!$C159*'HV Retail Bill Inputs'!I$149)+('HV Retail Bill Inputs'!J$42*'HV Retail Bill Inputs'!$C$150*'HV Retail Bill Inputs'!$C159))+'HV Retail Bill Inputs'!$C159,((('HV Retail Bill Inputs'!$C169*'HV Retail Bill Inputs'!I$149)+('HV Retail Bill Inputs'!J$42*'HV Retail Bill Inputs'!$C$150*'HV Retail Bill Inputs'!$C169))+'HV Retail Bill Inputs'!$C169)) -> 4.14 | J37: =IF($E$30=Lists!$C$4,(('HV Retail Bill Inputs'!$C159*'HV Retail Bill Inputs'!J$149)+('HV Retail Bill Inputs'!K$42*'HV Retail Bill Inputs'!$C$150*'HV Retail Bill Inputs'!$C159))+'HV Retail Bill Inputs'!$C159,((('HV Retail Bill Inputs'!$C169*'HV Retail Bill Inputs'!J$149)+('HV Retail Bill Inputs'!K$42*'HV Retail Bill Inputs'!$C$150*'HV Retail Bill Inputs'!$C169))+'HV Retail Bill Inputs'!$C169)) -> 4.14 | K37: =IF($E$30=Lists!$C$4,(('HV Retail Bill Inputs'!$C159*'HV Retail Bill Inputs'!K$149)+('HV Retail Bill Inputs'!L$42*'HV Retail Bill Inputs'!$C$150*'HV Retail Bill Inputs'!$C159))+'HV Retail Bill Inputs'!$C159,((('HV Retail Bill Inputs'!$C169*'HV Retail Bill Inputs'!K$149)+('HV Retail Bill Inputs'!L$42*'HV Retail Bill Inputs'!$C$150*'HV Retail Bill Inputs'!$C169))+'HV Retail Bill Inputs'!$C169)) -> 4.14 | L37: =IF($E$30=Lists!$C$4,(('HV Retail Bill Inputs'!$C159*'HV Retail Bill Inputs'!L$149)+('HV Retail Bill Inputs'!M$42*'HV Retail Bill Inputs'!$C$150*'HV Retail Bill Inputs'!$C159))+'HV Retail Bill Inputs'!$C159,((('HV Retail Bill Inputs'!$C169*'HV Retail Bill Inputs'!L$149)+('HV Retail Bill Inputs'!M$42*'HV Retail Bill Inputs'!$C$150*'HV Retail Bill Inputs'!$C169))+'HV Retail Bill Inputs'!$C169)) -> 4.14 | M37: =IF($E$30=Lists!$C$4,(('HV Retail Bill Inputs'!$C159*'HV Retail Bill Inputs'!M$149)+('HV Retail Bill Inputs'!N$42*'HV Retail Bill Inputs'!$C$150*'HV Retail Bill Inputs'!$C159))+'HV Retail Bill Inputs'!$C159,((('HV Retail Bill Inputs'!$C169*'HV Retail Bill Inputs'!M$149)+('HV Retail Bill Inputs'!N$42*'HV Retail Bill Inputs'!$C$150*'HV Retail Bill Inputs'!$C169))+'HV Retail Bill Inputs'!$C169)) -> 4.14 | N37: =IF($E$30=Lists!$C$4,(('HV Retail Bill Inputs'!$C159*'HV Retail Bill Inputs'!N$149)+('HV Retail Bill Inputs'!O$42*'HV Retail Bill Inputs'!$C$150*'HV Retail Bill Inputs'!$C159))+'HV Retail Bill Inputs'!$C159,((('HV Retail Bill Inputs'!$C169*'HV Retail Bill Inputs'!N$149)+('HV Retail Bill Inputs'!O$42*'HV Retail Bill Inputs'!$C$150*'HV Retail Bill Inputs'!$C169))+'HV Retail Bill Inputs'!$C169)) -> 4.14 | O37: =IF($E$30=Lists!$C$4,(('HV Retail Bill Inputs'!$C159*'HV Retail Bill Inputs'!O$149)+('HV Retail Bill Inputs'!P$42*'HV Retail Bill Inputs'!$C$150*'HV Retail Bill Inputs'!$C159))+'HV Retail Bill Inputs'!$C159,((('HV Retail Bill Inputs'!$C169*'HV Retail Bill Inputs'!O$149)+('HV Retail Bill Inputs'!P$42*'HV Retail Bill Inputs'!$C$150*'HV Retail Bill Inputs'!$C169))+'HV Retail Bill Inputs'!$C169)) -> 4.14 | P37: =IF($E$30=Lists!$C$4,(('HV Retail Bill Inputs'!$C159*'HV Retail Bill Inputs'!P$149)+('HV Retail Bill Inputs'!Q$42*'HV Retail Bill Inputs'!$C$150*'HV Retail Bill Inputs'!$C159))+'HV Retail Bill Inputs'!$C159,((('HV Retail Bill Inputs'!$C169*'HV Retail Bill Inputs'!P$149)+('HV Retail Bill Inputs'!Q$42*'HV Retail Bill Inputs'!$C$150*'HV Retail Bill Inputs'!$C169))+'HV Retail Bill Inputs'!$C169)) -> 4.14 | Q37: =IF($E$30=Lists!$C$4,(('HV Retail Bill Inputs'!$C159*'HV Retail Bill Inputs'!Q$149)+('HV Retail Bill Inputs'!R$42*'HV Retail Bill Inputs'!$C$150*'HV Retail Bill Inputs'!$C159))+'HV Retail Bill Inputs'!$C159,((('HV Retail Bill Inputs'!$C169*'HV Retail Bill Inputs'!Q$149)+('HV Retail Bill Inputs'!R$42*'HV Retail Bill Inputs'!$C$150*'HV Retail Bill Inputs'!$C169))+'HV Retail Bill Inputs'!$C169)) -> 4.14 | R37: =IF($E$30=Lists!$C$4,(('HV Retail Bill Inputs'!$C159*'HV Retail Bill Inputs'!R$149)+('HV Retail Bill Inputs'!S$42*'HV Retail Bill Inputs'!$C$150*'HV Retail Bill Inputs'!$C159))+'HV Retail Bill Inputs'!$C159,((('HV Retail Bill Inputs'!$C169*'HV Retail Bill Inputs'!R$149)+('HV Retail Bill Inputs'!S$42*'HV Retail Bill Inputs'!$C$150*'HV Retail Bill Inputs'!$C169))+'HV Retail Bill Inputs'!$C169)) -> 4.14 | S37: =IF($E$30=Lists!$C$4,(('HV Retail Bill Inputs'!$C159*'HV Retail Bill Inputs'!S$149)+('HV Retail Bill Inputs'!T$42*'HV Retail Bill Inputs'!$C$150*'HV Retail Bill Inputs'!$C159))+'HV Retail Bill Inputs'!$C159,((('HV Retail Bill Inputs'!$C169*'HV Retail Bill Inputs'!S$149)+('HV Retail Bill Inputs'!T$42*'HV Retail Bill Inputs'!$C$150*'HV Retail Bill Inputs'!$C169))+'HV Retail Bill Inputs'!$C169)) -> 4.14 | T37: =IF($E$30=Lists!$C$4,(('HV Retail Bill Inputs'!$C159*'HV Retail Bill Inputs'!T$149)+('HV Retail Bill Inputs'!U$42*'HV Retail Bill Inputs'!$C$150*'HV Retail Bill Inputs'!$C159))+'HV Retail Bill Inputs'!$C159,((('HV Retail Bill Inputs'!$C169*'HV Retail Bill Inputs'!T$149)+('HV Retail Bill Inputs'!U$42*'HV Retail Bill Inputs'!$C$150*'HV Retail Bill Inputs'!$C169))+'HV Retail Bill Inputs'!$C169)) -> 4.14 | U37: =IF($E$30=Lists!$C$4,(('HV Retail Bill Inputs'!$C159*'HV Retail Bill Inputs'!U$149)+('HV Retail Bill Inputs'!V$42*'HV Retail Bill Inputs'!$C$150*'HV Retail Bill Inputs'!$C159))+'HV Retail Bill Inputs'!$C159,((('HV Retail Bill Inputs'!$C169*'HV Retail Bill Inputs'!U$149)+('HV Retail Bill Inputs'!V$42*'HV Retail Bill Inputs'!$C$150*'HV Retail Bill Inputs'!$C169))+'HV Retail Bill Inputs'!$C169)) -> 4.14 | V37: =IF($E$30=Lists!$C$4,(('HV Retail Bill Inputs'!$C159*'HV Retail Bill Inputs'!V$149)+('HV Retail Bill Inputs'!W$42*'HV Retail Bill Inputs'!$C$150*'HV Retail Bill Inputs'!$C159))+'HV Retail Bill Inputs'!$C159,((('HV Retail Bill Inputs'!$C169*'HV Retail Bill Inputs'!V$149)+('HV Retail Bill Inputs'!W$42*'HV Retail Bill Inputs'!$C$150*'HV Retail Bill Inputs'!$C169))+'HV Retail Bill Inputs'!$C169)) -> 4.14 | W37: =IF($E$30=Lists!$C$4,(('HV Retail Bill Inputs'!$C159*'HV Retail Bill Inputs'!W$149)+('HV Retail Bill Inputs'!X$42*'HV Retail Bill Inputs'!$C$150*'HV Retail Bill Inputs'!$C159))+'HV Retail Bill Inputs'!$C159,((('HV Retail Bill Inputs'!$C169*'HV Retail Bill Inputs'!W$149)+('HV Retail Bill Inputs'!X$42*'HV Retail Bill Inputs'!$C$150*'HV Retail Bill Inputs'!$C169))+'HV Retail Bill Inputs'!$C169)) -> 4.14 | X37: =IF($E$30=Lists!$C$4,(('HV Retail Bill Inputs'!$C159*'HV Retail Bill Inputs'!X$149)+('HV Retail Bill Inputs'!Y$42*'HV Retail Bill Inputs'!$C$150*'HV Retail Bill Inputs'!$C159))+'HV Retail Bill Inputs'!$C159,((('HV Retail Bill Inputs'!$C169*'HV Retail Bill Inputs'!X$149)+('HV Retail Bill Inputs'!Y$42*'HV Retail Bill Inputs'!$C$150*'HV Retail Bill Inputs'!$C169))+'HV Retail Bill Inputs'!$C169)) -> 4.14
B38: Fixed | C38: =IFERROR(INDEX('Input Sheet'!$C$67:$I$76,MATCH($C$30,'Input Sheet'!$B$67:$B$76,0),MATCH($B38,'Input Sheet'!$C$66:$I$66,0)),0) -> 1 | D38: ='Input Sheet'!$M$71 -> $/year | E38: =IF($E$30=Lists!$C$4,(('HV Retail Bill Inputs'!$C160*'HV Retail Bill Inputs'!E$149)+('HV Retail Bill Inputs'!F$42*'HV Retail Bill Inputs'!$C$150*'HV Retail Bill Inputs'!$C160))+'HV Retail Bill Inputs'!$C160,((('HV Retail Bill Inputs'!$C170*'HV Retail Bill Inputs'!E$149)+('HV Retail Bill Inputs'!F$42*'HV Retail Bill Inputs'!$C$150*'HV Retail Bill Inputs'!$C170))+'HV Retail Bill Inputs'!$C170)) -> 5701 | F38: =IF($E$30=Lists!$C$4,(('HV Retail Bill Inputs'!$C160*'HV Retail Bill Inputs'!F$149)+('HV Retail Bill Inputs'!G$42*'HV Retail Bill Inputs'!$C$150*'HV Retail Bill Inputs'!$C160))+'HV Retail Bill Inputs'!$C160,((('HV Retail Bill Inputs'!$C170*'HV Retail Bill Inputs'!F$149)+('HV Retail Bill Inputs'!G$42*'HV Retail Bill Inputs'!$C$150*'HV Retail Bill Inputs'!$C170))+'HV Retail Bill Inputs'!$C170)) -> 5701 | G38: =IF($E$30=Lists!$C$4,(('HV Retail Bill Inputs'!$C160*'HV Retail Bill Inputs'!G$149)+('HV Retail Bill Inputs'!H$42*'HV Retail Bill Inputs'!$C$150*'HV Retail Bill Inputs'!$C160))+'HV Retail Bill Inputs'!$C160,((('HV Retail Bill Inputs'!$C170*'HV Retail Bill Inputs'!G$149)+('HV Retail Bill Inputs'!H$42*'HV Retail Bill Inputs'!$C$150*'HV Retail Bill Inputs'!$C170))+'HV Retail Bill Inputs'!$C170)) -> 5701 | H38: =IF($E$30=Lists!$C$4,(('HV Retail Bill Inputs'!$C160*'HV Retail Bill Inputs'!H$149)+('HV Retail Bill Inputs'!I$42*'HV Retail Bill Inputs'!$C$150*'HV Retail Bill Inputs'!$C160))+'HV Retail Bill Inputs'!$C160,((('HV Retail Bill Inputs'!$C170*'HV Retail Bill Inputs'!H$149)+('HV Retail Bill Inputs'!I$42*'HV Retail Bill Inputs'!$C$150*'HV Retail Bill Inputs'!$C170))+'HV Retail Bill Inputs'!$C170)) -> 5701 | I38: =IF($E$30=Lists!$C$4,(('HV Retail Bill Inputs'!$C160*'HV Retail Bill Inputs'!I$149)+('HV Retail Bill Inputs'!J$42*'HV Retail Bill Inputs'!$C$150*'HV Retail Bill Inputs'!$C160))+'HV Retail Bill Inputs'!$C160,((('HV Retail Bill Inputs'!$C170*'HV Retail Bill Inputs'!I$149)+('HV Retail Bill Inputs'!J$42*'HV Retail Bill Inputs'!$C$150*'HV Retail Bill Inputs'!$C170))+'HV Retail Bill Inputs'!$C170)) -> 5701 | J38: =IF($E$30=Lists!$C$4,(('HV Retail Bill Inputs'!$C160*'HV Retail Bill Inputs'!J$149)+('HV Retail Bill Inputs'!K$42*'HV Retail Bill Inputs'!$C$150*'HV Retail Bill Inputs'!$C160))+'HV Retail Bill Inputs'!$C160,((('HV Retail Bill Inputs'!$C170*'HV Retail Bill Inputs'!J$149)+('HV Retail Bill Inputs'!K$42*'HV Retail Bill Inputs'!$C$150*'HV Retail Bill Inputs'!$C170))+'HV Retail Bill Inputs'!$C170)) -> 5701 | K38: =IF($E$30=Lists!$C$4,(('HV Retail Bill Inputs'!$C160*'HV Retail Bill Inputs'!K$149)+('HV Retail Bill Inputs'!L$42*'HV Retail Bill Inputs'!$C$150*'HV Retail Bill Inputs'!$C160))+'HV Retail Bill Inputs'!$C160,((('HV Retail Bill Inputs'!$C170*'HV Retail Bill Inputs'!K$149)+('HV Retail Bill Inputs'!L$42*'HV Retail Bill Inputs'!$C$150*'HV Retail Bill Inputs'!$C170))+'HV Retail Bill Inputs'!$C170)) -> 5701 | L38: =IF($E$30=Lists!$C$4,(('HV Retail Bill Inputs'!$C160*'HV Retail Bill Inputs'!L$149)+('HV Retail Bill Inputs'!M$42*'HV Retail Bill Inputs'!$C$150*'HV Retail Bill Inputs'!$C160))+'HV Retail Bill Inputs'!$C160,((('HV Retail Bill Inputs'!$C170*'HV Retail Bill Inputs'!L$149)+('HV Retail Bill Inputs'!M$42*'HV Retail Bill Inputs'!$C$150*'HV Retail Bill Inputs'!$C170))+'HV Retail Bill Inputs'!$C170)) -> 5701 | M38: =IF($E$30=Lists!$C$4,(('HV Retail Bill Inputs'!$C160*'HV Retail Bill Inputs'!M$149)+('HV Retail Bill Inputs'!N$42*'HV Retail Bill Inputs'!$C$150*'HV Retail Bill Inputs'!$C160))+'HV Retail Bill Inputs'!$C160,((('HV Retail Bill Inputs'!$C170*'HV Retail Bill Inputs'!M$149)+('HV Retail Bill Inputs'!N$42*'HV Retail Bill Inputs'!$C$150*'HV Retail Bill Inputs'!$C170))+'HV Retail Bill Inputs'!$C170)) -> 5701 | N38: =IF($E$30=Lists!$C$4,(('HV Retail Bill Inputs'!$C160*'HV Retail Bill Inputs'!N$149)+('HV Retail Bill Inputs'!O$42*'HV Retail Bill Inputs'!$C$150*'HV Retail Bill Inputs'!$C160))+'HV Retail Bill Inputs'!$C160,((('HV Retail Bill Inputs'!$C170*'HV Retail Bill Inputs'!N$149)+('HV Retail Bill Inputs'!O$42*'HV Retail Bill Inputs'!$C$150*'HV Retail Bill Inputs'!$C170))+'HV Retail Bill Inputs'!$C170)) -> 5701 | O38: =IF($E$30=Lists!$C$4,(('HV Retail Bill Inputs'!$C160*'HV Retail Bill Inputs'!O$149)+('HV Retail Bill Inputs'!P$42*'HV Retail Bill Inputs'!$C$150*'HV Retail Bill Inputs'!$C160))+'HV Retail Bill Inputs'!$C160,((('HV Retail Bill Inputs'!$C170*'HV Retail Bill Inputs'!O$149)+('HV Retail Bill Inputs'!P$42*'HV Retail Bill Inputs'!$C$150*'HV Retail Bill Inputs'!$C170))+'HV Retail Bill Inputs'!$C170)) -> 5701 | P38: =IF($E$30=Lists!$C$4,(('HV Retail Bill Inputs'!$C160*'HV Retail Bill Inputs'!P$149)+('HV Retail Bill Inputs'!Q$42*'HV Retail Bill Inputs'!$C$150*'HV Retail Bill Inputs'!$C160))+'HV Retail Bill Inputs'!$C160,((('HV Retail Bill Inputs'!$C170*'HV Retail Bill Inputs'!P$149)+('HV Retail Bill Inputs'!Q$42*'HV Retail Bill Inputs'!$C$150*'HV Retail Bill Inputs'!$C170))+'HV Retail Bill Inputs'!$C170)) -> 5701 | Q38: =IF($E$30=Lists!$C$4,(('HV Retail Bill Inputs'!$C160*'HV Retail Bill Inputs'!Q$149)+('HV Retail Bill Inputs'!R$42*'HV Retail Bill Inputs'!$C$150*'HV Retail Bill Inputs'!$C160))+'HV Retail Bill Inputs'!$C160,((('HV Retail Bill Inputs'!$C170*'HV Retail Bill Inputs'!Q$149)+('HV Retail Bill Inputs'!R$42*'HV Retail Bill Inputs'!$C$150*'HV Retail Bill Inputs'!$C170))+'HV Retail Bill Inputs'!$C170)) -> 5701 | R38: =IF($E$30=Lists!$C$4,(('HV Retail Bill Inputs'!$C160*'HV Retail Bill Inputs'!R$149)+('HV Retail Bill Inputs'!S$42*'HV Retail Bill Inputs'!$C$150*'HV Retail Bill Inputs'!$C160))+'HV Retail Bill Inputs'!$C160,((('HV Retail Bill Inputs'!$C170*'HV Retail Bill Inputs'!R$149)+('HV Retail Bill Inputs'!S$42*'HV Retail Bill Inputs'!$C$150*'HV Retail Bill Inputs'!$C170))+'HV Retail Bill Inputs'!$C170)) -> 5701 | S38: =IF($E$30=Lists!$C$4,(('HV Retail Bill Inputs'!$C160*'HV Retail Bill Inputs'!S$149)+('HV Retail Bill Inputs'!T$42*'HV Retail Bill Inputs'!$C$150*'HV Retail Bill Inputs'!$C160))+'HV Retail Bill Inputs'!$C160,((('HV Retail Bill Inputs'!$C170*'HV Retail Bill Inputs'!S$149)+('HV Retail Bill Inputs'!T$42*'HV Retail Bill Inputs'!$C$150*'HV Retail Bill Inputs'!$C170))+'HV Retail Bill Inputs'!$C170)) -> 5701 | T38: =IF($E$30=Lists!$C$4,(('HV Retail Bill Inputs'!$C160*'HV Retail Bill Inputs'!T$149)+('HV Retail Bill Inputs'!U$42*'HV Retail Bill Inputs'!$C$150*'HV Retail Bill Inputs'!$C160))+'HV Retail Bill Inputs'!$C160,((('HV Retail Bill Inputs'!$C170*'HV Retail Bill Inputs'!T$149)+('HV Retail Bill Inputs'!U$42*'HV Retail Bill Inputs'!$C$150*'HV Retail Bill Inputs'!$C170))+'HV Retail Bill Inputs'!$C170)) -> 5701 | U38: =IF($E$30=Lists!$C$4,(('HV Retail Bill Inputs'!$C160*'HV Retail Bill Inputs'!U$149)+('HV Retail Bill Inputs'!V$42*'HV Retail Bill Inputs'!$C$150*'HV Retail Bill Inputs'!$C160))+'HV Retail Bill Inputs'!$C160,((('HV Retail Bill Inputs'!$C170*'HV Retail Bill Inputs'!U$149)+('HV Retail Bill Inputs'!V$42*'HV Retail Bill Inputs'!$C$150*'HV Retail Bill Inputs'!$C170))+'HV Retail Bill Inputs'!$C170)) -> 5701 | V38: =IF($E$30=Lists!$C$4,(('HV Retail Bill Inputs'!$C160*'HV Retail Bill Inputs'!V$149)+('HV Retail Bill Inputs'!W$42*'HV Retail Bill Inputs'!$C$150*'HV Retail Bill Inputs'!$C160))+'HV Retail Bill Inputs'!$C160,((('HV Retail Bill Inputs'!$C170*'HV Retail Bill Inputs'!V$149)+('HV Retail Bill Inputs'!W$42*'HV Retail Bill Inputs'!$C$150*'HV Retail Bill Inputs'!$C170))+'HV Retail Bill Inputs'!$C170)) -> 5701 | W38: =IF($E$30=Lists!$C$4,(('HV Retail Bill Inputs'!$C160*'HV Retail Bill Inputs'!W$149)+('HV Retail Bill Inputs'!X$42*'HV Retail Bill Inputs'!$C$150*'HV Retail Bill Inputs'!$C160))+'HV Retail Bill Inputs'!$C160,((('HV Retail Bill Inputs'!$C170*'HV Retail Bill Inputs'!W$149)+('HV Retail Bill Inputs'!X$42*'HV Retail Bill Inputs'!$C$150*'HV Retail Bill Inputs'!$C170))+'HV Retail Bill Inputs'!$C170)) -> 5701 | X38: =IF($E$30=Lists!$C$4,(('HV Retail Bill Inputs'!$C160*'HV Retail Bill Inputs'!X$149)+('HV Retail Bill Inputs'!Y$42*'HV Retail Bill Inputs'!$C$150*'HV Retail Bill Inputs'!$C160))+'HV Retail Bill Inputs'!$C160,((('HV Retail Bill Inputs'!$C170*'HV Retail Bill Inputs'!X$149)+('HV Retail Bill Inputs'!Y$42*'HV Retail Bill Inputs'!$C$150*'HV Retail Bill Inputs'!$C170))+'HV Retail Bill Inputs'!$C170)) -> 5701
B39: Other 1 | C39: =IFERROR(INDEX('Input Sheet'!$C$67:$I$76,MATCH($C$30,'Input Sheet'!$B$67:$B$76,0),MATCH($B39,'Input Sheet'!$C$66:$I$66,0)),0) -> 0 | D39: ='Input Sheet'!$M$72 -> $/kvA | E39: =IF($E$30=Lists!$C$4,(('HV Retail Bill Inputs'!$C161*'HV Retail Bill Inputs'!E$149)+('HV Retail Bill Inputs'!F$42*'HV Retail Bill Inputs'!$C$150*'HV Retail Bill Inputs'!$C161))+'HV Retail Bill Inputs'!$C161,((('HV Retail Bill Inputs'!$C171*'HV Retail Bill Inputs'!E$149)+('HV Retail Bill Inputs'!F$42*'HV Retail Bill Inputs'!$C$150*'HV Retail Bill Inputs'!$C171))+'HV Retail Bill Inputs'!$C171)) -> 0 | F39: =IF($E$30=Lists!$C$4,(('HV Retail Bill Inputs'!$C161*'HV Retail Bill Inputs'!F$149)+('HV Retail Bill Inputs'!G$42*'HV Retail Bill Inputs'!$C$150*'HV Retail Bill Inputs'!$C161))+'HV Retail Bill Inputs'!$C161,((('HV Retail Bill Inputs'!$C171*'HV Retail Bill Inputs'!F$149)+('HV Retail Bill Inputs'!G$42*'HV Retail Bill Inputs'!$C$150*'HV Retail Bill Inputs'!$C171))+'HV Retail Bill Inputs'!$C171)) -> 0 | G39: =IF($E$30=Lists!$C$4,(('HV Retail Bill Inputs'!$C161*'HV Retail Bill Inputs'!G$149)+('HV Retail Bill Inputs'!H$42*'HV Retail Bill Inputs'!$C$150*'HV Retail Bill Inputs'!$C161))+'HV Retail Bill Inputs'!$C161,((('HV Retail Bill Inputs'!$C171*'HV Retail Bill Inputs'!G$149)+('HV Retail Bill Inputs'!H$42*'HV Retail Bill Inputs'!$C$150*'HV Retail Bill Inputs'!$C171))+'HV Retail Bill Inputs'!$C171)) -> 0 | H39: =IF($E$30=Lists!$C$4,(('HV Retail Bill Inputs'!$C161*'HV Retail Bill Inputs'!H$149)+('HV Retail Bill Inputs'!I$42*'HV Retail Bill Inputs'!$C$150*'HV Retail Bill Inputs'!$C161))+'HV Retail Bill Inputs'!$C161,((('HV Retail Bill Inputs'!$C171*'HV Retail Bill Inputs'!H$149)+('HV Retail Bill Inputs'!I$42*'HV Retail Bill Inputs'!$C$150*'HV Retail Bill Inputs'!$C171))+'HV Retail Bill Inputs'!$C171)) -> 0 | I39: =IF($E$30=Lists!$C$4,(('HV Retail Bill Inputs'!$C161*'HV Retail Bill Inputs'!I$149)+('HV Retail Bill Inputs'!J$42*'HV Retail Bill Inputs'!$C$150*'HV Retail Bill Inputs'!$C161))+'HV Retail Bill Inputs'!$C161,((('HV Retail Bill Inputs'!$C171*'HV Retail Bill Inputs'!I$149)+('HV Retail Bill Inputs'!J$42*'HV Retail Bill Inputs'!$C$150*'HV Retail Bill Inputs'!$C171))+'HV Retail Bill Inputs'!$C171)) -> 0 | J39: =IF($E$30=Lists!$C$4,(('HV Retail Bill Inputs'!$C161*'HV Retail Bill Inputs'!J$149)+('HV Retail Bill Inputs'!K$42*'HV Retail Bill Inputs'!$C$150*'HV Retail Bill Inputs'!$C161))+'HV Retail Bill Inputs'!$C161,((('HV Retail Bill Inputs'!$C171*'HV Retail Bill Inputs'!J$149)+('HV Retail Bill Inputs'!K$42*'HV Retail Bill Inputs'!$C$150*'HV Retail Bill Inputs'!$C171))+'HV Retail Bill Inputs'!$C171)) -> 0 | K39: =IF($E$30=Lists!$C$4,(('HV Retail Bill Inputs'!$C161*'HV Retail Bill Inputs'!K$149)+('HV Retail Bill Inputs'!L$42*'HV Retail Bill Inputs'!$C$150*'HV Retail Bill Inputs'!$C161))+'HV Retail Bill Inputs'!$C161,((('HV Retail Bill Inputs'!$C171*'HV Retail Bill Inputs'!K$149)+('HV Retail Bill Inputs'!L$42*'HV Retail Bill Inputs'!$C$150*'HV Retail Bill Inputs'!$C171))+'HV Retail Bill Inputs'!$C171)) -> 0 | L39: =IF($E$30=Lists!$C$4,(('HV Retail Bill Inputs'!$C161*'HV Retail Bill Inputs'!L$149)+('HV Retail Bill Inputs'!M$42*'HV Retail Bill Inputs'!$C$150*'HV Retail Bill Inputs'!$C161))+'HV Retail Bill Inputs'!$C161,((('HV Retail Bill Inputs'!$C171*'HV Retail Bill Inputs'!L$149)+('HV Retail Bill Inputs'!M$42*'HV Retail Bill Inputs'!$C$150*'HV Retail Bill Inputs'!$C171))+'HV Retail Bill Inputs'!$C171)) -> 0 | M39: =IF($E$30=Lists!$C$4,(('HV Retail Bill Inputs'!$C161*'HV Retail Bill Inputs'!M$149)+('HV Retail Bill Inputs'!N$42*'HV Retail Bill Inputs'!$C$150*'HV Retail Bill Inputs'!$C161))+'HV Retail Bill Inputs'!$C161,((('HV Retail Bill Inputs'!$C171*'HV Retail Bill Inputs'!M$149)+('HV Retail Bill Inputs'!N$42*'HV Retail Bill Inputs'!$C$150*'HV Retail Bill Inputs'!$C171))+'HV Retail Bill Inputs'!$C171)) -> 0 | N39: =IF($E$30=Lists!$C$4,(('HV Retail Bill Inputs'!$C161*'HV Retail Bill Inputs'!N$149)+('HV Retail Bill Inputs'!O$42*'HV Retail Bill Inputs'!$C$150*'HV Retail Bill Inputs'!$C161))+'HV Retail Bill Inputs'!$C161,((('HV Retail Bill Inputs'!$C171*'HV Retail Bill Inputs'!N$149)+('HV Retail Bill Inputs'!O$42*'HV Retail Bill Inputs'!$C$150*'HV Retail Bill Inputs'!$C171))+'HV Retail Bill Inputs'!$C171)) -> 0 | O39: =IF($E$30=Lists!$C$4,(('HV Retail Bill Inputs'!$C161*'HV Retail Bill Inputs'!O$149)+('HV Retail Bill Inputs'!P$42*'HV Retail Bill Inputs'!$C$150*'HV Retail Bill Inputs'!$C161))+'HV Retail Bill Inputs'!$C161,((('HV Retail Bill Inputs'!$C171*'HV Retail Bill Inputs'!O$149)+('HV Retail Bill Inputs'!P$42*'HV Retail Bill Inputs'!$C$150*'HV Retail Bill Inputs'!$C171))+'HV Retail Bill Inputs'!$C171)) -> 0 | P39: =IF($E$30=Lists!$C$4,(('HV Retail Bill Inputs'!$C161*'HV Retail Bill Inputs'!P$149)+('HV Retail Bill Inputs'!Q$42*'HV Retail Bill Inputs'!$C$150*'HV Retail Bill Inputs'!$C161))+'HV Retail Bill Inputs'!$C161,((('HV Retail Bill Inputs'!$C171*'HV Retail Bill Inputs'!P$149)+('HV Retail Bill Inputs'!Q$42*'HV Retail Bill Inputs'!$C$150*'HV Retail Bill Inputs'!$C171))+'HV Retail Bill Inputs'!$C171)) -> 0 | Q39: =IF($E$30=Lists!$C$4,(('HV Retail Bill Inputs'!$C161*'HV Retail Bill Inputs'!Q$149)+('HV Retail Bill Inputs'!R$42*'HV Retail Bill Inputs'!$C$150*'HV Retail Bill Inputs'!$C161))+'HV Retail Bill Inputs'!$C161,((('HV Retail Bill Inputs'!$C171*'HV Retail Bill Inputs'!Q$149)+('HV Retail Bill Inputs'!R$42*'HV Retail Bill Inputs'!$C$150*'HV Retail Bill Inputs'!$C171))+'HV Retail Bill Inputs'!$C171)) -> 0 | R39: =IF($E$30=Lists!$C$4,(('HV Retail Bill Inputs'!$C161*'HV Retail Bill Inputs'!R$149)+('HV Retail Bill Inputs'!S$42*'HV Retail Bill Inputs'!$C$150*'HV Retail Bill Inputs'!$C161))+'HV Retail Bill Inputs'!$C161,((('HV Retail Bill Inputs'!$C171*'HV Retail Bill Inputs'!R$149)+('HV Retail Bill Inputs'!S$42*'HV Retail Bill Inputs'!$C$150*'HV Retail Bill Inputs'!$C171))+'HV Retail Bill Inputs'!$C171)) -> 0 | S39: =IF($E$30=Lists!$C$4,(('HV Retail Bill Inputs'!$C161*'HV Retail Bill Inputs'!S$149)+('HV Retail Bill Inputs'!T$42*'HV Retail Bill Inputs'!$C$150*'HV Retail Bill Inputs'!$C161))+'HV Retail Bill Inputs'!$C161,((('HV Retail Bill Inputs'!$C171*'HV Retail Bill Inputs'!S$149)+('HV Retail Bill Inputs'!T$42*'HV Retail Bill Inputs'!$C$150*'HV Retail Bill Inputs'!$C171))+'HV Retail Bill Inputs'!$C171)) -> 0 | T39: =IF($E$30=Lists!$C$4,(('HV Retail Bill Inputs'!$C161*'HV Retail Bill Inputs'!T$149)+('HV Retail Bill Inputs'!U$42*'HV Retail Bill Inputs'!$C$150*'HV Retail Bill Inputs'!$C161))+'HV Retail Bill Inputs'!$C161,((('HV Retail Bill Inputs'!$C171*'HV Retail Bill Inputs'!T$149)+('HV Retail Bill Inputs'!U$42*'HV Retail Bill Inputs'!$C$150*'HV Retail Bill Inputs'!$C171))+'HV Retail Bill Inputs'!$C171)) -> 0 | U39: =IF($E$30=Lists!$C$4,(('HV Retail Bill Inputs'!$C161*'HV Retail Bill Inputs'!U$149)+('HV Retail Bill Inputs'!V$42*'HV Retail Bill Inputs'!$C$150*'HV Retail Bill Inputs'!$C161))+'HV Retail Bill Inputs'!$C161,((('HV Retail Bill Inputs'!$C171*'HV Retail Bill Inputs'!U$149)+('HV Retail Bill Inputs'!V$42*'HV Retail Bill Inputs'!$C$150*'HV Retail Bill Inputs'!$C171))+'HV Retail Bill Inputs'!$C171)) -> 0 | V39: =IF($E$30=Lists!$C$4,(('HV Retail Bill Inputs'!$C161*'HV Retail Bill Inputs'!V$149)+('HV Retail Bill Inputs'!W$42*'HV Retail Bill Inputs'!$C$150*'HV Retail Bill Inputs'!$C161))+'HV Retail Bill Inputs'!$C161,((('HV Retail Bill Inputs'!$C171*'HV Retail Bill Inputs'!V$149)+('HV Retail Bill Inputs'!W$42*'HV Retail Bill Inputs'!$C$150*'HV Retail Bill Inputs'!$C171))+'HV Retail Bill Inputs'!$C171)) -> 0 | W39: =IF($E$30=Lists!$C$4,(('HV Retail Bill Inputs'!$C161*'HV Retail Bill Inputs'!W$149)+('HV Retail Bill Inputs'!X$42*'HV Retail Bill Inputs'!$C$150*'HV Retail Bill Inputs'!$C161))+'HV Retail Bill Inputs'!$C161,((('HV Retail Bill Inputs'!$C171*'HV Retail Bill Inputs'!W$149)+('HV Retail Bill Inputs'!X$42*'HV Retail Bill Inputs'!$C$150*'HV Retail Bill Inputs'!$C171))+'HV Retail Bill Inputs'!$C171)) -> 0 | X39: =IF($E$30=Lists!$C$4,(('HV Retail Bill Inputs'!$C161*'HV Retail Bill Inputs'!X$149)+('HV Retail Bill Inputs'!Y$42*'HV Retail Bill Inputs'!$C$150*'HV Retail Bill Inputs'!$C161))+'HV Retail Bill Inputs'!$C161,((('HV Retail Bill Inputs'!$C171*'HV Retail Bill Inputs'!X$149)+('HV Retail Bill Inputs'!Y$42*'HV Retail Bill Inputs'!$C$150*'HV Retail Bill Inputs'!$C171))+'HV Retail Bill Inputs'!$C171)) -> 0
B40: Other 2 | C40: =IFERROR(INDEX('Input Sheet'!$C$67:$I$76,MATCH($C$30,'Input Sheet'!$B$67:$B$76,0),MATCH($B40,'Input Sheet'!$C$66:$I$66,0)),0) -> 128.46 | D40: ='Input Sheet'!$M$73 -> $/kvA | E40: =IF($E$30=Lists!$C$4,(('HV Retail Bill Inputs'!$C162*'HV Retail Bill Inputs'!E$149)+('HV Retail Bill Inputs'!F$42*'HV Retail Bill Inputs'!$C$150*'HV Retail Bill Inputs'!$C162))+'HV Retail Bill Inputs'!$C162,((('HV Retail Bill Inputs'!$C172*'HV Retail Bill Inputs'!E$149)+('HV Retail Bill Inputs'!F$42*'HV Retail Bill Inputs'!$C$150*'HV Retail Bill Inputs'!$C172))+'HV Retail Bill Inputs'!$C172)) -> 6.84 | F40: =IF($E$30=Lists!$C$4,(('HV Retail Bill Inputs'!$C162*'HV Retail Bill Inputs'!F$149)+('HV Retail Bill Inputs'!G$42*'HV Retail Bill Inputs'!$C$150*'HV Retail Bill Inputs'!$C162))+'HV Retail Bill Inputs'!$C162,((('HV Retail Bill Inputs'!$C172*'HV Retail Bill Inputs'!F$149)+('HV Retail Bill Inputs'!G$42*'HV Retail Bill Inputs'!$C$150*'HV Retail Bill Inputs'!$C172))+'HV Retail Bill Inputs'!$C172)) -> 6.84 | G40: =IF($E$30=Lists!$C$4,(('HV Retail Bill Inputs'!$C162*'HV Retail Bill Inputs'!G$149)+('HV Retail Bill Inputs'!H$42*'HV Retail Bill Inputs'!$C$150*'HV Retail Bill Inputs'!$C162))+'HV Retail Bill Inputs'!$C162,((('HV Retail Bill Inputs'!$C172*'HV Retail Bill Inputs'!G$149)+('HV Retail Bill Inputs'!H$42*'HV Retail Bill Inputs'!$C$150*'HV Retail Bill Inputs'!$C172))+'HV Retail Bill Inputs'!$C172)) -> 6.84 | H40: =IF($E$30=Lists!$C$4,(('HV Retail Bill Inputs'!$C162*'HV Retail Bill Inputs'!H$149)+('HV Retail Bill Inputs'!I$42*'HV Retail Bill Inputs'!$C$150*'HV Retail Bill Inputs'!$C162))+'HV Retail Bill Inputs'!$C162,((('HV Retail Bill Inputs'!$C172*'HV Retail Bill Inputs'!H$149)+('HV Retail Bill Inputs'!I$42*'HV Retail Bill Inputs'!$C$150*'HV Retail Bill Inputs'!$C172))+'HV Retail Bill Inputs'!$C172)) -> 6.84 | I40: =IF($E$30=Lists!$C$4,(('HV Retail Bill Inputs'!$C162*'HV Retail Bill Inputs'!I$149)+('HV Retail Bill Inputs'!J$42*'HV Retail Bill Inputs'!$C$150*'HV Retail Bill Inputs'!$C162))+'HV Retail Bill Inputs'!$C162,((('HV Retail Bill Inputs'!$C172*'HV Retail Bill Inputs'!I$149)+('HV Retail Bill Inputs'!J$42*'HV Retail Bill Inputs'!$C$150*'HV Retail Bill Inputs'!$C172))+'HV Retail Bill Inputs'!$C172)) -> 6.84 | J40: =IF($E$30=Lists!$C$4,(('HV Retail Bill Inputs'!$C162*'HV Retail Bill Inputs'!J$149)+('HV Retail Bill Inputs'!K$42*'HV Retail Bill Inputs'!$C$150*'HV Retail Bill Inputs'!$C162))+'HV Retail Bill Inputs'!$C162,((('HV Retail Bill Inputs'!$C172*'HV Retail Bill Inputs'!J$149)+('HV Retail Bill Inputs'!K$42*'HV Retail Bill Inputs'!$C$150*'HV Retail Bill Inputs'!$C172))+'HV Retail Bill Inputs'!$C172)) -> 6.84 | K40: =IF($E$30=Lists!$C$4,(('HV Retail Bill Inputs'!$C162*'HV Retail Bill Inputs'!K$149)+('HV Retail Bill Inputs'!L$42*'HV Retail Bill Inputs'!$C$150*'HV Retail Bill Inputs'!$C162))+'HV Retail Bill Inputs'!$C162,((('HV Retail Bill Inputs'!$C172*'HV Retail Bill Inputs'!K$149)+('HV Retail Bill Inputs'!L$42*'HV Retail Bill Inputs'!$C$150*'HV Retail Bill Inputs'!$C172))+'HV Retail Bill Inputs'!$C172)) -> 6.84 | L40: =IF($E$30=Lists!$C$4,(('HV Retail Bill Inputs'!$C162*'HV Retail Bill Inputs'!L$149)+('HV Retail Bill Inputs'!M$42*'HV Retail Bill Inputs'!$C$150*'HV Retail Bill Inputs'!$C162))+'HV Retail Bill Inputs'!$C162,((('HV Retail Bill Inputs'!$C172*'HV Retail Bill Inputs'!L$149)+('HV Retail Bill Inputs'!M$42*'HV Retail Bill Inputs'!$C$150*'HV Retail Bill Inputs'!$C172))+'HV Retail Bill Inputs'!$C172)) -> 6.84 | M40: =IF($E$30=Lists!$C$4,(('HV Retail Bill Inputs'!$C162*'HV Retail Bill Inputs'!M$149)+('HV Retail Bill Inputs'!N$42*'HV Retail Bill Inputs'!$C$150*'HV Retail Bill Inputs'!$C162))+'HV Retail Bill Inputs'!$C162,((('HV Retail Bill Inputs'!$C172*'HV Retail Bill Inputs'!M$149)+('HV Retail Bill Inputs'!N$42*'HV Retail Bill Inputs'!$C$150*'HV Retail Bill Inputs'!$C172))+'HV Retail Bill Inputs'!$C172)) -> 6.84 | N40: =IF($E$30=Lists!$C$4,(('HV Retail Bill Inputs'!$C162*'HV Retail Bill Inputs'!N$149)+('HV Retail Bill Inputs'!O$42*'HV Retail Bill Inputs'!$C$150*'HV Retail Bill Inputs'!$C162))+'HV Retail Bill Inputs'!$C162,((('HV Retail Bill Inputs'!$C172*'HV Retail Bill Inputs'!N$149)+('HV Retail Bill Inputs'!O$42*'HV Retail Bill Inputs'!$C$150*'HV Retail Bill Inputs'!$C172))+'HV Retail Bill Inputs'!$C172)) -> 6.84 | O40: =IF($E$30=Lists!$C$4,(('HV Retail Bill Inputs'!$C162*'HV Retail Bill Inputs'!O$149)+('HV Retail Bill Inputs'!P$42*'HV Retail Bill Inputs'!$C$150*'HV Retail Bill Inputs'!$C162))+'HV Retail Bill Inputs'!$C162,((('HV Retail Bill Inputs'!$C172*'HV Retail Bill Inputs'!O$149)+('HV Retail Bill Inputs'!P$42*'HV Retail Bill Inputs'!$C$150*'HV Retail Bill Inputs'!$C172))+'HV Retail Bill Inputs'!$C172)) -> 6.84 | P40: =IF($E$30=Lists!$C$4,(('HV Retail Bill Inputs'!$C162*'HV Retail Bill Inputs'!P$149)+('HV Retail Bill Inputs'!Q$42*'HV Retail Bill Inputs'!$C$150*'HV Retail Bill Inputs'!$C162))+'HV Retail Bill Inputs'!$C162,((('HV Retail Bill Inputs'!$C172*'HV Retail Bill Inputs'!P$149)+('HV Retail Bill Inputs'!Q$42*'HV Retail Bill Inputs'!$C$150*'HV Retail Bill Inputs'!$C172))+'HV Retail Bill Inputs'!$C172)) -> 6.84 | Q40: =IF($E$30=Lists!$C$4,(('HV Retail Bill Inputs'!$C162*'HV Retail Bill Inputs'!Q$149)+('HV Retail Bill Inputs'!R$42*'HV Retail Bill Inputs'!$C$150*'HV Retail Bill Inputs'!$C162))+'HV Retail Bill Inputs'!$C162,((('HV Retail Bill Inputs'!$C172*'HV Retail Bill Inputs'!Q$149)+('HV Retail Bill Inputs'!R$42*'HV Retail Bill Inputs'!$C$150*'HV Retail Bill Inputs'!$C172))+'HV Retail Bill Inputs'!$C172)) -> 6.84 | R40: =IF($E$30=Lists!$C$4,(('HV Retail Bill Inputs'!$C162*'HV Retail Bill Inputs'!R$149)+('HV Retail Bill Inputs'!S$42*'HV Retail Bill Inputs'!$C$150*'HV Retail Bill Inputs'!$C162))+'HV Retail Bill Inputs'!$C162,((('HV Retail Bill Inputs'!$C172*'HV Retail Bill Inputs'!R$149)+('HV Retail Bill Inputs'!S$42*'HV Retail Bill Inputs'!$C$150*'HV Retail Bill Inputs'!$C172))+'HV Retail Bill Inputs'!$C172)) -> 6.84 | S40: =IF($E$30=Lists!$C$4,(('HV Retail Bill Inputs'!$C162*'HV Retail Bill Inputs'!S$149)+('HV Retail Bill Inputs'!T$42*'HV Retail Bill Inputs'!$C$150*'HV Retail Bill Inputs'!$C162))+'HV Retail Bill Inputs'!$C162,((('HV Retail Bill Inputs'!$C172*'HV Retail Bill Inputs'!S$149)+('HV Retail Bill Inputs'!T$42*'HV Retail Bill Inputs'!$C$150*'HV Retail Bill Inputs'!$C172))+'HV Retail Bill Inputs'!$C172)) -> 6.84 | T40: =IF($E$30=Lists!$C$4,(('HV Retail Bill Inputs'!$C162*'HV Retail Bill Inputs'!T$149)+('HV Retail Bill Inputs'!U$42*'HV Retail Bill Inputs'!$C$150*'HV Retail Bill Inputs'!$C162))+'HV Retail Bill Inputs'!$C162,((('HV Retail Bill Inputs'!$C172*'HV Retail Bill Inputs'!T$149)+('HV Retail Bill Inputs'!U$42*'HV Retail Bill Inputs'!$C$150*'HV Retail Bill Inputs'!$C172))+'HV Retail Bill Inputs'!$C172)) -> 6.84 | U40: =IF($E$30=Lists!$C$4,(('HV Retail Bill Inputs'!$C162*'HV Retail Bill Inputs'!U$149)+('HV Retail Bill Inputs'!V$42*'HV Retail Bill Inputs'!$C$150*'HV Retail Bill Inputs'!$C162))+'HV Retail Bill Inputs'!$C162,((('HV Retail Bill Inputs'!$C172*'HV Retail Bill Inputs'!U$149)+('HV Retail Bill Inputs'!V$42*'HV Retail Bill Inputs'!$C$150*'HV Retail Bill Inputs'!$C172))+'HV Retail Bill Inputs'!$C172)) -> 6.84 | V40: =IF($E$30=Lists!$C$4,(('HV Retail Bill Inputs'!$C162*'HV Retail Bill Inputs'!V$149)+('HV Retail Bill Inputs'!W$42*'HV Retail Bill Inputs'!$C$150*'HV Retail Bill Inputs'!$C162))+'HV Retail Bill Inputs'!$C162,((('HV Retail Bill Inputs'!$C172*'HV Retail Bill Inputs'!V$149)+('HV Retail Bill Inputs'!W$42*'HV Retail Bill Inputs'!$C$150*'HV Retail Bill Inputs'!$C172))+'HV Retail Bill Inputs'!$C172)) -> 6.84 | W40: =IF($E$30=Lists!$C$4,(('HV Retail Bill Inputs'!$C162*'HV Retail Bill Inputs'!W$149)+('HV Retail Bill Inputs'!X$42*'HV Retail Bill Inputs'!$C$150*'HV Retail Bill Inputs'!$C162))+'HV Retail Bill Inputs'!$C162,((('HV Retail Bill Inputs'!$C172*'HV Retail Bill Inputs'!W$149)+('HV Retail Bill Inputs'!X$42*'HV Retail Bill Inputs'!$C$150*'HV Retail Bill Inputs'!$C172))+'HV Retail Bill Inputs'!$C172)) -> 6.84 | X40: =IF($E$30=Lists!$C$4,(('HV Retail Bill Inputs'!$C162*'HV Retail Bill Inputs'!X$149)+('HV Retail Bill Inputs'!Y$42*'HV Retail Bill Inputs'!$C$150*'HV Retail Bill Inputs'!$C162))+'HV Retail Bill Inputs'!$C162,((('HV Retail Bill Inputs'!$C172*'HV Retail Bill Inputs'!X$149)+('HV Retail Bill Inputs'!Y$42*'HV Retail Bill Inputs'!$C$150*'HV Retail Bill Inputs'!$C172))+'HV Retail Bill Inputs'!$C172)) -> 6.84
D41: Distribution Bill | E41: =SUMPRODUCT(E34:E40,$C34:$C40) -> 70904.67359 | F41: =SUMPRODUCT(F34:F40,$C34:$C40) -> 70904.67359 | G41: =SUMPRODUCT(G34:G40,$C34:$C40) -> 70904.67359 | H41: =SUMPRODUCT(H34:H40,$C34:$C40) -> 70904.67359 | I41: 70904.67359 | J41: 70904.67359 | K41: 70904.67359 | L41: 70904.67359 | M41: 70904.67359 | N41: 70904.67359 | O41: 70904.67359 | P41: 70904.67359 | Q41: 70904.67359 | R41: 70904.67359 | S41: 70904.67359 | T41: 70904.67359 | U41: 70904.67359 | V41: 70904.67359 | W41: 70904.67359 | X41: 70904.67359
D42: NPV | E42: =NPV('Input Sheet'!$C$12,'HV Bill Assumptions'!E41:OFFSET('HV Bill Assumptions'!D41,,'Input Sheet'!$C$7,,)) -> 564373.7083
A44: 4 | B44: Customer Name | C44: =INDEX('Input Sheet'!$B$67:$B$76,'HV Bill Assumptions'!A44) -> Spare Customer 4 | E44: =INDEX('Input Sheet'!$J$67:$J$76,'LgeLV Bill Assumptions'!A44) -> Peak/Off Peak
B46: =B32 -> Retail Bill - Spare
B47: =B33 -> Component of Retail Electricity Price | C47: Quantities | D47: Units of Charging | E47: =E33 -> 2020 | F47: =E47+1 -> 2021 | G47: 2022 | H47: 2023 | I47: 2024 | J47: 2025 | K47: 2026 | L47: 2027 | M47: 2028 | N47: 2029 | O47: 2030 | P47: 2031 | Q47: 2032 | R47: 2033 | S47: 2034 | T47: 2035 | U47: 2036 | V47: 2037 | W47: 2038 | X47: 2039
B48: =B34 -> Peak (kWh) | C48: =IFERROR(INDEX('Input Sheet'!$C$67:$I$76,MATCH($C$44,'Input Sheet'!$B$67:$B$76,0),MATCH($B48,'Input Sheet'!$C$66:$I$66,0)),0) -> 0 | D48: ='Input Sheet'!$M$67 -> $/kWh | E48: =IF($E$44=Lists!$C$4,(('HV Retail Bill Inputs'!$C156*'HV Retail Bill Inputs'!E$149)+('HV Retail Bill Inputs'!F$56*'HV Retail Bill Inputs'!$C$150*'HV Retail Bill Inputs'!$C156))+'HV Retail Bill Inputs'!$C156,((('HV Retail Bill Inputs'!$C166*'HV Retail Bill Inputs'!E$149)+('HV Retail Bill Inputs'!F$56*'HV Retail Bill Inputs'!$C$150*'HV Retail Bill Inputs'!$C166))+'HV Retail Bill Inputs'!$C166)) ->  | F48: =IF($E$44=Lists!$C$4,(('HV Retail Bill Inputs'!$C156*'HV Retail Bill Inputs'!F$149)+('HV Retail Bill Inputs'!G$56*'HV Retail Bill Inputs'!$C$150*'HV Retail Bill Inputs'!$C156))+'HV Retail Bill Inputs'!$C156,((('HV Retail Bill Inputs'!$C166*'HV Retail Bill Inputs'!F$149)+('HV Retail Bill Inputs'!G$56*'HV Retail Bill Inputs'!$C$150*'HV Retail Bill Inputs'!$C166))+'HV Retail Bill Inputs'!$C166)) ->  | G48: =IF($E$44=Lists!$C$4,(('HV Retail Bill Inputs'!$C156*'HV Retail Bill Inputs'!G$149)+('HV Retail Bill Inputs'!H$56*'HV Retail Bill Inputs'!$C$150*'HV Retail Bill Inputs'!$C156))+'HV Retail Bill Inputs'!$C156,((('HV Retail Bill Inputs'!$C166*'HV Retail Bill Inputs'!G$149)+('HV Retail Bill Inputs'!H$56*'HV Retail Bill Inputs'!$C$150*'HV Retail Bill Inputs'!$C166))+'HV Retail Bill Inputs'!$C166)) ->  | H48: =IF($E$44=Lists!$C$4,(('HV Retail Bill Inputs'!$C156*'HV Retail Bill Inputs'!H$149)+('HV Retail Bill Inputs'!I$56*'HV Retail Bill Inputs'!$C$150*'HV Retail Bill Inputs'!$C156))+'HV Retail Bill Inputs'!$C156,((('HV Retail Bill Inputs'!$C166*'HV Retail Bill Inputs'!H$149)+('HV Retail Bill Inputs'!I$56*'HV Retail Bill Inputs'!$C$150*'HV Retail Bill Inputs'!$C166))+'HV Retail Bill Inputs'!$C166)) ->  | I48: =IF($E$44=Lists!$C$4,(('HV Retail Bill Inputs'!$C156*'HV Retail Bill Inputs'!I$149)+('HV Retail Bill Inputs'!J$56*'HV Retail Bill Inputs'!$C$150*'HV Retail Bill Inputs'!$C156))+'HV Retail Bill Inputs'!$C156,((('HV Retail Bill Inputs'!$C166*'HV Retail Bill Inputs'!I$149)+('HV Retail Bill Inputs'!J$56*'HV Retail Bill Inputs'!$C$150*'HV Retail Bill Inputs'!$C166))+'HV Retail Bill Inputs'!$C166)) ->  | J48: =IF($E$44=Lists!$C$4,(('HV Retail Bill Inputs'!$C156*'HV Retail Bill Inputs'!J$149)+('HV Retail Bill Inputs'!K$56*'HV Retail Bill Inputs'!$C$150*'HV Retail Bill Inputs'!$C156))+'HV Retail Bill Inputs'!$C156,((('HV Retail Bill Inputs'!$C166*'HV Retail Bill Inputs'!J$149)+('HV Retail Bill Inputs'!K$56*'HV Retail Bill Inputs'!$C$150*'HV Retail Bill Inputs'!$C166))+'HV Retail Bill Inputs'!$C166)) ->  | K48: =IF($E$44=Lists!$C$4,(('HV Retail Bill Inputs'!$C156*'HV Retail Bill Inputs'!K$149)+('HV Retail Bill Inputs'!L$56*'HV Retail Bill Inputs'!$C$150*'HV Retail Bill Inputs'!$C156))+'HV Retail Bill Inputs'!$C156,((('HV Retail Bill Inputs'!$C166*'HV Retail Bill Inputs'!K$149)+('HV Retail Bill Inputs'!L$56*'HV Retail Bill Inputs'!$C$150*'HV Retail Bill Inputs'!$C166))+'HV Retail Bill Inputs'!$C166)) ->  | L48: =IF($E$44=Lists!$C$4,(('HV Retail Bill Inputs'!$C156*'HV Retail Bill Inputs'!L$149)+('HV Retail Bill Inputs'!M$56*'HV Retail Bill Inputs'!$C$150*'HV Retail Bill Inputs'!$C156))+'HV Retail Bill Inputs'!$C156,((('HV Retail Bill Inputs'!$C166*'HV Retail Bill Inputs'!L$149)+('HV Retail Bill Inputs'!M$56*'HV Retail Bill Inputs'!$C$150*'HV Retail Bill Inputs'!$C166))+'HV Retail Bill Inputs'!$C166)) ->  | M48: =IF($E$44=Lists!$C$4,(('HV Retail Bill Inputs'!$C156*'HV Retail Bill Inputs'!M$149)+('HV Retail Bill Inputs'!N$56*'HV Retail Bill Inputs'!$C$150*'HV Retail Bill Inputs'!$C156))+'HV Retail Bill Inputs'!$C156,((('HV Retail Bill Inputs'!$C166*'HV Retail Bill Inputs'!M$149)+('HV Retail Bill Inputs'!N$56*'HV Retail Bill Inputs'!$C$150*'HV Retail Bill Inputs'!$C166))+'HV Retail Bill Inputs'!$C166)) ->  | N48: =IF($E$44=Lists!$C$4,(('HV Retail Bill Inputs'!$C156*'HV Retail Bill Inputs'!N$149)+('HV Retail Bill Inputs'!O$56*'HV Retail Bill Inputs'!$C$150*'HV Retail Bill Inputs'!$C156))+'HV Retail Bill Inputs'!$C156,((('HV Retail Bill Inputs'!$C166*'HV Retail Bill Inputs'!N$149)+('HV Retail Bill Inputs'!O$56*'HV Retail Bill Inputs'!$C$150*'HV Retail Bill Inputs'!$C166))+'HV Retail Bill Inputs'!$C166)) ->  | O48: =IF($E$44=Lists!$C$4,(('HV Retail Bill Inputs'!$C156*'HV Retail Bill Inputs'!O$149)+('HV Retail Bill Inputs'!P$56*'HV Retail Bill Inputs'!$C$150*'HV Retail Bill Inputs'!$C156))+'HV Retail Bill Inputs'!$C156,((('HV Retail Bill Inputs'!$C166*'HV Retail Bill Inputs'!O$149)+('HV Retail Bill Inputs'!P$56*'HV Retail Bill Inputs'!$C$150*'HV Retail Bill Inputs'!$C166))+'HV Retail Bill Inputs'!$C166)) ->  | P48: =IF($E$44=Lists!$C$4,(('HV Retail Bill Inputs'!$C156*'HV Retail Bill Inputs'!P$149)+('HV Retail Bill Inputs'!Q$56*'HV Retail Bill Inputs'!$C$150*'HV Retail Bill Inputs'!$C156))+'HV Retail Bill Inputs'!$C156,((('HV Retail Bill Inputs'!$C166*'HV Retail Bill Inputs'!P$149)+('HV Retail Bill Inputs'!Q$56*'HV Retail Bill Inputs'!$C$150*'HV Retail Bill Inputs'!$C166))+'HV Retail Bill Inputs'!$C166)) ->  | Q48: =IF($E$44=Lists!$C$4,(('HV Retail Bill Inputs'!$C156*'HV Retail Bill Inputs'!Q$149)+('HV Retail Bill Inputs'!R$56*'HV Retail Bill Inputs'!$C$150*'HV Retail Bill Inputs'!$C156))+'HV Retail Bill Inputs'!$C156,((('HV Retail Bill Inputs'!$C166*'HV Retail Bill Inputs'!Q$149)+('HV Retail Bill Inputs'!R$56*'HV Retail Bill Inputs'!$C$150*'HV Retail Bill Inputs'!$C166))+'HV Retail Bill Inputs'!$C166)) ->  | R48: =IF($E$44=Lists!$C$4,(('HV Retail Bill Inputs'!$C156*'HV Retail Bill Inputs'!R$149)+('HV Retail Bill Inputs'!S$56*'HV Retail Bill Inputs'!$C$150*'HV Retail Bill Inputs'!$C156))+'HV Retail Bill Inputs'!$C156,((('HV Retail Bill Inputs'!$C166*'HV Retail Bill Inputs'!R$149)+('HV Retail Bill Inputs'!S$56*'HV Retail Bill Inputs'!$C$150*'HV Retail Bill Inputs'!$C166))+'HV Retail Bill Inputs'!$C166)) ->  | S48: =IF($E$44=Lists!$C$4,(('HV Retail Bill Inputs'!$C156*'HV Retail Bill Inputs'!S$149)+('HV Retail Bill Inputs'!T$56*'HV Retail Bill Inputs'!$C$150*'HV Retail Bill Inputs'!$C156))+'HV Retail Bill Inputs'!$C156,((('HV Retail Bill Inputs'!$C166*'HV Retail Bill Inputs'!S$149)+('HV Retail Bill Inputs'!T$56*'HV Retail Bill Inputs'!$C$150*'HV Retail Bill Inputs'!$C166))+'HV Retail Bill Inputs'!$C166)) ->  | T48: =IF($E$44=Lists!$C$4,(('HV Retail Bill Inputs'!$C156*'HV Retail Bill Inputs'!T$149)+('HV Retail Bill Inputs'!U$56*'HV Retail Bill Inputs'!$C$150*'HV Retail Bill Inputs'!$C156))+'HV Retail Bill Inputs'!$C156,((('HV Retail Bill Inputs'!$C166*'HV Retail Bill Inputs'!T$149)+('HV Retail Bill Inputs'!U$56*'HV Retail Bill Inputs'!$C$150*'HV Retail Bill Inputs'!$C166))+'HV Retail Bill Inputs'!$C166)) ->  | U48: =IF($E$44=Lists!$C$4,(('HV Retail Bill Inputs'!$C156*'HV Retail Bill Inputs'!U$149)+('HV Retail Bill Inputs'!V$56*'HV Retail Bill Inputs'!$C$150*'HV Retail Bill Inputs'!$C156))+'HV Retail Bill Inputs'!$C156,((('HV Retail Bill Inputs'!$C166*'HV Retail Bill Inputs'!U$149)+('HV Retail Bill Inputs'!V$56*'HV Retail Bill Inputs'!$C$150*'HV Retail Bill Inputs'!$C166))+'HV Retail Bill Inputs'!$C166)) ->  | V48: =IF($E$44=Lists!$C$4,(('HV Retail Bill Inputs'!$C156*'HV Retail Bill Inputs'!V$149)+('HV Retail Bill Inputs'!W$56*'HV Retail Bill Inputs'!$C$150*'HV Retail Bill Inputs'!$C156))+'HV Retail Bill Inputs'!$C156,((('HV Retail Bill Inputs'!$C166*'HV Retail Bill Inputs'!V$149)+('HV Retail Bill Inputs'!W$56*'HV Retail Bill Inputs'!$C$150*'HV Retail Bill Inputs'!$C166))+'HV Retail Bill Inputs'!$C166)) ->  | W48: =IF($E$44=Lists!$C$4,(('HV Retail Bill Inputs'!$C156*'HV Retail Bill Inputs'!W$149)+('HV Retail Bill Inputs'!X$56*'HV Retail Bill Inputs'!$C$150*'HV Retail Bill Inputs'!$C156))+'HV Retail Bill Inputs'!$C156,((('HV Retail Bill Inputs'!$C166*'HV Retail Bill Inputs'!W$149)+('HV Retail Bill Inputs'!X$56*'HV Retail Bill Inputs'!$C$150*'HV Retail Bill Inputs'!$C166))+'HV Retail Bill Inputs'!$C166)) ->  | X48: =IF($E$44=Lists!$C$4,(('HV Retail Bill Inputs'!$C156*'HV Retail Bill Inputs'!X$149)+('HV Retail Bill Inputs'!Y$56*'HV Retail Bill Inputs'!$C$150*'HV Retail Bill Inputs'!$C156))+'HV Retail Bill Inputs'!$C156,((('HV Retail Bill Inputs'!$C166*'HV Retail Bill Inputs'!X$149)+('HV Retail Bill Inputs'!Y$56*'HV Retail Bill Inputs'!$C$150*'HV Retail Bill Inputs'!$C166))+'HV Retail Bill Inputs'!$C166)) -> 
B49: =B35 -> Shoulder (kWh) | C49: =IFERROR(INDEX('Input Sheet'!$C$67:$I$76,MATCH($C$44,'Input Sheet'!$B$67:$B$76,0),MATCH($B49,'Input Sheet'!$C$66:$I$66,0)),0) -> 0 | D49: ='Input Sheet'!$M$68 -> $/kWh | E49: =IF($E$44=Lists!$C$4,(('HV Retail Bill Inputs'!$C157*'HV Retail Bill Inputs'!E$149)+('HV Retail Bill Inputs'!F$56*'HV Retail Bill Inputs'!$C$150*'HV Retail Bill Inputs'!$C157))+'HV Retail Bill Inputs'!$C157,((('HV Retail Bill Inputs'!$C167*'HV Retail Bill Inputs'!E$149)+('HV Retail Bill Inputs'!F$56*'HV Retail Bill Inputs'!$C$150*'HV Retail Bill Inputs'!$C167))+'HV Retail Bill Inputs'!$C167)) ->  | F49: =IF($E$44=Lists!$C$4,(('HV Retail Bill Inputs'!$C157*'HV Retail Bill Inputs'!F$149)+('HV Retail Bill Inputs'!G$56*'HV Retail Bill Inputs'!$C$150*'HV Retail Bill Inputs'!$C157))+'HV Retail Bill Inputs'!$C157,((('HV Retail Bill Inputs'!$C167*'HV Retail Bill Inputs'!F$149)+('HV Retail Bill Inputs'!G$56*'HV Retail Bill Inputs'!$C$150*'HV Retail Bill Inputs'!$C167))+'HV Retail Bill Inputs'!$C167)) ->  | G49: =IF($E$44=Lists!$C$4,(('HV Retail Bill Inputs'!$C157*'HV Retail Bill Inputs'!G$149)+('HV Retail Bill Inputs'!H$56*'HV Retail Bill Inputs'!$C$150*'HV Retail Bill Inputs'!$C157))+'HV Retail Bill Inputs'!$C157,((('HV Retail Bill Inputs'!$C167*'HV Retail Bill Inputs'!G$149)+('HV Retail Bill Inputs'!H$56*'HV Retail Bill Inputs'!$C$150*'HV Retail Bill Inputs'!$C167))+'HV Retail Bill Inputs'!$C167)) ->  | H49: =IF($E$44=Lists!$C$4,(('HV Retail Bill Inputs'!$C157*'HV Retail Bill Inputs'!H$149)+('HV Retail Bill Inputs'!I$56*'HV Retail Bill Inputs'!$C$150*'HV Retail Bill Inputs'!$C157))+'HV Retail Bill Inputs'!$C157,((('HV Retail Bill Inputs'!$C167*'HV Retail Bill Inputs'!H$149)+('HV Retail Bill Inputs'!I$56*'HV Retail Bill Inputs'!$C$150*'HV Retail Bill Inputs'!$C167))+'HV Retail Bill Inputs'!$C167)) ->  | I49: =IF($E$44=Lists!$C$4,(('HV Retail Bill Inputs'!$C157*'HV Retail Bill Inputs'!I$149)+('HV Retail Bill Inputs'!J$56*'HV Retail Bill Inputs'!$C$150*'HV Retail Bill Inputs'!$C157))+'HV Retail Bill Inputs'!$C157,((('HV Retail Bill Inputs'!$C167*'HV Retail Bill Inputs'!I$149)+('HV Retail Bill Inputs'!J$56*'HV Retail Bill Inputs'!$C$150*'HV Retail Bill Inputs'!$C167))+'HV Retail Bill Inputs'!$C167)) ->  | J49: =IF($E$44=Lists!$C$4,(('HV Retail Bill Inputs'!$C157*'HV Retail Bill Inputs'!J$149)+('HV Retail Bill Inputs'!K$56*'HV Retail Bill Inputs'!$C$150*'HV Retail Bill Inputs'!$C157))+'HV Retail Bill Inputs'!$C157,((('HV Retail Bill Inputs'!$C167*'HV Retail Bill Inputs'!J$149)+('HV Retail Bill Inputs'!K$56*'HV Retail Bill Inputs'!$C$150*'HV Retail Bill Inputs'!$C167))+'HV Retail Bill Inputs'!$C167)) ->  | K49: =IF($E$44=Lists!$C$4,(('HV Retail Bill Inputs'!$C157*'HV Retail Bill Inputs'!K$149)+('HV Retail Bill Inputs'!L$56*'HV Retail Bill Inputs'!$C$150*'HV Retail Bill Inputs'!$C157))+'HV Retail Bill Inputs'!$C157,((('HV Retail Bill Inputs'!$C167*'HV Retail Bill Inputs'!K$149)+('HV Retail Bill Inputs'!L$56*'HV Retail Bill Inputs'!$C$150*'HV Retail Bill Inputs'!$C167))+'HV Retail Bill Inputs'!$C167)) ->  | L49: =IF($E$44=Lists!$C$4,(('HV Retail Bill Inputs'!$C157*'HV Retail Bill Inputs'!L$149)+('HV Retail Bill Inputs'!M$56*'HV Retail Bill Inputs'!$C$150*'HV Retail Bill Inputs'!$C157))+'HV Retail Bill Inputs'!$C157,((('HV Retail Bill Inputs'!$C167*'HV Retail Bill Inputs'!L$149)+('HV Retail Bill Inputs'!M$56*'HV Retail Bill Inputs'!$C$150*'HV Retail Bill Inputs'!$C167))+'HV Retail Bill Inputs'!$C167)) ->  | M49: =IF($E$44=Lists!$C$4,(('HV Retail Bill Inputs'!$C157*'HV Retail Bill Inputs'!M$149)+('HV Retail Bill Inputs'!N$56*'HV Retail Bill Inputs'!$C$150*'HV Retail Bill Inputs'!$C157))+'HV Retail Bill Inputs'!$C157,((('HV Retail Bill Inputs'!$C167*'HV Retail Bill Inputs'!M$149)+('HV Retail Bill Inputs'!N$56*'HV Retail Bill Inputs'!$C$150*'HV Retail Bill Inputs'!$C167))+'HV Retail Bill Inputs'!$C167)) ->  | N49: =IF($E$44=Lists!$C$4,(('HV Retail Bill Inputs'!$C157*'HV Retail Bill Inputs'!N$149)+('HV Retail Bill Inputs'!O$56*'HV Retail Bill Inputs'!$C$150*'HV Retail Bill Inputs'!$C157))+'HV Retail Bill Inputs'!$C157,((('HV Retail Bill Inputs'!$C167*'HV Retail Bill Inputs'!N$149)+('HV Retail Bill Inputs'!O$56*'HV Retail Bill Inputs'!$C$150*'HV Retail Bill Inputs'!$C167))+'HV Retail Bill Inputs'!$C167)) ->  | O49: =IF($E$44=Lists!$C$4,(('HV Retail Bill Inputs'!$C157*'HV Retail Bill Inputs'!O$149)+('HV Retail Bill Inputs'!P$56*'HV Retail Bill Inputs'!$C$150*'HV Retail Bill Inputs'!$C157))+'HV Retail Bill Inputs'!$C157,((('HV Retail Bill Inputs'!$C167*'HV Retail Bill Inputs'!O$149)+('HV Retail Bill Inputs'!P$56*'HV Retail Bill Inputs'!$C$150*'HV Retail Bill Inputs'!$C167))+'HV Retail Bill Inputs'!$C167)) ->  | P49: =IF($E$44=Lists!$C$4,(('HV Retail Bill Inputs'!$C157*'HV Retail Bill Inputs'!P$149)+('HV Retail Bill Inputs'!Q$56*'HV Retail Bill Inputs'!$C$150*'HV Retail Bill Inputs'!$C157))+'HV Retail Bill Inputs'!$C157,((('HV Retail Bill Inputs'!$C167*'HV Retail Bill Inputs'!P$149)+('HV Retail Bill Inputs'!Q$56*'HV Retail Bill Inputs'!$C$150*'HV Retail Bill Inputs'!$C167))+'HV Retail Bill Inputs'!$C167)) ->  | Q49: =IF($E$44=Lists!$C$4,(('HV Retail Bill Inputs'!$C157*'HV Retail Bill Inputs'!Q$149)+('HV Retail Bill Inputs'!R$56*'HV Retail Bill Inputs'!$C$150*'HV Retail Bill Inputs'!$C157))+'HV Retail Bill Inputs'!$C157,((('HV Retail Bill Inputs'!$C167*'HV Retail Bill Inputs'!Q$149)+('HV Retail Bill Inputs'!R$56*'HV Retail Bill Inputs'!$C$150*'HV Retail Bill Inputs'!$C167))+'HV Retail Bill Inputs'!$C167)) ->  | R49: =IF($E$44=Lists!$C$4,(('HV Retail Bill Inputs'!$C157*'HV Retail Bill Inputs'!R$149)+('HV Retail Bill Inputs'!S$56*'HV Retail Bill Inputs'!$C$150*'HV Retail Bill Inputs'!$C157))+'HV Retail Bill Inputs'!$C157,((('HV Retail Bill Inputs'!$C167*'HV Retail Bill Inputs'!R$149)+('HV Retail Bill Inputs'!S$56*'HV Retail Bill Inputs'!$C$150*'HV Retail Bill Inputs'!$C167))+'HV Retail Bill Inputs'!$C167)) ->  | S49: =IF($E$44=Lists!$C$4,(('HV Retail Bill Inputs'!$C157*'HV Retail Bill Inputs'!S$149)+('HV Retail Bill Inputs'!T$56*'HV Retail Bill Inputs'!$C$150*'HV Retail Bill Inputs'!$C157))+'HV Retail Bill Inputs'!$C157,((('HV Retail Bill Inputs'!$C167*'HV Retail Bill Inputs'!S$149)+('HV Retail Bill Inputs'!T$56*'HV Retail Bill Inputs'!$C$150*'HV Retail Bill Inputs'!$C167))+'HV Retail Bill Inputs'!$C167)) ->  | T49: =IF($E$44=Lists!$C$4,(('HV Retail Bill Inputs'!$C157*'HV Retail Bill Inputs'!T$149)+('HV Retail Bill Inputs'!U$56*'HV Retail Bill Inputs'!$C$150*'HV Retail Bill Inputs'!$C157))+'HV Retail Bill Inputs'!$C157,((('HV Retail Bill Inputs'!$C167*'HV Retail Bill Inputs'!T$149)+('HV Retail Bill Inputs'!U$56*'HV Retail Bill Inputs'!$C$150*'HV Retail Bill Inputs'!$C167))+'HV Retail Bill Inputs'!$C167)) ->  | U49: =IF($E$44=Lists!$C$4,(('HV Retail Bill Inputs'!$C157*'HV Retail Bill Inputs'!U$149)+('HV Retail Bill Inputs'!V$56*'HV Retail Bill Inputs'!$C$150*'HV Retail Bill Inputs'!$C157))+'HV Retail Bill Inputs'!$C157,((('HV Retail Bill Inputs'!$C167*'HV Retail Bill Inputs'!U$149)+('HV Retail Bill Inputs'!V$56*'HV Retail Bill Inputs'!$C$150*'HV Retail Bill Inputs'!$C167))+'HV Retail Bill Inputs'!$C167)) ->  | V49: =IF($E$44=Lists!$C$4,(('HV Retail Bill Inputs'!$C157*'HV Retail Bill Inputs'!V$149)+('HV Retail Bill Inputs'!W$56*'HV Retail Bill Inputs'!$C$150*'HV Retail Bill Inputs'!$C157))+'HV Retail Bill Inputs'!$C157,((('HV Retail Bill Inputs'!$C167*'HV Retail Bill Inputs'!V$149)+('HV Retail Bill Inputs'!W$56*'HV Retail Bill Inputs'!$C$150*'HV Retail Bill Inputs'!$C167))+'HV Retail Bill Inputs'!$C167)) ->  | W49: =IF($E$44=Lists!$C$4,(('HV Retail Bill Inputs'!$C157*'HV Retail Bill Inputs'!W$149)+('HV Retail Bill Inputs'!X$56*'HV Retail Bill Inputs'!$C$150*'HV Retail Bill Inputs'!$C157))+'HV Retail Bill Inputs'!$C157,((('HV Retail Bill Inputs'!$C167*'HV Retail Bill Inputs'!W$149)+('HV Retail Bill Inputs'!X$56*'HV Retail Bill Inputs'!$C$150*'HV Retail Bill Inputs'!$C167))+'HV Retail Bill Inputs'!$C167)) ->  | X49: =IF($E$44=Lists!$C$4,(('HV Retail Bill Inputs'!$C157*'HV Retail Bill Inputs'!X$149)+('HV Retail Bill Inputs'!Y$56*'HV Retail Bill Inputs'!$C$150*'HV Retail Bill Inputs'!$C157))+'HV Retail Bill Inputs'!$C157,((('HV Retail Bill Inputs'!$C167*'HV Retail Bill Inputs'!X$149)+('HV Retail Bill Inputs'!Y$56*'HV Retail Bill Inputs'!$C$150*'HV Retail Bill Inputs'!$C167))+'HV Retail Bill Inputs'!$C167)) -> 
B50: Off Peak (kWH) | C50: =IFERROR(INDEX('Input Sheet'!$C$67:$I$76,MATCH($C$44,'Input Sheet'!$B$67:$B$76,0),MATCH($B50,'Input Sheet'!$C$66:$I$66,0)),0) -> 0 | D50: ='Input Sheet'!$M$69 -> $/kWh | E50: =IF($E$44=Lists!$C$4,(('HV Retail Bill Inputs'!$C158*'HV Retail Bill Inputs'!E$149)+('HV Retail Bill Inputs'!F$56*'HV Retail Bill Inputs'!$C$150*'HV Retail Bill Inputs'!$C158))+'HV Retail Bill Inputs'!$C158,((('HV Retail Bill Inputs'!$C168*'HV Retail Bill Inputs'!E$149)+('HV Retail Bill Inputs'!F$56*'HV Retail Bill Inputs'!$C$150*'HV Retail Bill Inputs'!$C168))+'HV Retail Bill Inputs'!$C168)) ->  | F50: =IF($E$44=Lists!$C$4,(('HV Retail Bill Inputs'!$C158*'HV Retail Bill Inputs'!F$149)+('HV Retail Bill Inputs'!G$56*'HV Retail Bill Inputs'!$C$150*'HV Retail Bill Inputs'!$C158))+'HV Retail Bill Inputs'!$C158,((('HV Retail Bill Inputs'!$C168*'HV Retail Bill Inputs'!F$149)+('HV Retail Bill Inputs'!G$56*'HV Retail Bill Inputs'!$C$150*'HV Retail Bill Inputs'!$C168))+'HV Retail Bill Inputs'!$C168)) ->  | G50: =IF($E$44=Lists!$C$4,(('HV Retail Bill Inputs'!$C158*'HV Retail Bill Inputs'!G$149)+('HV Retail Bill Inputs'!H$56*'HV Retail Bill Inputs'!$C$150*'HV Retail Bill Inputs'!$C158))+'HV Retail Bill Inputs'!$C158,((('HV Retail Bill Inputs'!$C168*'HV Retail Bill Inputs'!G$149)+('HV Retail Bill Inputs'!H$56*'HV Retail Bill Inputs'!$C$150*'HV Retail Bill Inputs'!$C168))+'HV Retail Bill Inputs'!$C168)) ->  | H50: =IF($E$44=Lists!$C$4,(('HV Retail Bill Inputs'!$C158*'HV Retail Bill Inputs'!H$149)+('HV Retail Bill Inputs'!I$56*'HV Retail Bill Inputs'!$C$150*'HV Retail Bill Inputs'!$C158))+'HV Retail Bill Inputs'!$C158,((('HV Retail Bill Inputs'!$C168*'HV Retail Bill Inputs'!H$149)+('HV Retail Bill Inputs'!I$56*'HV Retail Bill Inputs'!$C$150*'HV Retail Bill Inputs'!$C168))+'HV Retail Bill Inputs'!$C168)) ->  | I50: =IF($E$44=Lists!$C$4,(('HV Retail Bill Inputs'!$C158*'HV Retail Bill Inputs'!I$149)+('HV Retail Bill Inputs'!J$56*'HV Retail Bill Inputs'!$C$150*'HV Retail Bill Inputs'!$C158))+'HV Retail Bill Inputs'!$C158,((('HV Retail Bill Inputs'!$C168*'HV Retail Bill Inputs'!I$149)+('HV Retail Bill Inputs'!J$56*'HV Retail Bill Inputs'!$C$150*'HV Retail Bill Inputs'!$C168))+'HV Retail Bill Inputs'!$C168)) ->  | J50: =IF($E$44=Lists!$C$4,(('HV Retail Bill Inputs'!$C158*'HV Retail Bill Inputs'!J$149)+('HV Retail Bill Inputs'!K$56*'HV Retail Bill Inputs'!$C$150*'HV Retail Bill Inputs'!$C158))+'HV Retail Bill Inputs'!$C158,((('HV Retail Bill Inputs'!$C168*'HV Retail Bill Inputs'!J$149)+('HV Retail Bill Inputs'!K$56*'HV Retail Bill Inputs'!$C$150*'HV Retail Bill Inputs'!$C168))+'HV Retail Bill Inputs'!$C168)) ->  | K50: =IF($E$44=Lists!$C$4,(('HV Retail Bill Inputs'!$C158*'HV Retail Bill Inputs'!K$149)+('HV Retail Bill Inputs'!L$56*'HV Retail Bill Inputs'!$C$150*'HV Retail Bill Inputs'!$C158))+'HV Retail Bill Inputs'!$C158,((('HV Retail Bill Inputs'!$C168*'HV Retail Bill Inputs'!K$149)+('HV Retail Bill Inputs'!L$56*'HV Retail Bill Inputs'!$C$150*'HV Retail Bill Inputs'!$C168))+'HV Retail Bill Inputs'!$C168)) ->  | L50: =IF($E$44=Lists!$C$4,(('HV Retail Bill Inputs'!$C158*'HV Retail Bill Inputs'!L$149)+('HV Retail Bill Inputs'!M$56*'HV Retail Bill Inputs'!$C$150*'HV Retail Bill Inputs'!$C158))+'HV Retail Bill Inputs'!$C158,((('HV Retail Bill Inputs'!$C168*'HV Retail Bill Inputs'!L$149)+('HV Retail Bill Inputs'!M$56*'HV Retail Bill Inputs'!$C$150*'HV Retail Bill Inputs'!$C168))+'HV Retail Bill Inputs'!$C168)) ->  | M50: =IF($E$44=Lists!$C$4,(('HV Retail Bill Inputs'!$C158*'HV Retail Bill Inputs'!M$149)+('HV Retail Bill Inputs'!N$56*'HV Retail Bill Inputs'!$C$150*'HV Retail Bill Inputs'!$C158))+'HV Retail Bill Inputs'!$C158,((('HV Retail Bill Inputs'!$C168*'HV Retail Bill Inputs'!M$149)+('HV Retail Bill Inputs'!N$56*'HV Retail Bill Inputs'!$C$150*'HV Retail Bill Inputs'!$C168))+'HV Retail Bill Inputs'!$C168)) ->  | N50: =IF($E$44=Lists!$C$4,(('HV Retail Bill Inputs'!$C158*'HV Retail Bill Inputs'!N$149)+('HV Retail Bill Inputs'!O$56*'HV Retail Bill Inputs'!$C$150*'HV Retail Bill Inputs'!$C158))+'HV Retail Bill Inputs'!$C158,((('HV Retail Bill Inputs'!$C168*'HV Retail Bill Inputs'!N$149)+('HV Retail Bill Inputs'!O$56*'HV Retail Bill Inputs'!$C$150*'HV Retail Bill Inputs'!$C168))+'HV Retail Bill Inputs'!$C168)) ->  | O50: =IF($E$44=Lists!$C$4,(('HV Retail Bill Inputs'!$C158*'HV Retail Bill Inputs'!O$149)+('HV Retail Bill Inputs'!P$56*'HV Retail Bill Inputs'!$C$150*'HV Retail Bill Inputs'!$C158))+'HV Retail Bill Inputs'!$C158,((('HV Retail Bill Inputs'!$C168*'HV Retail Bill Inputs'!O$149)+('HV Retail Bill Inputs'!P$56*'HV Retail Bill Inputs'!$C$150*'HV Retail Bill Inputs'!$C168))+'HV Retail Bill Inputs'!$C168)) ->  | P50: =IF($E$44=Lists!$C$4,(('HV Retail Bill Inputs'!$C158*'HV Retail Bill Inputs'!P$149)+('HV Retail Bill Inputs'!Q$56*'HV Retail Bill Inputs'!$C$150*'HV Retail Bill Inputs'!$C158))+'HV Retail Bill Inputs'!$C158,((('HV Retail Bill Inputs'!$C168*'HV Retail Bill Inputs'!P$149)+('HV Retail Bill Inputs'!Q$56*'HV Retail Bill Inputs'!$C$150*'HV Retail Bill Inputs'!$C168))+'HV Retail Bill Inputs'!$C168)) ->  | Q50: =IF($E$44=Lists!$C$4,(('HV Retail Bill Inputs'!$C158*'HV Retail Bill Inputs'!Q$149)+('HV Retail Bill Inputs'!R$56*'HV Retail Bill Inputs'!$C$150*'HV Retail Bill Inputs'!$C158))+'HV Retail Bill Inputs'!$C158,((('HV Retail Bill Inputs'!$C168*'HV Retail Bill Inputs'!Q$149)+('HV Retail Bill Inputs'!R$56*'HV Retail Bill Inputs'!$C$150*'HV Retail Bill Inputs'!$C168))+'HV Retail Bill Inputs'!$C168)) ->  | R50: =IF($E$44=Lists!$C$4,(('HV Retail Bill Inputs'!$C158*'HV Retail Bill Inputs'!R$149)+('HV Retail Bill Inputs'!S$56*'HV Retail Bill Inputs'!$C$150*'HV Retail Bill Inputs'!$C158))+'HV Retail Bill Inputs'!$C158,((('HV Retail Bill Inputs'!$C168*'HV Retail Bill Inputs'!R$149)+('HV Retail Bill Inputs'!S$56*'HV Retail Bill Inputs'!$C$150*'HV Retail Bill Inputs'!$C168))+'HV Retail Bill Inputs'!$C168)) ->  | S50: =IF($E$44=Lists!$C$4,(('HV Retail Bill Inputs'!$C158*'HV Retail Bill Inputs'!S$149)+('HV Retail Bill Inputs'!T$56*'HV Retail Bill Inputs'!$C$150*'HV Retail Bill Inputs'!$C158))+'HV Retail Bill Inputs'!$C158,((('HV Retail Bill Inputs'!$C168*'HV Retail Bill Inputs'!S$149)+('HV Retail Bill Inputs'!T$56*'HV Retail Bill Inputs'!$C$150*'HV Retail Bill Inputs'!$C168))+'HV Retail Bill Inputs'!$C168)) ->  | T50: =IF($E$44=Lists!$C$4,(('HV Retail Bill Inputs'!$C158*'HV Retail Bill Inputs'!T$149)+('HV Retail Bill Inputs'!U$56*'HV Retail Bill Inputs'!$C$150*'HV Retail Bill Inputs'!$C158))+'HV Retail Bill Inputs'!$C158,((('HV Retail Bill Inputs'!$C168*'HV Retail Bill Inputs'!T$149)+('HV Retail Bill Inputs'!U$56*'HV Retail Bill Inputs'!$C$150*'HV Retail Bill Inputs'!$C168))+'HV Retail Bill Inputs'!$C168)) ->  | U50: =IF($E$44=Lists!$C$4,(('HV Retail Bill Inputs'!$C158*'HV Retail Bill Inputs'!U$149)+('HV Retail Bill Inputs'!V$56*'HV Retail Bill Inputs'!$C$150*'HV Retail Bill Inputs'!$C158))+'HV Retail Bill Inputs'!$C158,((('HV Retail Bill Inputs'!$C168*'HV Retail Bill Inputs'!U$149)+('HV Retail Bill Inputs'!V$56*'HV Retail Bill Inputs'!$C$150*'HV Retail Bill Inputs'!$C168))+'HV Retail Bill Inputs'!$C168)) ->  | V50: =IF($E$44=Lists!$C$4,(('HV Retail Bill Inputs'!$C158*'HV Retail Bill Inputs'!V$149)+('HV Retail Bill Inputs'!W$56*'HV Retail Bill Inputs'!$C$150*'HV Retail Bill Inputs'!$C158))+'HV Retail Bill Inputs'!$C158,((('HV Retail Bill Inputs'!$C168*'HV Retail Bill Inputs'!V$149)+('HV Retail Bill Inputs'!W$56*'HV Retail Bill Inputs'!$C$150*'HV Retail Bill Inputs'!$C168))+'HV Retail Bill Inputs'!$C168)) ->  | W50: =IF($E$44=Lists!$C$4,(('HV Retail Bill Inputs'!$C158*'HV Retail Bill Inputs'!W$149)+('HV Retail Bill Inputs'!X$56*'HV Retail Bill Inputs'!$C$150*'HV Retail Bill Inputs'!$C158))+'HV Retail Bill Inputs'!$C158,((('HV Retail Bill Inputs'!$C168*'HV Retail Bill Inputs'!W$149)+('HV Retail Bill Inputs'!X$56*'HV Retail Bill Inputs'!$C$150*'HV Retail Bill Inputs'!$C168))+'HV Retail Bill Inputs'!$C168)) ->  | X50: =IF($E$44=Lists!$C$4,(('HV Retail Bill Inputs'!$C158*'HV Retail Bill Inputs'!X$149)+('HV Retail Bill Inputs'!Y$56*'HV Retail Bill Inputs'!$C$150*'HV Retail Bill Inputs'!$C158))+'HV Retail Bill Inputs'!$C158,((('HV Retail Bill Inputs'!$C168*'HV Retail Bill Inputs'!X$149)+('HV Retail Bill Inputs'!Y$56*'HV Retail Bill Inputs'!$C$150*'HV Retail Bill Inputs'!$C168))+'HV Retail Bill Inputs'!$C168)) -> 
B51: Chargeable kVA | C51: =IFERROR(INDEX('Input Sheet'!$C$67:$I$76,MATCH($C$44,'Input Sheet'!$B$67:$B$76,0),MATCH($B51,'Input Sheet'!$C$66:$I$66,0)),0) -> 0 | D51: ='Input Sheet'!$M$70 -> $/kVA | E51: =IF($E$44=Lists!$C$4,(('HV Retail Bill Inputs'!$C159*'HV Retail Bill Inputs'!E$149)+('HV Retail Bill Inputs'!F$56*'HV Retail Bill Inputs'!$C$150*'HV Retail Bill Inputs'!$C159))+'HV Retail Bill Inputs'!$C159,((('HV Retail Bill Inputs'!$C169*'HV Retail Bill Inputs'!E$149)+('HV Retail Bill Inputs'!F$56*'HV Retail Bill Inputs'!$C$150*'HV Retail Bill Inputs'!$C169))+'HV Retail Bill Inputs'!$C169)) ->  | F51: =IF($E$44=Lists!$C$4,(('HV Retail Bill Inputs'!$C159*'HV Retail Bill Inputs'!F$149)+('HV Retail Bill Inputs'!G$56*'HV Retail Bill Inputs'!$C$150*'HV Retail Bill Inputs'!$C159))+'HV Retail Bill Inputs'!$C159,((('HV Retail Bill Inputs'!$C169*'HV Retail Bill Inputs'!F$149)+('HV Retail Bill Inputs'!G$56*'HV Retail Bill Inputs'!$C$150*'HV Retail Bill Inputs'!$C169))+'HV Retail Bill Inputs'!$C169)) ->  | G51: =IF($E$44=Lists!$C$4,(('HV Retail Bill Inputs'!$C159*'HV Retail Bill Inputs'!G$149)+('HV Retail Bill Inputs'!H$56*'HV Retail Bill Inputs'!$C$150*'HV Retail Bill Inputs'!$C159))+'HV Retail Bill Inputs'!$C159,((('HV Retail Bill Inputs'!$C169*'HV Retail Bill Inputs'!G$149)+('HV Retail Bill Inputs'!H$56*'HV Retail Bill Inputs'!$C$150*'HV Retail Bill Inputs'!$C169))+'HV Retail Bill Inputs'!$C169)) ->  | H51: =IF($E$44=Lists!$C$4,(('HV Retail Bill Inputs'!$C159*'HV Retail Bill Inputs'!H$149)+('HV Retail Bill Inputs'!I$56*'HV Retail Bill Inputs'!$C$150*'HV Retail Bill Inputs'!$C159))+'HV Retail Bill Inputs'!$C159,((('HV Retail Bill Inputs'!$C169*'HV Retail Bill Inputs'!H$149)+('HV Retail Bill Inputs'!I$56*'HV Retail Bill Inputs'!$C$150*'HV Retail Bill Inputs'!$C169))+'HV Retail Bill Inputs'!$C169)) ->  | I51: =IF($E$44=Lists!$C$4,(('HV Retail Bill Inputs'!$C159*'HV Retail Bill Inputs'!I$149)+('HV Retail Bill Inputs'!J$56*'HV Retail Bill Inputs'!$C$150*'HV Retail Bill Inputs'!$C159))+'HV Retail Bill Inputs'!$C159,((('HV Retail Bill Inputs'!$C169*'HV Retail Bill Inputs'!I$149)+('HV Retail Bill Inputs'!J$56*'HV Retail Bill Inputs'!$C$150*'HV Retail Bill Inputs'!$C169))+'HV Retail Bill Inputs'!$C169)) ->  | J51: =IF($E$44=Lists!$C$4,(('HV Retail Bill Inputs'!$C159*'HV Retail Bill Inputs'!J$149)+('HV Retail Bill Inputs'!K$56*'HV Retail Bill Inputs'!$C$150*'HV Retail Bill Inputs'!$C159))+'HV Retail Bill Inputs'!$C159,((('HV Retail Bill Inputs'!$C169*'HV Retail Bill Inputs'!J$149)+('HV Retail Bill Inputs'!K$56*'HV Retail Bill Inputs'!$C$150*'HV Retail Bill Inputs'!$C169))+'HV Retail Bill Inputs'!$C169)) ->  | K51: =IF($E$44=Lists!$C$4,(('HV Retail Bill Inputs'!$C159*'HV Retail Bill Inputs'!K$149)+('HV Retail Bill Inputs'!L$56*'HV Retail Bill Inputs'!$C$150*'HV Retail Bill Inputs'!$C159))+'HV Retail Bill Inputs'!$C159,((('HV Retail Bill Inputs'!$C169*'HV Retail Bill Inputs'!K$149)+('HV Retail Bill Inputs'!L$56*'HV Retail Bill Inputs'!$C$150*'HV Retail Bill Inputs'!$C169))+'HV Retail Bill Inputs'!$C169)) ->  | L51: =IF($E$44=Lists!$C$4,(('HV Retail Bill Inputs'!$C159*'HV Retail Bill Inputs'!L$149)+('HV Retail Bill Inputs'!M$56*'HV Retail Bill Inputs'!$C$150*'HV Retail Bill Inputs'!$C159))+'HV Retail Bill Inputs'!$C159,((('HV Retail Bill Inputs'!$C169*'HV Retail Bill Inputs'!L$149)+('HV Retail Bill Inputs'!M$56*'HV Retail Bill Inputs'!$C$150*'HV Retail Bill Inputs'!$C169))+'HV Retail Bill Inputs'!$C169)) ->  | M51: =IF($E$44=Lists!$C$4,(('HV Retail Bill Inputs'!$C159*'HV Retail Bill Inputs'!M$149)+('HV Retail Bill Inputs'!N$56*'HV Retail Bill Inputs'!$C$150*'HV Retail Bill Inputs'!$C159))+'HV Retail Bill Inputs'!$C159,((('HV Retail Bill Inputs'!$C169*'HV Retail Bill Inputs'!M$149)+('HV Retail Bill Inputs'!N$56*'HV Retail Bill Inputs'!$C$150*'HV Retail Bill Inputs'!$C169))+'HV Retail Bill Inputs'!$C169)) ->  | N51: =IF($E$44=Lists!$C$4,(('HV Retail Bill Inputs'!$C159*'HV Retail Bill Inputs'!N$149)+('HV Retail Bill Inputs'!O$56*'HV Retail Bill Inputs'!$C$150*'HV Retail Bill Inputs'!$C159))+'HV Retail Bill Inputs'!$C159,((('HV Retail Bill Inputs'!$C169*'HV Retail Bill Inputs'!N$149)+('HV Retail Bill Inputs'!O$56*'HV Retail Bill Inputs'!$C$150*'HV Retail Bill Inputs'!$C169))+'HV Retail Bill Inputs'!$C169)) ->  | O51: =IF($E$44=Lists!$C$4,(('HV Retail Bill Inputs'!$C159*'HV Retail Bill Inputs'!O$149)+('HV Retail Bill Inputs'!P$56*'HV Retail Bill Inputs'!$C$150*'HV Retail Bill Inputs'!$C159))+'HV Retail Bill Inputs'!$C159,((('HV Retail Bill Inputs'!$C169*'HV Retail Bill Inputs'!O$149)+('HV Retail Bill Inputs'!P$56*'HV Retail Bill Inputs'!$C$150*'HV Retail Bill Inputs'!$C169))+'HV Retail Bill Inputs'!$C169)) ->  | P51: =IF($E$44=Lists!$C$4,(('HV Retail Bill Inputs'!$C159*'HV Retail Bill Inputs'!P$149)+('HV Retail Bill Inputs'!Q$56*'HV Retail Bill Inputs'!$C$150*'HV Retail Bill Inputs'!$C159))+'HV Retail Bill Inputs'!$C159,((('HV Retail Bill Inputs'!$C169*'HV Retail Bill Inputs'!P$149)+('HV Retail Bill Inputs'!Q$56*'HV Retail Bill Inputs'!$C$150*'HV Retail Bill Inputs'!$C169))+'HV Retail Bill Inputs'!$C169)) ->  | Q51: =IF($E$44=Lists!$C$4,(('HV Retail Bill Inputs'!$C159*'HV Retail Bill Inputs'!Q$149)+('HV Retail Bill Inputs'!R$56*'HV Retail Bill Inputs'!$C$150*'HV Retail Bill Inputs'!$C159))+'HV Retail Bill Inputs'!$C159,((('HV Retail Bill Inputs'!$C169*'HV Retail Bill Inputs'!Q$149)+('HV Retail Bill Inputs'!R$56*'HV Retail Bill Inputs'!$C$150*'HV Retail Bill Inputs'!$C169))+'HV Retail Bill Inputs'!$C169)) ->  | R51: =IF($E$44=Lists!$C$4,(('HV Retail Bill Inputs'!$C159*'HV Retail Bill Inputs'!R$149)+('HV Retail Bill Inputs'!S$56*'HV Retail Bill Inputs'!$C$150*'HV Retail Bill Inputs'!$C159))+'HV Retail Bill Inputs'!$C159,((('HV Retail Bill Inputs'!$C169*'HV Retail Bill Inputs'!R$149)+('HV Retail Bill Inputs'!S$56*'HV Retail Bill Inputs'!$C$150*'HV Retail Bill Inputs'!$C169))+'HV Retail Bill Inputs'!$C169)) ->  | S51: =IF($E$44=Lists!$C$4,(('HV Retail Bill Inputs'!$C159*'HV Retail Bill Inputs'!S$149)+('HV Retail Bill Inputs'!T$56*'HV Retail Bill Inputs'!$C$150*'HV Retail Bill Inputs'!$C159))+'HV Retail Bill Inputs'!$C159,((('HV Retail Bill Inputs'!$C169*'HV Retail Bill Inputs'!S$149)+('HV Retail Bill Inputs'!T$56*'HV Retail Bill Inputs'!$C$150*'HV Retail Bill Inputs'!$C169))+'HV Retail Bill Inputs'!$C169)) ->  | T51: =IF($E$44=Lists!$C$4,(('HV Retail Bill Inputs'!$C159*'HV Retail Bill Inputs'!T$149)+('HV Retail Bill Inputs'!U$56*'HV Retail Bill Inputs'!$C$150*'HV Retail Bill Inputs'!$C159))+'HV Retail Bill Inputs'!$C159,((('HV Retail Bill Inputs'!$C169*'HV Retail Bill Inputs'!T$149)+('HV Retail Bill Inputs'!U$56*'HV Retail Bill Inputs'!$C$150*'HV Retail Bill Inputs'!$C169))+'HV Retail Bill Inputs'!$C169)) ->  | U51: =IF($E$44=Lists!$C$4,(('HV Retail Bill Inputs'!$C159*'HV Retail Bill Inputs'!U$149)+('HV Retail Bill Inputs'!V$56*'HV Retail Bill Inputs'!$C$150*'HV Retail Bill Inputs'!$C159))+'HV Retail Bill Inputs'!$C159,((('HV Retail Bill Inputs'!$C169*'HV Retail Bill Inputs'!U$149)+('HV Retail Bill Inputs'!V$56*'HV Retail Bill Inputs'!$C$150*'HV Retail Bill Inputs'!$C169))+'HV Retail Bill Inputs'!$C169)) ->  | V51: =IF($E$44=Lists!$C$4,(('HV Retail Bill Inputs'!$C159*'HV Retail Bill Inputs'!V$149)+('HV Retail Bill Inputs'!W$56*'HV Retail Bill Inputs'!$C$150*'HV Retail Bill Inputs'!$C159))+'HV Retail Bill Inputs'!$C159,((('HV Retail Bill Inputs'!$C169*'HV Retail Bill Inputs'!V$149)+('HV Retail Bill Inputs'!W$56*'HV Retail Bill Inputs'!$C$150*'HV Retail Bill Inputs'!$C169))+'HV Retail Bill Inputs'!$C169)) ->  | W51: =IF($E$44=Lists!$C$4,(('HV Retail Bill Inputs'!$C159*'HV Retail Bill Inputs'!W$149)+('HV Retail Bill Inputs'!X$56*'HV Retail Bill Inputs'!$C$150*'HV Retail Bill Inputs'!$C159))+'HV Retail Bill Inputs'!$C159,((('HV Retail Bill Inputs'!$C169*'HV Retail Bill Inputs'!W$149)+('HV Retail Bill Inputs'!X$56*'HV Retail Bill Inputs'!$C$150*'HV Retail Bill Inputs'!$C169))+'HV Retail Bill Inputs'!$C169)) ->  | X51: =IF($E$44=Lists!$C$4,(('HV Retail Bill Inputs'!$C159*'HV Retail Bill Inputs'!X$149)+('HV Retail Bill Inputs'!Y$56*'HV Retail Bill Inputs'!$C$150*'HV Retail Bill Inputs'!$C159))+'HV Retail Bill Inputs'!$C159,((('HV Retail Bill Inputs'!$C169*'HV Retail Bill Inputs'!X$149)+('HV Retail Bill Inputs'!Y$56*'HV Retail Bill Inputs'!$C$150*'HV Retail Bill Inputs'!$C169))+'HV Retail Bill Inputs'!$C169)) -> 
B52: Fixed | C52: =IFERROR(INDEX('Input Sheet'!$C$67:$I$76,MATCH($C$44,'Input Sheet'!$B$67:$B$76,0),MATCH($B52,'Input Sheet'!$C$66:$I$66,0)),0) -> 0 | D52: ='Input Sheet'!$M$71 -> $/year | E52: =IF($E$44=Lists!$C$4,(('HV Retail Bill Inputs'!$C160*'HV Retail Bill Inputs'!E$149)+('HV Retail Bill Inputs'!F$56*'HV Retail Bill Inputs'!$C$150*'HV Retail Bill Inputs'!$C160))+'HV Retail Bill Inputs'!$C160,((('HV Retail Bill Inputs'!$C170*'HV Retail Bill Inputs'!E$149)+('HV Retail Bill Inputs'!F$56*'HV Retail Bill Inputs'!$C$150*'HV Retail Bill Inputs'!$C170))+'HV Retail Bill Inputs'!$C170)) ->  | F52: =IF($E$44=Lists!$C$4,(('HV Retail Bill Inputs'!$C160*'HV Retail Bill Inputs'!F$149)+('HV Retail Bill Inputs'!G$56*'HV Retail Bill Inputs'!$C$150*'HV Retail Bill Inputs'!$C160))+'HV Retail Bill Inputs'!$C160,((('HV Retail Bill Inputs'!$C170*'HV Retail Bill Inputs'!F$149)+('HV Retail Bill Inputs'!G$56*'HV Retail Bill Inputs'!$C$150*'HV Retail Bill Inputs'!$C170))+'HV Retail Bill Inputs'!$C170)) ->  | G52: =IF($E$44=Lists!$C$4,(('HV Retail Bill Inputs'!$C160*'HV Retail Bill Inputs'!G$149)+('HV Retail Bill Inputs'!H$56*'HV Retail Bill Inputs'!$C$150*'HV Retail Bill Inputs'!$C160))+'HV Retail Bill Inputs'!$C160,((('HV Retail Bill Inputs'!$C170*'HV Retail Bill Inputs'!G$149)+('HV Retail Bill Inputs'!H$56*'HV Retail Bill Inputs'!$C$150*'HV Retail Bill Inputs'!$C170))+'HV Retail Bill Inputs'!$C170)) ->  | H52: =IF($E$44=Lists!$C$4,(('HV Retail Bill Inputs'!$C160*'HV Retail Bill Inputs'!H$149)+('HV Retail Bill Inputs'!I$56*'HV Retail Bill Inputs'!$C$150*'HV Retail Bill Inputs'!$C160))+'HV Retail Bill Inputs'!$C160,((('HV Retail Bill Inputs'!$C170*'HV Retail Bill Inputs'!H$149)+('HV Retail Bill Inputs'!I$56*'HV Retail Bill Inputs'!$C$150*'HV Retail Bill Inputs'!$C170))+'HV Retail Bill Inputs'!$C170)) ->  | I52: =IF($E$44=Lists!$C$4,(('HV Retail Bill Inputs'!$C160*'HV Retail Bill Inputs'!I$149)+('HV Retail Bill Inputs'!J$56*'HV Retail Bill Inputs'!$C$150*'HV Retail Bill Inputs'!$C160))+'HV Retail Bill Inputs'!$C160,((('HV Retail Bill Inputs'!$C170*'HV Retail Bill Inputs'!I$149)+('HV Retail Bill Inputs'!J$56*'HV Retail Bill Inputs'!$C$150*'HV Retail Bill Inputs'!$C170))+'HV Retail Bill Inputs'!$C170)) ->  | J52: =IF($E$44=Lists!$C$4,(('HV Retail Bill Inputs'!$C160*'HV Retail Bill Inputs'!J$149)+('HV Retail Bill Inputs'!K$56*'HV Retail Bill Inputs'!$C$150*'HV Retail Bill Inputs'!$C160))+'HV Retail Bill Inputs'!$C160,((('HV Retail Bill Inputs'!$C170*'HV Retail Bill Inputs'!J$149)+('HV Retail Bill Inputs'!K$56*'HV Retail Bill Inputs'!$C$150*'HV Retail Bill Inputs'!$C170))+'HV Retail Bill Inputs'!$C170)) ->  | K52: =IF($E$44=Lists!$C$4,(('HV Retail Bill Inputs'!$C160*'HV Retail Bill Inputs'!K$149)+('HV Retail Bill Inputs'!L$56*'HV Retail Bill Inputs'!$C$150*'HV Retail Bill Inputs'!$C160))+'HV Retail Bill Inputs'!$C160,((('HV Retail Bill Inputs'!$C170*'HV Retail Bill Inputs'!K$149)+('HV Retail Bill Inputs'!L$56*'HV Retail Bill Inputs'!$C$150*'HV Retail Bill Inputs'!$C170))+'HV Retail Bill Inputs'!$C170)) ->  | L52: =IF($E$44=Lists!$C$4,(('HV Retail Bill Inputs'!$C160*'HV Retail Bill Inputs'!L$149)+('HV Retail Bill Inputs'!M$56*'HV Retail Bill Inputs'!$C$150*'HV Retail Bill Inputs'!$C160))+'HV Retail Bill Inputs'!$C160,((('HV Retail Bill Inputs'!$C170*'HV Retail Bill Inputs'!L$149)+('HV Retail Bill Inputs'!M$56*'HV Retail Bill Inputs'!$C$150*'HV Retail Bill Inputs'!$C170))+'HV Retail Bill Inputs'!$C170)) ->  | M52: =IF($E$44=Lists!$C$4,(('HV Retail Bill Inputs'!$C160*'HV Retail Bill Inputs'!M$149)+('HV Retail Bill Inputs'!N$56*'HV Retail Bill Inputs'!$C$150*'HV Retail Bill Inputs'!$C160))+'HV Retail Bill Inputs'!$C160,((('HV Retail Bill Inputs'!$C170*'HV Retail Bill Inputs'!M$149)+('HV Retail Bill Inputs'!N$56*'HV Retail Bill Inputs'!$C$150*'HV Retail Bill Inputs'!$C170))+'HV Retail Bill Inputs'!$C170)) ->  | N52: =IF($E$44=Lists!$C$4,(('HV Retail Bill Inputs'!$C160*'HV Retail Bill Inputs'!N$149)+('HV Retail Bill Inputs'!O$56*'HV Retail Bill Inputs'!$C$150*'HV Retail Bill Inputs'!$C160))+'HV Retail Bill Inputs'!$C160,((('HV Retail Bill Inputs'!$C170*'HV Retail Bill Inputs'!N$149)+('HV Retail Bill Inputs'!O$56*'HV Retail Bill Inputs'!$C$150*'HV Retail Bill Inputs'!$C170))+'HV Retail Bill Inputs'!$C170)) ->  | O52: =IF($E$44=Lists!$C$4,(('HV Retail Bill Inputs'!$C160*'HV Retail Bill Inputs'!O$149)+('HV Retail Bill Inputs'!P$56*'HV Retail Bill Inputs'!$C$150*'HV Retail Bill Inputs'!$C160))+'HV Retail Bill Inputs'!$C160,((('HV Retail Bill Inputs'!$C170*'HV Retail Bill Inputs'!O$149)+('HV Retail Bill Inputs'!P$56*'HV Retail Bill Inputs'!$C$150*'HV Retail Bill Inputs'!$C170))+'HV Retail Bill Inputs'!$C170)) ->  | P52: =IF($E$44=Lists!$C$4,(('HV Retail Bill Inputs'!$C160*'HV Retail Bill Inputs'!P$149)+('HV Retail Bill Inputs'!Q$56*'HV Retail Bill Inputs'!$C$150*'HV Retail Bill Inputs'!$C160))+'HV Retail Bill Inputs'!$C160,((('HV Retail Bill Inputs'!$C170*'HV Retail Bill Inputs'!P$149)+('HV Retail Bill Inputs'!Q$56*'HV Retail Bill Inputs'!$C$150*'HV Retail Bill Inputs'!$C170))+'HV Retail Bill Inputs'!$C170)) ->  | Q52: =IF($E$44=Lists!$C$4,(('HV Retail Bill Inputs'!$C160*'HV Retail Bill Inputs'!Q$149)+('HV Retail Bill Inputs'!R$56*'HV Retail Bill Inputs'!$C$150*'HV Retail Bill Inputs'!$C160))+'HV Retail Bill Inputs'!$C160,((('HV Retail Bill Inputs'!$C170*'HV Retail Bill Inputs'!Q$149)+('HV Retail Bill Inputs'!R$56*'HV Retail Bill Inputs'!$C$150*'HV Retail Bill Inputs'!$C170))+'HV Retail Bill Inputs'!$C170)) ->  | R52: =IF($E$44=Lists!$C$4,(('HV Retail Bill Inputs'!$C160*'HV Retail Bill Inputs'!R$149)+('HV Retail Bill Inputs'!S$56*'HV Retail Bill Inputs'!$C$150*'HV Retail Bill Inputs'!$C160))+'HV Retail Bill Inputs'!$C160,((('HV Retail Bill Inputs'!$C170*'HV Retail Bill Inputs'!R$149)+('HV Retail Bill Inputs'!S$56*'HV Retail Bill Inputs'!$C$150*'HV Retail Bill Inputs'!$C170))+'HV Retail Bill Inputs'!$C170)) ->  | S52: =IF($E$44=Lists!$C$4,(('HV Retail Bill Inputs'!$C160*'HV Retail Bill Inputs'!S$149)+('HV Retail Bill Inputs'!T$56*'HV Retail Bill Inputs'!$C$150*'HV Retail Bill Inputs'!$C160))+'HV Retail Bill Inputs'!$C160,((('HV Retail Bill Inputs'!$C170*'HV Retail Bill Inputs'!S$149)+('HV Retail Bill Inputs'!T$56*'HV Retail Bill Inputs'!$C$150*'HV Retail Bill Inputs'!$C170))+'HV Retail Bill Inputs'!$C170)) ->  | T52: =IF($E$44=Lists!$C$4,(('HV Retail Bill Inputs'!$C160*'HV Retail Bill Inputs'!T$149)+('HV Retail Bill Inputs'!U$56*'HV Retail Bill Inputs'!$C$150*'HV Retail Bill Inputs'!$C160))+'HV Retail Bill Inputs'!$C160,((('HV Retail Bill Inputs'!$C170*'HV Retail Bill Inputs'!T$149)+('HV Retail Bill Inputs'!U$56*'HV Retail Bill Inputs'!$C$150*'HV Retail Bill Inputs'!$C170))+'HV Retail Bill Inputs'!$C170)) ->  | U52: =IF($E$44=Lists!$C$4,(('HV Retail Bill Inputs'!$C160*'HV Retail Bill Inputs'!U$149)+('HV Retail Bill Inputs'!V$56*'HV Retail Bill Inputs'!$C$150*'HV Retail Bill Inputs'!$C160))+'HV Retail Bill Inputs'!$C160,((('HV Retail Bill Inputs'!$C170*'HV Retail Bill Inputs'!U$149)+('HV Retail Bill Inputs'!V$56*'HV Retail Bill Inputs'!$C$150*'HV Retail Bill Inputs'!$C170))+'HV Retail Bill Inputs'!$C170)) ->  | V52: =IF($E$44=Lists!$C$4,(('HV Retail Bill Inputs'!$C160*'HV Retail Bill Inputs'!V$149)+('HV Retail Bill Inputs'!W$56*'HV Retail Bill Inputs'!$C$150*'HV Retail Bill Inputs'!$C160))+'HV Retail Bill Inputs'!$C160,((('HV Retail Bill Inputs'!$C170*'HV Retail Bill Inputs'!V$149)+('HV Retail Bill Inputs'!W$56*'HV Retail Bill Inputs'!$C$150*'HV Retail Bill Inputs'!$C170))+'HV Retail Bill Inputs'!$C170)) ->  | W52: =IF($E$44=Lists!$C$4,(('HV Retail Bill Inputs'!$C160*'HV Retail Bill Inputs'!W$149)+('HV Retail Bill Inputs'!X$56*'HV Retail Bill Inputs'!$C$150*'HV Retail Bill Inputs'!$C160))+'HV Retail Bill Inputs'!$C160,((('HV Retail Bill Inputs'!$C170*'HV Retail Bill Inputs'!W$149)+('HV Retail Bill Inputs'!X$56*'HV Retail Bill Inputs'!$C$150*'HV Retail Bill Inputs'!$C170))+'HV Retail Bill Inputs'!$C170)) ->  | X52: =IF($E$44=Lists!$C$4,(('HV Retail Bill Inputs'!$C160*'HV Retail Bill Inputs'!X$149)+('HV Retail Bill Inputs'!Y$56*'HV Retail Bill Inputs'!$C$150*'HV Retail Bill Inputs'!$C160))+'HV Retail Bill Inputs'!$C160,((('HV Retail Bill Inputs'!$C170*'HV Retail Bill Inputs'!X$149)+('HV Retail Bill Inputs'!Y$56*'HV Retail Bill Inputs'!$C$150*'HV Retail Bill Inputs'!$C170))+'HV Retail Bill Inputs'!$C170)) -> 
